Workbook

Sheet Stavba_I. Etapa
C2: Položkový rozpočet stavby | H2: Datum: | I2: =TODAY() -> 2024-10-09
C5: Stavba : | D5: 3403 | E5: Jilemnice - Optimalizace VS a komunikace I. etapa
C7: Objednatel : | D7: Vodohospodářské sdružení Turnov | H7: IČO : | I7: 49295934
D8: Antonína Dvořáka 287 | H8: DIČ : | I8: CZ49295934
C9: 51101 | D9: Turnov
C11: Zhotovitel : | D11: . | H11: IČO :
H12: DIČ :
C13: Za zhotovitele : | H13: Za objednatele :
C15: _______________ | H15: _______________
J17: Rozpočtové náklady
B18: Základ pro DPH | D18: 12 | E18: % | I18: =ROUND(G33,0) -> 0
B19: DPH | D19: =SazbaDPH1 -> 12 | E19: % | I19: =ROUND(I18*D19/100,0) -> 0
B20: Základ pro DPH | D20: 21 | E20: % | I20: =ROUND(H33,0) -> 1200000
B21: DPH | D21: =SazbaDPH2 -> 21 | E21: % | I21: =ROUND(I20*D20/100,0) -> 252000
B22: Cena celkem za stavbu | I22: =SUM(I18:I21) -> 1452000
B25: Rekapitulace stavebních objektů a provozních souborů
B27: Číslo a název objektu / provozního souboru | F27: Cena celkem | G27: =CONCATENATE("Základ DPH ",SazbaDPH1," %") -> Základ DPH 12 % | H27: =CONCATENATE("Základ DPH ",SazbaDPH2," %") -> Základ DPH 21 % | I27: DPH celkem | J27: %
B28: 1.E 00 | C28: Komunikace | F28: =G28+H28+I28 -> 0 | G28: 0 | H28: =SUM(H38:H39) -> 0 | I28: =(G28*SazbaDPH1)/100+(H28*SazbaDPH2)/100 -> 0 | J28: =IF(CelkemObjekty=0,"",F28/CelkemObjekty*100) -> 0
B29: 1.E 01 | C29: Vodovody | F29: =G29+H29+I29 -> 0 | G29: 0 | H29: =SUM(H40:H45) -> 0 | I29: 0 | J29: 0
B30: 1.E 08 | C30: Kanalizace | F30: 0 | G30: 0 | H30: =SUM(H46:H50) -> 0 | I30: 0 | J30: 0
B31: OaVNS | C31: Ostatní a vedlejší náklady stavby I.etapa | F31: 0 | G31: 0 | H31: =SUM(OaVNS_I.Etapa!G30) -> 0 | I31: 0 | J31: 0
B32: PR | C32: Povinná rezerva I. etapa | F32: 1452000 | G32: 0 | H32: 1200000 | I32: 252000 | J32: 100
B33: Celkem za stavbu | F33: =SUM(F28:F32) -> 1452000 | G33: =SUM(G28:G32) -> 0 | H33: =SUM(H28:H32) -> 1200000 | I33: =SUM(I28:I32) -> 252000 | J33: =IF(CelkemObjekty=0,"",F33/CelkemObjekty*100) -> 100
B35: Rekapitulace stavebních rozpočtů
B37: Číslo objektu | C37: Číslo a název rozpočtu | F37: Cena celkem | G37: =CONCATENATE("Základ DPH ",SazbaDPH1," %") -> Základ DPH 12 % | H37: =CONCATENATE("Základ DPH ",SazbaDPH2," %") -> Základ DPH 21 % | I37: DPH celkem | J37: %
B38: 1.E 00 | C38: 1.E 01-103 Komunikace "ul. Spojovací" | F38: =G38+H38+I38 -> 0 | G38: 0 | H38: =SUM('1.E 00 1.E 01-103 KL'!C23) -> 0 | I38: =(G38*SazbaDPH1)/100+(H38*SazbaDPH2)/100 -> 0 | J38: =IF(CelkemObjekty=0,"",F38/CelkemObjekty*100) -> 0
B39: 1.E 00 | C39: 1.E 01-104 Komunikace "ul. Za Lázněni a spojovací pěšina" | F39: =G39+H39+I39 -> 0 | G39: 0 | H39: =SUM('1.E 00 1.E 01-104 KL'!C23) -> 0 | I39: 0 | J39: 0
B40: 1.E 01 | C40: 1.E 01.1.1 Vodovodní řad "A8-1" | F40: 0 | G40: 0 | H40: =SUM('1.E 01 1.E 01.1.1 KL'!C23) -> 0 | I40: 0 | J40: 0
B41: 1.E 01 | C41: 1.E 01.1.2 Vodovodní řad "A8-2-1" | F41: 0 | G41: 0 | H41: =SUM('1.E 01 1.E 01.1.2 KL'!C23) -> 0 | I41: 0 | J41: 0
B42: 1.E 01 | C42: 1.E 01.2 Vodovodní řad "A8-2" | F42: 0 | G42: 0 | H42: =SUM('1.E 01 1.E 01.2 KL'!C23) -> 0 | I42: 0 | J42: 0
B43: 1.E 01 | C43: 1.E 01.3 Odstavení stávajícího vodovodního řadu | F43: 0 | G43: 0 | H43: =SUM('1.E 01 1.E 01.3 KL'!C23) -> 0 | I43: 0 | J43: 0
B44: 1.E 01 | C44: 1.E 01.4 Nové vodovodní body Hrabačov | F44: 0 | G44: 0 | H44: =SUM('1.E 01 1.E 01.4 KL'!C23) -> 0 | I44: 0 | J44: 0
B45: 1.E 01 | C45: 1.E 01.5 Úpravy stáv.vodovodních napojovacích bodů Hrabačov | F45: 0 | G45: 0 | H45: =SUM('1.E 01 1.E 01.5 KL'!C23) -> 0 | I45: 0 | J45: 0
B46: 1.E 08 | C46: 1.E 08.1 Dešťová stoka "DS-3 po Š7a DS-3-a" | F46: 0 | G46: 0 | H46: =SUM('1.E 08 1.E 08.1 KL'!C23) -> 0 | I46: 0 | J46: 0
B47: 1.E 08 | C47: 1.E 08.2 Stoka "E1, E2, E2-1 a E2-2" | F47: 0 | G47: 0 | H47: =SUM('1.E 08 1.E 08.2 KL'!C23) -> 0 | I47: 0 | J47: 0
B48: 1.E 08 | C48: 1.E 08.3 Odstavení stávající kanalizační stoky | F48: 0 | G48: 0 | H48: =SUM('1.E 08 1.E 08.3 KL'!C23) -> 0 | I48: 0 | J48: 0
B49: 1.E 08 | C49: 1.E 08.5 Úpravy stáv.kanalizačních napojovacích bodů | F49: 0 | G49: 0 | H49: =SUM('1.E 08 1.E 08.5 KL'!C23) -> 0 | I49: 0 | J49: 0
B50: 1.E 08 | C50: 1.E 08.6 Odvodnění komunikací | F50: 0 | G50: 0 | H50: =SUM('1.E 08 1.E 08.6 KL'!C23) -> 0 | I50: 0 | J50: 0
B51: Celkem za stavbu | F51: =SUM(F38:F50) -> 0 | G51: =SUM(G38:G50) -> 0 | H51: =SUM(H38:H50) -> 0 | I51: =SUM(I38:I50) -> 0 | J51: =IF(CelkemObjekty=0,"",F51/CelkemObjekty*100) -> 0

Sheet 1.E 00 1.E 01-103 KL
A1: POLOŽKOVÝ ROZPOČET
A2: Rozpočet | C2: 1.E 01-103 | D2: Komunikace "ul. Spojovací" | F2: JKSO | G2: 822.27
A4: Objekt | F4: SKP
A5: 1.E 00 | C5: Komunikace | F5: Měrná jednotka | G5: m2
A6: Stavba | F6: Počet jednotek | G6: 0
A7: 3403 | C7: Jilemnice - Optimalizace VS a komunikace I.Etapa | F7: Náklady na m.j. | G7: =IF(G6=0,,ROUND((F30+F32)/G6,1)) -> 0
A8: Projektant | C8: Vodohospodářsko - inženýrské služby spol. s r.o. | F8: Typ rozpočtu
A9: Zpracovatel projektu
A10: Objednatel | C10: Vodohospodářské sdružení Turnov
A11: Dodavatel | C11: . | F11: Zakázkové číslo
A12: Rozpočtoval | F12: Počet listů
A13: ROZPOČTOVÉ NÁKLADY
A14: Základní rozpočtové náklady
B15: HSV celkem | C15: ='1.E 00 1.E 01-103 Rek'!E15 -> 0
A16: Z | B16: PSV celkem | C16: ='1.E 00 1.E 01-103 Rek'!F15 -> 0
A17: R | B17: M práce celkem | C17: ='1.E 00 1.E 01-103 Rek'!H15 -> 0
A18: N | B18: M dodávky celkem | C18: ='1.E 00 1.E 01-103 Rek'!G15 -> 0
A19: ZRN celkem | C19: =SUM(C15:C18) -> 0
A21: HZS | C21: ='1.E 00 1.E 01-103 Rek'!I15 -> 0
A22: ZRN+HZS | C22: =C19+C21 -> 0
A23: ZRN+ost.náklady+HZS | C23: =C22+G23 -> 0
A24: Vypracoval | D24: Za zhotovitele | F24: Za objednatele
A25: Jméno : | D25: Jméno : | F25: Jméno :
A26: Datum : | D26: Datum : | F26: Datum :
A28: Podpis : | D28: Podpis: | F28: Podpis:
A30: Základ pro DPH | C30: 21 | D30: % | F30: =C23-F32 -> 0
A31: DPH | C31: =C30 -> 21 | D31: % | F31: =ROUND(PRODUCT(F30,C31/100),0) -> 0
A32: Základ pro DPH | C32: 0 | D32: % | F32: 0
A33: DPH | C33: =C32 -> 0 | D33: % | F33: =ROUND(PRODUCT(F32,C33/100),0) -> 0
A34: CENA ZA OBJEKT CELKEM | F34: =ROUND(SUM(F30:F33),0) -> 0
A36: Poznámka :

Sheet 1.E 00 1.E 01-103 Rek
A1: Stavba : | C1: 3403 Jilemnice - Optimalizace VS a komunikace | G1: Rozpočet : | H1: 1.E 01-103
A2: Objekt : | C2: 1.E 00 Komunikace | G2: Komunikace "ul. Spojovací"
A4: REKAPITULACE STAVEBNÍCH DÍLŮ
B6: Stavební díl | E6: HSV | F6: PSV | G6: Dodávka | H6: Montáž | I6: HZS
A7: ='1.E 00 1.E 01-103 Pol'!B7 -> 1 | B7: ='1.E 00 1.E 01-103 Pol'!C7 -> Zemní práce | E7: ='1.E 00 1.E 01-103 Pol'!BA46 -> 0 | F7: ='1.E 00 1.E 01-103 Pol'!BB46 -> 0 | G7: ='1.E 00 1.E 01-103 Pol'!BC46 -> 0 | H7: ='1.E 00 1.E 01-103 Pol'!BD46 -> 0 | I7: ='1.E 00 1.E 01-103 Pol'!BE46 -> 0
A8: ='1.E 00 1.E 01-103 Pol'!B47 -> 2 | B8: ='1.E 00 1.E 01-103 Pol'!C47 -> Základy a zvláštní zakládání | E8: ='1.E 00 1.E 01-103 Pol'!BA51 -> 0 | F8: ='1.E 00 1.E 01-103 Pol'!BB51 -> 0 | G8: ='1.E 00 1.E 01-103 Pol'!BC51 -> 0 | H8: ='1.E 00 1.E 01-103 Pol'!BD51 -> 0 | I8: ='1.E 00 1.E 01-103 Pol'!BE51 -> 0
A9: ='1.E 00 1.E 01-103 Pol'!B52 -> 5 | B9: ='1.E 00 1.E 01-103 Pol'!C52 -> Komunikace | E9: ='1.E 00 1.E 01-103 Pol'!BA81 -> 0 | F9: ='1.E 00 1.E 01-103 Pol'!BB81 -> 0 | G9: ='1.E 00 1.E 01-103 Pol'!BC81 -> 0 | H9: ='1.E 00 1.E 01-103 Pol'!BD81 -> 0 | I9: ='1.E 00 1.E 01-103 Pol'!BE81 -> 0
A10: ='1.E 00 1.E 01-103 Pol'!B82 -> 91 | B10: ='1.E 00 1.E 01-103 Pol'!C82 -> Doplňující práce na komunikaci | E10: ='1.E 00 1.E 01-103 Pol'!BA94 -> 0 | F10: ='1.E 00 1.E 01-103 Pol'!BB94 -> 0 | G10: ='1.E 00 1.E 01-103 Pol'!BC94 -> 0 | H10: ='1.E 00 1.E 01-103 Pol'!BD94 -> 0 | I10: ='1.E 00 1.E 01-103 Pol'!BE94 -> 0
A11: ='1.E 00 1.E 01-103 Pol'!B95 -> 93 | B11: ='1.E 00 1.E 01-103 Pol'!C95 -> Dokončovací práce inženýrských staveb | E11: ='1.E 00 1.E 01-103 Pol'!BA100 -> 0 | F11: ='1.E 00 1.E 01-103 Pol'!BB100 -> 0 | G11: ='1.E 00 1.E 01-103 Pol'!BC100 -> 0 | H11: ='1.E 00 1.E 01-103 Pol'!BD100 -> 0 | I11: ='1.E 00 1.E 01-103 Pol'!BE100 -> 0
A12: ='1.E 00 1.E 01-103 Pol'!B101 -> 97 | B12: ='1.E 00 1.E 01-103 Pol'!C101 -> Prorážení otvorů | E12: ='1.E 00 1.E 01-103 Pol'!BA104 -> 0 | F12: ='1.E 00 1.E 01-103 Pol'!BB104 -> 0 | G12: ='1.E 00 1.E 01-103 Pol'!BC104 -> 0 | H12: ='1.E 00 1.E 01-103 Pol'!BD104 -> 0 | I12: ='1.E 00 1.E 01-103 Pol'!BE104 -> 0
A13: ='1.E 00 1.E 01-103 Pol'!B105 -> 99 | B13: ='1.E 00 1.E 01-103 Pol'!C105 -> Staveništní přesun hmot | E13: ='1.E 00 1.E 01-103 Pol'!BA107 -> 0 | F13: ='1.E 00 1.E 01-103 Pol'!BB107 -> 0 | G13: ='1.E 00 1.E 01-103 Pol'!BC107 -> 0 | H13: ='1.E 00 1.E 01-103 Pol'!BD107 -> 0 | I13: ='1.E 00 1.E 01-103 Pol'!BE107 -> 0
A14: ='1.E 00 1.E 01-103 Pol'!B108 -> M22 | B14: ='1.E 00 1.E 01-103 Pol'!C108 -> Montáž sdělovací a zabezp. techniky | E14: ='1.E 00 1.E 01-103 Pol'!BA114 -> 0 | F14: ='1.E 00 1.E 01-103 Pol'!BB114 -> 0 | G14: ='1.E 00 1.E 01-103 Pol'!BC114 -> 0 | H14: ='1.E 00 1.E 01-103 Pol'!BD114 -> 0 | I14: ='1.E 00 1.E 01-103 Pol'!BE114 -> 0
B15: CELKEM OBJEKT | E15: =SUM(E7:E14) -> 0 | F15: =SUM(F7:F14) -> 0 | G15: =SUM(G7:G14) -> 0 | H15: =SUM(H7:H14) -> 0 | I15: =SUM(I7:I14) -> 0

Sheet 1.E 00 1.E 01-103 Pol
A1: Položkový rozpočet
A3: Stavba : | C3: 3403 Jilemnice - Optimalizace VS a komunikace | E3: Rozpočet: | F3: ='1.E 00 1.E 01-103 Rek'!H1 -> 1.E 01-103
A4: Objekt : | C4: 1.E 00 Komunikace | E4: ='1.E 00 1.E 01-103 Rek'!G2 -> Komunikace "ul. Spojovací"
A6: P.č. | B6: Číslo položky | C6: Název položky | D6: MJ | E6: množství | F6: cena / MJ | G6: celkem (Kč) | H6: Jednotková hmotnost | I6: Celková hmotnost | J6: Jednotková dem.hmot. | K6: Celková dem.hmot.
A7: Díl: | B7: 1 | C7: Zemní práce | O7: 1
A8: 1 | B8: 113106231R00 | C8: Rozebrání dlažeb ze zámkové dlažby v kamenivu | D8: m2 | E8: 6 | G8: =E8*F8 -> 0 | H8: 0 | I8: =E8*H8 -> 0 | J8: -0.225 | K8: =E8*J8 -> -1.35 | O8: 2 | AA8: 1 | AB8: 1 | AC8: 1 | AZ8: 1 | BA8: =IF(AZ8=1,G8,0) -> 0 | BB8: =IF(AZ8=2,G8,0) -> 0 | BC8: =IF(AZ8=3,G8,0) -> 0 | BD8: =IF(AZ8=4,G8,0) -> 0 | BE8: =IF(AZ8=5,G8,0) -> 0 | CA8: 1 | CB8: 1
C9: Stávající ploch ze ZD:6,00 | E9: 6 | M9: Stávající ploch ze ZD:6,00
A10: 2 | B10: 113107630R00 | C10: Odstranění podkladu nad 50 m2,kam.drcené tl.30 cm | D10: m2 | E10: 923.5 | G10: =E10*F10 -> 0 | H10: 0 | I10: =E10*H10 -> 0 | J10: -0.66 | K10: =E10*J10 -> -609.51 | O10: 2 | AA10: 1 | AB10: 1 | AC10: 1 | AZ10: 1 | BA10: =IF(AZ10=1,G10,0) -> 0 | BB10: =IF(AZ10=2,G10,0) -> 0 | BC10: =IF(AZ10=3,G10,0) -> 0 | BD10: =IF(AZ10=4,G10,0) -> 0 | BE10: =IF(AZ10=5,G10,0) -> 0 | CA10: 1 | CB10: 1
C11: cca 40% štěrku z celkového objemu původních konstrukčních vrstev bude odvezen na skládku Města Jilemnice | L11: cca 40% štěrku z celkového objemu původních konstrukčních vrstev bude odvezen na skládku Města Jilemnice | O11: 3
C12: Plocha stávající komunikace včetně rýh pro VH sítě:898,00 | E12: 898 | M12: Plocha stávající komunikace včetně rýh pro VH sítě:898,00
C13: Napojení sjezdů a sjezdy:25,50 | E13: 25.5 | M13: Napojení sjezdů a sjezdy:25,50
A14: 3 | B14: 113107640R00 | C14: Odstranění podkladu nad 50 m2,kam.drcené tl.40 cm | D14: m2 | E14: 6 | G14: =E14*F14 -> 0 | H14: 0 | I14: =E14*H14 -> 0 | J14: -0.88 | K14: =E14*J14 -> -5.28 | O14: 2 | AA14: 1 | AB14: 1 | AC14: 1 | AZ14: 1 | BA14: =IF(AZ14=1,G14,0) -> 0 | BB14: =IF(AZ14=2,G14,0) -> 0 | BC14: =IF(AZ14=3,G14,0) -> 0 | BD14: =IF(AZ14=4,G14,0) -> 0 | BE14: =IF(AZ14=5,G14,0) -> 0 | CA14: 1 | CB14: 1
C15: Plocha pro popelnice:6,00 | E15: 6 | M15: Plocha pro popelnice:6,00
A16: 4 | B16: 113108410R00 | C16: Odstranění asfaltové vrstvy pl.nad 50 m2, tl.10 cm | D16: m2 | E16: 923.5 | G16: =E16*F16 -> 0 | H16: 0 | I16: =E16*H16 -> 0 | J16: -0.22 | K16: =E16*J16 -> -203.17 | O16: 2 | AA16: 1 | AB16: 1 | AC16: 1 | AZ16: 1 | BA16: =IF(AZ16=1,G16,0) -> 0 | BB16: =IF(AZ16=2,G16,0) -> 0 | BC16: =IF(AZ16=3,G16,0) -> 0 | BD16: =IF(AZ16=4,G16,0) -> 0 | BE16: =IF(AZ16=5,G16,0) -> 0 | CA16: 1 | CB16: 1
C17: Plocha stávající komunikace včetně rýh pro VH sítě:898,00 | E17: 898 | M17: Plocha stávající komunikace včetně rýh pro VH sítě:898,00
C18: Napojení sjezdů a sjezdy:25,50 | E18: 25.5 | M18: Napojení sjezdů a sjezdy:25,50
A19: 5 | B19: 113151314R00 | C19: Fréz.živič.krytu nad 500 m2, s překážkami, tl.5 cm | D19: m2 | E19: 942.9 | G19: =E19*F19 -> 0 | H19: 0 | I19: =E19*H19 -> 0 | J19: -0.11 | K19: =E19*J19 -> -103.719 | O19: 2 | AA19: 1 | AB19: 1 | AC19: 1 | AZ19: 1 | BA19: =IF(AZ19=1,G19,0) -> 0 | BB19: =IF(AZ19=2,G19,0) -> 0 | BC19: =IF(AZ19=3,G19,0) -> 0 | BD19: =IF(AZ19=4,G19,0) -> 0 | BE19: =IF(AZ19=5,G19,0) -> 0 | CA19: 1 | CB19: 1
C20: Plocha stávající komunikace:898,00*1,05 | E20: 942.9 | M20: Plocha stávající komunikace:898,00*1,05
A21: 6 | B21: 113202111R00 | C21: Vytrhání obrub obrubníků silničních | D21: m | E21: 72 | G21: =E21*F21 -> 0 | H21: 0 | I21: =E21*H21 -> 0 | J21: -0.27 | K21: =E21*J21 -> -19.44 | O21: 2 | AA21: 1 | AB21: 1 | AC21: 1 | AZ21: 1 | BA21: =IF(AZ21=1,G21,0) -> 0 | BB21: =IF(AZ21=2,G21,0) -> 0 | BC21: =IF(AZ21=3,G21,0) -> 0 | BD21: =IF(AZ21=4,G21,0) -> 0 | BE21: =IF(AZ21=5,G21,0) -> 0 | CA21: 1 | CB21: 1
C22: Stávající obrubníky:72,00 | E22: 72 | M22: Stávající obrubníky:72,00
A23: 7 | B23: 122202202R00 | C23: Odkopávky pro silnice v hor. 3 do 1000 m3 | D23: m3 | E23: 105.6 | G23: =E23*F23 -> 0 | H23: 0 | I23: =E23*H23 -> 0 | J23: 0 | K23: =E23*J23 -> 0 | O23: 2 | AA23: 1 | AB23: 1 | AC23: 1 | AZ23: 1 | BA23: =IF(AZ23=1,G23,0) -> 0 | BB23: =IF(AZ23=2,G23,0) -> 0 | BC23: =IF(AZ23=3,G23,0) -> 0 | BD23: =IF(AZ23=4,G23,0) -> 0 | BE23: =IF(AZ23=5,G23,0) -> 0 | CA23: 1 | CB23: 1
C24: Odkopávky pro sanace mimo rýh VH sítí:1056,00*0,5*0,20 | E24: 105.6 | M24: Odkopávky pro sanace mimo rýh VH sítí:1056,00*0,5*0,20
A25: 8 | B25: 122202209R00 | C25: Příplatek za lepivost - odkop. pro silnice v hor.3 | D25: m3 | E25: 105.6 | G25: =E25*F25 -> 0 | H25: 0 | I25: =E25*H25 -> 0 | J25: 0 | K25: =E25*J25 -> 0 | O25: 2 | AA25: 1 | AB25: 1 | AC25: 1 | AZ25: 1 | BA25: =IF(AZ25=1,G25,0) -> 0 | BB25: =IF(AZ25=2,G25,0) -> 0 | BC25: =IF(AZ25=3,G25,0) -> 0 | BD25: =IF(AZ25=4,G25,0) -> 0 | BE25: =IF(AZ25=5,G25,0) -> 0 | CA25: 1 | CB25: 1
C26: Odkopávky pro sanace mimo rýh VH sítí:1056,00*0,5*0,20 | E26: 105.6 | M26: Odkopávky pro sanace mimo rýh VH sítí:1056,00*0,5*0,20
A27: 9 | B27: 130901123RT3 | C27: Bourání konstrukcí ze železobetonu ve vykopávkách bagrem s kladivem | D27: m3 | E27: 1.96 | G27: =E27*F27 -> 0 | H27: 0 | I27: =E27*H27 -> 0 | J27: 0 | K27: =E27*J27 -> 0 | O27: 2 | AA27: 1 | AB27: 1 | AC27: 1 | AZ27: 1 | BA27: =IF(AZ27=1,G27,0) -> 0 | BB27: =IF(AZ27=2,G27,0) -> 0 | BC27: =IF(AZ27=3,G27,0) -> 0 | BD27: =IF(AZ27=4,G27,0) -> 0 | BE27: =IF(AZ27=5,G27,0) -> 0 | CA27: 1 | CB27: 1
C28: Položka obsahuje odstranění materiálu obklopujícího betonové a železobetonové konstrukce v míře nutné pro vyzvednutí, rozpojení konstrukcí, uchopení a vyzvednutí konstrukce z výkopu a uložení na dopravní prostředek včetně odvozu na skládku zhotovitele a poplatek za skládku. | L28: Položka obsahuje odstranění materiálu obklopujícího betonové a železobetonové konstrukce v míře nutné pro vyzvednutí, rozpojení konstrukcí, uchopení a vyzvednutí konstrukce z výkopu a uložení na dopravní prostředek včetně odvozu na skládku zhotovitele a poplatek za skládku. | O28: 3
C29: Betony:1,00 | E29: 1 | M29: Betony:1,00
C30: Štěrbinový žlab:6,00*0,40*0,40 | E30: 0.96 | M30: Štěrbinový žlab:6,00*0,40*0,40
A31: 10 | B31: 162701105RSZ | C31: Vodorovné přemístění výkopku z hor.1-4 na skládku zhotovitele | D31: m3 | E31: 105.6 | G31: =E31*F31 -> 0 | H31: 0 | I31: =E31*H31 -> 0 | J31: 0 | K31: =E31*J31 -> 0 | O31: 2 | AA31: 1 | AB31: 1 | AC31: 1 | AZ31: 1 | BA31: =IF(AZ31=1,G31,0) -> 0 | BB31: =IF(AZ31=2,G31,0) -> 0 | BC31: =IF(AZ31=3,G31,0) -> 0 | BD31: =IF(AZ31=4,G31,0) -> 0 | BE31: =IF(AZ31=5,G31,0) -> 0 | CA31: 1 | CB31: 1
C32: Odkopávky pro sanace mimo rýh VH sítí:1056,00*0,5*0,20 | E32: 105.6 | M32: Odkopávky pro sanace mimo rýh VH sítí:1056,00*0,5*0,20
A33: 11 | B33: 181101101R00 | C33: Úprava pláně v zářezech v hor. 1-4, bez zhutnění | D33: m2 | E33: 377 | G33: =E33*F33 -> 0 | H33: 0 | I33: =E33*H33 -> 0 | J33: 0 | K33: =E33*J33 -> 0 | O33: 2 | AA33: 1 | AB33: 1 | AC33: 1 | AZ33: 1 | BA33: =IF(AZ33=1,G33,0) -> 0 | BB33: =IF(AZ33=2,G33,0) -> 0 | BC33: =IF(AZ33=3,G33,0) -> 0 | BD33: =IF(AZ33=4,G33,0) -> 0 | BE33: =IF(AZ33=5,G33,0) -> 0 | CA33: 1 | CB33: 1
A34: 12 | B34: 181101102R00 | C34: Úprava pláně v zářezech v hor. 1-4, se zhutněním | D34: m2 | E34: 1056 | G34: =E34*F34 -> 0 | H34: 0 | I34: =E34*H34 -> 0 | J34: 0 | K34: =E34*J34 -> 0 | O34: 2 | AA34: 1 | AB34: 1 | AC34: 1 | AZ34: 1 | BA34: =IF(AZ34=1,G34,0) -> 0 | BB34: =IF(AZ34=2,G34,0) -> 0 | BC34: =IF(AZ34=3,G34,0) -> 0 | BD34: =IF(AZ34=4,G34,0) -> 0 | BE34: =IF(AZ34=5,G34,0) -> 0 | CA34: 1 | CB34: 1
A35: 13 | B35: 181300012RAC | C35: Rozprostření ornice v rovině tloušťka 20 cm dovoz ornice ze vzdálenosti 5 km, osetí trávou | D35: m2 | E35: 377 | G35: =E35*F35 -> 0 | H35: 3e-05 | I35: =E35*H35 -> 0.01131 | J35: 0 | K35: =E35*J35 -> 0 | O35: 2 | AA35: 1 | AB35: 1 | AC35: 1 | AZ35: 1 | BA35: =IF(AZ35=1,G35,0) -> 0 | BB35: =IF(AZ35=2,G35,0) -> 0 | BC35: =IF(AZ35=3,G35,0) -> 0 | BD35: =IF(AZ35=4,G35,0) -> 0 | BE35: =IF(AZ35=5,G35,0) -> 0 | CA35: 1 | CB35: 1
C36: Včetně přesunu hmot. | L36: Včetně přesunu hmot. | O36: 3
A37: 14 | B37: 199000002R00 | C37: Poplatek za skládku horniny 1- 4 č. dle katal. odpadů 17 05 04 | D37: m3 | E37: 105.6 | G37: =E37*F37 -> 0 | H37: 0 | I37: =E37*H37 -> 0 | J37: 0 | K37: =E37*J37 -> 0 | O37: 2 | AA37: 1 | AB37: 1 | AC37: 1 | AZ37: 1 | BA37: =IF(AZ37=1,G37,0) -> 0 | BB37: =IF(AZ37=2,G37,0) -> 0 | BC37: =IF(AZ37=3,G37,0) -> 0 | BD37: =IF(AZ37=4,G37,0) -> 0 | BE37: =IF(AZ37=5,G37,0) -> 0 | CA37: 1 | CB37: 1
C38: Odkopávky pro sanace mimo rýh VH sítí:1056,00*0,5*0,20 | E38: 105.6 | M38: Odkopávky pro sanace mimo rýh VH sítí:1056,00*0,5*0,20
A39: 15 | B39: 979082112RMJ | C39: Vodorovná doprava části štěrku z komunikací na skládku Města Jilemnice do 5 km | D39: t | E39: 243.804 | G39: =E39*F39 -> 0 | H39: 0 | I39: =E39*H39 -> 0 | J39: 0 | K39: =E39*J39 -> 0 | O39: 2 | AA39: 1 | AB39: 1 | AC39: 1 | AZ39: 1 | BA39: =IF(AZ39=1,G39,0) -> 0 | BB39: =IF(AZ39=2,G39,0) -> 0 | BC39: =IF(AZ39=3,G39,0) -> 0 | BD39: =IF(AZ39=4,G39,0) -> 0 | BE39: =IF(AZ39=5,G39,0) -> 0 | CA39: 1 | CB39: 1
A40: 16 | B40: 979082113RMJ | C40: Vodorovná doprava frézovaného asfaltu na skládku Města Jilemnice do 5 km | D40: t | E40: 103.719 | G40: 0 | H40: 0 | I40: 0 | J40: 0 | K40: 0 | O40: 2 | AA40: 1 | AB40: 1 | AC40: 1 | AZ40: 1 | BA40: 0 | BB40: 0 | BC40: 0 | BD40: 0 | BE40: 0 | CA40: 1 | CB40: 1
A41: 17 | B41: 979082113RSZ | C41: Vodorovná doprava suti po suchu na skládku zhotovitele | D41: t | E41: 592.936 | G41: 0 | H41: 0 | I41: 0 | J41: 0 | K41: 0 | O41: 2 | AA41: 1 | AB41: 1 | AC41: 1 | AZ41: 1 | BA41: 0 | BB41: 0 | BC41: 0 | BD41: 0 | BE41: 0 | CA41: 1 | CB41: 1
A42: 18 | B42: 979089001R00 | C42: Poplatek za skládku stavební suti štěrky z komunikací, skupina odpadu 010408 | D42: t | E42: 370.326 | G42: 0 | H42: 0 | I42: 0 | J42: 0 | K42: 0 | O42: 2 | AA42: 1 | AB42: 1 | AC42: 1 | AZ42: 1 | BA42: 0 | BB42: 0 | BC42: 0 | BD42: 0 | BE42: 0 | CA42: 1 | CB42: 1
A43: 19 | B43: 979990103R00 | C43: Poplatek za skládku stavební suti beton skupina odpadu 170101 | D43: t | E43: 19.44 | G43: 0 | H43: 0 | I43: 0 | J43: 0 | K43: 0 | O43: 2 | AA43: 1 | AB43: 1 | AC43: 1 | AZ43: 1 | BA43: 0 | BB43: 0 | BC43: 0 | BD43: 0 | BE43: 0 | CA43: 1 | CB43: 1
A44: 20 | B44: 979999995R00 | C44: Poplatek za reciklaci asfaltu, kusovost do 1600cm2 skupina 170302 | D44: t | E44: 203.17 | G44: 0 | H44: 0 | I44: 0 | J44: 0 | K44: 0 | O44: 2 | AA44: 1 | AB44: 1 | AC44: 1 | AZ44: 1 | BA44: 0 | BB44: 0 | BC44: 0 | BD44: 0 | BE44: 0 | CA44: 1 | CB44: 1
C45: Položka je určena pro suť o velikosti kusu do 30x30 cm (technologický materiál určený k recyklaci). | L45: Položka je určena pro suť o velikosti kusu do 30x30 cm (technologický materiál určený k recyklaci). | O45: 3
B46: Celkem za | C46: 1 Zemní práce | G46: =SUM(G7:G45) -> 0 | I46: =SUM(I7:I45) -> 0.01131 | K46: =SUM(K7:K45) -> -942.469 | O46: 4 | BA46: =SUM(BA7:BA45) -> 0 | BB46: =SUM(BB7:BB45) -> 0 | BC46: =SUM(BC7:BC45) -> 0 | BD46: =SUM(BD7:BD45) -> 0 | BE46: =SUM(BE7:BE45) -> 0
A47: Díl: | B47: 2 | C47: Základy a zvláštní zakládání | O47: 1
A48: 21 | B48: 289970111R00 | C48: Vrstva geotextilie Geofiltex 300g/m2 | D48: m2 | E48: 1267.2 | G48: =E48*F48 -> 0 | H48: 0.0005 | I48: =E48*H48 -> 0.6336 | J48: 0 | K48: =E48*J48 -> 0 | O48: 2 | AA48: 1 | AB48: 1 | AC48: 1 | AZ48: 1 | BA48: =IF(AZ48=1,G48,0) -> 0 | BB48: =IF(AZ48=2,G48,0) -> 0 | BC48: =IF(AZ48=3,G48,0) -> 0 | BD48: =IF(AZ48=4,G48,0) -> 0 | BE48: =IF(AZ48=5,G48,0) -> 0 | CA48: 1 | CB48: 1
C49: Geotextílie tkaná z polyprop. s funkcí výztužnou, separační a filtrační s min. plošnou hmotností 280 g/m2. Pevnost v obou směrech min. 60kN/m2 | L49: Geotextílie tkaná z polyprop. s funkcí výztužnou, separační a filtrační s min. plošnou hmotností 280 g/m2. Pevnost v obou směrech min. 60kN/m2 | O49: 3
C50: Celková upravovaná plocha:1056,00*1,2 | E50: 1267.2 | M50: Celková upravovaná plocha:1056,00*1,2
B51: Celkem za | C51: 2 Základy a zvláštní zakládání | G51: =SUM(G47:G50) -> 0 | I51: =SUM(I47:I50) -> 0.6336 | K51: =SUM(K47:K50) -> 0 | O51: 4 | BA51: =SUM(BA47:BA50) -> 0 | BB51: =SUM(BB47:BB50) -> 0 | BC51: =SUM(BC47:BC50) -> 0 | BD51: =SUM(BD47:BD50) -> 0 | BE51: =SUM(BE47:BE50) -> 0
A52: Díl: | B52: 5 | C52: Komunikace | O52: 1
A53: 22 | B53: 564761111R00 | C53: Podklad z kameniva drceného vel.32-63 mm,tl. 20 cm | D53: m2 | E53: 528 | G53: =E53*F53 -> 0 | H53: 0.43 | I53: =E53*H53 -> 227.04 | J53: 0 | K53: =E53*J53 -> 0 | O53: 2 | AA53: 1 | AB53: 1 | AC53: 1 | AZ53: 1 | BA53: =IF(AZ53=1,G53,0) -> 0 | BB53: =IF(AZ53=2,G53,0) -> 0 | BC53: =IF(AZ53=3,G53,0) -> 0 | BD53: =IF(AZ53=4,G53,0) -> 0 | BE53: =IF(AZ53=5,G53,0) -> 0 | CA53: 1 | CB53: 1
C54: Sanační vrstvy mimo konstrukce rýh VH sítí:1056,00*0,5 | E54: 528 | M54: Sanační vrstvy mimo konstrukce rýh VH sítí:1056,00*0,5
A55: 23 | B55: 564851111RT2 | C55: Podklad ze štěrkodrti po zhutnění tloušťky 15 cm štěrkodrť frakce 0-32 mm | D55: m2 | E55: 1037.3 | G55: =E55*F55 -> 0 | H55: 0.378 | I55: =E55*H55 -> 392.0994 | J55: 0 | K55: =E55*J55 -> 0 | O55: 2 | AA55: 1 | AB55: 1 | AC55: 1 | AZ55: 1 | BA55: =IF(AZ55=1,G55,0) -> 0 | BB55: =IF(AZ55=2,G55,0) -> 0 | BC55: =IF(AZ55=3,G55,0) -> 0 | BD55: =IF(AZ55=4,G55,0) -> 0 | BE55: =IF(AZ55=5,G55,0) -> 0 | CA55: 1 | CB55: 1
C56: Konstrukce komunikace:943,00*1,1 | E56: 1037.3 | M56: Konstrukce komunikace:943,00*1,1
A57: 24 | B57: 564851114RT4 | C57: Podklad ze štěrkodrti po zhutnění tloušťky 18 cm štěrkodrť frakce 0-63 mm | D57: m2 | E57: 1151.7 | G57: =E57*F57 -> 0 | H57: 0.4536 | I57: =E57*H57 -> 522.41112 | J57: 0 | K57: =E57*J57 -> 0 | O57: 2 | AA57: 1 | AB57: 1 | AC57: 1 | AZ57: 1 | BA57: =IF(AZ57=1,G57,0) -> 0 | BB57: =IF(AZ57=2,G57,0) -> 0 | BC57: =IF(AZ57=3,G57,0) -> 0 | BD57: =IF(AZ57=4,G57,0) -> 0 | BE57: =IF(AZ57=5,G57,0) -> 0 | CA57: 1 | CB57: 1
C58: Konstrukce komunikace:(943,00+104,00)*1,1 | E58: 1151.7 | M58: Konstrukce komunikace:(943,00+104,00)*1,1
A59: 25 | B59: 564871111RT2 | C59: Podklad ze štěrkodrti po zhutnění tloušťky 25 cm štěrkodrť frakce 0-32 mm | D59: m2 | E59: 30.8 | G59: =E59*F59 -> 0 | H59: 0.55125 | I59: =E59*H59 -> 16.9785 | J59: 0 | K59: =E59*J59 -> 0 | O59: 2 | AA59: 1 | AB59: 1 | AC59: 1 | AZ59: 1 | BA59: =IF(AZ59=1,G59,0) -> 0 | BB59: =IF(AZ59=2,G59,0) -> 0 | BC59: =IF(AZ59=3,G59,0) -> 0 | BD59: =IF(AZ59=4,G59,0) -> 0 | BE59: =IF(AZ59=5,G59,0) -> 0 | CA59: 1 | CB59: 1
C60: Plocha pro popelnice:9,00*1,1 | E60: 9.9 | M60: Plocha pro popelnice:9,00*1,1
C61: Úpravy napojení sjezdů:19,00*1,1 | E61: 20.9 | M61: Úpravy napojení sjezdů:19,00*1,1
A62: 26 | B62: 566905111R00 | C62: Vyspravení podkladu po překopech podklad.betonem | D62: m3 | E62: 0.5 | G62: =E62*F62 -> 0 | H62: 2.5 | I62: =E62*H62 -> 1.25 | J62: 0 | K62: =E62*J62 -> 0 | O62: 2 | AA62: 1 | AB62: 1 | AC62: 1 | AZ62: 1 | BA62: =IF(AZ62=1,G62,0) -> 0 | BB62: =IF(AZ62=2,G62,0) -> 0 | BC62: =IF(AZ62=3,G62,0) -> 0 | BD62: =IF(AZ62=4,G62,0) -> 0 | BE62: =IF(AZ62=5,G62,0) -> 0 | CA62: 1 | CB62: 1
C63: Drobné dobetonávky u sjezdů a pod.:0,50 | E63: 0.5 | M63: Drobné dobetonávky u sjezdů a pod.:0,50
A64: 27 | B64: 573111124R00 | C64: Postřik infiltrační, množství zbytkového asfaltového pojiva 1,00 kg/m2 | D64: m2 | E64: 990.15 | G64: =E64*F64 -> 0 | H64: 0.00601 | I64: =E64*H64 -> 5.9508015 | J64: 0 | K64: =E64*J64 -> 0 | O64: 2 | AA64: 1 | AB64: 0 | AC64: 0 | AZ64: 1 | BA64: =IF(AZ64=1,G64,0) -> 0 | BB64: =IF(AZ64=2,G64,0) -> 0 | BC64: =IF(AZ64=3,G64,0) -> 0 | BD64: =IF(AZ64=4,G64,0) -> 0 | BE64: =IF(AZ64=5,G64,0) -> 0 | CA64: 1 | CB64: 0
C65: Plocha komunikace:943,00*1,05 | E65: 990.15 | M65: Plocha komunikace:943,00*1,05
A66: 28 | B66: 573231110R00 | C66: Postřik spojovací z KAE množství zbytkového asfaltu 0,3 kg/m2 | D66: m2 | E66: 1021.65 | G66: =E66*F66 -> 0 | H66: 0.0005 | I66: =E66*H66 -> 0.510825 | J66: 0 | K66: =E66*J66 -> 0 | O66: 2 | AA66: 1 | AB66: 1 | AC66: 1 | AZ66: 1 | BA66: =IF(AZ66=1,G66,0) -> 0 | BB66: =IF(AZ66=2,G66,0) -> 0 | BC66: =IF(AZ66=3,G66,0) -> 0 | BD66: =IF(AZ66=4,G66,0) -> 0 | BE66: =IF(AZ66=5,G66,0) -> 0 | CA66: 1 | CB66: 1
C67: Plocha komunikace:973,00*1,05 | E67: 1021.65 | M67: Plocha komunikace:973,00*1,05
A68: 29 | B68: 577142112R00 | C68: Beton asfaltový ACO 11+ obrusný nad 3 m, tl.5 cm | D68: m2 | E68: 1037.3 | G68: =E68*F68 -> 0 | H68: 0 | I68: =E68*H68 -> 0 | J68: 0 | K68: =E68*J68 -> 0 | O68: 2 | AA68: 1 | AB68: 0 | AC68: 0 | AZ68: 1 | BA68: =IF(AZ68=1,G68,0) -> 0 | BB68: =IF(AZ68=2,G68,0) -> 0 | BC68: =IF(AZ68=3,G68,0) -> 0 | BD68: =IF(AZ68=4,G68,0) -> 0 | BE68: =IF(AZ68=5,G68,0) -> 0 | CA68: 1 | CB68: 0
C69: Plocha komunikace:943,00*1,1 | E69: 1037.3 | M69: Plocha komunikace:943,00*1,1
A70: 30 | B70: 577162124R00 | C70: Beton asfalt. ACL 16+ ložný, š. nad 3 m, tl. 7 cm | D70: m2 | E70: 1084.45 | G70: =E70*F70 -> 0 | H70: 0 | I70: =E70*H70 -> 0 | J70: 0 | K70: =E70*J70 -> 0 | O70: 2 | AA70: 1 | AB70: 1 | AC70: 1 | AZ70: 1 | BA70: =IF(AZ70=1,G70,0) -> 0 | BB70: =IF(AZ70=2,G70,0) -> 0 | BC70: =IF(AZ70=3,G70,0) -> 0 | BD70: =IF(AZ70=4,G70,0) -> 0 | BE70: =IF(AZ70=5,G70,0) -> 0 | CA70: 1 | CB70: 1
C71: Plocha komunikace:943,00*1,15 | E71: 1084.45 | M71: Plocha komunikace:943,00*1,15
A72: 31 | B72: 596215021R00 | C72: Kladení zámkové dlažby tl. 6 cm do drtě tl. 4 cm | D72: m2 | E72: 15.45 | G72: =E72*F72 -> 0 | H72: 0.0739 | I72: =E72*H72 -> 1.141755 | J72: 0 | K72: =E72*J72 -> 0 | O72: 2 | AA72: 1 | AB72: 1 | AC72: 1 | AZ72: 1 | BA72: =IF(AZ72=1,G72,0) -> 0 | BB72: =IF(AZ72=2,G72,0) -> 0 | BC72: =IF(AZ72=3,G72,0) -> 0 | BD72: =IF(AZ72=4,G72,0) -> 0 | BE72: =IF(AZ72=5,G72,0) -> 0 | CA72: 1 | CB72: 1
C73: Stávající ploch ze ZD:6,00 | E73: 6 | M73: Stávající ploch ze ZD:6,00
C74: Nové plochy ZD:9,00*1,05 | E74: 9.45 | M74: Nové plochy ZD:9,00*1,05
A75: 32 | B75: 596291111R00 | C75: Řezání zámkové dlažby tl. 60 mm | D75: m | E75: 6 | G75: =E75*F75 -> 0 | H75: 0.00033 | I75: =E75*H75 -> 0.00198 | J75: 0 | K75: =E75*J75 -> 0 | O75: 2 | AA75: 1 | AB75: 1 | AC75: 1 | AZ75: 1 | BA75: =IF(AZ75=1,G75,0) -> 0 | BB75: =IF(AZ75=2,G75,0) -> 0 | BC75: =IF(AZ75=3,G75,0) -> 0 | BD75: =IF(AZ75=4,G75,0) -> 0 | BE75: =IF(AZ75=5,G75,0) -> 0 | CA75: 1 | CB75: 1
C76: Stávající ploch ze ZD:6,00*0,25 | E76: 1.5 | M76: Stávající ploch ze ZD:6,00*0,25
C77: Nové plochy ZD:9,00*0,5 | E77: 4.5 | M77: Nové plochy ZD:9,00*0,5
A78: 33 | B78: 59245263.R | C78: Dlažba zámková barevná tl. 60 mm skladba dle PD (20/10+20/20+30/20 cm) | D78: m2 | E78: 9.639 | G78: =E78*F78 -> 0 | H78: 0.131 | I78: =E78*H78 -> 1.262709 | K78: =E78*J78 -> 0 | O78: 2 | AA78: 3 | AB78: 1 | AC78: 59245263.R | AZ78: 1 | BA78: =IF(AZ78=1,G78,0) -> 0 | BB78: =IF(AZ78=2,G78,0) -> 0 | BC78: =IF(AZ78=3,G78,0) -> 0 | BD78: =IF(AZ78=4,G78,0) -> 0 | BE78: =IF(AZ78=5,G78,0) -> 0 | CA78: 3 | CB78: 1
C79: Barevná kombinace červená a bílá | L79: Barevná kombinace červená a bílá | O79: 3
C80: Nové plochy ZD:9,00*1,05*1,02 | E80: 9.639 | M80: Nové plochy ZD:9,00*1,05*1,02
B81: Celkem za | C81: 5 Komunikace | G81: =SUM(G52:G80) -> 0 | I81: =SUM(I52:I80) -> 1168.647091 | K81: =SUM(K52:K80) -> 0 | O81: 4 | BA81: =SUM(BA52:BA80) -> 0 | BB81: =SUM(BB52:BB80) -> 0 | BC81: =SUM(BC52:BC80) -> 0 | BD81: =SUM(BD52:BD80) -> 0 | BE81: =SUM(BE52:BE80) -> 0
A82: Díl: | B82: 91 | C82: Doplňující práce na komunikaci | O82: 1
A83: 34 | B83: 919 90-9002.RRR | C83: Výšková úprava stávajících vrat u vjezdů k RD | D83: soubor | E83: 1 | G83: =E83*F83 -> 0 | H83: 0 | I83: =E83*H83 -> 0 | K83: =E83*J83 -> 0 | O83: 2 | AA83: 11 | AB83: 3 | AC83: 1 | AZ83: 1 | BA83: =IF(AZ83=1,G83,0) -> 0 | BB83: =IF(AZ83=2,G83,0) -> 0 | BC83: =IF(AZ83=3,G83,0) -> 0 | BD83: =IF(AZ83=4,G83,0) -> 0 | BE83: =IF(AZ83=5,G83,0) -> 0 | CA83: 11 | CB83: 3
A84: 35 | B84: 919 90-9003.RRR | C84: Výšková úprava stávajících vrátek u RD | D84: soubor | E84: 1 | G84: =E84*F84 -> 0 | H84: 0 | I84: =E84*H84 -> 0 | K84: =E84*J84 -> 0 | O84: 2 | AA84: 11 | AB84: 3 | AC84: 2 | AZ84: 1 | BA84: =IF(AZ84=1,G84,0) -> 0 | BB84: =IF(AZ84=2,G84,0) -> 0 | BC84: =IF(AZ84=3,G84,0) -> 0 | BD84: =IF(AZ84=4,G84,0) -> 0 | BE84: =IF(AZ84=5,G84,0) -> 0 | CA84: 11 | CB84: 3
A85: 36 | B85: 916561111RT4 | C85: Osazení záhon.obrubníků do lože z C 12/15 s opěrou včetně obrubníku 50/5/25 cm | D85: m | E85: 8 | G85: =E85*F85 -> 0 | H85: 0.15224 | I85: =E85*H85 -> 1.21792 | J85: 0 | K85: =E85*J85 -> 0 | O85: 2 | AA85: 1 | AB85: 0 | AC85: 0 | AZ85: 1 | BA85: =IF(AZ85=1,G85,0) -> 0 | BB85: =IF(AZ85=2,G85,0) -> 0 | BC85: =IF(AZ85=3,G85,0) -> 0 | BD85: =IF(AZ85=4,G85,0) -> 0 | BE85: =IF(AZ85=5,G85,0) -> 0 | CA85: 1 | CB85: 0
C86: Okolo plochy pro popelnice:8,00 | E86: 8 | M86: Okolo plochy pro popelnice:8,00
A87: 37 | B87: 917862114RU2 | C87: Osazení stojat. obrub.bet. s opěrou,lože z C 25/30 včetně obrubníku ABO 100/15/25 | D87: m | E87: 143.42 | G87: =E87*F87 -> 0 | H87: 0.26981 | I87: =E87*H87 -> 38.6961502 | J87: 0 | K87: =E87*J87 -> 0 | O87: 2 | AA87: 1 | AB87: 1 | AC87: 1 | AZ87: 1 | BA87: =IF(AZ87=1,G87,0) -> 0 | BB87: =IF(AZ87=2,G87,0) -> 0 | BC87: =IF(AZ87=3,G87,0) -> 0 | BD87: =IF(AZ87=4,G87,0) -> 0 | BE87: =IF(AZ87=5,G87,0) -> 0 | CA87: 1 | CB87: 1
C88: Obrubník silniční 100/15/25:142,00*1,01 | E88: 143.42 | M88: Obrubník silniční 100/15/25:142,00*1,01
A89: 38 | B89: 917862114RV3 | C89: Osazení stojat. obrub.bet. s opěrou,lože z C 25/30 včetně obrubníku nájezdového 100/15/15 | D89: m | E89: 55.55 | G89: =E89*F89 -> 0 | H89: 0.26981 | I89: =E89*H89 -> 14.9879455 | J89: 0 | K89: =E89*J89 -> 0 | O89: 2 | AA89: 1 | AB89: 1 | AC89: 1 | AZ89: 1 | BA89: =IF(AZ89=1,G89,0) -> 0 | BB89: =IF(AZ89=2,G89,0) -> 0 | BC89: =IF(AZ89=3,G89,0) -> 0 | BD89: =IF(AZ89=4,G89,0) -> 0 | BE89: =IF(AZ89=5,G89,0) -> 0 | CA89: 1 | CB89: 1
C90: Obrubník silniční nájezdový 100/15/15:55,00*1,01 | E90: 55.55 | M90: Obrubník silniční nájezdový 100/15/15:55,00*1,01
A91: 39 | B91: 917862114RV4 | C91: Osazení stojat. obrub.bet. s opěrou,lože z C 25/30 včetně obrubníku nájezdového náběh. 100/15/15-25 | D91: m | E91: 5.05 | G91: =E91*F91 -> 0 | H91: 0.26981 | I91: =E91*H91 -> 1.3625405 | J91: 0 | K91: =E91*J91 -> 0 | O91: 2 | AA91: 1 | AB91: 1 | AC91: 1 | AZ91: 1 | BA91: =IF(AZ91=1,G91,0) -> 0 | BB91: =IF(AZ91=2,G91,0) -> 0 | BC91: =IF(AZ91=3,G91,0) -> 0 | BD91: =IF(AZ91=4,G91,0) -> 0 | BE91: =IF(AZ91=5,G91,0) -> 0 | CA91: 1 | CB91: 1
C92: Obrubník silniční nájezdový náběhový 100/15/15-25:(2,00+3,00)*1,01 | E92: 5.05 | M92: Obrubník silniční nájezdový náběhový 100/15/15-25:(2,00+3,00)*1,01
A93: 40 | B93: 919735112R00 | C93: Řezání stávajícího živičného krytu tl. 5 - 10 cm | D93: m | E93: 23 | G93: =E93*F93 -> 0 | H93: 0 | I93: =E93*H93 -> 0 | J93: 0 | K93: =E93*J93 -> 0 | O93: 2 | AA93: 1 | AB93: 1 | AC93: 1 | AZ93: 1 | BA93: =IF(AZ93=1,G93,0) -> 0 | BB93: =IF(AZ93=2,G93,0) -> 0 | BC93: =IF(AZ93=3,G93,0) -> 0 | BD93: =IF(AZ93=4,G93,0) -> 0 | BE93: =IF(AZ93=5,G93,0) -> 0 | CA93: 1 | CB93: 1
B94: Celkem za | C94: 91 Doplňující práce na komunikaci | G94: =SUM(G82:G93) -> 0 | I94: =SUM(I82:I93) -> 56.2645562 | K94: =SUM(K82:K93) -> 0 | O94: 4 | BA94: =SUM(BA82:BA93) -> 0 | BB94: =SUM(BB82:BB93) -> 0 | BC94: =SUM(BC82:BC93) -> 0 | BD94: =SUM(BD82:BD93) -> 0 | BE94: =SUM(BE82:BE93) -> 0
A95: Díl: | B95: 93 | C95: Dokončovací práce inženýrských staveb | O95: 1
A96: 41 | B96: 938908411RRX | C96: Očištění povrchu krytu vodou | D96: m2 | E96: 943 | G96: =E96*F96 -> 0 | H96: 1e-05 | I96: =E96*H96 -> 0.00943 | J96: 0 | K96: =E96*J96 -> 0 | O96: 2 | AA96: 1 | AB96: 1 | AC96: 1 | AZ96: 1 | BA96: =IF(AZ96=1,G96,0) -> 0 | BB96: =IF(AZ96=2,G96,0) -> 0 | BC96: =IF(AZ96=3,G96,0) -> 0 | BD96: =IF(AZ96=4,G96,0) -> 0 | BE96: =IF(AZ96=5,G96,0) -> 0 | CA96: 1 | CB96: 1
A97: 42 | B97: 938909111R00 | C97: Odstranění nánosu s povrchu podkladu štěrkového | D97: m2 | E97: 943 | G97: =E97*F97 -> 0 | H97: 0 | I97: =E97*H97 -> 0 | J97: 0 | K97: =E97*J97 -> 0 | O97: 2 | AA97: 1 | AB97: 1 | AC97: 1 | AZ97: 1 | BA97: =IF(AZ97=1,G97,0) -> 0 | BB97: =IF(AZ97=2,G97,0) -> 0 | BC97: =IF(AZ97=3,G97,0) -> 0 | BD97: =IF(AZ97=4,G97,0) -> 0 | BE97: =IF(AZ97=5,G97,0) -> 0 | CA97: 1 | CB97: 1
A98: 43 | B98: 938909311R00 | C98: Odstranění nánosu z povrchu živičného nebo beton. | D98: m2 | E98: 1500 | G98: =E98*F98 -> 0 | H98: 0 | I98: =E98*H98 -> 0 | J98: 0 | K98: =E98*J98 -> 0 | O98: 2 | AA98: 1 | AB98: 1 | AC98: 1 | AZ98: 1 | BA98: =IF(AZ98=1,G98,0) -> 0 | BB98: =IF(AZ98=2,G98,0) -> 0 | BC98: =IF(AZ98=3,G98,0) -> 0 | BD98: =IF(AZ98=4,G98,0) -> 0 | BE98: =IF(AZ98=5,G98,0) -> 0 | CA98: 1 | CB98: 1
C99: Z okolních komunikací behem realizace stavby:1500,00 | E99: 1500 | M99: Z okolních komunikací behem realizace stavby:1500,00
B100: Celkem za | C100: 93 Dokončovací práce inženýrských staveb | G100: =SUM(G95:G99) -> 0 | I100: =SUM(I95:I99) -> 0.00943 | K100: =SUM(K95:K99) -> 0 | O100: 4 | BA100: =SUM(BA95:BA99) -> 0 | BB100: =SUM(BB95:BB99) -> 0 | BC100: =SUM(BC95:BC99) -> 0 | BD100: =SUM(BD95:BD99) -> 0 | BE100: =SUM(BE95:BE99) -> 0
A101: Díl: | B101: 97 | C101: Prorážení otvorů | O101: 1
A102: 44 | B102: 979054441R00 | C102: Očištění vybour. dlaždic s výplní kamen. těženým | D102: m2 | E102: 6 | G102: =E102*F102 -> 0 | H102: 0 | I102: =E102*H102 -> 0 | J102: 0 | K102: =E102*J102 -> 0 | O102: 2 | AA102: 1 | AB102: 1 | AC102: 1 | AZ102: 1 | BA102: =IF(AZ102=1,G102,0) -> 0 | BB102: =IF(AZ102=2,G102,0) -> 0 | BC102: =IF(AZ102=3,G102,0) -> 0 | BD102: =IF(AZ102=4,G102,0) -> 0 | BE102: =IF(AZ102=5,G102,0) -> 0 | CA102: 1 | CB102: 1
C103: Stávající ploch ze ZD:6,00 | E103: 6 | M103: Stávající ploch ze ZD:6,00
B104: Celkem za | C104: 97 Prorážení otvorů | G104: =SUM(G101:G103) -> 0 | I104: =SUM(I101:I103) -> 0 | K104: =SUM(K101:K103) -> 0 | O104: 4 | BA104: =SUM(BA101:BA103) -> 0 | BB104: =SUM(BB101:BB103) -> 0 | BC104: =SUM(BC101:BC103) -> 0 | BD104: =SUM(BD101:BD103) -> 0 | BE104: =SUM(BE101:BE103) -> 0
A105: Díl: | B105: 99 | C105: Staveništní přesun hmot | O105: 1
A106: 45 | B106: 998225111R00 | C106: Přesun hmot, pozemní komunikace, kryt živičný | D106: t | E106: 1225.565987 | G106: =E106*F106 -> 0 | H106: 0 | I106: =E106*H106 -> 0 | K106: =E106*J106 -> 0 | O106: 2 | AA106: 7 | AB106: 1 | AC106: 2 | AZ106: 1 | BA106: =IF(AZ106=1,G106,0) -> 0 | BB106: =IF(AZ106=2,G106,0) -> 0 | BC106: =IF(AZ106=3,G106,0) -> 0 | BD106: =IF(AZ106=4,G106,0) -> 0 | BE106: =IF(AZ106=5,G106,0) -> 0 | CA106: 7 | CB106: 1
B107: Celkem za | C107: 99 Staveništní přesun hmot | G107: =SUM(G105:G106) -> 0 | I107: =SUM(I105:I106) -> 0 | K107: =SUM(K105:K106) -> 0 | O107: 4 | BA107: =SUM(BA105:BA106) -> 0 | BB107: =SUM(BB105:BB106) -> 0 | BC107: =SUM(BC105:BC106) -> 0 | BD107: =SUM(BD105:BD106) -> 0 | BE107: =SUM(BE105:BE106) -> 0
A108: Díl: | B108: M22 | C108: Montáž sdělovací a zabezp. techniky | O108: 1
A109: 46 | B109: M22 05-9001.RRR | C109: Úprava kabelů "CETIN" a "ČEZ" | D109: m | E109: 50 | G109: =E109*F109 -> 0 | H109: 0 | I109: =E109*H109 -> 0 | K109: =E109*J109 -> 0 | O109: 2 | AA109: 11 | AB109: 3 | AC109: 3 | AZ109: 4 | BA109: =IF(AZ109=1,G109,0) -> 0 | BB109: =IF(AZ109=2,G109,0) -> 0 | BC109: =IF(AZ109=3,G109,0) -> 0 | BD109: =IF(AZ109=4,G109,0) -> 0 | BE109: =IF(AZ109=5,G109,0) -> 0 | CA109: 11 | CB109: 3
C110: Položka obsahuje: | L110: Položka obsahuje: | O110: 3
C111: - ruční výkop sond na kabelovém vedení (5 kusů) | L111: - ruční výkop sond na kabelovém vedení (5 kusů) | O111: 3
C112: -výškové a směrové posunutí kabelů včetně uložení do dělené chráničky, potřebné zemní práce, pískování, položení a dodávku fólie a pod. | L112: -výškové a směrové posunutí kabelů včetně uložení do dělené chráničky, potřebné zemní práce, pískování, položení a dodávku fólie a pod. | O112: 3
C113: - případné geodetické zaměření při stranovém posunutí kabelové trasy. | L113: - případné geodetické zaměření při stranovém posunutí kabelové trasy. | O113: 3
B114: Celkem za | C114: M22 Montáž sdělovací a zabezp. techniky | G114: =SUM(G108:G113) -> 0 | I114: =SUM(I108:I113) -> 0 | K114: =SUM(K108:K113) -> 0 | O114: 4 | BA114: =SUM(BA108:BA113) -> 0 | BB114: =SUM(BB108:BB113) -> 0 | BC114: =SUM(BC108:BC113) -> 0 | BD114: =SUM(BD108:BD113) -> 0 | BE114: =SUM(BE108:BE113) -> 0

Sheet 1.E 00 1.E 01-104 KL
A1: POLOŽKOVÝ ROZPOČET
A2: Rozpočet | C2: 1.E 01-104 | D2: Komunikace "ul. Za Lázněni a spojovací pěšina" | F2: JKSO | G2: 822.27
A4: Objekt | F4: SKP
A5: 1.E 00 | C5: Komunikace | F5: Měrná jednotka | G5: m2
A6: Stavba | F6: Počet jednotek | G6: 0
A7: 3403 | C7: Jilemnice - Optimalizace VS a komunikace I.Etapa | F7: Náklady na m.j. | G7: =IF(G6=0,,ROUND((F30+F32)/G6,1)) -> 0
A8: Projektant | C8: Vodohospodářsko - inženýrské služby spol. s r.o. | F8: Typ rozpočtu
A9: Zpracovatel projektu
A10: Objednatel | C10: Vodohospodářské sdružení Turnov
A11: Dodavatel | C11: . | F11: Zakázkové číslo
A12: Rozpočtoval | F12: Počet listů
A13: ROZPOČTOVÉ NÁKLADY
A14: Základní rozpočtové náklady
B15: HSV celkem | C15: ='1.E 00 1.E 01-104 Rek'!E16 -> 0
A16: Z | B16: PSV celkem | C16: ='1.E 00 1.E 01-104 Rek'!F16 -> 0
A17: R | B17: M práce celkem | C17: ='1.E 00 1.E 01-104 Rek'!H16 -> 0
A18: N | B18: M dodávky celkem | C18: ='1.E 00 1.E 01-104 Rek'!G16 -> 0
A19: ZRN celkem | C19: =SUM(C15:C18) -> 0
A21: HZS | C21: ='1.E 00 1.E 01-104 Rek'!I16 -> 0
A22: ZRN+HZS | C22: =C19+C21 -> 0
A23: ZRN+ost.náklady+HZS | C23: =C22+G23 -> 0
A24: Vypracoval | D24: Za zhotovitele | F24: Za objednatele
A25: Jméno : | D25: Jméno : | F25: Jméno :
A26: Datum : | D26: Datum : | F26: Datum :
A28: Podpis : | D28: Podpis: | F28: Podpis:
A30: Základ pro DPH | C30: 21 | D30: % | F30: =C23-F32 -> 0
A31: DPH | C31: =C30 -> 21 | D31: % | F31: =ROUND(PRODUCT(F30,C31/100),0) -> 0
A32: Základ pro DPH | C32: 0 | D32: % | F32: 0
A33: DPH | C33: =C32 -> 0 | D33: % | F33: =ROUND(PRODUCT(F32,C33/100),0) -> 0
A34: CENA ZA OBJEKT CELKEM | F34: =ROUND(SUM(F30:F33),0) -> 0
A36: Poznámka :

Sheet 1.E 00 1.E 01-104 Rek
A1: Stavba : | C1: 3403 Jilemnice - Optimalizace VS a komunikace | G1: Rozpočet : | H1: 1.E 01-104
A2: Objekt : | C2: 1.E 00 Komunikace | G2: Komunikace "ul. Za Lázněni a spojovací pěšina"
A4: REKAPITULACE STAVEBNÍCH DÍLŮ
B6: Stavební díl | E6: HSV | F6: PSV | G6: Dodávka | H6: Montáž | I6: HZS
A7: ='1.E 00 1.E 01-104 Pol'!B7 -> 1 | B7: ='1.E 00 1.E 01-104 Pol'!C7 -> Zemní práce | E7: ='1.E 00 1.E 01-104 Pol'!BA47 -> 0 | F7: ='1.E 00 1.E 01-104 Pol'!BB47 -> 0 | G7: ='1.E 00 1.E 01-104 Pol'!BC47 -> 0 | H7: ='1.E 00 1.E 01-104 Pol'!BD47 -> 0 | I7: ='1.E 00 1.E 01-104 Pol'!BE47 -> 0
A8: ='1.E 00 1.E 01-104 Pol'!B48 -> 2 | B8: ='1.E 00 1.E 01-104 Pol'!C48 -> Základy a zvláštní zakládání | E8: ='1.E 00 1.E 01-104 Pol'!BA52 -> 0 | F8: ='1.E 00 1.E 01-104 Pol'!BB52 -> 0 | G8: ='1.E 00 1.E 01-104 Pol'!BC52 -> 0 | H8: ='1.E 00 1.E 01-104 Pol'!BD52 -> 0 | I8: ='1.E 00 1.E 01-104 Pol'!BE52 -> 0
A9: ='1.E 00 1.E 01-104 Pol'!B53 -> 3 | B9: ='1.E 00 1.E 01-104 Pol'!C53 -> Svislé a kompletní konstrukce | E9: ='1.E 00 1.E 01-104 Pol'!BA56 -> 0 | F9: ='1.E 00 1.E 01-104 Pol'!BB56 -> 0 | G9: ='1.E 00 1.E 01-104 Pol'!BC56 -> 0 | H9: ='1.E 00 1.E 01-104 Pol'!BD56 -> 0 | I9: ='1.E 00 1.E 01-104 Pol'!BE56 -> 0
A10: ='1.E 00 1.E 01-104 Pol'!B57 -> 5 | B10: ='1.E 00 1.E 01-104 Pol'!C57 -> Komunikace | E10: ='1.E 00 1.E 01-104 Pol'!BA103 -> 0 | F10: ='1.E 00 1.E 01-104 Pol'!BB103 -> 0 | G10: ='1.E 00 1.E 01-104 Pol'!BC103 -> 0 | H10: ='1.E 00 1.E 01-104 Pol'!BD103 -> 0 | I10: ='1.E 00 1.E 01-104 Pol'!BE103 -> 0
A11: ='1.E 00 1.E 01-104 Pol'!B104 -> 91 | B11: ='1.E 00 1.E 01-104 Pol'!C104 -> Doplňující práce na komunikaci | E11: ='1.E 00 1.E 01-104 Pol'!BA116 -> 0 | F11: ='1.E 00 1.E 01-104 Pol'!BB116 -> 0 | G11: ='1.E 00 1.E 01-104 Pol'!BC116 -> 0 | H11: ='1.E 00 1.E 01-104 Pol'!BD116 -> 0 | I11: ='1.E 00 1.E 01-104 Pol'!BE116 -> 0
A12: ='1.E 00 1.E 01-104 Pol'!B117 -> 93 | B12: ='1.E 00 1.E 01-104 Pol'!C117 -> Dokončovací práce inženýrských staveb | E12: ='1.E 00 1.E 01-104 Pol'!BA122 -> 0 | F12: ='1.E 00 1.E 01-104 Pol'!BB122 -> 0 | G12: ='1.E 00 1.E 01-104 Pol'!BC122 -> 0 | H12: ='1.E 00 1.E 01-104 Pol'!BD122 -> 0 | I12: ='1.E 00 1.E 01-104 Pol'!BE122 -> 0
A13: ='1.E 00 1.E 01-104 Pol'!B123 -> 97 | B13: ='1.E 00 1.E 01-104 Pol'!C123 -> Prorážení otvorů | E13: ='1.E 00 1.E 01-104 Pol'!BA126 -> 0 | F13: ='1.E 00 1.E 01-104 Pol'!BB126 -> 0 | G13: ='1.E 00 1.E 01-104 Pol'!BC126 -> 0 | H13: ='1.E 00 1.E 01-104 Pol'!BD126 -> 0 | I13: ='1.E 00 1.E 01-104 Pol'!BE126 -> 0
A14: ='1.E 00 1.E 01-104 Pol'!B127 -> 99 | B14: ='1.E 00 1.E 01-104 Pol'!C127 -> Staveništní přesun hmot | E14: ='1.E 00 1.E 01-104 Pol'!BA129 -> 0 | F14: ='1.E 00 1.E 01-104 Pol'!BB129 -> 0 | G14: ='1.E 00 1.E 01-104 Pol'!BC129 -> 0 | H14: ='1.E 00 1.E 01-104 Pol'!BD129 -> 0 | I14: ='1.E 00 1.E 01-104 Pol'!BE129 -> 0
A15: ='1.E 00 1.E 01-104 Pol'!B130 -> M22 | B15: ='1.E 00 1.E 01-104 Pol'!C130 -> Montáž sdělovací a zabezp. techniky | E15: ='1.E 00 1.E 01-104 Pol'!BA136 -> 0 | F15: ='1.E 00 1.E 01-104 Pol'!BB136 -> 0 | G15: ='1.E 00 1.E 01-104 Pol'!BC136 -> 0 | H15: ='1.E 00 1.E 01-104 Pol'!BD136 -> 0 | I15: ='1.E 00 1.E 01-104 Pol'!BE136 -> 0
B16: CELKEM OBJEKT | E16: =SUM(E7:E15) -> 0 | F16: =SUM(F7:F15) -> 0 | G16: =SUM(G7:G15) -> 0 | H16: =SUM(H7:H15) -> 0 | I16: =SUM(I7:I15) -> 0

Sheet 1.E 00 1.E 01-104 Pol
A1: Položkový rozpočet
A3: Stavba : | C3: 3403 Jilemnice - Optimalizace VS a komunikace | E3: Rozpočet: | F3: ='1.E 00 1.E 01-104 Rek'!H1 -> 1.E 01-104
A4: Objekt : | C4: 1.E 00 Komunikace | E4: ='1.E 00 1.E 01-104 Rek'!G2 -> Komunikace "ul. Za Lázněni a spojovací pěšina"
A6: P.č. | B6: Číslo položky | C6: Název položky | D6: MJ | E6: množství | F6: cena / MJ | G6: celkem (Kč) | H6: Jednotková hmotnost | I6: Celková hmotnost | J6: Jednotková dem.hmot. | K6: Celková dem.hmot.
A7: Díl: | B7: 1 | C7: Zemní práce | O7: 1
A8: 1 | B8: 113106121R00 | C8: Rozebrání dlažeb z betonových dlaždic na sucho | D8: m2 | E8: 671 | G8: =E8*F8 -> 0 | H8: 0 | I8: =E8*H8 -> 0 | J8: -0.138 | K8: =E8*J8 -> -92.598 | O8: 2 | AA8: 1 | AB8: 1 | AC8: 1 | AZ8: 1 | BA8: =IF(AZ8=1,G8,0) -> 0 | BB8: =IF(AZ8=2,G8,0) -> 0 | BC8: =IF(AZ8=3,G8,0) -> 0 | BD8: =IF(AZ8=4,G8,0) -> 0 | BE8: =IF(AZ8=5,G8,0) -> 0 | CA8: 1 | CB8: 1
C9: Chodníky:610,00*1,1 | E9: 671 | M9: Chodníky:610,00*1,1
A10: 2 | B10: 113106231R00 | C10: Rozebrání dlažeb ze zámkové dlažby v kamenivu | D10: m2 | E10: 26 | G10: =E10*F10 -> 0 | H10: 0 | I10: =E10*H10 -> 0 | J10: -0.225 | K10: =E10*J10 -> -5.85 | O10: 2 | AA10: 1 | AB10: 1 | AC10: 1 | AZ10: 1 | BA10: =IF(AZ10=1,G10,0) -> 0 | BB10: =IF(AZ10=2,G10,0) -> 0 | BC10: =IF(AZ10=3,G10,0) -> 0 | BD10: =IF(AZ10=4,G10,0) -> 0 | BE10: =IF(AZ10=5,G10,0) -> 0 | CA10: 1 | CB10: 1
C11: Stávající ploch ze ZD:26,00 | E11: 26 | M11: Stávající ploch ze ZD:26,00
A12: 3 | B12: 113107630R00 | C12: Odstranění podkladu nad 50 m2,kam.drcené tl.30 cm | D12: m2 | E12: 2287.3 | G12: =E12*F12 -> 0 | H12: 0 | I12: =E12*H12 -> 0 | J12: -0.66 | K12: =E12*J12 -> -1509.618 | O12: 2 | AA12: 1 | AB12: 1 | AC12: 1 | AZ12: 1 | BA12: =IF(AZ12=1,G12,0) -> 0 | BB12: =IF(AZ12=2,G12,0) -> 0 | BC12: =IF(AZ12=3,G12,0) -> 0 | BD12: =IF(AZ12=4,G12,0) -> 0 | BE12: =IF(AZ12=5,G12,0) -> 0 | CA12: 1 | CB12: 1
C13: Plocha stávající komunikace včetně rýh pro VH sítě:1481,00 | E13: 1481 | M13: Plocha stávající komunikace včetně rýh pro VH sítě:1481,00
C14: Chodníky:610,00*1,1 | E14: 671 | M14: Chodníky:610,00*1,1
C15: Betonové plochy:123,00*1,1 | E15: 135.3 | M15: Betonové plochy:123,00*1,1
A16: 4 | B16: 113108410R00 | C16: Odstranění asfaltové vrstvy pl.nad 50 m2, tl.10 cm | D16: m2 | E16: 1481 | G16: =E16*F16 -> 0 | H16: 0 | I16: =E16*H16 -> 0 | J16: -0.22 | K16: =E16*J16 -> -325.82 | O16: 2 | AA16: 1 | AB16: 1 | AC16: 1 | AZ16: 1 | BA16: =IF(AZ16=1,G16,0) -> 0 | BB16: =IF(AZ16=2,G16,0) -> 0 | BC16: =IF(AZ16=3,G16,0) -> 0 | BD16: =IF(AZ16=4,G16,0) -> 0 | BE16: =IF(AZ16=5,G16,0) -> 0 | CA16: 1 | CB16: 1
C17: Plocha stávající komunikace včetně rýh pro VH sítě:1481,00 | E17: 1481 | M17: Plocha stávající komunikace včetně rýh pro VH sítě:1481,00
A18: 5 | B18: 113109410R00 | C18: Odstranění podkladu pl.nad 50 m2, beton, tl. 10 cm | D18: m2 | E18: 135.3 | G18: =E18*F18 -> 0 | H18: 0 | I18: =E18*H18 -> 0 | J18: -0.24 | K18: =E18*J18 -> -32.472 | O18: 2 | AA18: 1 | AB18: 1 | AC18: 1 | AZ18: 1 | BA18: =IF(AZ18=1,G18,0) -> 0 | BB18: =IF(AZ18=2,G18,0) -> 0 | BC18: =IF(AZ18=3,G18,0) -> 0 | BD18: =IF(AZ18=4,G18,0) -> 0 | BE18: =IF(AZ18=5,G18,0) -> 0 | CA18: 1 | CB18: 1
C19: Betonové plochy:123,00*1,1 | E19: 135.3 | M19: Betonové plochy:123,00*1,1
A20: 6 | B20: 113151315R00 | C20: Fréz.živič.krytu nad 500 m2, s překážkami, tl.6 cm | D20: m2 | E20: 1555.05 | G20: =E20*F20 -> 0 | H20: 0 | I20: =E20*H20 -> 0 | J20: -0.132 | K20: =E20*J20 -> -205.2666 | O20: 2 | AA20: 1 | AB20: 1 | AC20: 1 | AZ20: 1 | BA20: =IF(AZ20=1,G20,0) -> 0 | BB20: =IF(AZ20=2,G20,0) -> 0 | BC20: =IF(AZ20=3,G20,0) -> 0 | BD20: =IF(AZ20=4,G20,0) -> 0 | BE20: =IF(AZ20=5,G20,0) -> 0 | CA20: 1 | CB20: 1
C21: Plocha stávající komunikace:1481,00*1,05 | E21: 1555.05 | M21: Plocha stávající komunikace:1481,00*1,05
A22: 7 | B22: 113202111R00 | C22: Vytrhání obrub obrubníků silničních | D22: m | E22: 464.1 | G22: =E22*F22 -> 0 | H22: 0 | I22: =E22*H22 -> 0 | J22: -0.27 | K22: =E22*J22 -> -125.307 | O22: 2 | AA22: 1 | AB22: 1 | AC22: 1 | AZ22: 1 | BA22: =IF(AZ22=1,G22,0) -> 0 | BB22: =IF(AZ22=2,G22,0) -> 0 | BC22: =IF(AZ22=3,G22,0) -> 0 | BD22: =IF(AZ22=4,G22,0) -> 0 | BE22: =IF(AZ22=5,G22,0) -> 0 | CA22: 1 | CB22: 1
C23: Stávající obrubníky:442,00*1,05 | E23: 464.1 | M23: Stávající obrubníky:442,00*1,05
A24: 8 | B24: 122202202R00 | C24: Odkopávky pro silnice v hor. 3 do 1000 m3 | D24: m3 | E24: 248 | G24: =E24*F24 -> 0 | H24: 0 | I24: =E24*H24 -> 0 | J24: 0 | K24: =E24*J24 -> 0 | O24: 2 | AA24: 1 | AB24: 1 | AC24: 1 | AZ24: 1 | BA24: =IF(AZ24=1,G24,0) -> 0 | BB24: =IF(AZ24=2,G24,0) -> 0 | BC24: =IF(AZ24=3,G24,0) -> 0 | BD24: =IF(AZ24=4,G24,0) -> 0 | BE24: =IF(AZ24=5,G24,0) -> 0 | CA24: 1 | CB24: 1
C25: Odkopávky pro sanace mimo rýh VH sítí:2345,00*0,5*0,2 | E25: 234.5 | M25: Odkopávky pro sanace mimo rýh VH sítí:2345,00*0,5*0,2
C26: Ostatní odkopávky:90,00*0,15 | E26: 13.5 | M26: Ostatní odkopávky:90,00*0,15
A27: 9 | B27: 122202209R00 | C27: Příplatek za lepivost - odkop. pro silnice v hor.3 | D27: m3 | E27: 248 | G27: =E27*F27 -> 0 | H27: 0 | I27: =E27*H27 -> 0 | J27: 0 | K27: =E27*J27 -> 0 | O27: 2 | AA27: 1 | AB27: 1 | AC27: 1 | AZ27: 1 | BA27: =IF(AZ27=1,G27,0) -> 0 | BB27: =IF(AZ27=2,G27,0) -> 0 | BC27: =IF(AZ27=3,G27,0) -> 0 | BD27: =IF(AZ27=4,G27,0) -> 0 | BE27: =IF(AZ27=5,G27,0) -> 0 | CA27: 1 | CB27: 1
C28: Odkopávky pro sanace mimo rýh VH sítí:2345,00*0,5*0,2 | E28: 234.5 | M28: Odkopávky pro sanace mimo rýh VH sítí:2345,00*0,5*0,2
C29: Ostatní odkopávky:90,00*0,15 | E29: 13.5 | M29: Ostatní odkopávky:90,00*0,15
A30: 10 | B30: 130901123RT3 | C30: Bourání konstrukcí ze železobetonu ve vykopávkách bagrem s kladivem | D30: m3 | E30: 3 | G30: =E30*F30 -> 0 | H30: 0 | I30: =E30*H30 -> 0 | J30: 0 | K30: =E30*J30 -> 0 | O30: 2 | AA30: 1 | AB30: 1 | AC30: 1 | AZ30: 1 | BA30: =IF(AZ30=1,G30,0) -> 0 | BB30: =IF(AZ30=2,G30,0) -> 0 | BC30: =IF(AZ30=3,G30,0) -> 0 | BD30: =IF(AZ30=4,G30,0) -> 0 | BE30: =IF(AZ30=5,G30,0) -> 0 | CA30: 1 | CB30: 1
C31: Položka obsahuje odstranění materiálu obklopujícího betonové a železobetonové konstrukce v míře nutné pro vyzvednutí, rozpojení konstrukcí, uchopení a vyzvednutí konstrukce z výkopu a uložení na dopravní prostředek včetně odvozu na skládku zhotovitele a poplatek za skládku. | L31: Položka obsahuje odstranění materiálu obklopujícího betonové a železobetonové konstrukce v míře nutné pro vyzvednutí, rozpojení konstrukcí, uchopení a vyzvednutí konstrukce z výkopu a uložení na dopravní prostředek včetně odvozu na skládku zhotovitele a poplatek za skládku. | O31: 3
A32: 11 | B32: 162701105RSZ | C32: Vodorovné přemístění výkopku z hor.1-4 na skládku zhotovitele | D32: m3 | E32: 248 | G32: =E32*F32 -> 0 | H32: 0 | I32: =E32*H32 -> 0 | J32: 0 | K32: =E32*J32 -> 0 | O32: 2 | AA32: 1 | AB32: 1 | AC32: 1 | AZ32: 1 | BA32: =IF(AZ32=1,G32,0) -> 0 | BB32: =IF(AZ32=2,G32,0) -> 0 | BC32: =IF(AZ32=3,G32,0) -> 0 | BD32: =IF(AZ32=4,G32,0) -> 0 | BE32: =IF(AZ32=5,G32,0) -> 0 | CA32: 1 | CB32: 1
C33: Odkopávky pro sanace mimo rýh VH sítí:2345,00*0,5*0,2 | E33: 234.5 | M33: Odkopávky pro sanace mimo rýh VH sítí:2345,00*0,5*0,2
C34: Ostatní odkopávky:90,00*0,15 | E34: 13.5 | M34: Ostatní odkopávky:90,00*0,15
A35: 12 | B35: 181101102R00 | C35: Úprava pláně v zářezech v hor. 1-4, se zhutněním | D35: m2 | E35: 2345.2 | G35: =E35*F35 -> 0 | H35: 0 | I35: =E35*H35 -> 0 | J35: 0 | K35: =E35*J35 -> 0 | O35: 2 | AA35: 1 | AB35: 1 | AC35: 1 | AZ35: 1 | BA35: =IF(AZ35=1,G35,0) -> 0 | BB35: =IF(AZ35=2,G35,0) -> 0 | BC35: =IF(AZ35=3,G35,0) -> 0 | BD35: =IF(AZ35=4,G35,0) -> 0 | BE35: =IF(AZ35=5,G35,0) -> 0 | CA35: 1 | CB35: 1
C36: Plochy komunikací a chodníků:2132,00*1,1 | E36: 2345.2 | M36: Plochy komunikací a chodníků:2132,00*1,1
A37: 13 | B37: 199000002R00 | C37: Poplatek za skládku horniny 1- 4 č. dle katal. odpadů 17 05 04 | D37: m3 | E37: 248 | G37: =E37*F37 -> 0 | H37: 0 | I37: =E37*H37 -> 0 | J37: 0 | K37: =E37*J37 -> 0 | O37: 2 | AA37: 1 | AB37: 1 | AC37: 1 | AZ37: 1 | BA37: =IF(AZ37=1,G37,0) -> 0 | BB37: =IF(AZ37=2,G37,0) -> 0 | BC37: =IF(AZ37=3,G37,0) -> 0 | BD37: =IF(AZ37=4,G37,0) -> 0 | BE37: =IF(AZ37=5,G37,0) -> 0 | CA37: 1 | CB37: 1
C38: Odkopávky pro sanace mimo rýh VH sítí:2345,00*0,5*0,2 | E38: 234.5 | M38: Odkopávky pro sanace mimo rýh VH sítí:2345,00*0,5*0,2
C39: Ostatní odkopávky:90,00*0,15 | E39: 13.5 | M39: Ostatní odkopávky:90,00*0,15
A40: 14 | B40: 979082112RMJ | C40: Vodorovná doprava části štěrku z komunikací na skládku Města Jilemnice do 5 km | D40: t | E40: 390.984 | G40: =E40*F40 -> 0 | H40: 0 | I40: =E40*H40 -> 0 | J40: 0 | K40: =E40*J40 -> 0 | O40: 2 | AA40: 1 | AB40: 1 | AC40: 1 | AZ40: 1 | BA40: =IF(AZ40=1,G40,0) -> 0 | BB40: =IF(AZ40=2,G40,0) -> 0 | BC40: =IF(AZ40=3,G40,0) -> 0 | BD40: =IF(AZ40=4,G40,0) -> 0 | BE40: =IF(AZ40=5,G40,0) -> 0 | CA40: 1 | CB40: 1
A41: 15 | B41: 979082113RMJ | C41: Vodorovná doprava frézovaného asfaltu na skládku Města Jilemnice do 5 km | D41: t | E41: 205.2666 | G41: 0 | H41: 0 | I41: 0 | J41: 0 | K41: 0 | O41: 2 | AA41: 1 | AB41: 1 | AC41: 1 | AZ41: 1 | BA41: 0 | BB41: 0 | BC41: 0 | BD41: 0 | BE41: 0 | CA41: 1 | CB41: 1
A42: 16 | B42: 979082113RSZ | C42: Vodorovná doprava suti po suchu na skládku zhotovitele | D42: t | E42: 1694.831 | G42: 0 | H42: 0 | I42: 0 | J42: 0 | K42: 0 | O42: 2 | AA42: 1 | AB42: 1 | AC42: 1 | AZ42: 1 | BA42: 0 | BB42: 0 | BC42: 0 | BD42: 0 | BE42: 0 | CA42: 1 | CB42: 1
A43: 17 | B43: 979089001R00 | C43: Poplatek za skládku stavební suti štěrky z komunikací, skupina odpadu 010408 | D43: t | E43: 1118.634 | G43: 0 | H43: 0 | I43: 0 | J43: 0 | K43: 0 | O43: 2 | AA43: 1 | AB43: 1 | AC43: 1 | AZ43: 1 | BA43: 0 | BB43: 0 | BC43: 0 | BD43: 0 | BE43: 0 | CA43: 1 | CB43: 1
A44: 18 | B44: 979990103R00 | C44: Poplatek za skládku stavební suti beton skupina odpadu 170101 | D44: t | E44: 250.377 | G44: 0 | H44: 0 | I44: 0 | J44: 0 | K44: 0 | O44: 2 | AA44: 1 | AB44: 1 | AC44: 1 | AZ44: 1 | BA44: 0 | BB44: 0 | BC44: 0 | BD44: 0 | BE44: 0 | CA44: 1 | CB44: 1
A45: 19 | B45: 979999995R00 | C45: Poplatek za reciklaci asfaltu, kusovost do 1600cm2 skupina 170302 | D45: t | E45: 325.82 | G45: 0 | H45: 0 | I45: 0 | J45: 0 | K45: 0 | O45: 2 | AA45: 1 | AB45: 1 | AC45: 1 | AZ45: 1 | BA45: 0 | BB45: 0 | BC45: 0 | BD45: 0 | BE45: 0 | CA45: 1 | CB45: 1
C46: Položka je určena pro suť o velikosti kusu do 30x30 cm (technologický materiál určený k recyklaci). | L46: Položka je určena pro suť o velikosti kusu do 30x30 cm (technologický materiál určený k recyklaci). | O46: 3
B47: Celkem za | C47: 1 Zemní práce | G47: =SUM(G7:G46) -> 0 | I47: =SUM(I7:I46) -> 0 | K47: =SUM(K7:K46) -> -2296.9316 | O47: 4 | BA47: =SUM(BA7:BA46) -> 0 | BB47: =SUM(BB7:BB46) -> 0 | BC47: =SUM(BC7:BC46) -> 0 | BD47: =SUM(BD7:BD46) -> 0 | BE47: =SUM(BE7:BE46) -> 0
A48: Díl: | B48: 2 | C48: Základy a zvláštní zakládání | O48: 1
A49: 20 | B49: 289970111R00 | C49: Vrstva geotextilie Geofiltex 300g/m2 | D49: m2 | E49: 1777.2 | G49: =E49*F49 -> 0 | H49: 0.0005 | I49: =E49*H49 -> 0.8886 | J49: 0 | K49: =E49*J49 -> 0 | O49: 2 | AA49: 1 | AB49: 1 | AC49: 1 | AZ49: 1 | BA49: =IF(AZ49=1,G49,0) -> 0 | BB49: =IF(AZ49=2,G49,0) -> 0 | BC49: =IF(AZ49=3,G49,0) -> 0 | BD49: =IF(AZ49=4,G49,0) -> 0 | BE49: =IF(AZ49=5,G49,0) -> 0 | CA49: 1 | CB49: 1
C50: Geotextílie tkaná z polyprop. s funkcí výztužnou, separační a filtrační s min. plošnou hmotností 280 g/m2. Pevnost v obou směrech min. 60kN/m2 | L50: Geotextílie tkaná z polyprop. s funkcí výztužnou, separační a filtrační s min. plošnou hmotností 280 g/m2. Pevnost v obou směrech min. 60kN/m2 | O50: 3
C51: Celková upravovaná plocha:1481,00*1,2 | E51: 1777.2 | M51: Celková upravovaná plocha:1481,00*1,2
B52: Celkem za | C52: 2 Základy a zvláštní zakládání | G52: =SUM(G48:G51) -> 0 | I52: =SUM(I48:I51) -> 0.8886 | K52: =SUM(K48:K51) -> 0 | O52: 4 | BA52: =SUM(BA48:BA51) -> 0 | BB52: =SUM(BB48:BB51) -> 0 | BC52: =SUM(BC48:BC51) -> 0 | BD52: =SUM(BD48:BD51) -> 0 | BE52: =SUM(BE48:BE51) -> 0
A53: Díl: | B53: 3 | C53: Svislé a kompletní konstrukce | O53: 1
A54: 21 | B54: 711482001RZ1 | C54: Izolační systém nop.fólií jednoduchý spoj, svisle včetně dodávky fólie a spojovacích prvků | D54: m2 | E54: 50 | G54: =E54*F54 -> 0 | H54: 0.00081 | I54: =E54*H54 -> 0.0405 | J54: 0 | K54: =E54*J54 -> 0 | O54: 2 | AA54: 1 | AB54: 7 | AC54: 7 | AZ54: 1 | BA54: =IF(AZ54=1,G54,0) -> 0 | BB54: =IF(AZ54=2,G54,0) -> 0 | BC54: =IF(AZ54=3,G54,0) -> 0 | BD54: =IF(AZ54=4,G54,0) -> 0 | BE54: =IF(AZ54=5,G54,0) -> 0 | CA54: 1 | CB54: 7
C55: Podezdívky (odhad - upřesnění při realizaci stavby):50,00 | E55: 50 | M55: Podezdívky (odhad - upřesnění při realizaci stavby):50,00
B56: Celkem za | C56: 3 Svislé a kompletní konstrukce | G56: =SUM(G53:G55) -> 0 | I56: =SUM(I53:I55) -> 0.0405 | K56: =SUM(K53:K55) -> 0 | O56: 4 | BA56: =SUM(BA53:BA55) -> 0 | BB56: =SUM(BB53:BB55) -> 0 | BC56: =SUM(BC53:BC55) -> 0 | BD56: =SUM(BD53:BD55) -> 0 | BE56: =SUM(BE53:BE55) -> 0
A57: Díl: | B57: 5 | C57: Komunikace | O57: 1
A58: 22 | B58: 564761111R00 | C58: Podklad z kameniva drceného vel.32-63 mm,tl. 20 cm | D58: m2 | E58: 1172.5 | G58: =E58*F58 -> 0 | H58: 0.43 | I58: =E58*H58 -> 504.175 | J58: 0 | K58: =E58*J58 -> 0 | O58: 2 | AA58: 1 | AB58: 1 | AC58: 1 | AZ58: 1 | BA58: =IF(AZ58=1,G58,0) -> 0 | BB58: =IF(AZ58=2,G58,0) -> 0 | BC58: =IF(AZ58=3,G58,0) -> 0 | BD58: =IF(AZ58=4,G58,0) -> 0 | BE58: =IF(AZ58=5,G58,0) -> 0 | CA58: 1 | CB58: 1
C59: Sanační vrstvy mimo konstrukce rýh VH sítí:2345,00*0,5 | E59: 1172.5 | M59: Sanační vrstvy mimo konstrukce rýh VH sítí:2345,00*0,5
A60: 23 | B60: 564851111RT2 | C60: Podklad ze štěrkodrti po zhutnění tloušťky 15 cm štěrkodrť frakce 0-32 mm | D60: m2 | E60: 1629.1 | G60: =E60*F60 -> 0 | H60: 0.378 | I60: =E60*H60 -> 615.7998 | J60: 0 | K60: =E60*J60 -> 0 | O60: 2 | AA60: 1 | AB60: 1 | AC60: 1 | AZ60: 1 | BA60: =IF(AZ60=1,G60,0) -> 0 | BB60: =IF(AZ60=2,G60,0) -> 0 | BC60: =IF(AZ60=3,G60,0) -> 0 | BD60: =IF(AZ60=4,G60,0) -> 0 | BE60: =IF(AZ60=5,G60,0) -> 0 | CA60: 1 | CB60: 1
C61: Konstrukce komunikace:1481,00*1,1 | E61: 1629.1 | M61: Konstrukce komunikace:1481,00*1,1
A62: 24 | B62: 564851114RT4 | C62: Podklad ze štěrkodrti po zhutnění tloušťky 18 cm štěrkodrť frakce 0-63 mm | D62: m2 | E62: 1755.6 | G62: =E62*F62 -> 0 | H62: 0.4536 | I62: =E62*H62 -> 796.34016 | J62: 0 | K62: =E62*J62 -> 0 | O62: 2 | AA62: 1 | AB62: 1 | AC62: 1 | AZ62: 1 | BA62: =IF(AZ62=1,G62,0) -> 0 | BB62: =IF(AZ62=2,G62,0) -> 0 | BC62: =IF(AZ62=3,G62,0) -> 0 | BD62: =IF(AZ62=4,G62,0) -> 0 | BE62: =IF(AZ62=5,G62,0) -> 0 | CA62: 1 | CB62: 1
C63: Konstrukce komunikace:(1481,00+115,00)*1,1 | E63: 1755.6 | M63: Konstrukce komunikace:(1481,00+115,00)*1,1
A64: 25 | B64: 564871111RT2 | C64: Podklad ze štěrkodrti po zhutnění tloušťky 25 cm štěrkodrť frakce 0-32 mm | D64: m2 | E64: 589.6 | G64: =E64*F64 -> 0 | H64: 0.55125 | I64: =E64*H64 -> 325.017 | J64: 0 | K64: =E64*J64 -> 0 | O64: 2 | AA64: 1 | AB64: 1 | AC64: 1 | AZ64: 1 | BA64: =IF(AZ64=1,G64,0) -> 0 | BB64: =IF(AZ64=2,G64,0) -> 0 | BC64: =IF(AZ64=3,G64,0) -> 0 | BD64: =IF(AZ64=4,G64,0) -> 0 | BE64: =IF(AZ64=5,G64,0) -> 0 | CA64: 1 | CB64: 1
C65: Chodníky:536,00*1,1 | E65: 589.6 | M65: Chodníky:536,00*1,1
A66: 26 | B66: 565310017R00 | C66: Podklad z asfalt. recyklátu po zhutnění tl.15 cm | D66: m2 | E66: 99 | G66: =E66*F66 -> 0 | H66: 0.25 | I66: =E66*H66 -> 24.75 | J66: 0 | K66: =E66*J66 -> 0 | O66: 2 | AA66: 1 | AB66: 1 | AC66: 1 | AZ66: 1 | BA66: =IF(AZ66=1,G66,0) -> 0 | BB66: =IF(AZ66=2,G66,0) -> 0 | BC66: =IF(AZ66=3,G66,0) -> 0 | BD66: =IF(AZ66=4,G66,0) -> 0 | BE66: =IF(AZ66=5,G66,0) -> 0 | CA66: 1 | CB66: 1
C67: Spojovací pěšina :90,00*1,1 | E67: 99 | M67: Spojovací pěšina :90,00*1,1
A68: 27 | B68: 566905111R00 | C68: Vyspravení podkladu po překopech podklad.betonem | D68: m3 | E68: 2 | G68: =E68*F68 -> 0 | H68: 2.5 | I68: =E68*H68 -> 5 | J68: 0 | K68: =E68*J68 -> 0 | O68: 2 | AA68: 1 | AB68: 1 | AC68: 1 | AZ68: 1 | BA68: =IF(AZ68=1,G68,0) -> 0 | BB68: =IF(AZ68=2,G68,0) -> 0 | BC68: =IF(AZ68=3,G68,0) -> 0 | BD68: =IF(AZ68=4,G68,0) -> 0 | BE68: =IF(AZ68=5,G68,0) -> 0 | CA68: 1 | CB68: 1
C69: Drobné dobetonávky u sjezdů a pod.:2,00 | E69: 2 | M69: Drobné dobetonávky u sjezdů a pod.:2,00
A70: 28 | B70: 567122111RRX | C70: Podklad z kameniva zpev.cementem SC C8/10 tl.10 cm | D70: m2 | E70: 313.2 | G70: =E70*F70 -> 0 | H70: 0.30651 | I70: =E70*H70 -> 95.998932 | J70: 0 | K70: =E70*J70 -> 0 | O70: 2 | AA70: 1 | AB70: 1 | AC70: 1 | AZ70: 1 | BA70: =IF(AZ70=1,G70,0) -> 0 | BB70: =IF(AZ70=2,G70,0) -> 0 | BC70: =IF(AZ70=3,G70,0) -> 0 | BD70: =IF(AZ70=4,G70,0) -> 0 | BE70: =IF(AZ70=5,G70,0) -> 0 | CA70: 1 | CB70: 1
C71: Sjezdy:261,00*1,2 | E71: 313.2 | M71: Sjezdy:261,00*1,2
A72: 29 | B72: 573111124R00 | C72: Postřik infiltrační, množství zbytkového asfaltového pojiva 1,00 kg/m2 | D72: m2 | E72: 1555.05 | G72: =E72*F72 -> 0 | H72: 0.00601 | I72: =E72*H72 -> 9.3458505 | J72: 0 | K72: =E72*J72 -> 0 | O72: 2 | AA72: 1 | AB72: 0 | AC72: 0 | AZ72: 1 | BA72: =IF(AZ72=1,G72,0) -> 0 | BB72: =IF(AZ72=2,G72,0) -> 0 | BC72: =IF(AZ72=3,G72,0) -> 0 | BD72: =IF(AZ72=4,G72,0) -> 0 | BE72: =IF(AZ72=5,G72,0) -> 0 | CA72: 1 | CB72: 0
C73: Plocha komunikace:1481,00*1,05 | E73: 1555.05 | M73: Plocha komunikace:1481,00*1,05
A74: 30 | B74: 573231110R00 | C74: Postřik spojovací z KAE množství zbytkového asfaltu 0,3 kg/m2 | D74: m2 | E74: 1555.05 | G74: =E74*F74 -> 0 | H74: 0.0005 | I74: =E74*H74 -> 0.777525 | J74: 0 | K74: =E74*J74 -> 0 | O74: 2 | AA74: 1 | AB74: 1 | AC74: 1 | AZ74: 1 | BA74: =IF(AZ74=1,G74,0) -> 0 | BB74: =IF(AZ74=2,G74,0) -> 0 | BC74: =IF(AZ74=3,G74,0) -> 0 | BD74: =IF(AZ74=4,G74,0) -> 0 | BE74: =IF(AZ74=5,G74,0) -> 0 | CA74: 1 | CB74: 1
C75: Plocha komunikace:1481,00*1,05 | E75: 1555.05 | M75: Plocha komunikace:1481,00*1,05
A76: 31 | B76: 577142112R00 | C76: Beton asfaltový ACO 11+ obrusný nad 3 m, tl.5 cm | D76: m2 | E76: 1629.1 | G76: =E76*F76 -> 0 | H76: 0 | I76: =E76*H76 -> 0 | J76: 0 | K76: =E76*J76 -> 0 | O76: 2 | AA76: 1 | AB76: 0 | AC76: 0 | AZ76: 1 | BA76: =IF(AZ76=1,G76,0) -> 0 | BB76: =IF(AZ76=2,G76,0) -> 0 | BC76: =IF(AZ76=3,G76,0) -> 0 | BD76: =IF(AZ76=4,G76,0) -> 0 | BE76: =IF(AZ76=5,G76,0) -> 0 | CA76: 1 | CB76: 0
C77: Plocha komunikace:1481,00*1,1 | E77: 1629.1 | M77: Plocha komunikace:1481,00*1,1
A78: 32 | B78: 577162124R00 | C78: Beton asfalt. ACL 16+ ložný, š. nad 3 m, tl. 7 cm | D78: m2 | E78: 1703.15 | G78: =E78*F78 -> 0 | H78: 0 | I78: =E78*H78 -> 0 | J78: 0 | K78: =E78*J78 -> 0 | O78: 2 | AA78: 1 | AB78: 1 | AC78: 1 | AZ78: 1 | BA78: =IF(AZ78=1,G78,0) -> 0 | BB78: =IF(AZ78=2,G78,0) -> 0 | BC78: =IF(AZ78=3,G78,0) -> 0 | BD78: =IF(AZ78=4,G78,0) -> 0 | BE78: =IF(AZ78=5,G78,0) -> 0 | CA78: 1 | CB78: 1
C79: Plocha komunikace:1481,00*1,15 | E79: 1703.15 | M79: Plocha komunikace:1481,00*1,15
A80: 33 | B80: 596215021R00 | C80: Kladení zámkové dlažby tl. 6 cm do drtě tl. 4 cm | D80: m2 | E80: 314.75 | G80: =E80*F80 -> 0 | H80: 0.0739 | I80: =E80*H80 -> 23.260025 | J80: 0 | K80: =E80*J80 -> 0 | O80: 2 | AA80: 1 | AB80: 1 | AC80: 1 | AZ80: 1 | BA80: =IF(AZ80=1,G80,0) -> 0 | BB80: =IF(AZ80=2,G80,0) -> 0 | BC80: =IF(AZ80=3,G80,0) -> 0 | BD80: =IF(AZ80=4,G80,0) -> 0 | BE80: =IF(AZ80=5,G80,0) -> 0 | CA80: 1 | CB80: 1
C81: Stávající ploch ze ZD:26,00 | E81: 26 | M81: Stávající ploch ze ZD:26,00
C82: Nové plochy ZD:275,00*1,05 | E82: 288.75 | M82: Nové plochy ZD:275,00*1,05
A83: 34 | B83: 596215040R00 | C83: Kladení zámkové dlažby tl. 8 cm do drtě tl. 4 cm | D83: m2 | E83: 274.05 | G83: =E83*F83 -> 0 | H83: 0.0739 | I83: =E83*H83 -> 20.252295 | J83: 0 | K83: =E83*J83 -> 0 | O83: 2 | AA83: 1 | AB83: 1 | AC83: 1 | AZ83: 1 | BA83: =IF(AZ83=1,G83,0) -> 0 | BB83: =IF(AZ83=2,G83,0) -> 0 | BC83: =IF(AZ83=3,G83,0) -> 0 | BD83: =IF(AZ83=4,G83,0) -> 0 | BE83: =IF(AZ83=5,G83,0) -> 0 | CA83: 1 | CB83: 1
C84: Vjezdy:261,00*1,05 | E84: 274.05 | M84: Vjezdy:261,00*1,05
A85: 35 | B85: 596291111R00 | C85: Řezání zámkové dlažby tl. 60 mm | D85: m | E85: 70.25 | G85: =E85*F85 -> 0 | H85: 0.00033 | I85: =E85*H85 -> 0.0231825 | J85: 0 | K85: =E85*J85 -> 0 | O85: 2 | AA85: 1 | AB85: 1 | AC85: 1 | AZ85: 1 | BA85: =IF(AZ85=1,G85,0) -> 0 | BB85: =IF(AZ85=2,G85,0) -> 0 | BC85: =IF(AZ85=3,G85,0) -> 0 | BD85: =IF(AZ85=4,G85,0) -> 0 | BE85: =IF(AZ85=5,G85,0) -> 0 | CA85: 1 | CB85: 1
C86: Stávající ploch ze ZD:6,00*0,25 | E86: 1.5 | M86: Stávající ploch ze ZD:6,00*0,25
C87: Nové plochy ZD:275,00*0,25 | E87: 68.75 | M87: Nové plochy ZD:275,00*0,25
A88: 36 | B88: 596291113R00 | C88: Řezání zámkové dlažby tl. 80 mm | D88: m | E88: 65.25 | G88: =E88*F88 -> 0 | H88: 0.00036 | I88: =E88*H88 -> 0.02349 | J88: 0 | K88: =E88*J88 -> 0 | O88: 2 | AA88: 1 | AB88: 1 | AC88: 1 | AZ88: 1 | BA88: =IF(AZ88=1,G88,0) -> 0 | BB88: =IF(AZ88=2,G88,0) -> 0 | BC88: =IF(AZ88=3,G88,0) -> 0 | BD88: =IF(AZ88=4,G88,0) -> 0 | BE88: =IF(AZ88=5,G88,0) -> 0 | CA88: 1 | CB88: 1
C89: Vjezdy:261,00*0,25 | E89: 65.25 | M89: Vjezdy:261,00*0,25
A90: 37 | B90: 59245263.R | C90: Dlažba zámková barevná tl. 60 mm skladba dle PD (20/10+20/20+30/20 cm) | D90: m2 | E90: 287.4564 | G90: =E90*F90 -> 0 | H90: 0.131 | I90: =E90*H90 -> 37.6567884 | K90: =E90*J90 -> 0 | O90: 2 | AA90: 3 | AB90: 1 | AC90: 59245263.R | AZ90: 1 | BA90: =IF(AZ90=1,G90,0) -> 0 | BB90: =IF(AZ90=2,G90,0) -> 0 | BC90: =IF(AZ90=3,G90,0) -> 0 | BD90: =IF(AZ90=4,G90,0) -> 0 | BE90: =IF(AZ90=5,G90,0) -> 0 | CA90: 3 | CB90: 1
C91: Barevná kombinace červená a bílá | L91: Barevná kombinace červená a bílá | O91: 3
C92: Nové plochy ZD:(275,00-3,40-3,20)*1,05*1,02 | E92: 287.4564 | M92: Nové plochy ZD:(275,00-3,40-3,20)*1,05*1,02
A93: 38 | B93: 59245264.R | C93: Dlažba zámková pro nevidomé tl. 60 mm barva černá | D93: m2 | E93: 3.6414 | G93: =E93*F93 -> 0 | H93: 0.134 | I93: =E93*H93 -> 0.4879476 | K93: =E93*J93 -> 0 | O93: 2 | AA93: 3 | AB93: 1 | AC93: 59245264.R | AZ93: 1 | BA93: =IF(AZ93=1,G93,0) -> 0 | BB93: =IF(AZ93=2,G93,0) -> 0 | BC93: =IF(AZ93=3,G93,0) -> 0 | BD93: =IF(AZ93=4,G93,0) -> 0 | BE93: =IF(AZ93=5,G93,0) -> 0 | CA93: 3 | CB93: 1
C94: Nové plochy ZD:3,40*1,05*1,02 | E94: 3.6414 | M94: Nové plochy ZD:3,40*1,05*1,02
A95: 39 | B95: 59245265.R | C95: Dlažba zámková pro nevidomé tl. 80 mm barva černá | D95: m2 | E95: 50.0371 | G95: =E95*F95 -> 0 | H95: 0.175 | I95: =E95*H95 -> 8.7564925 | K95: =E95*J95 -> 0 | O95: 2 | AA95: 3 | AB95: 1 | AC95: 59245265.R | AZ95: 1 | BA95: =IF(AZ95=1,G95,0) -> 0 | BB95: =IF(AZ95=2,G95,0) -> 0 | BC95: =IF(AZ95=3,G95,0) -> 0 | BD95: =IF(AZ95=4,G95,0) -> 0 | BE95: =IF(AZ95=5,G95,0) -> 0 | CA95: 3 | CB95: 1
C96: Vjezdy:46,72*1,05*1,02 | E96: 50.0371 | M96: Vjezdy:46,72*1,05*1,02
A97: 40 | B97: 59245266.R | C97: Dlažba zámková - rovinný prvek š. 30 cm Dlažba bez fasety šedá - dlažba 20/10/6 cm | D97: m2 | E97: 3.4272 | G97: =E97*F97 -> 0 | H97: 0.134 | I97: =E97*H97 -> 0.4592448 | K97: =E97*J97 -> 0 | O97: 2 | AA97: 3 | AB97: 1 | AC97: 59245266.R | AZ97: 1 | BA97: =IF(AZ97=1,G97,0) -> 0 | BB97: =IF(AZ97=2,G97,0) -> 0 | BC97: =IF(AZ97=3,G97,0) -> 0 | BD97: =IF(AZ97=4,G97,0) -> 0 | BE97: =IF(AZ97=5,G97,0) -> 0 | CA97: 3 | CB97: 1
C98: Nové plochy ZD:3,20*1,05*1,02 | E98: 3.4272 | M98: Nové plochy ZD:3,20*1,05*1,02
A99: 41 | B99: 59245267.R | C99: Dlažba zámková - rovinný prvek š. 30 cm Dlažba bez fasety šedá - dlažba 20/10/8 cm | D99: m2 | E99: 46.1601 | G99: =E99*F99 -> 0 | H99: 0.175 | I99: =E99*H99 -> 8.0780175 | K99: =E99*J99 -> 0 | O99: 2 | AA99: 3 | AB99: 1 | AC99: 59245267.R | AZ99: 1 | BA99: =IF(AZ99=1,G99,0) -> 0 | BB99: =IF(AZ99=2,G99,0) -> 0 | BC99: =IF(AZ99=3,G99,0) -> 0 | BD99: =IF(AZ99=4,G99,0) -> 0 | BE99: =IF(AZ99=5,G99,0) -> 0 | CA99: 3 | CB99: 1
C100: Vjezdy:43,10*1,05*1,02 | E100: 46.1601 | M100: Vjezdy:43,10*1,05*1,02
A101: 42 | B101: 59245268.R | C101: Dlažba zámková - dlažba 20/10/8 cm přírodní | D101: m2 | E101: 183.3338 | G101: =E101*F101 -> 0 | H101: 0.175 | I101: =E101*H101 -> 32.083415 | K101: =E101*J101 -> 0 | O101: 2 | AA101: 3 | AB101: 1 | AC101: 59245268.R | AZ101: 1 | BA101: =IF(AZ101=1,G101,0) -> 0 | BB101: =IF(AZ101=2,G101,0) -> 0 | BC101: =IF(AZ101=3,G101,0) -> 0 | BD101: =IF(AZ101=4,G101,0) -> 0 | BE101: =IF(AZ101=5,G101,0) -> 0 | CA101: 3 | CB101: 1
C102: Vjezdy:(261,00-46,72-43,10)*1,05*1,02 | E102: 183.3338 | M102: Vjezdy:(261,00-46,72-43,10)*1,05*1,02
B103: Celkem za | C103: 5 Komunikace | G103: =SUM(G57:G102) -> 0 | I103: =SUM(I57:I102) -> 2508.285166 | K103: =SUM(K57:K102) -> 0 | O103: 4 | BA103: =SUM(BA57:BA102) -> 0 | BB103: =SUM(BB57:BB102) -> 0 | BC103: =SUM(BC57:BC102) -> 0 | BD103: =SUM(BD57:BD102) -> 0 | BE103: =SUM(BE57:BE102) -> 0
A104: Díl: | B104: 91 | C104: Doplňující práce na komunikaci | O104: 1
A105: 43 | B105: 919 90-9002.RRR | C105: Výšková úprava stávajících vrat u vjezdů k RD | D105: soubor | E105: 3 | G105: =E105*F105 -> 0 | H105: 0 | I105: =E105*H105 -> 0 | K105: =E105*J105 -> 0 | O105: 2 | AA105: 11 | AB105: 3 | AC105: 1 | AZ105: 1 | BA105: =IF(AZ105=1,G105,0) -> 0 | BB105: =IF(AZ105=2,G105,0) -> 0 | BC105: =IF(AZ105=3,G105,0) -> 0 | BD105: =IF(AZ105=4,G105,0) -> 0 | BE105: =IF(AZ105=5,G105,0) -> 0 | CA105: 11 | CB105: 3
A106: 44 | B106: 919 90-9003.RRR | C106: Výšková úprava stávajících vrátek u RD | D106: soubor | E106: 3 | G106: =E106*F106 -> 0 | H106: 0 | I106: =E106*H106 -> 0 | K106: =E106*J106 -> 0 | O106: 2 | AA106: 11 | AB106: 3 | AC106: 2 | AZ106: 1 | BA106: =IF(AZ106=1,G106,0) -> 0 | BB106: =IF(AZ106=2,G106,0) -> 0 | BC106: =IF(AZ106=3,G106,0) -> 0 | BD106: =IF(AZ106=4,G106,0) -> 0 | BE106: =IF(AZ106=5,G106,0) -> 0 | CA106: 11 | CB106: 3
A107: 45 | B107: 916561111RT4 | C107: Osazení záhon.obrubníků do lože z C 12/15 s opěrou včetně obrubníku 50/5/25 cm | D107: m | E107: 22.05 | G107: =E107*F107 -> 0 | H107: 0.15224 | I107: =E107*H107 -> 3.356892 | J107: 0 | K107: =E107*J107 -> 0 | O107: 2 | AA107: 1 | AB107: 0 | AC107: 0 | AZ107: 1 | BA107: =IF(AZ107=1,G107,0) -> 0 | BB107: =IF(AZ107=2,G107,0) -> 0 | BC107: =IF(AZ107=3,G107,0) -> 0 | BD107: =IF(AZ107=4,G107,0) -> 0 | BE107: =IF(AZ107=5,G107,0) -> 0 | CA107: 1 | CB107: 0
C108: Ohraničení ploch dle PD:21,00*1,05 | E108: 22.05 | M108: Ohraničení ploch dle PD:21,00*1,05
A109: 46 | B109: 917862114RU2 | C109: Osazení stojat. obrub.bet. s opěrou,lože z C 25/30 včetně obrubníku ABO 100/15/25 | D109: m | E109: 310.8 | G109: =E109*F109 -> 0 | H109: 0.26981 | I109: =E109*H109 -> 83.856948 | J109: 0 | K109: =E109*J109 -> 0 | O109: 2 | AA109: 1 | AB109: 1 | AC109: 1 | AZ109: 1 | BA109: =IF(AZ109=1,G109,0) -> 0 | BB109: =IF(AZ109=2,G109,0) -> 0 | BC109: =IF(AZ109=3,G109,0) -> 0 | BD109: =IF(AZ109=4,G109,0) -> 0 | BE109: =IF(AZ109=5,G109,0) -> 0 | CA109: 1 | CB109: 1
C110: Obrubník silniční 100/15/25:296,00*1,05 | E110: 310.8 | M110: Obrubník silniční 100/15/25:296,00*1,05
A111: 47 | B111: 917862114RV3 | C111: Osazení stojat. obrub.bet. s opěrou,lože z C 25/30 včetně obrubníku nájezdového 100/15/15 | D111: m | E111: 105 | G111: =E111*F111 -> 0 | H111: 0.26981 | I111: =E111*H111 -> 28.33005 | J111: 0 | K111: =E111*J111 -> 0 | O111: 2 | AA111: 1 | AB111: 1 | AC111: 1 | AZ111: 1 | BA111: =IF(AZ111=1,G111,0) -> 0 | BB111: =IF(AZ111=2,G111,0) -> 0 | BC111: =IF(AZ111=3,G111,0) -> 0 | BD111: =IF(AZ111=4,G111,0) -> 0 | BE111: =IF(AZ111=5,G111,0) -> 0 | CA111: 1 | CB111: 1
C112: Obrubník silniční nájezdový 100/15/15:100,00*1,05 | E112: 105 | M112: Obrubník silniční nájezdový 100/15/15:100,00*1,05
A113: 48 | B113: 917862114RV4 | C113: Osazení stojat. obrub.bet. s opěrou,lože z C 25/30 včetně obrubníku nájezdového náběh. 100/15/15-25 | D113: m | E113: 48.3 | G113: =E113*F113 -> 0 | H113: 0.26981 | I113: =E113*H113 -> 13.031823 | J113: 0 | K113: =E113*J113 -> 0 | O113: 2 | AA113: 1 | AB113: 1 | AC113: 1 | AZ113: 1 | BA113: =IF(AZ113=1,G113,0) -> 0 | BB113: =IF(AZ113=2,G113,0) -> 0 | BC113: =IF(AZ113=3,G113,0) -> 0 | BD113: =IF(AZ113=4,G113,0) -> 0 | BE113: =IF(AZ113=5,G113,0) -> 0 | CA113: 1 | CB113: 1
C114: Obrubník silniční nájezdový náběhový 100/15/15-25:46,00*1,05 | E114: 48.3 | M114: Obrubník silniční nájezdový náběhový 100/15/15-25:46,00*1,05
A115: 49 | B115: 919735112R00 | C115: Řezání stávajícího živičného krytu tl. 5 - 10 cm | D115: m | E115: 42 | G115: =E115*F115 -> 0 | H115: 0 | I115: =E115*H115 -> 0 | J115: 0 | K115: =E115*J115 -> 0 | O115: 2 | AA115: 1 | AB115: 1 | AC115: 1 | AZ115: 1 | BA115: =IF(AZ115=1,G115,0) -> 0 | BB115: =IF(AZ115=2,G115,0) -> 0 | BC115: =IF(AZ115=3,G115,0) -> 0 | BD115: =IF(AZ115=4,G115,0) -> 0 | BE115: =IF(AZ115=5,G115,0) -> 0 | CA115: 1 | CB115: 1
B116: Celkem za | C116: 91 Doplňující práce na komunikaci | G116: =SUM(G104:G115) -> 0 | I116: =SUM(I104:I115) -> 128.575713 | K116: =SUM(K104:K115) -> 0 | O116: 4 | BA116: =SUM(BA104:BA115) -> 0 | BB116: =SUM(BB104:BB115) -> 0 | BC116: =SUM(BC104:BC115) -> 0 | BD116: =SUM(BD104:BD115) -> 0 | BE116: =SUM(BE104:BE115) -> 0
A117: Díl: | B117: 93 | C117: Dokončovací práce inženýrských staveb | O117: 1
A118: 50 | B118: 938908411RRX | C118: Očištění povrchu krytu vodou | D118: m2 | E118: 1500 | G118: =E118*F118 -> 0 | H118: 1e-05 | I118: =E118*H118 -> 0.015 | J118: 0 | K118: =E118*J118 -> 0 | O118: 2 | AA118: 1 | AB118: 1 | AC118: 1 | AZ118: 1 | BA118: =IF(AZ118=1,G118,0) -> 0 | BB118: =IF(AZ118=2,G118,0) -> 0 | BC118: =IF(AZ118=3,G118,0) -> 0 | BD118: =IF(AZ118=4,G118,0) -> 0 | BE118: =IF(AZ118=5,G118,0) -> 0 | CA118: 1 | CB118: 1
A119: 51 | B119: 938909111R00 | C119: Odstranění nánosu s povrchu podkladu štěrkového | D119: m2 | E119: 1500 | G119: =E119*F119 -> 0 | H119: 0 | I119: =E119*H119 -> 0 | J119: 0 | K119: =E119*J119 -> 0 | O119: 2 | AA119: 1 | AB119: 1 | AC119: 1 | AZ119: 1 | BA119: =IF(AZ119=1,G119,0) -> 0 | BB119: =IF(AZ119=2,G119,0) -> 0 | BC119: =IF(AZ119=3,G119,0) -> 0 | BD119: =IF(AZ119=4,G119,0) -> 0 | BE119: =IF(AZ119=5,G119,0) -> 0 | CA119: 1 | CB119: 1
A120: 52 | B120: 938909311R00 | C120: Odstranění nánosu z povrchu živičného nebo beton. | D120: m2 | E120: 2500 | G120: =E120*F120 -> 0 | H120: 0 | I120: =E120*H120 -> 0 | J120: 0 | K120: =E120*J120 -> 0 | O120: 2 | AA120: 1 | AB120: 1 | AC120: 1 | AZ120: 1 | BA120: =IF(AZ120=1,G120,0) -> 0 | BB120: =IF(AZ120=2,G120,0) -> 0 | BC120: =IF(AZ120=3,G120,0) -> 0 | BD120: =IF(AZ120=4,G120,0) -> 0 | BE120: =IF(AZ120=5,G120,0) -> 0 | CA120: 1 | CB120: 1
C121: Z okolních komunikací behem realizace stavby:2500 | E121: 2500 | M121: Z okolních komunikací behem realizace stavby:2500
B122: Celkem za | C122: 93 Dokončovací práce inženýrských staveb | G122: =SUM(G117:G121) -> 0 | I122: =SUM(I117:I121) -> 0.015 | K122: =SUM(K117:K121) -> 0 | O122: 4 | BA122: =SUM(BA117:BA121) -> 0 | BB122: =SUM(BB117:BB121) -> 0 | BC122: =SUM(BC117:BC121) -> 0 | BD122: =SUM(BD117:BD121) -> 0 | BE122: =SUM(BE117:BE121) -> 0
A123: Díl: | B123: 97 | C123: Prorážení otvorů | O123: 1
A124: 53 | B124: 979054441R00 | C124: Očištění vybour. dlaždic s výplní kamen. těženým | D124: m2 | E124: 26 | G124: =E124*F124 -> 0 | H124: 0 | I124: =E124*H124 -> 0 | J124: 0 | K124: =E124*J124 -> 0 | O124: 2 | AA124: 1 | AB124: 1 | AC124: 1 | AZ124: 1 | BA124: =IF(AZ124=1,G124,0) -> 0 | BB124: =IF(AZ124=2,G124,0) -> 0 | BC124: =IF(AZ124=3,G124,0) -> 0 | BD124: =IF(AZ124=4,G124,0) -> 0 | BE124: =IF(AZ124=5,G124,0) -> 0 | CA124: 1 | CB124: 1
C125: Stávající ploch ze ZD:26,00 | E125: 26 | M125: Stávající ploch ze ZD:26,00
B126: Celkem za | C126: 97 Prorážení otvorů | G126: =SUM(G123:G125) -> 0 | I126: =SUM(I123:I125) -> 0 | K126: =SUM(K123:K125) -> 0 | O126: 4 | BA126: =SUM(BA123:BA125) -> 0 | BB126: =SUM(BB123:BB125) -> 0 | BC126: =SUM(BC123:BC125) -> 0 | BD126: =SUM(BD123:BD125) -> 0 | BE126: =SUM(BE123:BE125) -> 0
A127: Díl: | B127: 99 | C127: Staveništní přesun hmot | O127: 1
A128: 54 | B128: 998225111R00 | C128: Přesun hmot, pozemní komunikace, kryt živičný | D128: t | E128: 2637.804979 | G128: =E128*F128 -> 0 | H128: 0 | I128: =E128*H128 -> 0 | K128: =E128*J128 -> 0 | O128: 2 | AA128: 7 | AB128: 1 | AC128: 2 | AZ128: 1 | BA128: =IF(AZ128=1,G128,0) -> 0 | BB128: =IF(AZ128=2,G128,0) -> 0 | BC128: =IF(AZ128=3,G128,0) -> 0 | BD128: =IF(AZ128=4,G128,0) -> 0 | BE128: =IF(AZ128=5,G128,0) -> 0 | CA128: 7 | CB128: 1
B129: Celkem za | C129: 99 Staveništní přesun hmot | G129: =SUM(G127:G128) -> 0 | I129: =SUM(I127:I128) -> 0 | K129: =SUM(K127:K128) -> 0 | O129: 4 | BA129: =SUM(BA127:BA128) -> 0 | BB129: =SUM(BB127:BB128) -> 0 | BC129: =SUM(BC127:BC128) -> 0 | BD129: =SUM(BD127:BD128) -> 0 | BE129: =SUM(BE127:BE128) -> 0
A130: Díl: | B130: M22 | C130: Montáž sdělovací a zabezp. techniky | O130: 1
A131: 55 | B131: M22 05-9001.RRR | C131: Úprava kabelů "CETIN" a "ČEZ" | D131: m | E131: 100 | G131: =E131*F131 -> 0 | H131: 0 | I131: =E131*H131 -> 0 | K131: =E131*J131 -> 0 | O131: 2 | AA131: 11 | AB131: 3 | AC131: 3 | AZ131: 4 | BA131: =IF(AZ131=1,G131,0) -> 0 | BB131: =IF(AZ131=2,G131,0) -> 0 | BC131: =IF(AZ131=3,G131,0) -> 0 | BD131: =IF(AZ131=4,G131,0) -> 0 | BE131: =IF(AZ131=5,G131,0) -> 0 | CA131: 11 | CB131: 3
C132: Položka obsahuje: | L132: Položka obsahuje: | O132: 3
C133: - ruční výkop sond na kabelovém vedení (5 kusů) | L133: - ruční výkop sond na kabelovém vedení (5 kusů) | O133: 3
C134: -výškové a směrové posunutí kabelů včetně uložení do dělené chráničky, potřebné zemní práce, pískování, položení a dodávku fólie a pod. | L134: -výškové a směrové posunutí kabelů včetně uložení do dělené chráničky, potřebné zemní práce, pískování, položení a dodávku fólie a pod. | O134: 3
C135: - případné geodetické zaměření při stranovém posunutí kabelové trasy. | L135: - případné geodetické zaměření při stranovém posunutí kabelové trasy. | O135: 3
B136: Celkem za | C136: M22 Montáž sdělovací a zabezp. techniky | G136: =SUM(G130:G135) -> 0 | I136: =SUM(I130:I135) -> 0 | K136: =SUM(K130:K135) -> 0 | O136: 4 | BA136: =SUM(BA130:BA135) -> 0 | BB136: =SUM(BB130:BB135) -> 0 | BC136: =SUM(BC130:BC135) -> 0 | BD136: =SUM(BD130:BD135) -> 0 | BE136: =SUM(BE130:BE135) -> 0

Sheet 1.E 01 1.E 01.1.1 KL
A1: POLOŽKOVÝ ROZPOČET
A2: Rozpočet | C2: 1.E 01.1.1 | D2: Vodovodní řad "A8-1" | F2: JKSO | G2: 827.11
A4: Objekt | F4: SKP
A5: 1.E 01 | C5: Vodovody | F5: Měrná jednotka | G5: m
A6: Stavba | F6: Počet jednotek | G6: 0
A7: 3403 | C7: Jilemnice - Optimalizace VS a komunikace I.Etapa | F7: Náklady na m.j. | G7: =IF(G6=0,,ROUND((F30+F32)/G6,1)) -> 0
A8: Projektant | C8: Vodohospodářsko - inženýrské služby spol. s r.o. | F8: Typ rozpočtu
A9: Zpracovatel projektu
A10: Objednatel | C10: Vodohospodářské sdružení Turnov
A11: Dodavatel | C11: . | F11: Zakázkové číslo
A12: Rozpočtoval | F12: Počet listů
A13: ROZPOČTOVÉ NÁKLADY
A14: Základní rozpočtové náklady
B15: HSV celkem | C15: ='1.E 01 1.E 01.1.1 Rek'!E14 -> 0
A16: Z | B16: PSV celkem | C16: ='1.E 01 1.E 01.1.1 Rek'!F14 -> 0
A17: R | B17: M práce celkem | C17: ='1.E 01 1.E 01.1.1 Rek'!H14 -> 0
A18: N | B18: M dodávky celkem | C18: ='1.E 01 1.E 01.1.1 Rek'!G14 -> 0
A19: ZRN celkem | C19: =SUM(C15:C18) -> 0
A21: HZS | C21: ='1.E 01 1.E 01.1.1 Rek'!I14 -> 0
A22: ZRN+HZS | C22: =C19+C21 -> 0
A23: ZRN+ost.náklady+HZS | C23: =C22+G23 -> 0
A24: Vypracoval | D24: Za zhotovitele | F24: Za objednatele
A25: Jméno : | D25: Jméno : | F25: Jméno :
A26: Datum : | D26: Datum : | F26: Datum :
A28: Podpis : | D28: Podpis: | F28: Podpis:
A30: Základ pro DPH | C30: 21 | D30: % | F30: =C23-F32 -> 0
A31: DPH | C31: =C30 -> 21 | D31: % | F31: =ROUND(PRODUCT(F30,C31/100),0) -> 0
A32: Základ pro DPH | C32: 0 | D32: % | F32: 0
A33: DPH | C33: =C32 -> 0 | D33: % | F33: =ROUND(PRODUCT(F32,C33/100),0) -> 0
A34: CENA ZA OBJEKT CELKEM | F34: =ROUND(SUM(F30:F33),0) -> 0
A36: Poznámka :

Sheet 1.E 01 1.E 01.1.1 Rek
A1: Stavba : | C1: 3403 Jilemnice - Optimalizace VS a komunikace | G1: Rozpočet : | H1: 1.E 01.1.1
A2: Objekt : | C2: 1.E 01 Vodovody | G2: Vodovodní řad "A8-1"
A4: REKAPITULACE STAVEBNÍCH DÍLŮ
B6: Stavební díl | E6: HSV | F6: PSV | G6: Dodávka | H6: Montáž | I6: HZS
A7: ='1.E 01 1.E 01.1.1 Pol'!B7 -> 1 | B7: ='1.E 01 1.E 01.1.1 Pol'!C7 -> Zemní práce | E7: ='1.E 01 1.E 01.1.1 Pol'!BA91 -> 0 | F7: ='1.E 01 1.E 01.1.1 Pol'!BB91 -> 0 | G7: ='1.E 01 1.E 01.1.1 Pol'!BC91 -> 0 | H7: ='1.E 01 1.E 01.1.1 Pol'!BD91 -> 0 | I7: ='1.E 01 1.E 01.1.1 Pol'!BE91 -> 0
A8: ='1.E 01 1.E 01.1.1 Pol'!B92 -> 45 | B8: ='1.E 01 1.E 01.1.1 Pol'!C92 -> Podkladní a vedlejší konstrukce | E8: ='1.E 01 1.E 01.1.1 Pol'!BA96 -> 0 | F8: ='1.E 01 1.E 01.1.1 Pol'!BB96 -> 0 | G8: ='1.E 01 1.E 01.1.1 Pol'!BC96 -> 0 | H8: ='1.E 01 1.E 01.1.1 Pol'!BD96 -> 0 | I8: ='1.E 01 1.E 01.1.1 Pol'!BE96 -> 0
A9: ='1.E 01 1.E 01.1.1 Pol'!B97 -> 5 | B9: ='1.E 01 1.E 01.1.1 Pol'!C97 -> Komunikace | E9: ='1.E 01 1.E 01.1.1 Pol'!BA101 -> 0 | F9: ='1.E 01 1.E 01.1.1 Pol'!BB101 -> 0 | G9: ='1.E 01 1.E 01.1.1 Pol'!BC101 -> 0 | H9: ='1.E 01 1.E 01.1.1 Pol'!BD101 -> 0 | I9: ='1.E 01 1.E 01.1.1 Pol'!BE101 -> 0
A10: ='1.E 01 1.E 01.1.1 Pol'!B102 -> 8 | B10: ='1.E 01 1.E 01.1.1 Pol'!C102 -> Trubní vedení | E10: ='1.E 01 1.E 01.1.1 Pol'!BA285 -> 0 | F10: ='1.E 01 1.E 01.1.1 Pol'!BB285 -> 0 | G10: ='1.E 01 1.E 01.1.1 Pol'!BC285 -> 0 | H10: ='1.E 01 1.E 01.1.1 Pol'!BD285 -> 0 | I10: ='1.E 01 1.E 01.1.1 Pol'!BE285 -> 0
A11: ='1.E 01 1.E 01.1.1 Pol'!B286 -> 89 | B11: ='1.E 01 1.E 01.1.1 Pol'!C286 -> Ostatní konstrukce na trubním vedení | E11: ='1.E 01 1.E 01.1.1 Pol'!BA307 -> 0 | F11: ='1.E 01 1.E 01.1.1 Pol'!BB307 -> 0 | G11: ='1.E 01 1.E 01.1.1 Pol'!BC307 -> 0 | H11: ='1.E 01 1.E 01.1.1 Pol'!BD307 -> 0 | I11: ='1.E 01 1.E 01.1.1 Pol'!BE307 -> 0
A12: ='1.E 01 1.E 01.1.1 Pol'!B308 -> 93 | B12: ='1.E 01 1.E 01.1.1 Pol'!C308 -> Dokončovací práce inženýrských staveb | E12: ='1.E 01 1.E 01.1.1 Pol'!BA368 -> 0 | F12: ='1.E 01 1.E 01.1.1 Pol'!BB368 -> 0 | G12: ='1.E 01 1.E 01.1.1 Pol'!BC368 -> 0 | H12: ='1.E 01 1.E 01.1.1 Pol'!BD368 -> 0 | I12: ='1.E 01 1.E 01.1.1 Pol'!BE368 -> 0
A13: ='1.E 01 1.E 01.1.1 Pol'!B369 -> 99 | B13: ='1.E 01 1.E 01.1.1 Pol'!C369 -> Staveništní přesun hmot | E13: ='1.E 01 1.E 01.1.1 Pol'!BA372 -> 0 | F13: ='1.E 01 1.E 01.1.1 Pol'!BB372 -> 0 | G13: ='1.E 01 1.E 01.1.1 Pol'!BC372 -> 0 | H13: ='1.E 01 1.E 01.1.1 Pol'!BD372 -> 0 | I13: ='1.E 01 1.E 01.1.1 Pol'!BE372 -> 0
B14: CELKEM OBJEKT | E14: =SUM(E7:E13) -> 0 | F14: =SUM(F7:F13) -> 0 | G14: =SUM(G7:G13) -> 0 | H14: =SUM(H7:H13) -> 0 | I14: =SUM(I7:I13) -> 0

Sheet 1.E 01 1.E 01.1.1 Pol
A1: Položkový rozpočet
A3: Stavba : | C3: 3403 Jilemnice - Optimalizace VS a komunikace | E3: Rozpočet: | F3: ='1.E 01 1.E 01.1.1 Rek'!H1 -> 1.E 01.1.1
A4: Objekt : | C4: 1.E 01 Vodovody | E4: ='1.E 01 1.E 01.1.1 Rek'!G2 -> Vodovodní řad "A8-1"
A6: P.č. | B6: Číslo položky | C6: Název položky | D6: MJ | E6: množství | F6: cena / MJ | G6: celkem (Kč) | H6: Jednotková hmotnost | I6: Celková hmotnost | J6: Jednotková dem.hmot. | K6: Celková dem.hmot.
A7: Díl: | B7: 1 | C7: Zemní práce | O7: 1
A8: 1 | B8: 130001101RRX | C8: Příplatek za ztížené hloubení v blízkosti vedení | D8: m3 | E8: 52.272 | G8: =E8*F8 -> 0 | H8: 0 | I8: =E8*H8 -> 0 | J8: 0 | K8: =E8*J8 -> 0 | O8: 2 | AA8: 1 | AB8: 1 | AC8: 1 | AZ8: 1 | BA8: =IF(AZ8=1,G8,0) -> 0 | BB8: =IF(AZ8=2,G8,0) -> 0 | BC8: =IF(AZ8=3,G8,0) -> 0 | BD8: =IF(AZ8=4,G8,0) -> 0 | BE8: =IF(AZ8=5,G8,0) -> 0 | CA8: 1 | CB8: 1
C9: Včetně případných nutných dokopávem a ručního výkopu podél sousedících inženýrských sítí. | L9: Včetně případných nutných dokopávem a ručního výkopu podél sousedících inženýrských sítí. | O9: 3
C10: Součástí položky je i dočasné zajištění inženýrských sítí v prostoru výkopů (potrubí, kabely a pod.) | L10: Součástí položky je i dočasné zajištění inženýrských sítí v prostoru výkopů (potrubí, kabely a pod.) | O10: 3
C11: Řad "A8-1" PE D 110x10,0 mm: | E11: 0 | M11: Řad "A8-1" PE D 110x10,0 mm:
C12: Výkopy: | E12: 0 | M12: Výkopy:
C13: V hornině tř. 3 - 5 - 22%:237,6000*0,22 | E13: 52.272 | M13: V hornině tř. 3 - 5 - 22%:237,6000*0,22
A14: 2 | B14: 132201212R00 | C14: Hloubení rýh š.do 200 cm hor.3 do 1000m3,STROJNĚ | D14: m3 | E14: 95.04 | G14: =E14*F14 -> 0 | H14: 0 | I14: =E14*H14 -> 0 | J14: 0 | K14: =E14*J14 -> 0 | O14: 2 | AA14: 1 | AB14: 1 | AC14: 1 | AZ14: 1 | BA14: =IF(AZ14=1,G14,0) -> 0 | BB14: =IF(AZ14=2,G14,0) -> 0 | BC14: =IF(AZ14=3,G14,0) -> 0 | BD14: =IF(AZ14=4,G14,0) -> 0 | BE14: =IF(AZ14=5,G14,0) -> 0 | CA14: 1 | CB14: 1
C15: Položka obsahuje hloubení rýh traktorbagrem, naložení výkopku na dopravní prostředek pro svislé, nebo vodorovné přemístění, popř. přemístění výkopku do 3 m (po povrchu území), případné zajištění rypadel polštáři, udržování pracoviště a ochranu výkopiště proti stékání srážkové vody z okolního terénu i s jejím odvodněním, nebo odvedením, přesekání a odstranění kořenů ve výkopišti, odstranění napadávek, urovnání dna výkopu. | L15: Položka obsahuje hloubení rýh traktorbagrem, naložení výkopku na dopravní prostředek pro svislé, nebo vodorovné přemístění, popř. přemístění výkopku do 3 m (po povrchu území), případné zajištění rypadel polštáři, udržování pracoviště a ochranu výkopiště proti stékání srážkové vody z okolního terénu i s jejím odvodněním, nebo odvedením, přesekání a odstranění kořenů ve výkopišti, odstranění napadávek, urovnání dna výkopu. | O15: 3
C16: Řad "A8-1" PE D 110x10,0 mm: | E16: 0 | M16: Řad "A8-1" PE D 110x10,0 mm:
C17: Výkopy: | E17: 0 | M17: Výkopy:
C18: Začátek provozního součtu | E18: 0 | M18: Začátek provozního součtu
C19: Souběh s kanalizací: | E19: 0 | M19: Souběh s kanalizací:
C20: Průměrná hloubka výkopů - 1,75 m: | E20: 0 | M20: Průměrná hloubka výkopů - 1,75 m:
C21: Řad "A8-1":220,00*0,80*1,75 | E21: 308 | M21: Řad "A8-1":220,00*0,80*1,75
C22: Odpočet objemu konstrukce MK:-220,00*0,80*0,40 | E22: -70.4 | M22: Odpočet objemu konstrukce MK:-220,00*0,80*0,40
C23: Konec provozního součtu | E23: 237.6 | M23: Konec provozního součtu
C24: V hornině tř. 3 - 40%:237,6000*0,4 | E24: 95.04 | M24: V hornině tř. 3 - 40%:237,6000*0,4
A25: 3 | B25: 132201219R00 | C25: Přípl.za lepivost,hloubení rýh 200cm,hor.3,STROJNĚ | D25: m3 | E25: 47.52 | G25: =E25*F25 -> 0 | H25: 0 | I25: =E25*H25 -> 0 | J25: 0 | K25: =E25*J25 -> 0 | O25: 2 | AA25: 1 | AB25: 1 | AC25: 1 | AZ25: 1 | BA25: =IF(AZ25=1,G25,0) -> 0 | BB25: =IF(AZ25=2,G25,0) -> 0 | BC25: =IF(AZ25=3,G25,0) -> 0 | BD25: =IF(AZ25=4,G25,0) -> 0 | BE25: =IF(AZ25=5,G25,0) -> 0 | CA25: 1 | CB25: 1
C26: Řad "A8-1" PE D 110x10,0 mm: | E26: 0 | M26: Řad "A8-1" PE D 110x10,0 mm:
C27: Výkopy: | E27: 0 | M27: Výkopy:
C28: V hornině tř. 3 - 40%:237,6000*0,4*0,5 | E28: 47.52 | M28: V hornině tř. 3 - 40%:237,6000*0,4*0,5
A29: 4 | B29: 132301212R00 | C29: Hloubení rýh š.do 200 cm hor.4 do 1000 m3, STROJNĚ | D29: m3 | E29: 118.8 | G29: =E29*F29 -> 0 | H29: 0 | I29: =E29*H29 -> 0 | J29: 0 | K29: =E29*J29 -> 0 | O29: 2 | AA29: 1 | AB29: 1 | AC29: 1 | AZ29: 1 | BA29: =IF(AZ29=1,G29,0) -> 0 | BB29: =IF(AZ29=2,G29,0) -> 0 | BC29: =IF(AZ29=3,G29,0) -> 0 | BD29: =IF(AZ29=4,G29,0) -> 0 | BE29: =IF(AZ29=5,G29,0) -> 0 | CA29: 1 | CB29: 1
C30: Položka obsahuje hloubení rýh traktorbagrem, naložení výkopku na dopravní prostředek pro svislé, nebo vodorovné přemístění, popř. přemístění výkopku do 3 m (po povrchu území), případné zajištění rypadel polštáři, udržování pracoviště a ochranu výkopiště proti stékání srážkové vody z okolního terénu i s jejím odvodněním, nebo odvedením, přesekání a odstranění kořenů ve výkopišti, odstranění napadávek, urovnání dna výkopu. | L30: Položka obsahuje hloubení rýh traktorbagrem, naložení výkopku na dopravní prostředek pro svislé, nebo vodorovné přemístění, popř. přemístění výkopku do 3 m (po povrchu území), případné zajištění rypadel polštáři, udržování pracoviště a ochranu výkopiště proti stékání srážkové vody z okolního terénu i s jejím odvodněním, nebo odvedením, přesekání a odstranění kořenů ve výkopišti, odstranění napadávek, urovnání dna výkopu. | O30: 3
C31: Řad "A8-1" PE D 110x10,0 mm: | E31: 0 | M31: Řad "A8-1" PE D 110x10,0 mm:
C32: Výkopy: | E32: 0 | M32: Výkopy:
C33: V hornině tř. 4 - 50%:237,6000*0,5 | E33: 118.8 | M33: V hornině tř. 4 - 50%:237,6000*0,5
A34: 5 | B34: 132301219R00 | C34: Přípl.za lepivost,hloubení rýh 200cm,hor.4,STROJNĚ | D34: m3 | E34: 59.4 | G34: =E34*F34 -> 0 | H34: 0 | I34: =E34*H34 -> 0 | J34: 0 | K34: =E34*J34 -> 0 | O34: 2 | AA34: 1 | AB34: 1 | AC34: 1 | AZ34: 1 | BA34: =IF(AZ34=1,G34,0) -> 0 | BB34: =IF(AZ34=2,G34,0) -> 0 | BC34: =IF(AZ34=3,G34,0) -> 0 | BD34: =IF(AZ34=4,G34,0) -> 0 | BE34: =IF(AZ34=5,G34,0) -> 0 | CA34: 1 | CB34: 1
C35: Řad "A8-1" PE D 110x10,0 mm: | E35: 0 | M35: Řad "A8-1" PE D 110x10,0 mm:
C36: Výkopy: | E36: 0 | M36: Výkopy:
C37: V hornině tř. 4 - 50%:237,6000*0,5*0,5 | E37: 59.4 | M37: V hornině tř. 4 - 50%:237,6000*0,5*0,5
A38: 6 | B38: 132401211RRX | C38: Hloubení rýh šířky do 200 cm v hor.5 STROJNĚ včetně případného dolamování ve vrstvě do 0,5 m | D38: m3 | E38: 23.76 | G38: =E38*F38 -> 0 | H38: 0.01041 | I38: =E38*H38 -> 0.2473416 | J38: 0 | K38: =E38*J38 -> 0 | O38: 2 | AA38: 1 | AB38: 1 | AC38: 1 | AZ38: 1 | BA38: =IF(AZ38=1,G38,0) -> 0 | BB38: =IF(AZ38=2,G38,0) -> 0 | BC38: =IF(AZ38=3,G38,0) -> 0 | BD38: =IF(AZ38=4,G38,0) -> 0 | BE38: =IF(AZ38=5,G38,0) -> 0 | CA38: 1 | CB38: 1
C39: Položka obsahuje hloubení rýh traktorbagrem, naložení výkopku na dopravní prostředek pro svislé, nebo vodorovné přemístění, popř. přemístění výkopku do 3 m (po povrchu území), případné zajištění rypadel polštáři, udržování pracoviště a ochranu výkopiště proti stékání srážkové vody z okolního terénu i s jejím odvodněním, nebo odvedením, přesekání a odstranění kořenů ve výkopišti, odstranění napadávek, urovnání dna výkopu.včetně případného dolamování ve vrstvě do 0,5 m | L39: Položka obsahuje hloubení rýh traktorbagrem, naložení výkopku na dopravní prostředek pro svislé, nebo vodorovné přemístění, popř. přemístění výkopku do 3 m (po povrchu území), případné zajištění rypadel polštáři, udržování pracoviště a ochranu výkopiště proti stékání srážkové vody z okolního terénu i s jejím odvodněním, nebo odvedením, přesekání a odstranění kořenů ve výkopišti, odstranění napadávek, urovnání dna výkopu.včetně případného dolamování ve vrstvě do 0,5 m | O39: 3
C40: Řad "A8-1" PE D 110x10,0 mm: | E40: 0 | M40: Řad "A8-1" PE D 110x10,0 mm:
C41: Výkopy: | E41: 0 | M41: Výkopy:
C42: V hornině tř. 5 - 10%:237,6000*0,1 | E42: 23.76 | M42: V hornině tř. 5 - 10%:237,6000*0,1
A43: 7 | B43: 151101101R00 | C43: Pažení a rozepření stěn rýh - příložné - hl.do 2 m | D43: m2 | E43: 385 | G43: =E43*F43 -> 0 | H43: 0.00099 | I43: =E43*H43 -> 0.38115 | J43: 0 | K43: =E43*J43 -> 0 | O43: 2 | AA43: 1 | AB43: 1 | AC43: 1 | AZ43: 1 | BA43: =IF(AZ43=1,G43,0) -> 0 | BB43: =IF(AZ43=2,G43,0) -> 0 | BC43: =IF(AZ43=3,G43,0) -> 0 | BD43: =IF(AZ43=4,G43,0) -> 0 | BE43: =IF(AZ43=5,G43,0) -> 0 | CA43: 1 | CB43: 1
C44: Řad "A8-1" PE D 110x10,0 mm: | E44: 0 | M44: Řad "A8-1" PE D 110x10,0 mm:
C45: Výkopy: | E45: 0 | M45: Výkopy:
C46: Souběh s kanalizací: | E46: 0 | M46: Souběh s kanalizací:
C47: Průměrná hloubka výkopů - 1,75 m: | E47: 0 | M47: Průměrná hloubka výkopů - 1,75 m:
C48: Řad "A8-1" - 50%:220,00*1,75*2*0,5 | E48: 385 | M48: Řad "A8-1" - 50%:220,00*1,75*2*0,5
C49: Začátek provozního součtu | E49: 0 | M49: Začátek provozního součtu
C50: 0 | E50: 0 | M50: 0
C51: Konec provozního součtu | E51: 0 | M51: Konec provozního součtu
A52: 8 | B52: 151101111R00 | C52: Odstranění pažení stěn rýh - příložné - hl. do 2 m | D52: m2 | E52: 385 | G52: =E52*F52 -> 0 | H52: 0 | I52: =E52*H52 -> 0 | J52: 0 | K52: =E52*J52 -> 0 | O52: 2 | AA52: 1 | AB52: 1 | AC52: 1 | AZ52: 1 | BA52: =IF(AZ52=1,G52,0) -> 0 | BB52: =IF(AZ52=2,G52,0) -> 0 | BC52: =IF(AZ52=3,G52,0) -> 0 | BD52: =IF(AZ52=4,G52,0) -> 0 | BE52: =IF(AZ52=5,G52,0) -> 0 | CA52: 1 | CB52: 1
C53: Řad "A8-1" PE D 110x10,0 mm: | E53: 0 | M53: Řad "A8-1" PE D 110x10,0 mm:
C54: Výkopy: | E54: 0 | M54: Výkopy:
C55: Souběh s kanalizací: | E55: 0 | M55: Souběh s kanalizací:
C56: Průměrná hloubka výkopů - 1,75 m: | E56: 0 | M56: Průměrná hloubka výkopů - 1,75 m:
C57: Řad "A8-1" - 50%:220,00*1,75*2*0,5 | E57: 385 | M57: Řad "A8-1" - 50%:220,00*1,75*2*0,5
C58: Začátek provozního součtu | E58: 0 | M58: Začátek provozního součtu
C59: 0 | E59: 0 | M59: 0
C60: Konec provozního součtu | E60: 0 | M60: Konec provozního součtu
A61: 9 | B61: 162701105RSZ | C61: Vodorovné přemístění výkopku z hor.1-7 na skládku zhotovitele | D61: m3 | E61: 237.6 | G61: =E61*F61 -> 0 | H61: 0 | I61: =E61*H61 -> 0 | J61: 0 | K61: =E61*J61 -> 0 | O61: 2 | AA61: 1 | AB61: 1 | AC61: 1 | AZ61: 1 | BA61: =IF(AZ61=1,G61,0) -> 0 | BB61: =IF(AZ61=2,G61,0) -> 0 | BC61: =IF(AZ61=3,G61,0) -> 0 | BD61: =IF(AZ61=4,G61,0) -> 0 | BE61: =IF(AZ61=5,G61,0) -> 0 | CA61: 1 | CB61: 1
C62: Řad "A8-1" PE D 110x10,0 mm: | E62: 0 | M62: Řad "A8-1" PE D 110x10,0 mm:
C63: Výkopy: | E63: 0 | M63: Výkopy:
C64: V hornině tř. 3 - 5:237,6000 | E64: 237.6 | M64: V hornině tř. 3 - 5:237,6000
A65: 10 | B65: 174101101R00 | C65: Zásyp jam, rýh, šachet se zhutněním | D65: m3 | E65: 139.04 | G65: =E65*F65 -> 0 | H65: 0 | I65: =E65*H65 -> 0 | J65: 0 | K65: =E65*J65 -> 0 | O65: 2 | AA65: 1 | AB65: 1 | AC65: 1 | AZ65: 1 | BA65: =IF(AZ65=1,G65,0) -> 0 | BB65: =IF(AZ65=2,G65,0) -> 0 | BC65: =IF(AZ65=3,G65,0) -> 0 | BD65: =IF(AZ65=4,G65,0) -> 0 | BE65: =IF(AZ65=5,G65,0) -> 0 | CA65: 1 | CB65: 1
C66: Položka obsahuje strojní přemístění materiálu pro zásyp ze vzdálenosti do 10 m od okraje zásypu. | L66: Položka obsahuje strojní přemístění materiálu pro zásyp ze vzdálenosti do 10 m od okraje zásypu. | O66: 3
O67: 3
C68: Zásypy ŠD fr. 0,63 mm:139,0400 | E68: 139.04 | M68: Zásypy ŠD fr. 0,63 mm:139,0400
C69: Začátek provozního součtu | E69: 0 | M69: Začátek provozního součtu
C70: Řad "A8-1" PE D 110x10,0 mm: | E70: 0 | M70: Řad "A8-1" PE D 110x10,0 mm:
C71: Výkopy: | E71: 0 | M71: Výkopy:
C72: V hornině tř. 3 - 5:237,6000 | E72: 237.6 | M72: V hornině tř. 3 - 5:237,6000
C73: Odpočet objemu lože, potrubí a obsypů:-220,00*0,80*(0,15+0,11+0,30) | E73: -98.56 | M73: Odpočet objemu lože, potrubí a obsypů:-220,00*0,80*(0,15+0,11+0,30)
C74: Konec provozního součtu | E74: 139.04 | M74: Konec provozního součtu
A75: 11 | B75: 175101101R00 | C75: Obsyp potrubí bez prohození sypaniny | D75: m3 | E75: 70.0693 | G75: =E75*F75 -> 0 | H75: 0 | I75: =E75*H75 -> 0 | J75: 0 | K75: =E75*J75 -> 0 | O75: 2 | AA75: 1 | AB75: 1 | AC75: 1 | AZ75: 1 | BA75: =IF(AZ75=1,G75,0) -> 0 | BB75: =IF(AZ75=2,G75,0) -> 0 | BC75: =IF(AZ75=3,G75,0) -> 0 | BD75: =IF(AZ75=4,G75,0) -> 0 | BE75: =IF(AZ75=5,G75,0) -> 0 | CA75: 1 | CB75: 1
C76: Řad "A8-1" PE D 110x10,0 mm:220,00*(0,80*(0,11+0,30)-0,055^2*Pi) | E76: 70.0693 | M76: Řad "A8-1" PE D 110x10,0 mm:220,00*(0,80*(0,11+0,30)-0,055^2*Pi)
A77: 12 | B77: 199000002R00 | C77: Poplatek za skládku horniny 1- 7 č. dle katal. odpadů 17 05 04 | D77: m3 | E77: 237.6 | G77: =E77*F77 -> 0 | H77: 0 | I77: =E77*H77 -> 0 | J77: 0 | K77: =E77*J77 -> 0 | O77: 2 | AA77: 1 | AB77: 1 | AC77: 1 | AZ77: 1 | BA77: =IF(AZ77=1,G77,0) -> 0 | BB77: =IF(AZ77=2,G77,0) -> 0 | BC77: =IF(AZ77=3,G77,0) -> 0 | BD77: =IF(AZ77=4,G77,0) -> 0 | BE77: =IF(AZ77=5,G77,0) -> 0 | CA77: 1 | CB77: 1
C78: Řad "A8-1" PE D 110x10,0 mm: | E78: 0 | M78: Řad "A8-1" PE D 110x10,0 mm:
C79: Výkopy: | E79: 0 | M79: Výkopy:
C80: V hornině tř. 3 - 5:237,6000 | E80: 237.6 | M80: V hornině tř. 3 - 5:237,6000
A81: 13 | B81: 58337308.R | C81: Štěrkopísek frakce 0-2 tř.B | D81: t | E81: 139.6291 | G81: =E81*F81 -> 0 | H81: 1 | I81: =E81*H81 -> 139.6291 | K81: =E81*J81 -> 0 | O81: 2 | AA81: 3 | AB81: 1 | AC81: 58337308.R | AZ81: 1 | BA81: =IF(AZ81=1,G81,0) -> 0 | BB81: =IF(AZ81=2,G81,0) -> 0 | BC81: =IF(AZ81=3,G81,0) -> 0 | BD81: =IF(AZ81=4,G81,0) -> 0 | BE81: =IF(AZ81=5,G81,0) -> 0 | CA81: 3 | CB81: 1
C82: Řad "A8-1" PE D 110x10,0 mm:220,00*(0,80*(0,11+0,30)-0,055^2*Pi)*1,973*1,01 | E82: 139.6291 | M82: Řad "A8-1" PE D 110x10,0 mm:220,00*(0,80*(0,11+0,30)-0,055^2*Pi)*1,973*1,01
A83: 14 | B83: 58344197R | C83: Štěrkodrtě frakce 0-63 A | D83: t | E83: 122.5957 | G83: =E83*F83 -> 0 | H83: 1 | I83: =E83*H83 -> 122.5957 | K83: =E83*J83 -> 0 | O83: 2 | AA83: 3 | AB83: 1 | AC83: 58344197R | AZ83: 1 | BA83: =IF(AZ83=1,G83,0) -> 0 | BB83: =IF(AZ83=2,G83,0) -> 0 | BC83: =IF(AZ83=3,G83,0) -> 0 | BD83: =IF(AZ83=4,G83,0) -> 0 | BE83: =IF(AZ83=5,G83,0) -> 0 | CA83: 3 | CB83: 1
C84: Zásypy ŠD fr. 0,63 mm:139,0400*0,873*1,01 | E84: 122.5957 | M84: Zásypy ŠD fr. 0,63 mm:139,0400*0,873*1,01
C85: Začátek provozního součtu | E85: 0 | M85: Začátek provozního součtu
C86: Řad "A8-1" PE D 110x10,0 mm: | E86: 0 | M86: Řad "A8-1" PE D 110x10,0 mm:
C87: Výkopy: | E87: 0 | M87: Výkopy:
C88: V hornině tř. 3 - 5:237,6000 | E88: 237.6 | M88: V hornině tř. 3 - 5:237,6000
C89: Odpočet objemu lože, potrubí a obsypů:-220,00*0,80*(0,15+0,11+0,30) | E89: -98.56 | M89: Odpočet objemu lože, potrubí a obsypů:-220,00*0,80*(0,15+0,11+0,30)
C90: Konec provozního součtu | E90: 139.04 | M90: Konec provozního součtu
B91: Celkem za | C91: 1 Zemní práce | G91: =SUM(G7:G90) -> 0 | I91: =SUM(I7:I90) -> 262.8532916 | K91: =SUM(K7:K90) -> 0 | O91: 4 | BA91: =SUM(BA7:BA90) -> 0 | BB91: =SUM(BB7:BB90) -> 0 | BC91: =SUM(BC7:BC90) -> 0 | BD91: =SUM(BD7:BD90) -> 0 | BE91: =SUM(BE7:BE90) -> 0
A92: Díl: | B92: 45 | C92: Podkladní a vedlejší konstrukce | O92: 1
A93: 15 | B93: 451572111R00 | C93: Lože pod potrubí z kameniva těženého 0 - 4 mm | D93: m3 | E93: 26.4 | G93: =E93*F93 -> 0 | H93: 0.43051 | I93: =E93*H93 -> 11.365464 | J93: 0 | K93: =E93*J93 -> 0 | O93: 2 | AA93: 1 | AB93: 1 | AC93: 1 | AZ93: 1 | BA93: =IF(AZ93=1,G93,0) -> 0 | BB93: =IF(AZ93=2,G93,0) -> 0 | BC93: =IF(AZ93=3,G93,0) -> 0 | BD93: =IF(AZ93=4,G93,0) -> 0 | BE93: =IF(AZ93=5,G93,0) -> 0 | CA93: 1 | CB93: 1
C94: Řad "A8-1" PE D 110x10,0 mm:220,00*0,80*0,15 | E94: 26.4 | M94: Řad "A8-1" PE D 110x10,0 mm:220,00*0,80*0,15
A95: 16 | B95: 452313141R00 | C95: Bloky pro potrubí z betonu C 16/20 vč. bednění | D95: m3 | E95: 0.857 | G95: =E95*F95 -> 0 | H95: 2.5 | I95: =E95*H95 -> 2.1425 | J95: 0 | K95: =E95*J95 -> 0 | O95: 2 | AA95: 1 | AB95: 1 | AC95: 1 | AZ95: 1 | BA95: =IF(AZ95=1,G95,0) -> 0 | BB95: =IF(AZ95=2,G95,0) -> 0 | BC95: =IF(AZ95=3,G95,0) -> 0 | BD95: =IF(AZ95=4,G95,0) -> 0 | BE95: =IF(AZ95=5,G95,0) -> 0 | CA95: 1 | CB95: 1
B96: Celkem za | C96: 45 Podkladní a vedlejší konstrukce | G96: =SUM(G92:G95) -> 0 | I96: =SUM(I92:I95) -> 13.507964 | K96: =SUM(K92:K95) -> 0 | O96: 4 | BA96: =SUM(BA92:BA95) -> 0 | BB96: =SUM(BB92:BB95) -> 0 | BC96: =SUM(BC92:BC95) -> 0 | BD96: =SUM(BD92:BD95) -> 0 | BE96: =SUM(BE92:BE95) -> 0
A97: Díl: | B97: 5 | C97: Komunikace | O97: 1
A98: 17 | B98: 572701119RRX | C98: Provizorní zásyp rýh kam. hrubě drceným nebo recyk s následným odstraněním a odvozem | D98: m3 | E98: 70.4 | G98: =E98*F98 -> 0 | H98: 1.4805 | I98: =E98*H98 -> 104.2272 | J98: 0 | K98: =E98*J98 -> 0 | O98: 2 | AA98: 1 | AB98: 1 | AC98: 1 | AZ98: 1 | BA98: =IF(AZ98=1,G98,0) -> 0 | BB98: =IF(AZ98=2,G98,0) -> 0 | BC98: =IF(AZ98=3,G98,0) -> 0 | BD98: =IF(AZ98=4,G98,0) -> 0 | BE98: =IF(AZ98=5,G98,0) -> 0 | CA98: 1 | CB98: 1
C99: Řad "A8-1" PE D 110x10,0 mm: | E99: 0 | M99: Řad "A8-1" PE D 110x10,0 mm:
C100: Předpokládaný stávající objem konstrukce MK:220,00*0,80*0,40 | E100: 70.4 | M100: Předpokládaný stávající objem konstrukce MK:220,00*0,80*0,40
B101: Celkem za | C101: 5 Komunikace | G101: =SUM(G97:G100) -> 0 | I101: =SUM(I97:I100) -> 104.2272 | K101: =SUM(K97:K100) -> 0 | O101: 4 | BA101: =SUM(BA97:BA100) -> 0 | BB101: =SUM(BB97:BB100) -> 0 | BC101: =SUM(BC97:BC100) -> 0 | BD101: =SUM(BD97:BD100) -> 0 | BE101: =SUM(BE97:BE100) -> 0
A102: Díl: | B102: 8 | C102: Trubní vedení | O102: 1
A103: 18 | B103: 850265121R00 | C103: Výřez nebo výsek na potrubí litinovém DN 100 | D103: kus | E103: 2 | G103: =E103*F103 -> 0 | H103: 0 | I103: =E103*H103 -> 0 | J103: 0 | K103: =E103*J103 -> 0 | O103: 2 | AA103: 1 | AB103: 1 | AC103: 1 | AZ103: 1 | BA103: =IF(AZ103=1,G103,0) -> 0 | BB103: =IF(AZ103=2,G103,0) -> 0 | BC103: =IF(AZ103=3,G103,0) -> 0 | BD103: =IF(AZ103=4,G103,0) -> 0 | BE103: =IF(AZ103=5,G103,0) -> 0 | CA103: 1 | CB103: 1
C104: Položky výřezu nebo výseku na potrubí z trub litinových tlakových jsou určeny pro dva řezy nebo seky prováděné na potrubí dodatečně. V položkách jsou zakalkulovány náklady na | L104: Položky výřezu nebo výseku na potrubí z trub litinových tlakových jsou určeny pro dva řezy nebo seky prováděné na potrubí dodatečně. V položkách jsou zakalkulovány náklady na | O104: 3
C105: - ohlášení uzavírání vody | L105: - ohlášení uzavírání vody | O105: 3
C106: - uzavření a otevření šoupat | L106: - uzavření a otevření šoupat | O106: 3
C107: - vypuštění a napuštění vody | L107: - vypuštění a napuštění vody | O107: 3
C108: - odvzdušnění potrubí | L108: - odvzdušnění potrubí | O108: 3
C109: - strojní nebo ruční výřez potrubí | L109: - strojní nebo ruční výřez potrubí | O109: 3
C110: - nutné úpravy výkopu v prostoru provádění | L110: - nutné úpravy výkopu v prostoru provádění | O110: 3
C111: - montáž tvarovek | L111: - montáž tvarovek | O111: 3
A112: 19 | B112: 857242121R00 | C112: Montáž tvarovek litin. jednoos.přír. výkop DN 80 včetně nerezových spoj. prvků a obandážování spoje | D112: kus | E112: 3 | G112: =E112*F112 -> 0 | H112: 0.00022 | I112: =E112*H112 -> 0.00066 | J112: 0 | K112: =E112*J112 -> 0 | O112: 2 | AA112: 1 | AB112: 1 | AC112: 1 | AZ112: 1 | BA112: =IF(AZ112=1,G112,0) -> 0 | BB112: =IF(AZ112=2,G112,0) -> 0 | BC112: =IF(AZ112=3,G112,0) -> 0 | BD112: =IF(AZ112=4,G112,0) -> 0 | BE112: =IF(AZ112=5,G112,0) -> 0 | CA112: 1 | CB112: 1
C113: Položka je určena pro montáž litinových tvarovek na potrubí litinovém tlakovém přírubovém jednoosých v otevřeném výkopu, v otevřeném kanálu nebo v šachtě. | L113: Položka je určena pro montáž litinových tvarovek na potrubí litinovém tlakovém přírubovém jednoosých v otevřeném výkopu, v otevřeném kanálu nebo v šachtě. | O113: 3
C114: Součástí položky je i dodávka nerezových spojovacích prvků (šrouby, podložky, matky) a kompletního obandážování spojů. | L114: Součástí položky je i dodávka nerezových spojovacích prvků (šrouby, podložky, matky) a kompletního obandážování spojů. | O114: 3
C115: Řad "A8-1" PE D 110x10,0 mm: | E115: 0 | M115: Řad "A8-1" PE D 110x10,0 mm:
C116: FFK DN80/45°:1 | E116: 1 | M116: FFK DN80/45°:1
C117: PPL DN80:2 | E117: 2 | M117: PPL DN80:2
A118: 20 | B118: 857262121R00 | C118: Montáž tvarovek litin. jednoos. přír. výkop DN 100 včetně nerezových spoj. prvků a obandážování spoje | D118: kus | E118: 8 | G118: =E118*F118 -> 0 | H118: 0.00041 | I118: =E118*H118 -> 0.00328 | J118: 0 | K118: =E118*J118 -> 0 | O118: 2 | AA118: 1 | AB118: 0 | AC118: 0 | AZ118: 1 | BA118: =IF(AZ118=1,G118,0) -> 0 | BB118: =IF(AZ118=2,G118,0) -> 0 | BC118: =IF(AZ118=3,G118,0) -> 0 | BD118: =IF(AZ118=4,G118,0) -> 0 | BE118: =IF(AZ118=5,G118,0) -> 0 | CA118: 1 | CB118: 0
C119: Položka je určena pro montáž litinových tvarovek na potrubí litinovém tlakovém přírubovém jednoosých v otevřeném výkopu, v otevřeném kanálu nebo v šachtě. | L119: Položka je určena pro montáž litinových tvarovek na potrubí litinovém tlakovém přírubovém jednoosých v otevřeném výkopu, v otevřeném kanálu nebo v šachtě. | O119: 3
C120: Součástí položky je i dodávka nerezových spojovacích prvků (šrouby, podložky, matky) a kompletního obandážování spojů. | L120: Součástí položky je i dodávka nerezových spojovacích prvků (šrouby, podložky, matky) a kompletního obandážování spojů. | O120: 3
C121: Řad "A8-1" PE D 110x10,0 mm: | E121: 0 | M121: Řad "A8-1" PE D 110x10,0 mm:
C122: Synoflex s přírubou DN100:1 | E122: 1 | M122: Synoflex s přírubou DN100:1
C123: LN+TP D110/DN100:2 | E123: 2 | M123: LN+TP D110/DN100:2
C124: Příruba S2000 č. 0400 110/100:4 | E124: 4 | M124: Příruba S2000 č. 0400 110/100:4
C125: Q DN100:1 | E125: 1 | M125: Q DN100:1
A126: 21 | B126: 857264121R00 | C126: Montáž tvarovek litin. odboč. přír. výkop DN 100 včetně nerezových spoj. prvků a obandážování spoje | D126: kus | E126: 3 | G126: =E126*F126 -> 0 | H126: 0.00062 | I126: =E126*H126 -> 0.00186 | J126: 0 | K126: =E126*J126 -> 0 | O126: 2 | AA126: 1 | AB126: 1 | AC126: 1 | AZ126: 1 | BA126: =IF(AZ126=1,G126,0) -> 0 | BB126: =IF(AZ126=2,G126,0) -> 0 | BC126: =IF(AZ126=3,G126,0) -> 0 | BD126: =IF(AZ126=4,G126,0) -> 0 | BE126: =IF(AZ126=5,G126,0) -> 0 | CA126: 1 | CB126: 1
C127: Položka je určena pro montáž litinových tvarovek na potrubí litinovém tlakovém přírubovém odbočných v otevřeném výkopu, v otevřeném kanálu nebo v šachtě. | L127: Položka je určena pro montáž litinových tvarovek na potrubí litinovém tlakovém přírubovém odbočných v otevřeném výkopu, v otevřeném kanálu nebo v šachtě. | O127: 3
C128: Součástí položky je i dodávka nerezových spojovacích prvků (šrouby, podložky, matky) a kompletního obandážování spojů. | L128: Součástí položky je i dodávka nerezových spojovacích prvků (šrouby, podložky, matky) a kompletního obandážování spojů. | O128: 3
C129: Řad "A8-1" PE D 110x10,0 mm: | E129: 0 | M129: Řad "A8-1" PE D 110x10,0 mm:
C130: T DN100/80:2 | E130: 2 | M130: T DN100/80:2
C131: T DN100/100:1 | E131: 1 | M131: T DN100/100:1
A132: 22 | B132: 871251121R00 | C132: Montáž trubek polyetylenových ve výkopu d 110 mm | D132: m | E132: 220 | G132: =E132*F132 -> 0 | H132: 0 | I132: =E132*H132 -> 0 | J132: 0 | K132: =E132*J132 -> 0 | O132: 2 | AA132: 1 | AB132: 1 | AC132: 1 | AZ132: 1 | BA132: =IF(AZ132=1,G132,0) -> 0 | BB132: =IF(AZ132=2,G132,0) -> 0 | BC132: =IF(AZ132=3,G132,0) -> 0 | BD132: =IF(AZ132=4,G132,0) -> 0 | BE132: =IF(AZ132=5,G132,0) -> 0 | CA132: 1 | CB132: 1
C133: V položce je uvažováno s jedním spojem na 6 m potrubí. | L133: V položce je uvažováno s jedním spojem na 6 m potrubí. | O133: 3
C134: Řad "A8-1" PE D 110x10,0 mm:220,00 | E134: 220 | M134: Řad "A8-1" PE D 110x10,0 mm:220,00
A135: 23 | B135: 877252121R00 | C135: Přirážka za 1 spoj elektrotvarovky d 110 mm | D135: kus | E135: 33 | G135: =E135*F135 -> 0 | H135: 0 | I135: =E135*H135 -> 0 | J135: 0 | K135: =E135*J135 -> 0 | O135: 2 | AA135: 1 | AB135: 1 | AC135: 1 | AZ135: 1 | BA135: =IF(AZ135=1,G135,0) -> 0 | BB135: =IF(AZ135=2,G135,0) -> 0 | BC135: =IF(AZ135=3,G135,0) -> 0 | BD135: =IF(AZ135=4,G135,0) -> 0 | BE135: =IF(AZ135=5,G135,0) -> 0 | CA135: 1 | CB135: 1
C136: Řad "A8-1" PE D 110x10,0 mm: | E136: 0 | M136: Řad "A8-1" PE D 110x10,0 mm:
C137: Elektrospojka PE D110:30 | E137: 30 | M137: Elektrospojka PE D110:30
C138: Oblouk PE D110/11°:3 | E138: 3 | M138: Oblouk PE D110/11°:3
A139: 24 | B139: 891241111R00 | C139: Montáž vodovodních šoupátek ve výkopu DN 80 včetně nerezových spoj. prvků a obandážování spoje | D139: kus | E139: 2 | G139: =E139*F139 -> 0 | H139: 0.00022 | I139: =E139*H139 -> 0.00044 | J139: 0 | K139: =E139*J139 -> 0 | O139: 2 | AA139: 1 | AB139: 1 | AC139: 1 | AZ139: 1 | BA139: =IF(AZ139=1,G139,0) -> 0 | BB139: =IF(AZ139=2,G139,0) -> 0 | BC139: =IF(AZ139=3,G139,0) -> 0 | BD139: =IF(AZ139=4,G139,0) -> 0 | BE139: =IF(AZ139=5,G139,0) -> 0 | CA139: 1 | CB139: 1
C140: Položka je určena pro montáž vodovodních šoupátek v otevřeném výkopu nebo v šachtách s osazením zemní soupravy (bez poklopů). V položce jsou zakalkulovány i náklady na vytvoření otvorů ve stropech šachet pro prostup zemních souprav šoupátek. | L140: Položka je určena pro montáž vodovodních šoupátek v otevřeném výkopu nebo v šachtách s osazením zemní soupravy (bez poklopů). V položce jsou zakalkulovány i náklady na vytvoření otvorů ve stropech šachet pro prostup zemních souprav šoupátek. | O140: 3
C141: Součástí položky je i dodávka nerezových spojovacích prvků (šrouby, podložky, matky) a kompletního obandážování spojů. | L141: Součástí položky je i dodávka nerezových spojovacích prvků (šrouby, podložky, matky) a kompletního obandážování spojů. | O141: 3
C142: Řad "A8-1" PE D 110x10,0 mm: | E142: 0 | M142: Řad "A8-1" PE D 110x10,0 mm:
C143: Šoupě DN80:2 | E143: 2 | M143: Šoupě DN80:2
A144: 25 | B144: 891247111R00 | C144: Montáž hydrantů podzemních DN 80 včetně nerezových spoj. prvků a obandážování spoje | D144: kus | E144: 2 | G144: =E144*F144 -> 0 | H144: 0.00011 | I144: =E144*H144 -> 0.00022 | J144: 0 | K144: =E144*J144 -> 0 | O144: 2 | AA144: 1 | AB144: 1 | AC144: 1 | AZ144: 1 | BA144: =IF(AZ144=1,G144,0) -> 0 | BB144: =IF(AZ144=2,G144,0) -> 0 | BC144: =IF(AZ144=3,G144,0) -> 0 | BD144: =IF(AZ144=4,G144,0) -> 0 | BE144: =IF(AZ144=5,G144,0) -> 0 | CA144: 1 | CB144: 1
C145: Položka je určena pro montáž hydrantů podzemních (bez osazení poklopů) na potrubí včetně drenážního obalu. | L145: Položka je určena pro montáž hydrantů podzemních (bez osazení poklopů) na potrubí včetně drenážního obalu. | O145: 3
C146: Součástí položky je i dodávka nerezových spojovacích prvků (šrouby, podložky, matky) a kompletního obandážování spojů. | L146: Součástí položky je i dodávka nerezových spojovacích prvků (šrouby, podložky, matky) a kompletního obandážování spojů. | O146: 3
C147: Řad "A8-1" PE D 110x10,0 mm: | E147: 0 | M147: Řad "A8-1" PE D 110x10,0 mm:
C148: Hp DN80/1,5:2 | E148: 2 | M148: Hp DN80/1,5:2
A149: 26 | B149: 891261111R00 | C149: Montáž vodovodních šoupátek ve výkopu DN 100 včetně nerezových spoj. prvků a obandážování spoje | D149: kus | E149: 2 | G149: =E149*F149 -> 0 | H149: 0.00041 | I149: =E149*H149 -> 0.00082 | J149: 0 | K149: =E149*J149 -> 0 | O149: 2 | AA149: 1 | AB149: 1 | AC149: 1 | AZ149: 1 | BA149: =IF(AZ149=1,G149,0) -> 0 | BB149: =IF(AZ149=2,G149,0) -> 0 | BC149: =IF(AZ149=3,G149,0) -> 0 | BD149: =IF(AZ149=4,G149,0) -> 0 | BE149: =IF(AZ149=5,G149,0) -> 0 | CA149: 1 | CB149: 1
C150: Položka je určena pro montáž vodovodních šoupátek v otevřeném výkopu nebo v šachtách s osazením zemní soupravy (bez poklopů). V položce jsou zakalkulovány i náklady na vytvoření otvorů ve stropech šachet pro prostup zemních souprav šoupátek. | L150: Položka je určena pro montáž vodovodních šoupátek v otevřeném výkopu nebo v šachtách s osazením zemní soupravy (bez poklopů). V položce jsou zakalkulovány i náklady na vytvoření otvorů ve stropech šachet pro prostup zemních souprav šoupátek. | O150: 3
C151: Součástí položky je i dodávka nerezových spojovacích prvků (šrouby, podložky, matky) a kompletního obandážování spojů. | L151: Součástí položky je i dodávka nerezových spojovacích prvků (šrouby, podložky, matky) a kompletního obandážování spojů. | O151: 3
C152: Řad "A8-1" PE D 110x10,0 mm: | E152: 0 | M152: Řad "A8-1" PE D 110x10,0 mm:
C153: Šoupě DN100:2 | E153: 2 | M153: Šoupě DN100:2
A154: 27 | B154: 891269111R00 | C154: Montáž navrtávacích pasů DN 100 s ventilem | D154: kus | E154: 17 | G154: =E154*F154 -> 0 | H154: 0 | I154: =E154*H154 -> 0 | J154: 0 | K154: =E154*J154 -> 0 | O154: 2 | AA154: 1 | AB154: 1 | AC154: 1 | AZ154: 1 | BA154: =IF(AZ154=1,G154,0) -> 0 | BB154: =IF(AZ154=2,G154,0) -> 0 | BC154: =IF(AZ154=3,G154,0) -> 0 | BD154: =IF(AZ154=4,G154,0) -> 0 | BE154: =IF(AZ154=5,G154,0) -> 0 | CA154: 1 | CB154: 1
C155: Řad "A8-1" PE D 110x10,0 mm: | E155: 0 | M155: Řad "A8-1" PE D 110x10,0 mm:
C156: NP DAV (KIT) PE D110/32:17 | E156: 17 | M156: NP DAV (KIT) PE D110/32:17
C157: Začátek provozního součtu | E157: 0 | M157: Začátek provozního součtu
C158: Pro čp. 858:1 | E158: 1 | M158: Pro čp. 858:1
C159: Pro čp. 859:1 | E159: 1 | M159: Pro čp. 859:1
C160: Pro čp. 874:1 | E160: 1 | M160: Pro čp. 874:1
C161: Pro čp. 860:1 | E161: 1 | M161: Pro čp. 860:1
C162: Pro čp. 873:1 | E162: 1 | M162: Pro čp. 873:1
C163: Pro čp. 861:1 | E163: 1 | M163: Pro čp. 861:1
C164: Pro čp. 862:1 | E164: 1 | M164: Pro čp. 862:1
C165: Pro čp. 863:1 | E165: 1 | M165: Pro čp. 863:1
C166: Pro čp. 872:1 | E166: 1 | M166: Pro čp. 872:1
C167: Pro čp. 871:1 | E167: 1 | M167: Pro čp. 871:1
C168: Pro čp. 864:1 | E168: 1 | M168: Pro čp. 864:1
C169: Pro čp. 870:1 | E169: 1 | M169: Pro čp. 870:1
C170: Pro čp. 865:1 | E170: 1 | M170: Pro čp. 865:1
C171: Pro čp. 869:1 | E171: 1 | M171: Pro čp. 869:1
C172: Pro čp. 866:1 | E172: 1 | M172: Pro čp. 866:1
C173: Pro čp. 867:1 | E173: 1 | M173: Pro čp. 867:1
C174: Pro čp. 868:1 | E174: 1 | M174: Pro čp. 868:1
C175: 0 | E175: 0 | M175: 0
C176: Konec provozního součtu | E176: 17 | M176: Konec provozního součtu
A177: 28 | B177: 892271111R00 | C177: Tlaková zkouška vodovodního potrubí DN 125 včetně zajištění konců potrubí | D177: m | E177: 220 | G177: =E177*F177 -> 0 | H177: 0 | I177: =E177*H177 -> 0 | J177: 0 | K177: =E177*J177 -> 0 | O177: 2 | AA177: 1 | AB177: 1 | AC177: 1 | AZ177: 1 | BA177: =IF(AZ177=1,G177,0) -> 0 | BB177: =IF(AZ177=2,G177,0) -> 0 | BC177: =IF(AZ177=3,G177,0) -> 0 | BD177: =IF(AZ177=4,G177,0) -> 0 | BE177: =IF(AZ177=5,G177,0) -> 0 | CA177: 1 | CB177: 1
C178: V položce jsou započteny náklady na přísun, montáž, demontáž a odsun zkoušecího čerpadla, napuštění tlakovou vodou a dodání vody pro tlakovou zkoušku | L178: V položce jsou započteny náklady na přísun, montáž, demontáž a odsun zkoušecího čerpadla, napuštění tlakovou vodou a dodání vody pro tlakovou zkoušku | O178: 3
C179: Řad "A8-1" PE D 110x10,0 mm:220,00 | E179: 220 | M179: Řad "A8-1" PE D 110x10,0 mm:220,00
A180: 29 | B180: 892273111R00 | C180: Desinfekce vodovodního potrubí DN 125 | D180: m | E180: 220 | G180: =E180*F180 -> 0 | H180: 0 | I180: =E180*H180 -> 0 | J180: 0 | K180: =E180*J180 -> 0 | O180: 2 | AA180: 1 | AB180: 1 | AC180: 1 | AZ180: 1 | BA180: =IF(AZ180=1,G180,0) -> 0 | BB180: =IF(AZ180=2,G180,0) -> 0 | BC180: =IF(AZ180=3,G180,0) -> 0 | BD180: =IF(AZ180=4,G180,0) -> 0 | BE180: =IF(AZ180=5,G180,0) -> 0 | CA180: 1 | CB180: 1
C181: V položce jsou zakalkulovány náklady na napuštění a vypuštění vody, dodání vody a desinfekčního prostředku a na bakteriologický rozbor vody. | L181: V položce jsou zakalkulovány náklady na napuštění a vypuštění vody, dodání vody a desinfekčního prostředku a na bakteriologický rozbor vody. | O181: 3
C182: Řad "A8-1" PE D 110x10,0 mm:220,00 | E182: 220 | M182: Řad "A8-1" PE D 110x10,0 mm:220,00
A183: 30 | B183: 899713111RRX | C183: Orientační tabulky na sloupku ocelovém, betonovém | D183: kus | E183: 23 | G183: =E183*F183 -> 0 | H183: 0.00024 | I183: =E183*H183 -> 0.00552 | J183: 0 | K183: =E183*J183 -> 0 | O183: 2 | AA183: 1 | AB183: 1 | AC183: 1 | AZ183: 1 | BA183: =IF(AZ183=1,G183,0) -> 0 | BB183: =IF(AZ183=2,G183,0) -> 0 | BC183: =IF(AZ183=3,G183,0) -> 0 | BD183: =IF(AZ183=4,G183,0) -> 0 | BE183: =IF(AZ183=5,G183,0) -> 0 | CA183: 1 | CB183: 1
C184: Položka platí pro orientační tabulky na vodovodních a kanalizačních řadech. V položce jsou zakalkulovány náklady na dodání a připevnění tabulky a na osazení sloupku. V položce jsou zakalkulovány náklady na zemní práce a na dodání sloupků (betonových nebo ocelových s betonovými patkami) | L184: Položka platí pro orientační tabulky na vodovodních a kanalizačních řadech. V položce jsou zakalkulovány náklady na dodání a připevnění tabulky a na osazení sloupku. V položce jsou zakalkulovány náklady na zemní práce a na dodání sloupků (betonových nebo ocelových s betonovými patkami) | O184: 3
C185: Řad "A8-1" PE D 110x10,0 mm: | E185: 0 | M185: Řad "A8-1" PE D 110x10,0 mm:
C186: Pro NP DAV (KIT) PE D110/32:17 | E186: 17 | M186: Pro NP DAV (KIT) PE D110/32:17
C187: Pro Šoupě DN80:2 | E187: 2 | M187: Pro Šoupě DN80:2
C188: Pro Šoupě DN100:2 | E188: 2 | M188: Pro Šoupě DN100:2
C189: Pro Hp DN80/1,5:2 | E189: 2 | M189: Pro Hp DN80/1,5:2
A190: 31 | B190: 899721112R00 | C190: Fólie výstražná z PVC bílá, šířka 30 cm | D190: m | E190: 220 | G190: =E190*F190 -> 0 | H190: 0 | I190: =E190*H190 -> 0 | J190: 0 | K190: =E190*J190 -> 0 | O190: 2 | AA190: 1 | AB190: 1 | AC190: 1 | AZ190: 1 | BA190: =IF(AZ190=1,G190,0) -> 0 | BB190: =IF(AZ190=2,G190,0) -> 0 | BC190: =IF(AZ190=3,G190,0) -> 0 | BD190: =IF(AZ190=4,G190,0) -> 0 | BE190: =IF(AZ190=5,G190,0) -> 0 | CA190: 1 | CB190: 1
C191: Řad "A8-1" PE D 110x10,0 mm:220,00 | E191: 220 | M191: Řad "A8-1" PE D 110x10,0 mm:220,00
A192: 32 | B192: 899731114R00 | C192: Vodič signalizační CYY 6 mm2 | D192: m | E192: 308 | G192: =E192*F192 -> 0 | H192: 8e-05 | I192: =E192*H192 -> 0.02464 | J192: 0 | K192: =E192*J192 -> 0 | O192: 2 | AA192: 1 | AB192: 1 | AC192: 1 | AZ192: 1 | BA192: =IF(AZ192=1,G192,0) -> 0 | BB192: =IF(AZ192=2,G192,0) -> 0 | BC192: =IF(AZ192=3,G192,0) -> 0 | BD192: =IF(AZ192=4,G192,0) -> 0 | BE192: =IF(AZ192=5,G192,0) -> 0 | CA192: 1 | CB192: 1
C193: Součástí položky je zajištění proměření vodiče a výchozí zevize. | L193: Součástí položky je zajištění proměření vodiče a výchozí zevize. | O193: 3
C194: Řad "A8-1" PE D 110x10,0 mm:220,00 | E194: 220 | M194: Řad "A8-1" PE D 110x10,0 mm:220,00
C195: Vyvedení: | E195: 0 | M195: Vyvedení:
C196: Pro NP DAV (KIT) PE D110/32:17*2,00*2 | E196: 68 | M196: Pro NP DAV (KIT) PE D110/32:17*2,00*2
C197: Pro Šoupě DN80:2*2,00*2 | E197: 8 | M197: Pro Šoupě DN80:2*2,00*2
C198: Pro Šoupě DN100:2*2,00*2 | E198: 8 | M198: Pro Šoupě DN100:2*2,00*2
C199: Pro Hp DN80/1,5:2*2,00*1 | E199: 4 | M199: Pro Hp DN80/1,5:2*2,00*1
A200: 33 | B200: 28613076.DAV.R | C200: T-kus odbočkový navrtávací DAV (KIT) D110/32 | D200: kus | E200: 17 | G200: =E200*F200 -> 0 | H200: 0 | I200: =E200*H200 -> 0 | K200: =E200*J200 -> 0 | O200: 2 | AA200: 3 | AB200: 1 | AC200: 28613076.DAV.R | AZ200: 1 | BA200: =IF(AZ200=1,G200,0) -> 0 | BB200: =IF(AZ200=2,G200,0) -> 0 | BC200: =IF(AZ200=3,G200,0) -> 0 | BD200: =IF(AZ200=4,G200,0) -> 0 | BE200: =IF(AZ200=5,G200,0) -> 0 | CA200: 3 | CB200: 1
C201: Řad "A8-1" PE D 110x10,0 mm: | E201: 0 | M201: Řad "A8-1" PE D 110x10,0 mm:
C202: NP DAV (KIT) PE D110/32:17 | E202: 17 | M202: NP DAV (KIT) PE D110/32:17
... 170 more rows

Sheet 1.E 01 1.E 01.1.2 KL
A1: POLOŽKOVÝ ROZPOČET
A2: Rozpočet | C2: 1.E 01.1.2 | D2: Vodovodní řad "A8-2-1" | F2: JKSO | G2: 827.11
A4: Objekt | F4: SKP
A5: 1.E 01 | C5: Vodovody | F5: Měrná jednotka | G5: m
A6: Stavba | F6: Počet jednotek | G6: 0
A7: 3403 | C7: Jilemnice - Optimalizace VS a komunikace I.Etapa | F7: Náklady na m.j. | G7: =IF(G6=0,,ROUND((F30+F32)/G6,1)) -> 0
A8: Projektant | C8: Vodohospodářsko - inženýrské služby spol. s r.o. | F8: Typ rozpočtu
A9: Zpracovatel projektu
A10: Objednatel | C10: Vodohospodářské sdružení Turnov
A11: Dodavatel | C11: . | F11: Zakázkové číslo
A12: Rozpočtoval | F12: Počet listů
A13: ROZPOČTOVÉ NÁKLADY
A14: Základní rozpočtové náklady
B15: HSV celkem | C15: ='1.E 01 1.E 01.1.2 Rek'!E14 -> 0
A16: Z | B16: PSV celkem | C16: ='1.E 01 1.E 01.1.2 Rek'!F14 -> 0
A17: R | B17: M práce celkem | C17: ='1.E 01 1.E 01.1.2 Rek'!H14 -> 0
A18: N | B18: M dodávky celkem | C18: ='1.E 01 1.E 01.1.2 Rek'!G14 -> 0
A19: ZRN celkem | C19: =SUM(C15:C18) -> 0
A21: HZS | C21: ='1.E 01 1.E 01.1.2 Rek'!I14 -> 0
A22: ZRN+HZS | C22: =C19+C21 -> 0
A23: ZRN+ost.náklady+HZS | C23: =C22+G23 -> 0
A24: Vypracoval | D24: Za zhotovitele | F24: Za objednatele
A25: Jméno : | D25: Jméno : | F25: Jméno :
A26: Datum : | D26: Datum : | F26: Datum :
A28: Podpis : | D28: Podpis: | F28: Podpis:
A30: Základ pro DPH | C30: 21 | D30: % | F30: =C23-F32 -> 0
A31: DPH | C31: =C30 -> 21 | D31: % | F31: =ROUND(PRODUCT(F30,C31/100),0) -> 0
A32: Základ pro DPH | C32: 0 | D32: % | F32: 0
A33: DPH | C33: =C32 -> 0 | D33: % | F33: =ROUND(PRODUCT(F32,C33/100),0) -> 0
A34: CENA ZA OBJEKT CELKEM | F34: =ROUND(SUM(F30:F33),0) -> 0
A36: Poznámka :

Sheet 1.E 01 1.E 01.1.2 Rek
A1: Stavba : | C1: 3403 Jilemnice - Optimalizace VS a komunikace | G1: Rozpočet : | H1: 1.E 01.1.2
A2: Objekt : | C2: 1.E 01 Vodovody | G2: Vodovodní řad "A8-2-1"
A4: REKAPITULACE STAVEBNÍCH DÍLŮ
B6: Stavební díl | E6: HSV | F6: PSV | G6: Dodávka | H6: Montáž | I6: HZS
A7: ='1.E 01 1.E 01.1.2 Pol'!B7 -> 1 | B7: ='1.E 01 1.E 01.1.2 Pol'!C7 -> Zemní práce | E7: ='1.E 01 1.E 01.1.2 Pol'!BA81 -> 0 | F7: ='1.E 01 1.E 01.1.2 Pol'!BB81 -> 0 | G7: ='1.E 01 1.E 01.1.2 Pol'!BC81 -> 0 | H7: ='1.E 01 1.E 01.1.2 Pol'!BD81 -> 0 | I7: ='1.E 01 1.E 01.1.2 Pol'!BE81 -> 0
A8: ='1.E 01 1.E 01.1.2 Pol'!B82 -> 45 | B8: ='1.E 01 1.E 01.1.2 Pol'!C82 -> Podkladní a vedlejší konstrukce | E8: ='1.E 01 1.E 01.1.2 Pol'!BA86 -> 0 | F8: ='1.E 01 1.E 01.1.2 Pol'!BB86 -> 0 | G8: ='1.E 01 1.E 01.1.2 Pol'!BC86 -> 0 | H8: ='1.E 01 1.E 01.1.2 Pol'!BD86 -> 0 | I8: ='1.E 01 1.E 01.1.2 Pol'!BE86 -> 0
A9: ='1.E 01 1.E 01.1.2 Pol'!B87 -> 5 | B9: ='1.E 01 1.E 01.1.2 Pol'!C87 -> Komunikace | E9: ='1.E 01 1.E 01.1.2 Pol'!BA92 -> 0 | F9: ='1.E 01 1.E 01.1.2 Pol'!BB92 -> 0 | G9: ='1.E 01 1.E 01.1.2 Pol'!BC92 -> 0 | H9: ='1.E 01 1.E 01.1.2 Pol'!BD92 -> 0 | I9: ='1.E 01 1.E 01.1.2 Pol'!BE92 -> 0
A10: ='1.E 01 1.E 01.1.2 Pol'!B93 -> 8 | B10: ='1.E 01 1.E 01.1.2 Pol'!C93 -> Trubní vedení | E10: ='1.E 01 1.E 01.1.2 Pol'!BA186 -> 0 | F10: ='1.E 01 1.E 01.1.2 Pol'!BB186 -> 0 | G10: ='1.E 01 1.E 01.1.2 Pol'!BC186 -> 0 | H10: ='1.E 01 1.E 01.1.2 Pol'!BD186 -> 0 | I10: ='1.E 01 1.E 01.1.2 Pol'!BE186 -> 0
A11: ='1.E 01 1.E 01.1.2 Pol'!B187 -> 89 | B11: ='1.E 01 1.E 01.1.2 Pol'!C187 -> Ostatní konstrukce na trubním vedení | E11: ='1.E 01 1.E 01.1.2 Pol'!BA209 -> 0 | F11: ='1.E 01 1.E 01.1.2 Pol'!BB209 -> 0 | G11: ='1.E 01 1.E 01.1.2 Pol'!BC209 -> 0 | H11: ='1.E 01 1.E 01.1.2 Pol'!BD209 -> 0 | I11: ='1.E 01 1.E 01.1.2 Pol'!BE209 -> 0
A12: ='1.E 01 1.E 01.1.2 Pol'!B210 -> 93 | B12: ='1.E 01 1.E 01.1.2 Pol'!C210 -> Dokončovací práce inženýrských staveb | E12: ='1.E 01 1.E 01.1.2 Pol'!BA268 -> 0 | F12: ='1.E 01 1.E 01.1.2 Pol'!BB268 -> 0 | G12: ='1.E 01 1.E 01.1.2 Pol'!BC268 -> 0 | H12: ='1.E 01 1.E 01.1.2 Pol'!BD268 -> 0 | I12: ='1.E 01 1.E 01.1.2 Pol'!BE268 -> 0
A13: ='1.E 01 1.E 01.1.2 Pol'!B269 -> 99 | B13: ='1.E 01 1.E 01.1.2 Pol'!C269 -> Staveništní přesun hmot | E13: ='1.E 01 1.E 01.1.2 Pol'!BA272 -> 0 | F13: ='1.E 01 1.E 01.1.2 Pol'!BB272 -> 0 | G13: ='1.E 01 1.E 01.1.2 Pol'!BC272 -> 0 | H13: ='1.E 01 1.E 01.1.2 Pol'!BD272 -> 0 | I13: ='1.E 01 1.E 01.1.2 Pol'!BE272 -> 0
B14: CELKEM OBJEKT | E14: =SUM(E7:E13) -> 0 | F14: =SUM(F7:F13) -> 0 | G14: =SUM(G7:G13) -> 0 | H14: =SUM(H7:H13) -> 0 | I14: =SUM(I7:I13) -> 0

Sheet 1.E 01 1.E 01.1.2 Pol
A1: Položkový rozpočet
A3: Stavba : | C3: 3403 Jilemnice - Optimalizace VS a komunikace | E3: Rozpočet: | F3: ='1.E 01 1.E 01.1.2 Rek'!H1 -> 1.E 01.1.2
A4: Objekt : | C4: 1.E 01 Vodovody | E4: ='1.E 01 1.E 01.1.2 Rek'!G2 -> Vodovodní řad "A8-2-1"
A6: P.č. | B6: Číslo položky | C6: Název položky | D6: MJ | E6: množství | F6: cena / MJ | G6: celkem (Kč) | H6: Jednotková hmotnost | I6: Celková hmotnost | J6: Jednotková dem.hmot. | K6: Celková dem.hmot.
A7: Díl: | B7: 1 | C7: Zemní práce | O7: 1
A8: 1 | B8: 130001101RRX | C8: Příplatek za ztížené hloubení v blízkosti vedení | D8: m3 | E8: 14.976 | G8: =E8*F8 -> 0 | H8: 0 | I8: =E8*H8 -> 0 | J8: 0 | K8: =E8*J8 -> 0 | O8: 2 | AA8: 1 | AB8: 1 | AC8: 1 | AZ8: 1 | BA8: =IF(AZ8=1,G8,0) -> 0 | BB8: =IF(AZ8=2,G8,0) -> 0 | BC8: =IF(AZ8=3,G8,0) -> 0 | BD8: =IF(AZ8=4,G8,0) -> 0 | BE8: =IF(AZ8=5,G8,0) -> 0 | CA8: 1 | CB8: 1
C9: Včetně případných nutných dokopávem a ručního výkopu podél sousedících inženýrských sítí. | L9: Včetně případných nutných dokopávem a ručního výkopu podél sousedících inženýrských sítí. | O9: 3
C10: Součástí položky je i dočasné zajištění inženýrských sítí v prostoru výkopů (potrubí, kabely a pod.) | L10: Součástí položky je i dočasné zajištění inženýrských sítí v prostoru výkopů (potrubí, kabely a pod.) | O10: 3
C11: Řad "A8-2-1" PE D 90x8,2 mm: | E11: 0 | M11: Řad "A8-2-1" PE D 90x8,2 mm:
C12: Výkopy: | E12: 0 | M12: Výkopy:
C13: V hornině tř. 3 - 4 - 20%:74,8800*0,2 | E13: 14.976 | M13: V hornině tř. 3 - 4 - 20%:74,8800*0,2
A14: 2 | B14: 132201212R00 | C14: Hloubení rýh š.do 200 cm hor.3 do 1000m3,STROJNĚ | D14: m3 | E14: 29.952 | G14: =E14*F14 -> 0 | H14: 0 | I14: =E14*H14 -> 0 | J14: 0 | K14: =E14*J14 -> 0 | O14: 2 | AA14: 1 | AB14: 1 | AC14: 1 | AZ14: 1 | BA14: =IF(AZ14=1,G14,0) -> 0 | BB14: =IF(AZ14=2,G14,0) -> 0 | BC14: =IF(AZ14=3,G14,0) -> 0 | BD14: =IF(AZ14=4,G14,0) -> 0 | BE14: =IF(AZ14=5,G14,0) -> 0 | CA14: 1 | CB14: 1
C15: Položka obsahuje hloubení rýh traktorbagrem, naložení výkopku na dopravní prostředek pro svislé, nebo vodorovné přemístění, popř. přemístění výkopku do 3 m (po povrchu území), případné zajištění rypadel polštáři, udržování pracoviště a ochranu výkopiště proti stékání srážkové vody z okolního terénu i s jejím odvodněním, nebo odvedením, přesekání a odstranění kořenů ve výkopišti, odstranění napadávek, urovnání dna výkopu. | L15: Položka obsahuje hloubení rýh traktorbagrem, naložení výkopku na dopravní prostředek pro svislé, nebo vodorovné přemístění, popř. přemístění výkopku do 3 m (po povrchu území), případné zajištění rypadel polštáři, udržování pracoviště a ochranu výkopiště proti stékání srážkové vody z okolního terénu i s jejím odvodněním, nebo odvedením, přesekání a odstranění kořenů ve výkopišti, odstranění napadávek, urovnání dna výkopu. | O15: 3
C16: Řad "A8-2-1" PE D 90x8,2 mm: | E16: 0 | M16: Řad "A8-2-1" PE D 90x8,2 mm:
C17: Výkopy: | E17: 0 | M17: Výkopy:
C18: Začátek provozního součtu | E18: 0 | M18: Začátek provozního součtu
C19: Souběh s kanalizací: | E19: 0 | M19: Souběh s kanalizací:
C20: Průměrná hloubka výkopů 1,70 m: | E20: 0 | M20: Průměrná hloubka výkopů 1,70 m:
C21: Řad "A8-2-1" :72,00*0,80*1,70 | E21: 97.92 | M21: Řad "A8-2-1" :72,00*0,80*1,70
C22: Odpočet předpokládané konstrukce MK:-72,00*0,80*0,40 | E22: -23.04 | M22: Odpočet předpokládané konstrukce MK:-72,00*0,80*0,40
C23: Konec provozního součtu | E23: 74.88 | M23: Konec provozního součtu
C24: V hornině tř. 3 - 40%:74,8800*0,4 | E24: 29.952 | M24: V hornině tř. 3 - 40%:74,8800*0,4
A25: 3 | B25: 132201219R00 | C25: Přípl.za lepivost,hloubení rýh 200cm,hor.3,STROJNĚ | D25: m3 | E25: 14.976 | G25: =E25*F25 -> 0 | H25: 0 | I25: =E25*H25 -> 0 | J25: 0 | K25: =E25*J25 -> 0 | O25: 2 | AA25: 1 | AB25: 1 | AC25: 1 | AZ25: 1 | BA25: =IF(AZ25=1,G25,0) -> 0 | BB25: =IF(AZ25=2,G25,0) -> 0 | BC25: =IF(AZ25=3,G25,0) -> 0 | BD25: =IF(AZ25=4,G25,0) -> 0 | BE25: =IF(AZ25=5,G25,0) -> 0 | CA25: 1 | CB25: 1
C26: Řad "A8-2-1" PE D 90x8,2 mm: | E26: 0 | M26: Řad "A8-2-1" PE D 90x8,2 mm:
C27: Výkopy: | E27: 0 | M27: Výkopy:
C28: V hornině tř. 3 - 40%:74,8800*0,4*0,5 | E28: 14.976 | M28: V hornině tř. 3 - 40%:74,8800*0,4*0,5
A29: 4 | B29: 132301212R00 | C29: Hloubení rýh š.do 200 cm hor.4 do 1000 m3, STROJNĚ | D29: m3 | E29: 37.44 | G29: =E29*F29 -> 0 | H29: 0 | I29: =E29*H29 -> 0 | J29: 0 | K29: =E29*J29 -> 0 | O29: 2 | AA29: 1 | AB29: 1 | AC29: 1 | AZ29: 1 | BA29: =IF(AZ29=1,G29,0) -> 0 | BB29: =IF(AZ29=2,G29,0) -> 0 | BC29: =IF(AZ29=3,G29,0) -> 0 | BD29: =IF(AZ29=4,G29,0) -> 0 | BE29: =IF(AZ29=5,G29,0) -> 0 | CA29: 1 | CB29: 1
C30: Položka obsahuje hloubení rýh traktorbagrem, naložení výkopku na dopravní prostředek pro svislé, nebo vodorovné přemístění, popř. přemístění výkopku do 3 m (po povrchu území), případné zajištění rypadel polštáři, udržování pracoviště a ochranu výkopiště proti stékání srážkové vody z okolního terénu i s jejím odvodněním, nebo odvedením, přesekání a odstranění kořenů ve výkopišti, odstranění napadávek, urovnání dna výkopu. | L30: Položka obsahuje hloubení rýh traktorbagrem, naložení výkopku na dopravní prostředek pro svislé, nebo vodorovné přemístění, popř. přemístění výkopku do 3 m (po povrchu území), případné zajištění rypadel polštáři, udržování pracoviště a ochranu výkopiště proti stékání srážkové vody z okolního terénu i s jejím odvodněním, nebo odvedením, přesekání a odstranění kořenů ve výkopišti, odstranění napadávek, urovnání dna výkopu. | O30: 3
C31: Řad "A8-2-1" PE D 90x8,2 mm: | E31: 0 | M31: Řad "A8-2-1" PE D 90x8,2 mm:
C32: Výkopy: | E32: 0 | M32: Výkopy:
C33: V hornině tř. 4 - 50%:74,8800*0,5 | E33: 37.44 | M33: V hornině tř. 4 - 50%:74,8800*0,5
A34: 5 | B34: 132301219R00 | C34: Přípl.za lepivost,hloubení rýh 200cm,hor.4,STROJNĚ | D34: m3 | E34: 18.72 | G34: =E34*F34 -> 0 | H34: 0 | I34: =E34*H34 -> 0 | J34: 0 | K34: =E34*J34 -> 0 | O34: 2 | AA34: 1 | AB34: 1 | AC34: 1 | AZ34: 1 | BA34: =IF(AZ34=1,G34,0) -> 0 | BB34: =IF(AZ34=2,G34,0) -> 0 | BC34: =IF(AZ34=3,G34,0) -> 0 | BD34: =IF(AZ34=4,G34,0) -> 0 | BE34: =IF(AZ34=5,G34,0) -> 0 | CA34: 1 | CB34: 1
C35: Řad "A8-2-1" PE D 90x8,2 mm: | E35: 0 | M35: Řad "A8-2-1" PE D 90x8,2 mm:
C36: Výkopy: | E36: 0 | M36: Výkopy:
C37: V hornině tř. 4 - 50%:74,8800*0,5*0,5 | E37: 18.72 | M37: V hornině tř. 4 - 50%:74,8800*0,5*0,5
A38: 6 | B38: 132401211RRX | C38: Hloubení rýh šířky do 200 cm v hor.5 STROJNĚ včetně případného dolamování ve vrstvě do 0,5 m | D38: m3 | E38: 7.488 | G38: =E38*F38 -> 0 | H38: 0.01041 | I38: =E38*H38 -> 0.07795008 | J38: 0 | K38: =E38*J38 -> 0 | O38: 2 | AA38: 1 | AB38: 1 | AC38: 1 | AZ38: 1 | BA38: =IF(AZ38=1,G38,0) -> 0 | BB38: =IF(AZ38=2,G38,0) -> 0 | BC38: =IF(AZ38=3,G38,0) -> 0 | BD38: =IF(AZ38=4,G38,0) -> 0 | BE38: =IF(AZ38=5,G38,0) -> 0 | CA38: 1 | CB38: 1
C39: Položka obsahuje hloubení rýh traktorbagrem, naložení výkopku na dopravní prostředek pro svislé, nebo vodorovné přemístění, popř. přemístění výkopku do 3 m (po povrchu území), případné zajištění rypadel polštáři, udržování pracoviště a ochranu výkopiště proti stékání srážkové vody z okolního terénu i s jejím odvodněním, nebo odvedením, přesekání a odstranění kořenů ve výkopišti, odstranění napadávek, urovnání dna výkopu.včetně případného dolamování ve vrstvě do 0,5 m | L39: Položka obsahuje hloubení rýh traktorbagrem, naložení výkopku na dopravní prostředek pro svislé, nebo vodorovné přemístění, popř. přemístění výkopku do 3 m (po povrchu území), případné zajištění rypadel polštáři, udržování pracoviště a ochranu výkopiště proti stékání srážkové vody z okolního terénu i s jejím odvodněním, nebo odvedením, přesekání a odstranění kořenů ve výkopišti, odstranění napadávek, urovnání dna výkopu.včetně případného dolamování ve vrstvě do 0,5 m | O39: 3
C40: Řad "A8-2-1" PE D 90x8,2 mm: | E40: 0 | M40: Řad "A8-2-1" PE D 90x8,2 mm:
C41: Výkopy: | E41: 0 | M41: Výkopy:
C42: V hornině tř. 5 - 10%:74,8800*0,1 | E42: 7.488 | M42: V hornině tř. 5 - 10%:74,8800*0,1
A43: 7 | B43: 151101101R00 | C43: Pažení a rozepření stěn rýh - příložné - hl.do 2 m | D43: m2 | E43: 122.4 | G43: =E43*F43 -> 0 | H43: 0.00099 | I43: =E43*H43 -> 0.121176 | J43: 0 | K43: =E43*J43 -> 0 | O43: 2 | AA43: 1 | AB43: 1 | AC43: 1 | AZ43: 1 | BA43: =IF(AZ43=1,G43,0) -> 0 | BB43: =IF(AZ43=2,G43,0) -> 0 | BC43: =IF(AZ43=3,G43,0) -> 0 | BD43: =IF(AZ43=4,G43,0) -> 0 | BE43: =IF(AZ43=5,G43,0) -> 0 | CA43: 1 | CB43: 1
C44: Řad "A8-2-1" PE D 90x8,2 mm: | E44: 0 | M44: Řad "A8-2-1" PE D 90x8,2 mm:
C45: Výkopy: | E45: 0 | M45: Výkopy:
C46: Souběh s kanalizací: | E46: 0 | M46: Souběh s kanalizací:
C47: Řad "A8-2-1" - 50%:72,00*1,70*2*0,5 | E47: 122.4 | M47: Řad "A8-2-1" - 50%:72,00*1,70*2*0,5
A48: 8 | B48: 151101111R00 | C48: Odstranění pažení stěn rýh - příložné - hl. do 2 m | D48: m2 | E48: 122.4 | G48: =E48*F48 -> 0 | H48: 0 | I48: =E48*H48 -> 0 | J48: 0 | K48: =E48*J48 -> 0 | O48: 2 | AA48: 1 | AB48: 1 | AC48: 1 | AZ48: 1 | BA48: =IF(AZ48=1,G48,0) -> 0 | BB48: =IF(AZ48=2,G48,0) -> 0 | BC48: =IF(AZ48=3,G48,0) -> 0 | BD48: =IF(AZ48=4,G48,0) -> 0 | BE48: =IF(AZ48=5,G48,0) -> 0 | CA48: 1 | CB48: 1
C49: Řad "A8-2-1" PE D 90x8,2 mm: | E49: 0 | M49: Řad "A8-2-1" PE D 90x8,2 mm:
C50: Výkopy: | E50: 0 | M50: Výkopy:
C51: Souběh s kanalizací: | E51: 0 | M51: Souběh s kanalizací:
C52: Řad "A8-2-1" - 50%:72,00*1,70*2*0,5 | E52: 122.4 | M52: Řad "A8-2-1" - 50%:72,00*1,70*2*0,5
A53: 9 | B53: 162701105RSZ | C53: Vodorovné přemístění výkopku z hor.1-7 na skládku zhotovitele | D53: m3 | E53: 74.88 | G53: =E53*F53 -> 0 | H53: 0 | I53: =E53*H53 -> 0 | J53: 0 | K53: =E53*J53 -> 0 | O53: 2 | AA53: 1 | AB53: 1 | AC53: 1 | AZ53: 1 | BA53: =IF(AZ53=1,G53,0) -> 0 | BB53: =IF(AZ53=2,G53,0) -> 0 | BC53: =IF(AZ53=3,G53,0) -> 0 | BD53: =IF(AZ53=4,G53,0) -> 0 | BE53: =IF(AZ53=5,G53,0) -> 0 | CA53: 1 | CB53: 1
C54: Řad "A8-2-1" PE D 90x8,2 mm: | E54: 0 | M54: Řad "A8-2-1" PE D 90x8,2 mm:
C55: Výkopy: | E55: 0 | M55: Výkopy:
C56: V hornině tř. 3 - 4 :74,8800 | E56: 74.88 | M56: V hornině tř. 3 - 4 :74,8800
A57: 10 | B57: 174101101R00 | C57: Zásyp jam, rýh, šachet se zhutněním | D57: m3 | E57: 36 | G57: =E57*F57 -> 0 | H57: 0 | I57: =E57*H57 -> 0 | J57: 0 | K57: =E57*J57 -> 0 | O57: 2 | AA57: 1 | AB57: 1 | AC57: 1 | AZ57: 1 | BA57: =IF(AZ57=1,G57,0) -> 0 | BB57: =IF(AZ57=2,G57,0) -> 0 | BC57: =IF(AZ57=3,G57,0) -> 0 | BD57: =IF(AZ57=4,G57,0) -> 0 | BE57: =IF(AZ57=5,G57,0) -> 0 | CA57: 1 | CB57: 1
C58: Položka obsahuje strojní přemístění materiálu pro zásyp ze vzdálenosti do 10 m od okraje zásypu. | L58: Položka obsahuje strojní přemístění materiálu pro zásyp ze vzdálenosti do 10 m od okraje zásypu. | O58: 3
O59: 3
C60: Řad "A8-2-1" PE D 90x8,2 mm:36,0000 | E60: 36 | M60: Řad "A8-2-1" PE D 90x8,2 mm:36,0000
C61: Začátek provozního součtu | E61: 0 | M61: Začátek provozního součtu
C62: Výkopy: | E62: 0 | M62: Výkopy:
C63: V hornině tř. 3 - 4 :74,8800 | E63: 74.88 | M63: V hornině tř. 3 - 4 :74,8800
C64: Odpočet objemu lože, potrubí a obsypů:-72,00*(0,15+0,09+0,30) | E64: -38.88 | M64: Odpočet objemu lože, potrubí a obsypů:-72,00*(0,15+0,09+0,30)
C65: Konec provozního součtu | E65: 36 | M65: Konec provozního součtu
A66: 11 | B66: 175101101R00 | C66: Obsyp potrubí bez prohození sypaniny | D66: m3 | E66: 22.006 | G66: =E66*F66 -> 0 | H66: 0 | I66: =E66*H66 -> 0 | J66: 0 | K66: =E66*J66 -> 0 | O66: 2 | AA66: 1 | AB66: 1 | AC66: 1 | AZ66: 1 | BA66: =IF(AZ66=1,G66,0) -> 0 | BB66: =IF(AZ66=2,G66,0) -> 0 | BC66: =IF(AZ66=3,G66,0) -> 0 | BD66: =IF(AZ66=4,G66,0) -> 0 | BE66: =IF(AZ66=5,G66,0) -> 0 | CA66: 1 | CB66: 1
C67: Řad "A8-2-1" PE D 90x8,2 mm:72,00*(0,80*(0,09+0,30)-0,045^2*Pi) | E67: 22.006 | M67: Řad "A8-2-1" PE D 90x8,2 mm:72,00*(0,80*(0,09+0,30)-0,045^2*Pi)
A68: 12 | B68: 199000002R00 | C68: Poplatek za skládku horniny 1- 7 č. dle katal. odpadů 17 05 04 | D68: m3 | E68: 74.88 | G68: =E68*F68 -> 0 | H68: 0 | I68: =E68*H68 -> 0 | J68: 0 | K68: =E68*J68 -> 0 | O68: 2 | AA68: 1 | AB68: 1 | AC68: 1 | AZ68: 1 | BA68: =IF(AZ68=1,G68,0) -> 0 | BB68: =IF(AZ68=2,G68,0) -> 0 | BC68: =IF(AZ68=3,G68,0) -> 0 | BD68: =IF(AZ68=4,G68,0) -> 0 | BE68: =IF(AZ68=5,G68,0) -> 0 | CA68: 1 | CB68: 1
C69: Řad "A8-2-1" PE D 90x8,2 mm: | E69: 0 | M69: Řad "A8-2-1" PE D 90x8,2 mm:
C70: Výkopy: | E70: 0 | M70: Výkopy:
C71: V hornině tř. 3 - 4 :74,8800 | E71: 74.88 | M71: V hornině tř. 3 - 4 :74,8800
A72: 13 | B72: 58337308.R | C72: Štěrkopísek frakce 0-2 tř.B | D72: t | E72: 43.8519 | G72: =E72*F72 -> 0 | H72: 1 | I72: =E72*H72 -> 43.8519 | K72: =E72*J72 -> 0 | O72: 2 | AA72: 3 | AB72: 1 | AC72: 58337308.R | AZ72: 1 | BA72: =IF(AZ72=1,G72,0) -> 0 | BB72: =IF(AZ72=2,G72,0) -> 0 | BC72: =IF(AZ72=3,G72,0) -> 0 | BD72: =IF(AZ72=4,G72,0) -> 0 | BE72: =IF(AZ72=5,G72,0) -> 0 | CA72: 3 | CB72: 1
C73: Řad "A8-2-1" PE D 90x8,2 mm:72,00*(0,80*(0,09+0,30)-0,045^2*Pi)*1,973*1,01 | E73: 43.8519 | M73: Řad "A8-2-1" PE D 90x8,2 mm:72,00*(0,80*(0,09+0,30)-0,045^2*Pi)*1,973*1,01
A74: 14 | B74: 58344197R | C74: Štěrkodrtě frakce 0-63 A | D74: t | E74: 68.1023 | G74: =E74*F74 -> 0 | H74: 1 | I74: =E74*H74 -> 68.1023 | K74: =E74*J74 -> 0 | O74: 2 | AA74: 3 | AB74: 1 | AC74: 58344197R | AZ74: 1 | BA74: =IF(AZ74=1,G74,0) -> 0 | BB74: =IF(AZ74=2,G74,0) -> 0 | BC74: =IF(AZ74=3,G74,0) -> 0 | BD74: =IF(AZ74=4,G74,0) -> 0 | BE74: =IF(AZ74=5,G74,0) -> 0 | CA74: 3 | CB74: 1
C75: Řad "A8-2-1" PE D 90x8,2 mm:36,0000*1,873*1,01 | E75: 68.1023 | M75: Řad "A8-2-1" PE D 90x8,2 mm:36,0000*1,873*1,01
C76: Začátek provozního součtu | E76: 0 | M76: Začátek provozního součtu
C77: Výkopy: | E77: 0 | M77: Výkopy:
C78: V hornině tř. 3 - 4 :74,8800 | E78: 74.88 | M78: V hornině tř. 3 - 4 :74,8800
C79: Odpočet objemu lože, potrubí a obsypů:-72,00*(0,15+0,09+0,30) | E79: -38.88 | M79: Odpočet objemu lože, potrubí a obsypů:-72,00*(0,15+0,09+0,30)
C80: Konec provozního součtu | E80: 36 | M80: Konec provozního součtu
B81: Celkem za | C81: 1 Zemní práce | G81: =SUM(G7:G80) -> 0 | I81: =SUM(I7:I80) -> 112.1533261 | K81: =SUM(K7:K80) -> 0 | O81: 4 | BA81: =SUM(BA7:BA80) -> 0 | BB81: =SUM(BB7:BB80) -> 0 | BC81: =SUM(BC7:BC80) -> 0 | BD81: =SUM(BD7:BD80) -> 0 | BE81: =SUM(BE7:BE80) -> 0
A82: Díl: | B82: 45 | C82: Podkladní a vedlejší konstrukce | O82: 1
A83: 15 | B83: 451572111R00 | C83: Lože pod potrubí z kameniva těženého 0 - 4 mm | D83: m3 | E83: 8.64 | G83: =E83*F83 -> 0 | H83: 0.43051 | I83: =E83*H83 -> 3.7196064 | J83: 0 | K83: =E83*J83 -> 0 | O83: 2 | AA83: 1 | AB83: 1 | AC83: 1 | AZ83: 1 | BA83: =IF(AZ83=1,G83,0) -> 0 | BB83: =IF(AZ83=2,G83,0) -> 0 | BC83: =IF(AZ83=3,G83,0) -> 0 | BD83: =IF(AZ83=4,G83,0) -> 0 | BE83: =IF(AZ83=5,G83,0) -> 0 | CA83: 1 | CB83: 1
C84: Řad "A8-2-1" PE D 90x8,2 mm:72,00*0,80*0,15 | E84: 8.64 | M84: Řad "A8-2-1" PE D 90x8,2 mm:72,00*0,80*0,15
A85: 16 | B85: 452313141R00 | C85: Bloky pro potrubí z betonu C 16/20 vč. bednění | D85: m3 | E85: 0.472 | G85: =E85*F85 -> 0 | H85: 2.5 | I85: =E85*H85 -> 1.18 | J85: 0 | K85: =E85*J85 -> 0 | O85: 2 | AA85: 1 | AB85: 1 | AC85: 1 | AZ85: 1 | BA85: =IF(AZ85=1,G85,0) -> 0 | BB85: =IF(AZ85=2,G85,0) -> 0 | BC85: =IF(AZ85=3,G85,0) -> 0 | BD85: =IF(AZ85=4,G85,0) -> 0 | BE85: =IF(AZ85=5,G85,0) -> 0 | CA85: 1 | CB85: 1
B86: Celkem za | C86: 45 Podkladní a vedlejší konstrukce | G86: =SUM(G82:G85) -> 0 | I86: =SUM(I82:I85) -> 4.8996064 | K86: =SUM(K82:K85) -> 0 | O86: 4 | BA86: =SUM(BA82:BA85) -> 0 | BB86: =SUM(BB82:BB85) -> 0 | BC86: =SUM(BC82:BC85) -> 0 | BD86: =SUM(BD82:BD85) -> 0 | BE86: =SUM(BE82:BE85) -> 0
A87: Díl: | B87: 5 | C87: Komunikace | O87: 1
A88: 17 | B88: 572701119RRX | C88: Provizorní zásyp rýh kam. hrubě drceným nebo recyk s následným odstraněním a odvozem | D88: m3 | E88: 23.04 | G88: =E88*F88 -> 0 | H88: 1.4805 | I88: =E88*H88 -> 34.11072 | J88: 0 | K88: =E88*J88 -> 0 | O88: 2 | AA88: 1 | AB88: 1 | AC88: 1 | AZ88: 1 | BA88: =IF(AZ88=1,G88,0) -> 0 | BB88: =IF(AZ88=2,G88,0) -> 0 | BC88: =IF(AZ88=3,G88,0) -> 0 | BD88: =IF(AZ88=4,G88,0) -> 0 | BE88: =IF(AZ88=5,G88,0) -> 0 | CA88: 1 | CB88: 1
C89: Řad "A8-2-1" PE D 90x8,2 mm: | E89: 0 | M89: Řad "A8-2-1" PE D 90x8,2 mm:
C90: Souběh s kanalizací: | E90: 0 | M90: Souběh s kanalizací:
C91: Řad "A8-2-1" :72,00*0,80*0,40 | E91: 23.04 | M91: Řad "A8-2-1" :72,00*0,80*0,40
B92: Celkem za | C92: 5 Komunikace | G92: =SUM(G87:G91) -> 0 | I92: =SUM(I87:I91) -> 34.11072 | K92: =SUM(K87:K91) -> 0 | O92: 4 | BA92: =SUM(BA87:BA91) -> 0 | BB92: =SUM(BB87:BB91) -> 0 | BC92: =SUM(BC87:BC91) -> 0 | BD92: =SUM(BD87:BD91) -> 0 | BE92: =SUM(BE87:BE91) -> 0
A93: Díl: | B93: 8 | C93: Trubní vedení | O93: 1
A94: 18 | B94: 857242121R00 | C94: Montáž tvarovek litin. jednoos.přír. výkop DN 80 včetně nerezových spoj. prvků a obandážování spoje | D94: kus | E94: 3 | G94: =E94*F94 -> 0 | H94: 0.00022 | I94: =E94*H94 -> 0.00066 | J94: 0 | K94: =E94*J94 -> 0 | O94: 2 | AA94: 1 | AB94: 1 | AC94: 1 | AZ94: 1 | BA94: =IF(AZ94=1,G94,0) -> 0 | BB94: =IF(AZ94=2,G94,0) -> 0 | BC94: =IF(AZ94=3,G94,0) -> 0 | BD94: =IF(AZ94=4,G94,0) -> 0 | BE94: =IF(AZ94=5,G94,0) -> 0 | CA94: 1 | CB94: 1
C95: Položka je určena pro montáž litinových tvarovek na potrubí litinovém tlakovém přírubovém jednoosých v otevřeném výkopu, v otevřeném kanálu nebo v šachtě. | L95: Položka je určena pro montáž litinových tvarovek na potrubí litinovém tlakovém přírubovém jednoosých v otevřeném výkopu, v otevřeném kanálu nebo v šachtě. | O95: 3
C96: Součástí položky je i dodávka nerezových spojovacích prvků (šrouby, podložky, matky) a kompletního obandážování spojů. | L96: Součástí položky je i dodávka nerezových spojovacích prvků (šrouby, podložky, matky) a kompletního obandážování spojů. | O96: 3
C97: Řad "A8-2-1" PE D 90x8,2 mm: | E97: 0 | M97: Řad "A8-2-1" PE D 90x8,2 mm:
C98: LN+TP D90/DN80:2 | E98: 2 | M98: LN+TP D90/DN80:2
C99: PPL DN80:1 | E99: 1 | M99: PPL DN80:1
A100: 19 | B100: 871241121R00 | C100: Montáž potrubí polyetylenového ve výkopu d 90 mm | D100: m | E100: 72 | G100: =E100*F100 -> 0 | H100: 0 | I100: =E100*H100 -> 0 | J100: 0 | K100: =E100*J100 -> 0 | O100: 2 | AA100: 1 | AB100: 1 | AC100: 1 | AZ100: 1 | BA100: =IF(AZ100=1,G100,0) -> 0 | BB100: =IF(AZ100=2,G100,0) -> 0 | BC100: =IF(AZ100=3,G100,0) -> 0 | BD100: =IF(AZ100=4,G100,0) -> 0 | BE100: =IF(AZ100=5,G100,0) -> 0 | CA100: 1 | CB100: 1
C101: V položce je uvažováno s jedním spojem na 6 m potrubí. | L101: V položce je uvažováno s jedním spojem na 6 m potrubí. | O101: 3
C102: Řad "A8-2-1" PE D 90x8,2 mm:72,00 | E102: 72 | M102: Řad "A8-2-1" PE D 90x8,2 mm:72,00
A103: 20 | B103: 877242121R00 | C103: Přirážka za 1 spoj elektrotvarovky d 90 mm | D103: kus | E103: 8 | G103: =E103*F103 -> 0 | H103: 0 | I103: =E103*H103 -> 0 | J103: 0 | K103: =E103*J103 -> 0 | O103: 2 | AA103: 1 | AB103: 1 | AC103: 1 | AZ103: 1 | BA103: =IF(AZ103=1,G103,0) -> 0 | BB103: =IF(AZ103=2,G103,0) -> 0 | BC103: =IF(AZ103=3,G103,0) -> 0 | BD103: =IF(AZ103=4,G103,0) -> 0 | BE103: =IF(AZ103=5,G103,0) -> 0 | CA103: 1 | CB103: 1
C104: Řad "A8-2-1" PE D 90x8,2 mm: | E104: 0 | M104: Řad "A8-2-1" PE D 90x8,2 mm:
C105: Elektrospojka PE D90:8 | E105: 8 | M105: Elektrospojka PE D90:8
A106: 21 | B106: 891241111R00 | C106: Montáž vodovodních šoupátek ve výkopu DN 80 včetně nerezových spoj. prvků a obandážování spoje | D106: kus | E106: 2 | G106: =E106*F106 -> 0 | H106: 0.00022 | I106: =E106*H106 -> 0.00044 | J106: 0 | K106: =E106*J106 -> 0 | O106: 2 | AA106: 1 | AB106: 1 | AC106: 1 | AZ106: 1 | BA106: =IF(AZ106=1,G106,0) -> 0 | BB106: =IF(AZ106=2,G106,0) -> 0 | BC106: =IF(AZ106=3,G106,0) -> 0 | BD106: =IF(AZ106=4,G106,0) -> 0 | BE106: =IF(AZ106=5,G106,0) -> 0 | CA106: 1 | CB106: 1
C107: Položka je určena pro montáž vodovodních šoupátek v otevřeném výkopu nebo v šachtách s osazením zemní soupravy (bez poklopů). V položce jsou zakalkulovány i náklady na vytvoření otvorů ve stropech šachet pro prostup zemních souprav šoupátek. | L107: Položka je určena pro montáž vodovodních šoupátek v otevřeném výkopu nebo v šachtách s osazením zemní soupravy (bez poklopů). V položce jsou zakalkulovány i náklady na vytvoření otvorů ve stropech šachet pro prostup zemních souprav šoupátek. | O107: 3
C108: Součástí položky je i dodávka nerezových spojovacích prvků (šrouby, podložky, matky) a kompletního obandážování spojů. | L108: Součástí položky je i dodávka nerezových spojovacích prvků (šrouby, podložky, matky) a kompletního obandážování spojů. | O108: 3
C109: Řad "A8-2-1" PE D 90x8,2 mm: | E109: 0 | M109: Řad "A8-2-1" PE D 90x8,2 mm:
C110: Šoupě DN80:2 | E110: 2 | M110: Šoupě DN80:2
A111: 22 | B111: 891247111R00 | C111: Montáž hydrantů podzemních DN 80 včetně nerezových spoj. prvků a obandážování spoje | D111: kus | E111: 1 | G111: =E111*F111 -> 0 | H111: 0.00011 | I111: =E111*H111 -> 0.00011 | J111: 0 | K111: =E111*J111 -> 0 | O111: 2 | AA111: 1 | AB111: 1 | AC111: 1 | AZ111: 1 | BA111: =IF(AZ111=1,G111,0) -> 0 | BB111: =IF(AZ111=2,G111,0) -> 0 | BC111: =IF(AZ111=3,G111,0) -> 0 | BD111: =IF(AZ111=4,G111,0) -> 0 | BE111: =IF(AZ111=5,G111,0) -> 0 | CA111: 1 | CB111: 1
C112: Položka je určena pro montáž hydrantů podzemních (bez osazení poklopů) na potrubí včetně drenážního obalu. | L112: Položka je určena pro montáž hydrantů podzemních (bez osazení poklopů) na potrubí včetně drenážního obalu. | O112: 3
C113: Součástí položky je i dodávka nerezových spojovacích prvků (šrouby, podložky, matky) a kompletního obandážování spojů. | L113: Součástí položky je i dodávka nerezových spojovacích prvků (šrouby, podložky, matky) a kompletního obandážování spojů. | O113: 3
C114: Řad "A8-2-1" PE D 90x8,2 mm: | E114: 0 | M114: Řad "A8-2-1" PE D 90x8,2 mm:
C115: Hp DN80/1,5:1 | E115: 1 | M115: Hp DN80/1,5:1
A116: 23 | B116: 891249111R01 | C116: Montáž navrtávacích pasů DN 80 s ventilem | D116: kus | E116: 3 | G116: =E116*F116 -> 0 | H116: 0 | I116: =E116*H116 -> 0 | J116: 0 | K116: =E116*J116 -> 0 | O116: 2 | AA116: 1 | AB116: 0 | AC116: 0 | AZ116: 1 | BA116: =IF(AZ116=1,G116,0) -> 0 | BB116: =IF(AZ116=2,G116,0) -> 0 | BC116: =IF(AZ116=3,G116,0) -> 0 | BD116: =IF(AZ116=4,G116,0) -> 0 | BE116: =IF(AZ116=5,G116,0) -> 0 | CA116: 1 | CB116: 0
C117: Položka je určena pro montáž navrtávacích pasů s ventilem Jt 1 MPa na potrubí z trub z PE. | L117: Položka je určena pro montáž navrtávacích pasů s ventilem Jt 1 MPa na potrubí z trub z PE. | O117: 3
C118: Řad "A8-2-1" PE D 90x8,2 mm: | E118: 0 | M118: Řad "A8-2-1" PE D 90x8,2 mm:
C119: NP DAV (KIT) PE D90/32:3 | E119: 3 | M119: NP DAV (KIT) PE D90/32:3
C120: Začátek provozního součtu | E120: 0 | M120: Začátek provozního součtu
C121: Pro čp. 896:1 | E121: 1 | M121: Pro čp. 896:1
C122: Pro čp. 895:1 | E122: 1 | M122: Pro čp. 895:1
C123: Pro čp. 894:1 | E123: 1 | M123: Pro čp. 894:1
C124: Konec provozního součtu | E124: 3 | M124: Konec provozního součtu
A125: 24 | B125: 892271111R00 | C125: Tlaková zkouška vodovodního potrubí DN 125 včetně zajištění konců potrubí | D125: m | E125: 72 | G125: =E125*F125 -> 0 | H125: 0 | I125: =E125*H125 -> 0 | J125: 0 | K125: =E125*J125 -> 0 | O125: 2 | AA125: 1 | AB125: 1 | AC125: 1 | AZ125: 1 | BA125: =IF(AZ125=1,G125,0) -> 0 | BB125: =IF(AZ125=2,G125,0) -> 0 | BC125: =IF(AZ125=3,G125,0) -> 0 | BD125: =IF(AZ125=4,G125,0) -> 0 | BE125: =IF(AZ125=5,G125,0) -> 0 | CA125: 1 | CB125: 1
C126: V položce jsou započteny náklady na přísun, montáž, demontáž a odsun zkoušecího čerpadla, napuštění tlakovou vodou a dodání vody pro tlakovou zkoušku | L126: V položce jsou započteny náklady na přísun, montáž, demontáž a odsun zkoušecího čerpadla, napuštění tlakovou vodou a dodání vody pro tlakovou zkoušku | O126: 3
C127: Řad "A8-2-1" PE D 90x8,2 mm:72,00 | E127: 72 | M127: Řad "A8-2-1" PE D 90x8,2 mm:72,00
A128: 25 | B128: 892273111R00 | C128: Desinfekce vodovodního potrubí DN 125 | D128: m | E128: 72 | G128: =E128*F128 -> 0 | H128: 0 | I128: =E128*H128 -> 0 | J128: 0 | K128: =E128*J128 -> 0 | O128: 2 | AA128: 1 | AB128: 1 | AC128: 1 | AZ128: 1 | BA128: =IF(AZ128=1,G128,0) -> 0 | BB128: =IF(AZ128=2,G128,0) -> 0 | BC128: =IF(AZ128=3,G128,0) -> 0 | BD128: =IF(AZ128=4,G128,0) -> 0 | BE128: =IF(AZ128=5,G128,0) -> 0 | CA128: 1 | CB128: 1
C129: V položce jsou zakalkulovány náklady na napuštění a vypuštění vody, dodání vody a desinfekčního prostředku a na bakteriologický rozbor vody. | L129: V položce jsou zakalkulovány náklady na napuštění a vypuštění vody, dodání vody a desinfekčního prostředku a na bakteriologický rozbor vody. | O129: 3
C130: Řad "A8-2-1" PE D 90x8,2 mm:72,00 | E130: 72 | M130: Řad "A8-2-1" PE D 90x8,2 mm:72,00
A131: 26 | B131: 899713111RRX | C131: Orientační tabulky na sloupku ocelovém, betonovém | D131: kus | E131: 6 | G131: =E131*F131 -> 0 | H131: 0.00024 | I131: =E131*H131 -> 0.00144 | J131: 0 | K131: =E131*J131 -> 0 | O131: 2 | AA131: 1 | AB131: 1 | AC131: 1 | AZ131: 1 | BA131: =IF(AZ131=1,G131,0) -> 0 | BB131: =IF(AZ131=2,G131,0) -> 0 | BC131: =IF(AZ131=3,G131,0) -> 0 | BD131: =IF(AZ131=4,G131,0) -> 0 | BE131: =IF(AZ131=5,G131,0) -> 0 | CA131: 1 | CB131: 1
C132: Položka platí pro orientační tabulky na vodovodních a kanalizačních řadech. V položce jsou zakalkulovány náklady na dodání a připevnění tabulky a na osazení sloupku. V položce jsou zakalkulovány náklady na zemní práce a na dodání sloupků (betonových nebo ocelových s betonovými patkami) | L132: Položka platí pro orientační tabulky na vodovodních a kanalizačních řadech. V položce jsou zakalkulovány náklady na dodání a připevnění tabulky a na osazení sloupku. V položce jsou zakalkulovány náklady na zemní práce a na dodání sloupků (betonových nebo ocelových s betonovými patkami) | O132: 3
C133: Řad "A8-2-1" PE D 90x8,2 mm: | E133: 0 | M133: Řad "A8-2-1" PE D 90x8,2 mm:
C134: Pro NP DAV (KIT) PE D90/32:3 | E134: 3 | M134: Pro NP DAV (KIT) PE D90/32:3
C135: Pro Šoupě DN80:2 | E135: 2 | M135: Pro Šoupě DN80:2
C136: Pro Hp DN80/1,5:1 | E136: 1 | M136: Pro Hp DN80/1,5:1
A137: 27 | B137: 899721112R00 | C137: Fólie výstražná z PVC bílá, šířka 30 cm | D137: m | E137: 72 | G137: =E137*F137 -> 0 | H137: 0 | I137: =E137*H137 -> 0 | J137: 0 | K137: =E137*J137 -> 0 | O137: 2 | AA137: 1 | AB137: 1 | AC137: 1 | AZ137: 1 | BA137: =IF(AZ137=1,G137,0) -> 0 | BB137: =IF(AZ137=2,G137,0) -> 0 | BC137: =IF(AZ137=3,G137,0) -> 0 | BD137: =IF(AZ137=4,G137,0) -> 0 | BE137: =IF(AZ137=5,G137,0) -> 0 | CA137: 1 | CB137: 1
C138: Řad "A8-2-1" PE D 90x8,2 mm:72,00 | E138: 72 | M138: Řad "A8-2-1" PE D 90x8,2 mm:72,00
A139: 28 | B139: 899731114R00 | C139: Vodič signalizační CYY 6 mm2 | D139: m | E139: 94 | G139: =E139*F139 -> 0 | H139: 8e-05 | I139: =E139*H139 -> 0.00752 | J139: 0 | K139: =E139*J139 -> 0 | O139: 2 | AA139: 1 | AB139: 1 | AC139: 1 | AZ139: 1 | BA139: =IF(AZ139=1,G139,0) -> 0 | BB139: =IF(AZ139=2,G139,0) -> 0 | BC139: =IF(AZ139=3,G139,0) -> 0 | BD139: =IF(AZ139=4,G139,0) -> 0 | BE139: =IF(AZ139=5,G139,0) -> 0 | CA139: 1 | CB139: 1
C140: Součástí položky je zajištění proměření vodiče a výchozí zevize. | L140: Součástí položky je zajištění proměření vodiče a výchozí zevize. | O140: 3
C141: Řad "A8-2-1" PE D 90x8,2 mm:72,00 | E141: 72 | M141: Řad "A8-2-1" PE D 90x8,2 mm:72,00
C142: Vyvedení: | E142: 0 | M142: Vyvedení:
C143: Pro NP DAV (KIT) PE D90/32:3*2,00*2 | E143: 12 | M143: Pro NP DAV (KIT) PE D90/32:3*2,00*2
C144: Pro Šoupě DN80:2*2,00*2 | E144: 8 | M144: Pro Šoupě DN80:2*2,00*2
C145: Pro Hp DN80/1,5:1*2,00*1 | E145: 2 | M145: Pro Hp DN80/1,5:1*2,00*1
A146: 29 | B146: 28613079.DAV.R | C146: Navrtávací odbočkový ventil DAV D90/32 s prodlouženým hrdlem | D146: kus | E146: 3 | G146: =E146*F146 -> 0 | H146: 0 | I146: =E146*H146 -> 0 | K146: =E146*J146 -> 0 | O146: 2 | AA146: 3 | AB146: 1 | AC146: 28613079.DAV.R | AZ146: 1 | BA146: =IF(AZ146=1,G146,0) -> 0 | BB146: =IF(AZ146=2,G146,0) -> 0 | BC146: =IF(AZ146=3,G146,0) -> 0 | BD146: =IF(AZ146=4,G146,0) -> 0 | BE146: =IF(AZ146=5,G146,0) -> 0 | CA146: 3 | CB146: 1
C147: Řad "A8-2-1" PE D 90x8,2 mm: | E147: 0 | M147: Řad "A8-2-1" PE D 90x8,2 mm:
C148: NP DAV (KIT) PE D90/32:3 | E148: 3 | M148: NP DAV (KIT) PE D90/32:3
A149: 30 | B149: 28613090.EBS.R | C149: Zemní souprava EBS 1,1-1,8 pro DAV (KIT) | D149: kus | E149: 3 | G149: =E149*F149 -> 0 | H149: 0 | I149: =E149*H149 -> 0 | K149: =E149*J149 -> 0 | O149: 2 | AA149: 3 | AB149: 1 | AC149: 28613090.EBS.R | AZ149: 1 | BA149: =IF(AZ149=1,G149,0) -> 0 | BB149: =IF(AZ149=2,G149,0) -> 0 | BC149: =IF(AZ149=3,G149,0) -> 0 | BD149: =IF(AZ149=4,G149,0) -> 0 | BE149: =IF(AZ149=5,G149,0) -> 0 | CA149: 3 | CB149: 1
C150: Řad "A8-2-1" PE D 90x8,2 mm: | E150: 0 | M150: Řad "A8-2-1" PE D 90x8,2 mm:
C151: Pro NP DAV (KIT) PE D90/32:3 | E151: 3 | M151: Pro NP DAV (KIT) PE D90/32:3
A152: 31 | B152: 286134214.R | C152: Trubka tlaková AQUALINE RC2 PE100 90x8,2 mm PN16 tyče L=6 m | D152: m | E152: 73.08 | G152: =E152*F152 -> 0 | H152: 0.00314 | I152: =E152*H152 -> 0.2294712 | K152: =E152*J152 -> 0 | O152: 2 | AA152: 3 | AB152: 1 | AC152: 286134214.R | AZ152: 1 | BA152: =IF(AZ152=1,G152,0) -> 0 | BB152: =IF(AZ152=2,G152,0) -> 0 | BC152: =IF(AZ152=3,G152,0) -> 0 | BD152: =IF(AZ152=4,G152,0) -> 0 | BE152: =IF(AZ152=5,G152,0) -> 0 | CA152: 3 | CB152: 1
C153: Vodovodní PE tlaková trubka AQUALINE RC2 dle normy EN 12 201-2 | L153: Vodovodní PE tlaková trubka AQUALINE RC2 dle normy EN 12 201-2 | O153: 3
C154: (doprava pitné a užitkové vody) | L154: (doprava pitné a užitkové vody) | O154: 3
C155: Dvouvrstvá - vnější vrstva PE 100RC modrá (10 % tloušťky) | L155: Dvouvrstvá - vnější vrstva PE 100RC modrá (10 % tloušťky) | O155: 3
C156: vnitřní vrstva PE 100RC černá (90 % tloušťky) | L156: vnitřní vrstva PE 100RC černá (90 % tloušťky) | O156: 3
O157: 3
C158: Řad "A8-2-1" PE D 90x8,2 mm:72,00*1,015 | E158: 73.08 | M158: Řad "A8-2-1" PE D 90x8,2 mm:72,00*1,015
A159: 32 | B159: 28653079.R | C159: Elektrospojka d 90 mm PE 100 SDR11 | D159: kus | E159: 8.12 | G159: =E159*F159 -> 0 | H159: 0.0013 | I159: =E159*H159 -> 0.010556 | K159: =E159*J159 -> 0 | O159: 2 | AA159: 3 | AB159: 1 | AC159: 28653079.R | AZ159: 1 | BA159: =IF(AZ159=1,G159,0) -> 0 | BB159: =IF(AZ159=2,G159,0) -> 0 | BC159: =IF(AZ159=3,G159,0) -> 0 | BD159: =IF(AZ159=4,G159,0) -> 0 | BE159: =IF(AZ159=5,G159,0) -> 0 | CA159: 3 | CB159: 1
C160: Řad "A8-2-1" PE D 90x8,2 mm: | E160: 0 | M160: Řad "A8-2-1" PE D 90x8,2 mm:
C161: Elektrospojka PE D90:8*1,015 | E161: 8.12 | M161: Elektrospojka PE D90:8*1,015
A162: 33 | B162: 28653765.R | C162: LN + TP D90/DN80 PE100 SDR11 | D162: kus | E162: 2 | G162: =E162*F162 -> 0 | H162: 0.00035 | I162: =E162*H162 -> 0.0007 | K162: =E162*J162 -> 0 | O162: 2 | AA162: 3 | AB162: 1 | AC162: 28653765.R | AZ162: 1 | BA162: =IF(AZ162=1,G162,0) -> 0 | BB162: =IF(AZ162=2,G162,0) -> 0 | BC162: =IF(AZ162=3,G162,0) -> 0 | BD162: =IF(AZ162=4,G162,0) -> 0 | BE162: =IF(AZ162=5,G162,0) -> 0 | CA162: 3 | CB162: 1
C163: Řad "A8-2-1" PE D 90x8,2 mm: | E163: 0 | M163: Řad "A8-2-1" PE D 90x8,2 mm:
C164: LN+TP D90/DN80:2 | E164: 2 | M164: LN+TP D90/DN80:2
A165: 34 | B165: 42209999.R | C165: Drenážní obal | D165: kus | E165: 1 | G165: =E165*F165 -> 0 | H165: 0.0048 | I165: =E165*H165 -> 0.0048 | K165: =E165*J165 -> 0 | O165: 2 | AA165: 3 | AB165: 1 | AC165: 42209999.R | AZ165: 1 | BA165: =IF(AZ165=1,G165,0) -> 0 | BB165: =IF(AZ165=2,G165,0) -> 0 | BC165: =IF(AZ165=3,G165,0) -> 0 | BD165: =IF(AZ165=4,G165,0) -> 0 | BE165: =IF(AZ165=5,G165,0) -> 0 | CA165: 3 | CB165: 1
C166: Řad "A8-2-1" PE D 90x8,2 mm: | E166: 0 | M166: Řad "A8-2-1" PE D 90x8,2 mm:
C167: Pro Hp DN80/1,5:1 | E167: 1 | M167: Pro Hp DN80/1,5:1
A168: 35 | B168: 42228310.R | C168: Šoupátko 4000E3 DN 80 přírubové, voda PN16 | D168: kus | E168: 2 | G168: =E168*F168 -> 0 | H168: 0.0165 | I168: =E168*H168 -> 0.033 | K168: =E168*J168 -> 0 | O168: 2 | AA168: 3 | AB168: 1 | AC168: 42228310.R | AZ168: 1 | BA168: =IF(AZ168=1,G168,0) -> 0 | BB168: =IF(AZ168=2,G168,0) -> 0 | BC168: =IF(AZ168=3,G168,0) -> 0 | BD168: =IF(AZ168=4,G168,0) -> 0 | BE168: =IF(AZ168=5,G168,0) -> 0 | CA168: 3 | CB168: 1
C169: Šoupátko přírubové krkové - měkcetěsnící klínové šoupátko s hladkým a volným průtokovým kanálem | L169: Šoupátko přírubové krkové - měkcetěsnící klínové šoupátko s hladkým a volným průtokovým kanálem | O169: 3
C170: č. 4000E3 | L170: č. 4000E3 | O170: 3
C171: PN 16 | L171: PN 16 | O171: 3
C172: DN 80 | L172: DN 80 | O172: 3
C173: těleso a víko: tvárná litina GGG 400 - DIN 1693 | L173: těleso a víko: tvárná litina GGG 400 - DIN 1693 | O173: 3
C174: medium: pitná voda, neagresivní odpadní voda | L174: medium: pitná voda, neagresivní odpadní voda | O174: 3
C175: Řad "A8-2-1" PE D 90x8,2 mm: | E175: 0 | M175: Řad "A8-2-1" PE D 90x8,2 mm:
C176: Šoupě DN80:2 | E176: 2 | M176: Šoupě DN80:2
A177: 36 | B177: 422737412.R | C177: Hydrant podzemní DUO K240, DN80/1,5 m | D177: kus | E177: 1 | G177: =E177*F177 -> 0 | H177: 0.0395 | I177: =E177*H177 -> 0.0395 | K177: =E177*J177 -> 0 | O177: 2 | AA177: 3 | AB177: 1 | AC177: 422737412.R | AZ177: 1 | BA177: =IF(AZ177=1,G177,0) -> 0 | BB177: =IF(AZ177=2,G177,0) -> 0 | BC177: =IF(AZ177=3,G177,0) -> 0 | BD177: =IF(AZ177=4,G177,0) -> 0 | BE177: =IF(AZ177=5,G177,0) -> 0 | CA177: 3 | CB177: 1
C178: Řad "A8-2-1" PE D 90x8,2 mm: | E178: 0 | M178: Řad "A8-2-1" PE D 90x8,2 mm:
C179: Hp DN80/1,5:1 | E179: 1 | M179: Hp DN80/1,5:1
A180: 37 | B180: 42293250.R | C180: Souprava zemní tel.9502E2/E3 DN50 -100, 1,3-1,8m | D180: kus | E180: 2 | G180: =E180*F180 -> 0 | H180: 0.0073 | I180: =E180*H180 -> 0.0146 | K180: =E180*J180 -> 0 | O180: 2 | AA180: 3 | AB180: 1 | AC180: 42293250.R | AZ180: 1 | BA180: =IF(AZ180=1,G180,0) -> 0 | BB180: =IF(AZ180=2,G180,0) -> 0 | BC180: =IF(AZ180=3,G180,0) -> 0 | BD180: =IF(AZ180=4,G180,0) -> 0 | BE180: =IF(AZ180=5,G180,0) -> 0 | CA180: 3 | CB180: 1
C181: Řad "A8-2-1" PE D 90x8,2 mm: | E181: 0 | M181: Řad "A8-2-1" PE D 90x8,2 mm:
C182: Pro Šoupě DN80:2 | E182: 2 | M182: Pro Šoupě DN80:2
A183: 38 | B183: 5526009705.R | C183: Koleno prodloužené přír.s patkou PPL DN 80 | D183: kus | E183: 1 | G183: =E183*F183 -> 0 | H183: 0.0122 | I183: =E183*H183 -> 0.0122 | K183: =E183*J183 -> 0 | O183: 2 | AA183: 3 | AB183: 1 | AC183: 5526009705.R | AZ183: 1 | BA183: =IF(AZ183=1,G183,0) -> 0 | BB183: =IF(AZ183=2,G183,0) -> 0 | BC183: =IF(AZ183=3,G183,0) -> 0 | BD183: =IF(AZ183=4,G183,0) -> 0 | BE183: =IF(AZ183=5,G183,0) -> 0 | CA183: 3 | CB183: 1
C184: Řad "A8-2-1" PE D 90x8,2 mm: | E184: 0 | M184: Řad "A8-2-1" PE D 90x8,2 mm:
C185: PPL DN80:1 | E185: 1 | M185: PPL DN80:1
B186: Celkem za | C186: 8 Trubní vedení | G186: =SUM(G93:G185) -> 0 | I186: =SUM(I93:I185) -> 0.3549972 | K186: =SUM(K93:K185) -> 0 | O186: 4 | BA186: =SUM(BA93:BA185) -> 0 | BB186: =SUM(BB93:BB185) -> 0 | BC186: =SUM(BC93:BC185) -> 0 | BD186: =SUM(BD93:BD185) -> 0 | BE186: =SUM(BE93:BE185) -> 0
A187: Díl: | B187: 89 | C187: Ostatní konstrukce na trubním vedení | O187: 1
A188: 39 | B188: 899 01-0001.RRX | C188: Provizorní vodovod PE100 RC1 D 63x5,8 mm včetně příslušných tvarovek a propojů | D188: m | E188: 72 | G188: =E188*F188 -> 0 | H188: 0 | I188: =E188*H188 -> 0 | K188: =E188*J188 -> 0 | O188: 2 | AA188: 12 | AB188: 0 | AC188: 1 | AZ188: 1 | BA188: =IF(AZ188=1,G188,0) -> 0 | BB188: =IF(AZ188=2,G188,0) -> 0 | BC188: =IF(AZ188=3,G188,0) -> 0 | BD188: =IF(AZ188=4,G188,0) -> 0 | BE188: =IF(AZ188=5,G188,0) -> 0 | CA188: 12 | CB188: 0
C189: Součástí položky je | L189: Součástí položky je | O189: 3
C190: - Dodávka a montáž příslušného potrubí | L190: - Dodávka a montáž příslušného potrubí | O190: 3
C191: - Dodávka a montáž propojovacích tvarovek a armatur dle zvolené technologie zhotovitelem potřebné pro provoz provizorního vodovou | L191: - Dodávka a montáž propojovacích tvarovek a armatur dle zvolené technologie zhotovitelem potřebné pro provoz provizorního vodovou | O191: 3
C192: - Přerušení stávajícího potrubí pro napojení provizorního vodovodu | L192: - Přerušení stávajícího potrubí pro napojení provizorního vodovodu | O192: 3
C193: - Provedení tlakové zkoušky včetně proplachu a desinfekce potrubí dle ČSN | L193: - Provedení tlakové zkoušky včetně proplachu a desinfekce potrubí dle ČSN | O193: 3
C194: - Potředné zemní práce pro provedení propojů včetně případného odstranění konstrukcí komunikací a chodníků a provizorní úprava povrchů v prostoru vedení provizorního vodovodu | L194: - Potředné zemní práce pro provedení propojů včetně případného odstranění konstrukcí komunikací a chodníků a provizorní úprava povrchů v prostoru vedení provizorního vodovodu | O194: 3
C195: - Demontáž a odpojení propojů provizorního vodovodu včetně potřebných zemních prací. | L195: - Demontáž a odpojení propojů provizorního vodovodu včetně potřebných zemních prací. | O195: 3
C196: - Likvidace veškerého materiálu provizorních vodovodů | L196: - Likvidace veškerého materiálu provizorních vodovodů | O196: 3
C197: - Součástí položky jsou i náklady na přesuny materiálů - Součástí položky jsou náklady zhotovitele na poplatky za skládky materiálu | L197: - Součástí položky jsou i náklady na přesuny materiálů - Součástí položky jsou náklady zhotovitele na poplatky za skládky materiálu | O197: 3
C198: Řad "A8-2-1" PE D 90x8,2 mm:72,00 | E198: 72 | M198: Řad "A8-2-1" PE D 90x8,2 mm:72,00
A199: 40 | B199: 899 02-0001.RRX | C199: Provizorní VP PE100 RC1 D32x3,0 mm - délky do 10 m vč. příslušných tvarovek a armatur | D199: soubor | E199: 3 | G199: =E199*F199 -> 0 | H199: 0 | I199: =E199*H199 -> 0 | K199: =E199*J199 -> 0 | O199: 2 | AA199: 12 | AB199: 0 | AC199: 2 | AZ199: 1 | BA199: =IF(AZ199=1,G199,0) -> 0 | BB199: =IF(AZ199=2,G199,0) -> 0 | BC199: =IF(AZ199=3,G199,0) -> 0 | BD199: =IF(AZ199=4,G199,0) -> 0 | BE199: =IF(AZ199=5,G199,0) -> 0 | CA199: 12 | CB199: 0
C200: Součástí položky je | L200: Součástí položky je | O200: 3
C201: - Dodávka a montáž příslušného potrubí dle PD | L201: - Dodávka a montáž příslušného potrubí dle PD | O201: 3
C202: - Dodávka a montáž propojovacích tvarovek a armatur dle zvolené technologie zhotovitelem potřebné pro provoz provizorního propojení VP | L202: - Dodávka a montáž propojovacích tvarovek a armatur dle zvolené technologie zhotovitelem potřebné pro provoz provizorního propojení VP | O202: 3
... 70 more rows

Sheet 1.E 01 1.E 01.2 KL
A1: POLOŽKOVÝ ROZPOČET
A2: Rozpočet | C2: 1.E 01.2 | D2: Vodovodní řad "A8-2" | F2: JKSO | G2: 827.11
A4: Objekt | F4: SKP
A5: 1.E 01 | C5: Vodovody | F5: Měrná jednotka | G5: m
A6: Stavba | F6: Počet jednotek | G6: 0
A7: 3403 | C7: Jilemnice - Optimalizace VS a komunikace I.Etapa | F7: Náklady na m.j. | G7: =IF(G6=0,,ROUND((F30+F32)/G6,1)) -> 0
A8: Projektant | C8: Vodohospodářsko - inženýrské služby spol. s r.o. | F8: Typ rozpočtu
A9: Zpracovatel projektu
A10: Objednatel | C10: Vodohospodářské sdružení Turnov
A11: Dodavatel | C11: . | F11: Zakázkové číslo
A12: Rozpočtoval | F12: Počet listů
A13: ROZPOČTOVÉ NÁKLADY
A14: Základní rozpočtové náklady
B15: HSV celkem | C15: ='1.E 01 1.E 01.2 Rek'!E14 -> 0
A16: Z | B16: PSV celkem | C16: ='1.E 01 1.E 01.2 Rek'!F14 -> 0
A17: R | B17: M práce celkem | C17: ='1.E 01 1.E 01.2 Rek'!H14 -> 0
A18: N | B18: M dodávky celkem | C18: ='1.E 01 1.E 01.2 Rek'!G14 -> 0
A19: ZRN celkem | C19: =SUM(C15:C18) -> 0
A21: HZS | C21: ='1.E 01 1.E 01.2 Rek'!I14 -> 0
A22: ZRN+HZS | C22: =C19+C21 -> 0
A23: ZRN+ost.náklady+HZS | C23: =C22+G23 -> 0
A24: Vypracoval | D24: Za zhotovitele | F24: Za objednatele
A25: Jméno : | D25: Jméno : | F25: Jméno :
A26: Datum : | D26: Datum : | F26: Datum :
A28: Podpis : | D28: Podpis: | F28: Podpis:
A30: Základ pro DPH | C30: 21 | D30: % | F30: =C23-F32 -> 0
A31: DPH | C31: =C30 -> 21 | D31: % | F31: =ROUND(PRODUCT(F30,C31/100),0) -> 0
A32: Základ pro DPH | C32: 0 | D32: % | F32: 0
A33: DPH | C33: =C32 -> 0 | D33: % | F33: =ROUND(PRODUCT(F32,C33/100),0) -> 0
A34: CENA ZA OBJEKT CELKEM | F34: =ROUND(SUM(F30:F33),0) -> 0
A36: Poznámka :

Sheet 1.E 01 1.E 01.2 Rek
A1: Stavba : | C1: 3403 Jilemnice - Optimalizace VS a komunikace | G1: Rozpočet : | H1: 1.E 01.2
A2: Objekt : | C2: 1.E 01 Vodovody | G2: Vodovodní řad "A8-2"
A4: REKAPITULACE STAVEBNÍCH DÍLŮ
B6: Stavební díl | E6: HSV | F6: PSV | G6: Dodávka | H6: Montáž | I6: HZS
A7: ='1.E 01 1.E 01.2 Pol'!B7 -> 1 | B7: ='1.E 01 1.E 01.2 Pol'!C7 -> Zemní práce | E7: ='1.E 01 1.E 01.2 Pol'!BA115 -> 0 | F7: ='1.E 01 1.E 01.2 Pol'!BB115 -> 0 | G7: ='1.E 01 1.E 01.2 Pol'!BC115 -> 0 | H7: ='1.E 01 1.E 01.2 Pol'!BD115 -> 0 | I7: ='1.E 01 1.E 01.2 Pol'!BE115 -> 0
A8: ='1.E 01 1.E 01.2 Pol'!B116 -> 45 | B8: ='1.E 01 1.E 01.2 Pol'!C116 -> Podkladní a vedlejší konstrukce | E8: ='1.E 01 1.E 01.2 Pol'!BA121 -> 0 | F8: ='1.E 01 1.E 01.2 Pol'!BB121 -> 0 | G8: ='1.E 01 1.E 01.2 Pol'!BC121 -> 0 | H8: ='1.E 01 1.E 01.2 Pol'!BD121 -> 0 | I8: ='1.E 01 1.E 01.2 Pol'!BE121 -> 0
A9: ='1.E 01 1.E 01.2 Pol'!B122 -> 5 | B9: ='1.E 01 1.E 01.2 Pol'!C122 -> Komunikace | E9: ='1.E 01 1.E 01.2 Pol'!BA130 -> 0 | F9: ='1.E 01 1.E 01.2 Pol'!BB130 -> 0 | G9: ='1.E 01 1.E 01.2 Pol'!BC130 -> 0 | H9: ='1.E 01 1.E 01.2 Pol'!BD130 -> 0 | I9: ='1.E 01 1.E 01.2 Pol'!BE130 -> 0
A10: ='1.E 01 1.E 01.2 Pol'!B131 -> 8 | B10: ='1.E 01 1.E 01.2 Pol'!C131 -> Trubní vedení | E10: ='1.E 01 1.E 01.2 Pol'!BA393 -> 0 | F10: ='1.E 01 1.E 01.2 Pol'!BB393 -> 0 | G10: ='1.E 01 1.E 01.2 Pol'!BC393 -> 0 | H10: ='1.E 01 1.E 01.2 Pol'!BD393 -> 0 | I10: ='1.E 01 1.E 01.2 Pol'!BE393 -> 0
A11: ='1.E 01 1.E 01.2 Pol'!B394 -> 89 | B11: ='1.E 01 1.E 01.2 Pol'!C394 -> Ostatní konstrukce na trubním vedení | E11: ='1.E 01 1.E 01.2 Pol'!BA415 -> 0 | F11: ='1.E 01 1.E 01.2 Pol'!BB415 -> 0 | G11: ='1.E 01 1.E 01.2 Pol'!BC415 -> 0 | H11: ='1.E 01 1.E 01.2 Pol'!BD415 -> 0 | I11: ='1.E 01 1.E 01.2 Pol'!BE415 -> 0
A12: ='1.E 01 1.E 01.2 Pol'!B416 -> 93 | B12: ='1.E 01 1.E 01.2 Pol'!C416 -> Dokončovací práce inženýrských staveb | E12: ='1.E 01 1.E 01.2 Pol'!BA454 -> 0 | F12: ='1.E 01 1.E 01.2 Pol'!BB454 -> 0 | G12: ='1.E 01 1.E 01.2 Pol'!BC454 -> 0 | H12: ='1.E 01 1.E 01.2 Pol'!BD454 -> 0 | I12: ='1.E 01 1.E 01.2 Pol'!BE454 -> 0
A13: ='1.E 01 1.E 01.2 Pol'!B455 -> 99 | B13: ='1.E 01 1.E 01.2 Pol'!C455 -> Staveništní přesun hmot | E13: ='1.E 01 1.E 01.2 Pol'!BA458 -> 0 | F13: ='1.E 01 1.E 01.2 Pol'!BB458 -> 0 | G13: ='1.E 01 1.E 01.2 Pol'!BC458 -> 0 | H13: ='1.E 01 1.E 01.2 Pol'!BD458 -> 0 | I13: ='1.E 01 1.E 01.2 Pol'!BE458 -> 0
B14: CELKEM OBJEKT | E14: =SUM(E7:E13) -> 0 | F14: =SUM(F7:F13) -> 0 | G14: =SUM(G7:G13) -> 0 | H14: =SUM(H7:H13) -> 0 | I14: =SUM(I7:I13) -> 0

Sheet 1.E 01 1.E 01.2 Pol
A1: Položkový rozpočet
A3: Stavba : | C3: 3403 Jilemnice - Optimalizace VS a komunikace | E3: Rozpočet: | F3: ='1.E 01 1.E 01.2 Rek'!H1 -> 1.E 01.2
A4: Objekt : | C4: 1.E 01 Vodovody | E4: ='1.E 01 1.E 01.2 Rek'!G2 -> Vodovodní řad "A8-2"
A6: P.č. | B6: Číslo položky | C6: Název položky | D6: MJ | E6: množství | F6: cena / MJ | G6: celkem (Kč) | H6: Jednotková hmotnost | I6: Celková hmotnost | J6: Jednotková dem.hmot. | K6: Celková dem.hmot.
A7: Díl: | B7: 1 | C7: Zemní práce | O7: 1
A8: 1 | B8: 113107625R00 | C8: Odstranění podkladu nad 50 m2,kam.drcené tl.25 cm | D8: m2 | E8: 103.2 | G8: =E8*F8 -> 0 | H8: 0 | I8: =E8*H8 -> 0 | J8: -0.55 | K8: =E8*J8 -> -56.76 | O8: 2 | AA8: 1 | AB8: 1 | AC8: 1 | AZ8: 1 | BA8: =IF(AZ8=1,G8,0) -> 0 | BB8: =IF(AZ8=2,G8,0) -> 0 | BC8: =IF(AZ8=3,G8,0) -> 0 | BD8: =IF(AZ8=4,G8,0) -> 0 | BE8: =IF(AZ8=5,G8,0) -> 0 | CA8: 1 | CB8: 1
C9: Provizorní zaasfaltování rýhy od km 0,148 do km 0,274: | E9: 0 | M9: Provizorní zaasfaltování rýhy od km 0,148 do km 0,274:
C10: Řad "A8-2" PE D 110x10,0 mmm:(274,00-148,00)*0,80 | E10: 100.8 | M10: Řad "A8-2" PE D 110x10,0 mmm:(274,00-148,00)*0,80
C11: Odbočení k HN DN80 - PE D 90x8,2 mm:3,00*0,80 | E11: 2.4 | M11: Odbočení k HN DN80 - PE D 90x8,2 mm:3,00*0,80
A12: 2 | B12: 113108415R00 | C12: Odstranění asfaltové vrstvy pl.nad 50 m2, tl.15 cm | D12: m2 | E12: 103.2 | G12: =E12*F12 -> 0 | H12: 0 | I12: =E12*H12 -> 0 | J12: -0.33 | K12: =E12*J12 -> -34.056 | O12: 2 | AA12: 1 | AB12: 1 | AC12: 1 | AZ12: 1 | BA12: =IF(AZ12=1,G12,0) -> 0 | BB12: =IF(AZ12=2,G12,0) -> 0 | BC12: =IF(AZ12=3,G12,0) -> 0 | BD12: =IF(AZ12=4,G12,0) -> 0 | BE12: =IF(AZ12=5,G12,0) -> 0 | CA12: 1 | CB12: 1
C13: Provizorní zaasfaltování rýhy od km 0,148 do km 0,274: | E13: 0 | M13: Provizorní zaasfaltování rýhy od km 0,148 do km 0,274:
C14: Řad "A8-2" PE D 110x10,0 mmm:(274,00-148,00)*0,80 | E14: 100.8 | M14: Řad "A8-2" PE D 110x10,0 mmm:(274,00-148,00)*0,80
C15: Odbočení k HN DN80 - PE D 90x8,2 mm:3,00*0,80 | E15: 2.4 | M15: Odbočení k HN DN80 - PE D 90x8,2 mm:3,00*0,80
A16: 3 | B16: 130001101RRX | C16: Příplatek za ztížené hloubení v blízkosti vedení | D16: m3 | E16: 54.7352 | G16: =E16*F16 -> 0 | H16: 0 | I16: =E16*H16 -> 0 | J16: 0 | K16: =E16*J16 -> 0 | O16: 2 | AA16: 1 | AB16: 1 | AC16: 1 | AZ16: 1 | BA16: =IF(AZ16=1,G16,0) -> 0 | BB16: =IF(AZ16=2,G16,0) -> 0 | BC16: =IF(AZ16=3,G16,0) -> 0 | BD16: =IF(AZ16=4,G16,0) -> 0 | BE16: =IF(AZ16=5,G16,0) -> 0 | CA16: 1 | CB16: 1
C17: Včetně případných nutných dokopávem a ručního výkopu podél sousedících inženýrských sítí. | L17: Včetně případných nutných dokopávem a ručního výkopu podél sousedících inženýrských sítí. | O17: 3
C18: Součástí položky je i dočasné zajištění inženýrských sítí v prostoru výkopů (potrubí, kabely a pod.) | L18: Součástí položky je i dočasné zajištění inženýrských sítí v prostoru výkopů (potrubí, kabely a pod.) | O18: 3
C19: Řad "A8-2" PE D 110x10,0 mmm: | E19: 0 | M19: Řad "A8-2" PE D 110x10,0 mmm:
C20: Odbočení k HN DN80 - PE D 90x8,2 mm: | E20: 0 | M20: Odbočení k HN DN80 - PE D 90x8,2 mm:
C21: Výkopy: | E21: 0 | M21: Výkopy:
C22: V hornině tř. 3 - 5 - 19%:288,0800*0,19 | E22: 54.7352 | M22: V hornině tř. 3 - 5 - 19%:288,0800*0,19
A23: 4 | B23: 132201212R00 | C23: Hloubení rýh š.do 200 cm hor.3 do 1000m3,STROJNĚ | D23: m3 | E23: 115.232 | G23: =E23*F23 -> 0 | H23: 0 | I23: =E23*H23 -> 0 | J23: 0 | K23: =E23*J23 -> 0 | O23: 2 | AA23: 1 | AB23: 1 | AC23: 1 | AZ23: 1 | BA23: =IF(AZ23=1,G23,0) -> 0 | BB23: =IF(AZ23=2,G23,0) -> 0 | BC23: =IF(AZ23=3,G23,0) -> 0 | BD23: =IF(AZ23=4,G23,0) -> 0 | BE23: =IF(AZ23=5,G23,0) -> 0 | CA23: 1 | CB23: 1
C24: Položka obsahuje hloubení rýh traktorbagrem, naložení výkopku na dopravní prostředek pro svislé, nebo vodorovné přemístění, popř. přemístění výkopku do 3 m (po povrchu území), případné zajištění rypadel polštáři, udržování pracoviště a ochranu výkopiště proti stékání srážkové vody z okolního terénu i s jejím odvodněním, nebo odvedením, přesekání a odstranění kořenů ve výkopišti, odstranění napadávek, urovnání dna výkopu. | L24: Položka obsahuje hloubení rýh traktorbagrem, naložení výkopku na dopravní prostředek pro svislé, nebo vodorovné přemístění, popř. přemístění výkopku do 3 m (po povrchu území), případné zajištění rypadel polštáři, udržování pracoviště a ochranu výkopiště proti stékání srážkové vody z okolního terénu i s jejím odvodněním, nebo odvedením, přesekání a odstranění kořenů ve výkopišti, odstranění napadávek, urovnání dna výkopu. | O24: 3
C25: Řad "A8-2" PE D 110x10,0 mmm: | E25: 0 | M25: Řad "A8-2" PE D 110x10,0 mmm:
C26: Odbočení k HN DN80 - PE D 90x8,2 mm: | E26: 0 | M26: Odbočení k HN DN80 - PE D 90x8,2 mm:
C27: Výkopy: | E27: 0 | M27: Výkopy:
C28: Začátek provozního součtu | E28: 0 | M28: Začátek provozního součtu
C29: Průměrná hloubka výkopů 1,70 m: | E29: 0 | M29: Průměrná hloubka výkopů 1,70 m:
C30: Řad "A8-2":274,00*0,80*1,70 | E30: 372.64 | M30: Řad "A8-2":274,00*0,80*1,70
C31: Odbočení k HN DN80:3,00*0,80*1,70 | E31: 4.08 | M31: Odbočení k HN DN80:3,00*0,80*1,70
C32: Odpočet předpokládané ponstrukce MK:-(274,00+3,00)*0,80*0,40 | E32: -88.64 | M32: Odpočet předpokládané ponstrukce MK:-(274,00+3,00)*0,80*0,40
C33: Konec provozního součtu | E33: 288.08 | M33: Konec provozního součtu
C34: V hornině tř. 3 - 40%:288,0800*0,4 | E34: 115.232 | M34: V hornině tř. 3 - 40%:288,0800*0,4
A35: 5 | B35: 132201219R00 | C35: Přípl.za lepivost,hloubení rýh 200cm,hor.3,STROJNĚ | D35: m3 | E35: 57.616 | G35: =E35*F35 -> 0 | H35: 0 | I35: =E35*H35 -> 0 | J35: 0 | K35: =E35*J35 -> 0 | O35: 2 | AA35: 1 | AB35: 1 | AC35: 1 | AZ35: 1 | BA35: =IF(AZ35=1,G35,0) -> 0 | BB35: =IF(AZ35=2,G35,0) -> 0 | BC35: =IF(AZ35=3,G35,0) -> 0 | BD35: =IF(AZ35=4,G35,0) -> 0 | BE35: =IF(AZ35=5,G35,0) -> 0 | CA35: 1 | CB35: 1
C36: Řad "A8-2" PE D 110x10,0 mmm: | E36: 0 | M36: Řad "A8-2" PE D 110x10,0 mmm:
C37: Odbočení k HN DN80 - PE D 90x8,2 mm: | E37: 0 | M37: Odbočení k HN DN80 - PE D 90x8,2 mm:
C38: Výkopy: | E38: 0 | M38: Výkopy:
C39: V hornině tř. 3 - 40%:288,0800*0,4*0,5 | E39: 57.616 | M39: V hornině tř. 3 - 40%:288,0800*0,4*0,5
A40: 6 | B40: 132301212R00 | C40: Hloubení rýh š.do 200 cm hor.4 do 1000 m3, STROJNĚ | D40: m3 | E40: 144.04 | G40: =E40*F40 -> 0 | H40: 0 | I40: =E40*H40 -> 0 | J40: 0 | K40: =E40*J40 -> 0 | O40: 2 | AA40: 1 | AB40: 1 | AC40: 1 | AZ40: 1 | BA40: =IF(AZ40=1,G40,0) -> 0 | BB40: =IF(AZ40=2,G40,0) -> 0 | BC40: =IF(AZ40=3,G40,0) -> 0 | BD40: =IF(AZ40=4,G40,0) -> 0 | BE40: =IF(AZ40=5,G40,0) -> 0 | CA40: 1 | CB40: 1
C41: Položka obsahuje hloubení rýh traktorbagrem, naložení výkopku na dopravní prostředek pro svislé, nebo vodorovné přemístění, popř. přemístění výkopku do 3 m (po povrchu území), případné zajištění rypadel polštáři, udržování pracoviště a ochranu výkopiště proti stékání srážkové vody z okolního terénu i s jejím odvodněním, nebo odvedením, přesekání a odstranění kořenů ve výkopišti, odstranění napadávek, urovnání dna výkopu. | L41: Položka obsahuje hloubení rýh traktorbagrem, naložení výkopku na dopravní prostředek pro svislé, nebo vodorovné přemístění, popř. přemístění výkopku do 3 m (po povrchu území), případné zajištění rypadel polštáři, udržování pracoviště a ochranu výkopiště proti stékání srážkové vody z okolního terénu i s jejím odvodněním, nebo odvedením, přesekání a odstranění kořenů ve výkopišti, odstranění napadávek, urovnání dna výkopu. | O41: 3
C42: Řad "A8-2" PE D 110x10,0 mmm: | E42: 0 | M42: Řad "A8-2" PE D 110x10,0 mmm:
C43: Odbočení k HN DN80 - PE D 90x8,2 mm: | E43: 0 | M43: Odbočení k HN DN80 - PE D 90x8,2 mm:
C44: Výkopy: | E44: 0 | M44: Výkopy:
C45: V hornině tř. 4 - 50%:288,0800*0,5 | E45: 144.04 | M45: V hornině tř. 4 - 50%:288,0800*0,5
A46: 7 | B46: 132301219R00 | C46: Přípl.za lepivost,hloubení rýh 200cm,hor.4,STROJNĚ | D46: m3 | E46: 72.02 | G46: =E46*F46 -> 0 | H46: 0 | I46: =E46*H46 -> 0 | J46: 0 | K46: =E46*J46 -> 0 | O46: 2 | AA46: 1 | AB46: 1 | AC46: 1 | AZ46: 1 | BA46: =IF(AZ46=1,G46,0) -> 0 | BB46: =IF(AZ46=2,G46,0) -> 0 | BC46: =IF(AZ46=3,G46,0) -> 0 | BD46: =IF(AZ46=4,G46,0) -> 0 | BE46: =IF(AZ46=5,G46,0) -> 0 | CA46: 1 | CB46: 1
C47: Řad "A8-2" PE D 110x10,0 mmm: | E47: 0 | M47: Řad "A8-2" PE D 110x10,0 mmm:
C48: Odbočení k HN DN80 - PE D 90x8,2 mm: | E48: 0 | M48: Odbočení k HN DN80 - PE D 90x8,2 mm:
C49: Výkopy: | E49: 0 | M49: Výkopy:
C50: V hornině tř. 4 - 50%:288,0800*0,5*0,5 | E50: 72.02 | M50: V hornině tř. 4 - 50%:288,0800*0,5*0,5
A51: 8 | B51: 132401211RRX | C51: Hloubení rýh šířky do 200 cm v hor.5 STROJNĚ včetně případného dolamování ve vrstvě do 0,5 m | D51: m3 | E51: 28.808 | G51: =E51*F51 -> 0 | H51: 0.01041 | I51: =E51*H51 -> 0.29989128 | J51: 0 | K51: =E51*J51 -> 0 | O51: 2 | AA51: 1 | AB51: 1 | AC51: 1 | AZ51: 1 | BA51: =IF(AZ51=1,G51,0) -> 0 | BB51: =IF(AZ51=2,G51,0) -> 0 | BC51: =IF(AZ51=3,G51,0) -> 0 | BD51: =IF(AZ51=4,G51,0) -> 0 | BE51: =IF(AZ51=5,G51,0) -> 0 | CA51: 1 | CB51: 1
C52: Položka obsahuje hloubení rýh traktorbagrem, naložení výkopku na dopravní prostředek pro svislé, nebo vodorovné přemístění, popř. přemístění výkopku do 3 m (po povrchu území), případné zajištění rypadel polštáři, udržování pracoviště a ochranu výkopiště proti stékání srážkové vody z okolního terénu i s jejím odvodněním, nebo odvedením, přesekání a odstranění kořenů ve výkopišti, odstranění napadávek, urovnání dna výkopu.včetně případného dolamování ve vrstvě do 0,5 m | L52: Položka obsahuje hloubení rýh traktorbagrem, naložení výkopku na dopravní prostředek pro svislé, nebo vodorovné přemístění, popř. přemístění výkopku do 3 m (po povrchu území), případné zajištění rypadel polštáři, udržování pracoviště a ochranu výkopiště proti stékání srážkové vody z okolního terénu i s jejím odvodněním, nebo odvedením, přesekání a odstranění kořenů ve výkopišti, odstranění napadávek, urovnání dna výkopu.včetně případného dolamování ve vrstvě do 0,5 m | O52: 3
C53: Řad "A8-2" PE D 110x10,0 mmm: | E53: 0 | M53: Řad "A8-2" PE D 110x10,0 mmm:
C54: Odbočení k HN DN80 - PE D 90x8,2 mm: | E54: 0 | M54: Odbočení k HN DN80 - PE D 90x8,2 mm:
C55: Výkopy: | E55: 0 | M55: Výkopy:
C56: V hornině tř. 5 - 10%:288,0800*0,1 | E56: 28.808 | M56: V hornině tř. 5 - 10%:288,0800*0,1
A57: 9 | B57: 151101101R00 | C57: Pažení a rozepření stěn rýh - příložné - hl.do 2 m | D57: m2 | E57: 941.8 | G57: =E57*F57 -> 0 | H57: 0.00099 | I57: =E57*H57 -> 0.932382 | J57: 0 | K57: =E57*J57 -> 0 | O57: 2 | AA57: 1 | AB57: 1 | AC57: 1 | AZ57: 1 | BA57: =IF(AZ57=1,G57,0) -> 0 | BB57: =IF(AZ57=2,G57,0) -> 0 | BC57: =IF(AZ57=3,G57,0) -> 0 | BD57: =IF(AZ57=4,G57,0) -> 0 | BE57: =IF(AZ57=5,G57,0) -> 0 | CA57: 1 | CB57: 1
C58: Řad "A8-2" PE D 110x10,0 mmm: | E58: 0 | M58: Řad "A8-2" PE D 110x10,0 mmm:
C59: Odbočení k HN DN80 - PE D 90x8,2 mm: | E59: 0 | M59: Odbočení k HN DN80 - PE D 90x8,2 mm:
C60: Výkopy: | E60: 0 | M60: Výkopy:
C61: Průměrná hloubka výkopů 1,70 m: | E61: 0 | M61: Průměrná hloubka výkopů 1,70 m:
C62: Řad "A8-2":274,00*1,70*2 | E62: 931.6 | M62: Řad "A8-2":274,00*1,70*2
C63: Odbočení k HN DN80:3,00*1,70*2 | E63: 10.2 | M63: Odbočení k HN DN80:3,00*1,70*2
A64: 10 | B64: 151101111R00 | C64: Odstranění pažení stěn rýh - příložné - hl. do 2 m | D64: m2 | E64: 941.8 | G64: =E64*F64 -> 0 | H64: 0 | I64: =E64*H64 -> 0 | J64: 0 | K64: =E64*J64 -> 0 | O64: 2 | AA64: 1 | AB64: 1 | AC64: 1 | AZ64: 1 | BA64: =IF(AZ64=1,G64,0) -> 0 | BB64: =IF(AZ64=2,G64,0) -> 0 | BC64: =IF(AZ64=3,G64,0) -> 0 | BD64: =IF(AZ64=4,G64,0) -> 0 | BE64: =IF(AZ64=5,G64,0) -> 0 | CA64: 1 | CB64: 1
C65: Řad "A8-2" PE D 110x10,0 mmm: | E65: 0 | M65: Řad "A8-2" PE D 110x10,0 mmm:
C66: Odbočení k HN DN80 - PE D 90x8,2 mm: | E66: 0 | M66: Odbočení k HN DN80 - PE D 90x8,2 mm:
C67: Výkopy: | E67: 0 | M67: Výkopy:
C68: Průměrná hloubka výkopů 1,70 m: | E68: 0 | M68: Průměrná hloubka výkopů 1,70 m:
C69: Řad "A8-2":274,00*1,70*2 | E69: 931.6 | M69: Řad "A8-2":274,00*1,70*2
C70: Odbočení k HN DN80:3,00*1,70*2 | E70: 10.2 | M70: Odbočení k HN DN80:3,00*1,70*2
A71: 11 | B71: 162701105RSZ | C71: Vodorovné přemístění výkopku z hor.1-7 na skládku zhotovitele | D71: m3 | E71: 288.08 | G71: =E71*F71 -> 0 | H71: 0 | I71: =E71*H71 -> 0 | J71: 0 | K71: =E71*J71 -> 0 | O71: 2 | AA71: 1 | AB71: 1 | AC71: 1 | AZ71: 1 | BA71: =IF(AZ71=1,G71,0) -> 0 | BB71: =IF(AZ71=2,G71,0) -> 0 | BC71: =IF(AZ71=3,G71,0) -> 0 | BD71: =IF(AZ71=4,G71,0) -> 0 | BE71: =IF(AZ71=5,G71,0) -> 0 | CA71: 1 | CB71: 1
C72: Řad "A8-2" PE D 110x10,0 mmm: | E72: 0 | M72: Řad "A8-2" PE D 110x10,0 mmm:
C73: Odbočení k HN DN80 - PE D 90x8,2 mm: | E73: 0 | M73: Odbočení k HN DN80 - PE D 90x8,2 mm:
C74: Výkopy: | E74: 0 | M74: Výkopy:
C75: V hornině tř. 3 - 5 :288,0800 | E75: 288.08 | M75: V hornině tř. 3 - 5 :288,0800
A76: 12 | B76: 174101101R00 | C76: Zásyp jam, rýh, šachet se zhutněním | D76: m3 | E76: 164.032 | G76: =E76*F76 -> 0 | H76: 0 | I76: =E76*H76 -> 0 | J76: 0 | K76: =E76*J76 -> 0 | O76: 2 | AA76: 1 | AB76: 1 | AC76: 1 | AZ76: 1 | BA76: =IF(AZ76=1,G76,0) -> 0 | BB76: =IF(AZ76=2,G76,0) -> 0 | BC76: =IF(AZ76=3,G76,0) -> 0 | BD76: =IF(AZ76=4,G76,0) -> 0 | BE76: =IF(AZ76=5,G76,0) -> 0 | CA76: 1 | CB76: 1
C77: Položka obsahuje strojní přemístění materiálu pro zásyp ze vzdálenosti do 10 m od okraje zásypu. | L77: Položka obsahuje strojní přemístění materiálu pro zásyp ze vzdálenosti do 10 m od okraje zásypu. | O77: 3
O78: 3
C79: Zásypy ŠD fr. 0-63 mm:164,0320 | E79: 164.032 | M79: Zásypy ŠD fr. 0-63 mm:164,0320
C80: Začátek provozního součtu | E80: 0 | M80: Začátek provozního součtu
C81: Řad "A8-2" PE D 110x10,0 mmm: | E81: 0 | M81: Řad "A8-2" PE D 110x10,0 mmm:
C82: Odbočení k HN DN80 - PE D 90x8,2 mm: | E82: 0 | M82: Odbočení k HN DN80 - PE D 90x8,2 mm:
C83: Výkopy: | E83: 0 | M83: Výkopy:
C84: V hornině tř. 3 - 5:288,0800 | E84: 288.08 | M84: V hornině tř. 3 - 5:288,0800
C85: Odpočet objemu lože, potrubí a obsypů:-274,00*0,80*(0,15+0,11+0,30)-3,00*0,80*(0,15+0,09+0,30) | E85: -124.048 | M85: Odpočet objemu lože, potrubí a obsypů:-274,00*0,80*(0,15+0,11+0,30)-3,00*0,80*(0,15+0,09+0,30)
C86: Konec provozního součtu | E86: 164.032 | M86: Konec provozního součtu
A87: 13 | B87: 175101101R00 | C87: Obsyp potrubí bez prohození sypaniny | D87: m3 | E87: 88.185 | G87: =E87*F87 -> 0 | H87: 0 | I87: =E87*H87 -> 0 | J87: 0 | K87: =E87*J87 -> 0 | O87: 2 | AA87: 1 | AB87: 1 | AC87: 1 | AZ87: 1 | BA87: =IF(AZ87=1,G87,0) -> 0 | BB87: =IF(AZ87=2,G87,0) -> 0 | BC87: =IF(AZ87=3,G87,0) -> 0 | BD87: =IF(AZ87=4,G87,0) -> 0 | BE87: =IF(AZ87=5,G87,0) -> 0 | CA87: 1 | CB87: 1
C88: Řad "A8-2" PE D 110x10,0 mmm:274,00*(0,80*(0,11+0,30)-0,055^2*Pi) | E88: 87.2681 | M88: Řad "A8-2" PE D 110x10,0 mmm:274,00*(0,80*(0,11+0,30)-0,055^2*Pi)
C89: Odbočení k HN DN80 - PE D 90x8,2 mm:3,00*(0,80*(0,09+0,30)-0,045^2*Pi) | E89: 0.9169 | M89: Odbočení k HN DN80 - PE D 90x8,2 mm:3,00*(0,80*(0,09+0,30)-0,045^2*Pi)
A90: 14 | B90: 199000002R00 | C90: Poplatek za skládku horniny 1- 7 č. dle katal. odpadů 17 05 04 | D90: m3 | E90: 288.08 | G90: =E90*F90 -> 0 | H90: 0 | I90: =E90*H90 -> 0 | J90: 0 | K90: =E90*J90 -> 0 | O90: 2 | AA90: 1 | AB90: 1 | AC90: 1 | AZ90: 1 | BA90: =IF(AZ90=1,G90,0) -> 0 | BB90: =IF(AZ90=2,G90,0) -> 0 | BC90: =IF(AZ90=3,G90,0) -> 0 | BD90: =IF(AZ90=4,G90,0) -> 0 | BE90: =IF(AZ90=5,G90,0) -> 0 | CA90: 1 | CB90: 1
C91: Řad "A8-2" PE D 110x10,0 mmm: | E91: 0 | M91: Řad "A8-2" PE D 110x10,0 mmm:
C92: Odbočení k HN DN80 - PE D 90x8,2 mm: | E92: 0 | M92: Odbočení k HN DN80 - PE D 90x8,2 mm:
C93: Výkopy: | E93: 0 | M93: Výkopy:
C94: V hornině tř. 3 - 5 :288,0800 | E94: 288.08 | M94: V hornině tř. 3 - 5 :288,0800
A95: 15 | B95: 919735113R00 | C95: Řezání stávajícího živičného krytu tl. 10 - 15 cm | D95: m | E95: 258.8 | G95: =E95*F95 -> 0 | H95: 0 | I95: =E95*H95 -> 0 | J95: 0 | K95: =E95*J95 -> 0 | O95: 2 | AA95: 1 | AB95: 1 | AC95: 1 | AZ95: 1 | BA95: =IF(AZ95=1,G95,0) -> 0 | BB95: =IF(AZ95=2,G95,0) -> 0 | BC95: =IF(AZ95=3,G95,0) -> 0 | BD95: =IF(AZ95=4,G95,0) -> 0 | BE95: =IF(AZ95=5,G95,0) -> 0 | CA95: 1 | CB95: 1
C96: Provizorní zaasfaltování rýhy od km 0,148 do km 0,274: | E96: 0 | M96: Provizorní zaasfaltování rýhy od km 0,148 do km 0,274:
C97: Řad "A8-2" PE D 110x10,0 mmm:(274,00-148,00)*2+0,80 | E97: 252.8 | M97: Řad "A8-2" PE D 110x10,0 mmm:(274,00-148,00)*2+0,80
C98: Odbočení k HN DN80 - PE D 90x8,2 mm:3,00*2 | E98: 6 | M98: Odbočení k HN DN80 - PE D 90x8,2 mm:3,00*2
A99: 16 | B99: 979082113RSZ | C99: Vodorovná doprava suti po suchu na skládku zhotovitele | D99: t | E99: 90.816 | G99: =E99*F99 -> 0 | H99: 0 | I99: =E99*H99 -> 0 | J99: 0 | K99: =E99*J99 -> 0 | O99: 2 | AA99: 1 | AB99: 1 | AC99: 1 | AZ99: 1 | BA99: =IF(AZ99=1,G99,0) -> 0 | BB99: =IF(AZ99=2,G99,0) -> 0 | BC99: =IF(AZ99=3,G99,0) -> 0 | BD99: =IF(AZ99=4,G99,0) -> 0 | BE99: =IF(AZ99=5,G99,0) -> 0 | CA99: 1 | CB99: 1
A100: 17 | B100: 979089001R00 | C100: Poplatek za skládku stavební suti štěrky z komunikací, skupina odpadu 010408 | D100: t | E100: 56.76 | G100: =E100*F100 -> 0 | H100: 0 | I100: =E100*H100 -> 0 | J100: 0 | K100: =E100*J100 -> 0 | O100: 2 | AA100: 1 | AB100: 1 | AC100: 1 | AZ100: 1 | BA100: =IF(AZ100=1,G100,0) -> 0 | BB100: =IF(AZ100=2,G100,0) -> 0 | BC100: =IF(AZ100=3,G100,0) -> 0 | BD100: =IF(AZ100=4,G100,0) -> 0 | BE100: =IF(AZ100=5,G100,0) -> 0 | CA100: 1 | CB100: 1
A101: 18 | B101: 979999995R00 | C101: Poplatek za reciklaci asfaltu, kusovost do 1600cm2 skupina 170302 | D101: t | E101: 34.056 | G101: =E101*F101 -> 0 | H101: 0 | I101: =E101*H101 -> 0 | J101: 0 | K101: =E101*J101 -> 0 | O101: 2 | AA101: 1 | AB101: 1 | AC101: 1 | AZ101: 1 | BA101: =IF(AZ101=1,G101,0) -> 0 | BB101: =IF(AZ101=2,G101,0) -> 0 | BC101: =IF(AZ101=3,G101,0) -> 0 | BD101: =IF(AZ101=4,G101,0) -> 0 | BE101: =IF(AZ101=5,G101,0) -> 0 | CA101: 1 | CB101: 1
C102: Položka je určena pro suť o velikosti kusu do 30x30 cm (technologický materiál určený k recyklaci) nebo frézovaný asfalt. | L102: Položka je určena pro suť o velikosti kusu do 30x30 cm (technologický materiál určený k recyklaci) nebo frézovaný asfalt. | O102: 3
A103: 19 | B103: 58337308.R | C103: Štěrkopísek frakce 0-2 tř.B | D103: t | E103: 175.7289 | G103: =E103*F103 -> 0 | H103: 1 | I103: =E103*H103 -> 175.7289 | K103: =E103*J103 -> 0 | O103: 2 | AA103: 3 | AB103: 1 | AC103: 58337308.R | AZ103: 1 | BA103: =IF(AZ103=1,G103,0) -> 0 | BB103: =IF(AZ103=2,G103,0) -> 0 | BC103: =IF(AZ103=3,G103,0) -> 0 | BD103: =IF(AZ103=4,G103,0) -> 0 | BE103: =IF(AZ103=5,G103,0) -> 0 | CA103: 3 | CB103: 1
C104: Řad "A8-2" PE D 110x10,0 mmm:274,00*(0,80*(0,11+0,30)-0,055^2*Pi)*1,973*1,01 | E104: 173.9017 | M104: Řad "A8-2" PE D 110x10,0 mmm:274,00*(0,80*(0,11+0,30)-0,055^2*Pi)*1,973*1,01
C105: Odbočení k HN DN80 - PE D 90x8,2 mm:3,00*(0,80*(0,09+0,30)-0,045^2*Pi)*1,973*1,01 | E105: 1.8272 | M105: Odbočení k HN DN80 - PE D 90x8,2 mm:3,00*(0,80*(0,09+0,30)-0,045^2*Pi)*1,973*1,01
A106: 20 | B106: 58344197R | C106: Štěrkodrtě frakce 0-63 A | D106: t | E106: 310.3043 | G106: =E106*F106 -> 0 | H106: 1 | I106: =E106*H106 -> 310.3043 | K106: =E106*J106 -> 0 | O106: 2 | AA106: 3 | AB106: 1 | AC106: 58344197R | AZ106: 1 | BA106: =IF(AZ106=1,G106,0) -> 0 | BB106: =IF(AZ106=2,G106,0) -> 0 | BC106: =IF(AZ106=3,G106,0) -> 0 | BD106: =IF(AZ106=4,G106,0) -> 0 | BE106: =IF(AZ106=5,G106,0) -> 0 | CA106: 3 | CB106: 1
C107: Zásypy ŠD fr. 0-63 mm:164,0320*1,873*1,01 | E107: 310.3043 | M107: Zásypy ŠD fr. 0-63 mm:164,0320*1,873*1,01
C108: Začátek provozního součtu | E108: 0 | M108: Začátek provozního součtu
C109: Řad "A8-2" PE D 110x10,0 mmm: | E109: 0 | M109: Řad "A8-2" PE D 110x10,0 mmm:
C110: Odbočení k HN DN80 - PE D 90x8,2 mm: | E110: 0 | M110: Odbočení k HN DN80 - PE D 90x8,2 mm:
C111: Výkopy: | E111: 0 | M111: Výkopy:
C112: V hornině tř. 3 - 5:288,0800 | E112: 288.08 | M112: V hornině tř. 3 - 5:288,0800
C113: Odpočet objemu lože, potrubí a obsypů:-274,00*0,80*(0,15+0,11+0,30)-3,00*0,80*(0,15+0,09+0,30) | E113: -124.048 | M113: Odpočet objemu lože, potrubí a obsypů:-274,00*0,80*(0,15+0,11+0,30)-3,00*0,80*(0,15+0,09+0,30)
C114: Konec provozního součtu | E114: 164.032 | M114: Konec provozního součtu
B115: Celkem za | C115: 1 Zemní práce | G115: =SUM(G7:G114) -> 0 | I115: =SUM(I7:I114) -> 487.2654733 | K115: =SUM(K7:K114) -> -90.816 | O115: 4 | BA115: =SUM(BA7:BA114) -> 0 | BB115: =SUM(BB7:BB114) -> 0 | BC115: =SUM(BC7:BC114) -> 0 | BD115: =SUM(BD7:BD114) -> 0 | BE115: =SUM(BE7:BE114) -> 0
A116: Díl: | B116: 45 | C116: Podkladní a vedlejší konstrukce | O116: 1
A117: 21 | B117: 451572111R00 | C117: Lože pod potrubí z kameniva těženého 0 - 4 mm | D117: m3 | E117: 33.24 | G117: =E117*F117 -> 0 | H117: 0.43051 | I117: =E117*H117 -> 14.3101524 | J117: 0 | K117: =E117*J117 -> 0 | O117: 2 | AA117: 1 | AB117: 1 | AC117: 1 | AZ117: 1 | BA117: =IF(AZ117=1,G117,0) -> 0 | BB117: =IF(AZ117=2,G117,0) -> 0 | BC117: =IF(AZ117=3,G117,0) -> 0 | BD117: =IF(AZ117=4,G117,0) -> 0 | BE117: =IF(AZ117=5,G117,0) -> 0 | CA117: 1 | CB117: 1
C118: Řad "A8-2" PE D 110x10,0 mmm:274,00*0,80*0,15 | E118: 32.88 | M118: Řad "A8-2" PE D 110x10,0 mmm:274,00*0,80*0,15
C119: Odbočení k HN DN80 - PE D 90x8,2 mm:3,00*0,80*0,15 | E119: 0.36 | M119: Odbočení k HN DN80 - PE D 90x8,2 mm:3,00*0,80*0,15
A120: 22 | B120: 452313141R00 | C120: Bloky pro potrubí z betonu C 16/20 vč. bednění | D120: m3 | E120: 1.3658 | G120: =E120*F120 -> 0 | H120: 2.5 | I120: =E120*H120 -> 3.4145 | J120: 0 | K120: =E120*J120 -> 0 | O120: 2 | AA120: 1 | AB120: 1 | AC120: 1 | AZ120: 1 | BA120: =IF(AZ120=1,G120,0) -> 0 | BB120: =IF(AZ120=2,G120,0) -> 0 | BC120: =IF(AZ120=3,G120,0) -> 0 | BD120: =IF(AZ120=4,G120,0) -> 0 | BE120: =IF(AZ120=5,G120,0) -> 0 | CA120: 1 | CB120: 1
B121: Celkem za | C121: 45 Podkladní a vedlejší konstrukce | G121: =SUM(G116:G120) -> 0 | I121: =SUM(I116:I120) -> 17.7246524 | K121: =SUM(K116:K120) -> 0 | O121: 4 | BA121: =SUM(BA116:BA120) -> 0 | BB121: =SUM(BB116:BB120) -> 0 | BC121: =SUM(BC116:BC120) -> 0 | BD121: =SUM(BD116:BD120) -> 0 | BE121: =SUM(BE116:BE120) -> 0
A122: Díl: | B122: 5 | C122: Komunikace | O122: 1
A123: 23 | B123: 566904111R00 | C123: Vyspravení podkladu po překopech kam.obal.asfaltem | D123: t | E123: 38.7 | G123: =E123*F123 -> 0 | H123: 1 | I123: =E123*H123 -> 38.7 | J123: 0 | K123: =E123*J123 -> 0 | O123: 2 | AA123: 1 | AB123: 1 | AC123: 1 | AZ123: 1 | BA123: =IF(AZ123=1,G123,0) -> 0 | BB123: =IF(AZ123=2,G123,0) -> 0 | BC123: =IF(AZ123=3,G123,0) -> 0 | BD123: =IF(AZ123=4,G123,0) -> 0 | BE123: =IF(AZ123=5,G123,0) -> 0 | CA123: 1 | CB123: 1
C124: Provizorní zaasfaltování rýhy od km 0,148 do km 0,274: | E124: 0 | M124: Provizorní zaasfaltování rýhy od km 0,148 do km 0,274:
C125: Řad "A8-2" PE D 110x10,0 mmm:(274,00-148,00)*0,80*0,15*2,5 | E125: 37.8 | M125: Řad "A8-2" PE D 110x10,0 mmm:(274,00-148,00)*0,80*0,15*2,5
C126: Odbočení k HN DN80 - PE D 90x8,2 mm:3,00*0,80*0,15*2,5 | E126: 0.9 | M126: Odbočení k HN DN80 - PE D 90x8,2 mm:3,00*0,80*0,15*2,5
A127: 24 | B127: 572701119RRX | C127: Provizorní zásyp rýh kam. hrubě drceným nebo recyk s následným odstraněním a odvozem | D127: m3 | E127: 88.64 | G127: =E127*F127 -> 0 | H127: 1.4805 | I127: =E127*H127 -> 131.23152 | J127: 0 | K127: =E127*J127 -> 0 | O127: 2 | AA127: 1 | AB127: 1 | AC127: 1 | AZ127: 1 | BA127: =IF(AZ127=1,G127,0) -> 0 | BB127: =IF(AZ127=2,G127,0) -> 0 | BC127: =IF(AZ127=3,G127,0) -> 0 | BD127: =IF(AZ127=4,G127,0) -> 0 | BE127: =IF(AZ127=5,G127,0) -> 0 | CA127: 1 | CB127: 1
C128: Řad "A8-2" PE D 110x10,0 mmm:274,00*0,80*0,40 | E128: 87.68 | M128: Řad "A8-2" PE D 110x10,0 mmm:274,00*0,80*0,40
C129: Odbočení k HN DN80 - PE D 90x8,2 mm:3,00*0,80*0,40 | E129: 0.96 | M129: Odbočení k HN DN80 - PE D 90x8,2 mm:3,00*0,80*0,40
B130: Celkem za | C130: 5 Komunikace | G130: =SUM(G122:G129) -> 0 | I130: =SUM(I122:I129) -> 169.93152 | K130: =SUM(K122:K129) -> 0 | O130: 4 | BA130: =SUM(BA122:BA129) -> 0 | BB130: =SUM(BB122:BB129) -> 0 | BC130: =SUM(BC122:BC129) -> 0 | BD130: =SUM(BD122:BD129) -> 0 | BE130: =SUM(BE122:BE129) -> 0
A131: Díl: | B131: 8 | C131: Trubní vedení | O131: 1
A132: 25 | B132: 850265121R00 | C132: Výřez nebo výsek na potrubí litinovém DN 100 | D132: kus | E132: 1 | G132: =E132*F132 -> 0 | H132: 0 | I132: =E132*H132 -> 0 | J132: 0 | K132: =E132*J132 -> 0 | O132: 2 | AA132: 1 | AB132: 1 | AC132: 1 | AZ132: 1 | BA132: =IF(AZ132=1,G132,0) -> 0 | BB132: =IF(AZ132=2,G132,0) -> 0 | BC132: =IF(AZ132=3,G132,0) -> 0 | BD132: =IF(AZ132=4,G132,0) -> 0 | BE132: =IF(AZ132=5,G132,0) -> 0 | CA132: 1 | CB132: 1
C133: Položky výřezu nebo výseku na potrubí z trub litinových tlakových jsou určeny pro dva řezy nebo seky prováděné na potrubí dodatečně. V položkách jsou zakalkulovány náklady na | L133: Položky výřezu nebo výseku na potrubí z trub litinových tlakových jsou určeny pro dva řezy nebo seky prováděné na potrubí dodatečně. V položkách jsou zakalkulovány náklady na | O133: 3
C134: - ohlášení uzavírání vody | L134: - ohlášení uzavírání vody | O134: 3
C135: - uzavření a otevření šoupat | L135: - uzavření a otevření šoupat | O135: 3
C136: - vypuštění a napuštění vody | L136: - vypuštění a napuštění vody | O136: 3
C137: - odvzdušnění potrubí | L137: - odvzdušnění potrubí | O137: 3
C138: - strojní nebo ruční výřez potrubí | L138: - strojní nebo ruční výřez potrubí | O138: 3
C139: - nutné úpravy výkopu v prostoru provádění | L139: - nutné úpravy výkopu v prostoru provádění | O139: 3
C140: - montáž tvarovek | L140: - montáž tvarovek | O140: 3
A141: 26 | B141: 850315121R00 | C141: Výřez nebo výsek na potrubí litinovém DN 150 | D141: kus | E141: 2 | G141: =E141*F141 -> 0 | H141: 0 | I141: =E141*H141 -> 0 | J141: 0 | K141: =E141*J141 -> 0 | O141: 2 | AA141: 1 | AB141: 1 | AC141: 1 | AZ141: 1 | BA141: =IF(AZ141=1,G141,0) -> 0 | BB141: =IF(AZ141=2,G141,0) -> 0 | BC141: =IF(AZ141=3,G141,0) -> 0 | BD141: =IF(AZ141=4,G141,0) -> 0 | BE141: =IF(AZ141=5,G141,0) -> 0 | CA141: 1 | CB141: 1
C142: Položky výřezu nebo výseku na potrubí z trub litinových tlakových jsou určeny pro dva řezy nebo seky prováděné na potrubí dodatečně. V položkách jsou zakalkulovány náklady na | L142: Položky výřezu nebo výseku na potrubí z trub litinových tlakových jsou určeny pro dva řezy nebo seky prováděné na potrubí dodatečně. V položkách jsou zakalkulovány náklady na | O142: 3
C143: - ohlášení uzavírání vody | L143: - ohlášení uzavírání vody | O143: 3
C144: - uzavření a otevření šoupat | L144: - uzavření a otevření šoupat | O144: 3
C145: - vypuštění a napuštění vody | L145: - vypuštění a napuštění vody | O145: 3
C146: - odvzdušnění potrubí | L146: - odvzdušnění potrubí | O146: 3
C147: - strojní nebo ruční výřez potrubí | L147: - strojní nebo ruční výřez potrubí | O147: 3
C148: - nutné úpravy výkopu v prostoru provádění | L148: - nutné úpravy výkopu v prostoru provádění | O148: 3
C149: - montáž tvarovek | L149: - montáž tvarovek | O149: 3
A150: 27 | B150: 857242121R00 | C150: Montáž tvarovek litin. jednoos.přír. výkop DN 80 včetně nerezových spoj. prvků a obandážování spoje | D150: kus | E150: 5 | G150: =E150*F150 -> 0 | H150: 0.00022 | I150: =E150*H150 -> 0.0011 | J150: 0 | K150: =E150*J150 -> 0 | O150: 2 | AA150: 1 | AB150: 1 | AC150: 1 | AZ150: 1 | BA150: =IF(AZ150=1,G150,0) -> 0 | BB150: =IF(AZ150=2,G150,0) -> 0 | BC150: =IF(AZ150=3,G150,0) -> 0 | BD150: =IF(AZ150=4,G150,0) -> 0 | BE150: =IF(AZ150=5,G150,0) -> 0 | CA150: 1 | CB150: 1
C151: Položka je určena pro montáž litinových tvarovek na potrubí litinovém tlakovém přírubovém jednoosých v otevřeném výkopu, v otevřeném kanálu nebo v šachtě. | L151: Položka je určena pro montáž litinových tvarovek na potrubí litinovém tlakovém přírubovém jednoosých v otevřeném výkopu, v otevřeném kanálu nebo v šachtě. | O151: 3
C152: Součástí položky je i dodávka nerezových spojovacích prvků (šrouby, podložky, matky) a kompletního obandážování spojů. | L152: Součástí položky je i dodávka nerezových spojovacích prvků (šrouby, podložky, matky) a kompletního obandážování spojů. | O152: 3
C153: Řad "A8-2" PE D 110x10,0 mm: | E153: 0 | M153: Řad "A8-2" PE D 110x10,0 mm:
C154: LN+TP D90/DN80:2 | E154: 2 | M154: LN+TP D90/DN80:2
C155: FF DN80/250:1 | E155: 1 | M155: FF DN80/250:1
C156: PPL DN80:2 | E156: 2 | M156: PPL DN80:2
A157: 28 | B157: 857262121R00 | C157: Montáž tvarovek litin. jednoos. přír. výkop DN 100 včetně nerezových spoj. prvků a obandážování spoje | D157: kus | E157: 9 | G157: =E157*F157 -> 0 | H157: 0.00041 | I157: =E157*H157 -> 0.00369 | J157: 0 | K157: =E157*J157 -> 0 | O157: 2 | AA157: 1 | AB157: 0 | AC157: 0 | AZ157: 1 | BA157: =IF(AZ157=1,G157,0) -> 0 | BB157: =IF(AZ157=2,G157,0) -> 0 | BC157: =IF(AZ157=3,G157,0) -> 0 | BD157: =IF(AZ157=4,G157,0) -> 0 | BE157: =IF(AZ157=5,G157,0) -> 0 | CA157: 1 | CB157: 0
C158: Položka je určena pro montáž litinových tvarovek na potrubí litinovém tlakovém přírubovém jednoosých v otevřeném výkopu, v otevřeném kanálu nebo v šachtě. | L158: Položka je určena pro montáž litinových tvarovek na potrubí litinovém tlakovém přírubovém jednoosých v otevřeném výkopu, v otevřeném kanálu nebo v šachtě. | O158: 3
C159: Součástí položky je i dodávka nerezových spojovacích prvků (šrouby, podložky, matky) a kompletního obandážování spojů. | L159: Součástí položky je i dodávka nerezových spojovacích prvků (šrouby, podložky, matky) a kompletního obandážování spojů. | O159: 3
C160: Řad "A8-2" PE D 110x10,0 mm: | E160: 0 | M160: Řad "A8-2" PE D 110x10,0 mm:
C161: LN+TP D110/DN100:8 | E161: 8 | M161: LN+TP D110/DN100:8
C162: FFR DN100/80:1 | E162: 1 | M162: FFR DN100/80:1
A163: 29 | B163: 857264121R00 | C163: Montáž tvarovek litin. odboč. přír. výkop DN 100 včetně nerezových spoj. prvků a obandážování spoje | D163: kus | E163: 3 | G163: =E163*F163 -> 0 | H163: 0.00062 | I163: =E163*H163 -> 0.00186 | J163: 0 | K163: =E163*J163 -> 0 | O163: 2 | AA163: 1 | AB163: 1 | AC163: 1 | AZ163: 1 | BA163: =IF(AZ163=1,G163,0) -> 0 | BB163: =IF(AZ163=2,G163,0) -> 0 | BC163: =IF(AZ163=3,G163,0) -> 0 | BD163: =IF(AZ163=4,G163,0) -> 0 | BE163: =IF(AZ163=5,G163,0) -> 0 | CA163: 1 | CB163: 1
C164: Položka je určena pro montáž litinových tvarovek na potrubí litinovém tlakovém přírubovém odbočných v otevřeném výkopu, v otevřeném kanálu nebo v šachtě. | L164: Položka je určena pro montáž litinových tvarovek na potrubí litinovém tlakovém přírubovém odbočných v otevřeném výkopu, v otevřeném kanálu nebo v šachtě. | O164: 3
C165: Součástí položky je i dodávka nerezových spojovacích prvků (šrouby, podložky, matky) a kompletního obandážování spojů. | L165: Součástí položky je i dodávka nerezových spojovacích prvků (šrouby, podložky, matky) a kompletního obandážování spojů. | O165: 3
C166: Řad "A8-2" PE D 110x10,0 mm: | E166: 0 | M166: Řad "A8-2" PE D 110x10,0 mm:
C167: T DN100/80:2 | E167: 2 | M167: T DN100/80:2
C168: T DN100/100:1 | E168: 1 | M168: T DN100/100:1
A169: 30 | B169: 857312121R00 | C169: Montáž tvarovek litin. jednoos. přír. výkop DN 150 včetně nerezových spoj. prvků a obandážování spoje | D169: kus | E169: 2 | G169: =E169*F169 -> 0 | H169: 0.00278 | I169: =E169*H169 -> 0.00556 | J169: 0 | K169: =E169*J169 -> 0 | O169: 2 | AA169: 1 | AB169: 1 | AC169: 1 | AZ169: 1 | BA169: =IF(AZ169=1,G169,0) -> 0 | BB169: =IF(AZ169=2,G169,0) -> 0 | BC169: =IF(AZ169=3,G169,0) -> 0 | BD169: =IF(AZ169=4,G169,0) -> 0 | BE169: =IF(AZ169=5,G169,0) -> 0 | CA169: 1 | CB169: 1
C170: Položka je určena pro montáž litinových tvarovek na potrubí litinovém tlakovém přírubovém jednoosých v otevřeném výkopu, v otevřeném kanálu nebo v šachtě. | L170: Položka je určena pro montáž litinových tvarovek na potrubí litinovém tlakovém přírubovém jednoosých v otevřeném výkopu, v otevřeném kanálu nebo v šachtě. | O170: 3
C171: Součástí položky je i dodávka nerezových spojovacích prvků (šrouby, podložky, matky) a kompletního obandážování spojů. | L171: Součástí položky je i dodávka nerezových spojovacích prvků (šrouby, podložky, matky) a kompletního obandážování spojů. | O171: 3
C172: Řad "A8-2" PE D 110x10,0 mm: | E172: 0 | M172: Řad "A8-2" PE D 110x10,0 mm:
C173: Synoflex s přírubou DN150:1 | E173: 1 | M173: Synoflex s přírubou DN150:1
C174: FFR DN150/100:1 | E174: 1 | M174: FFR DN150/100:1
A175: 31 | B175: 857314121R00 | C175: Montáž tvarovek litin. odboč. přír. výkop DN 150 včetně nerezových spoj. prvků a obandážování spoje | D175: kus | E175: 1 | G175: =E175*F175 -> 0 | H175: 0.00298 | I175: =E175*H175 -> 0.00298 | J175: 0 | K175: =E175*J175 -> 0 | O175: 2 | AA175: 1 | AB175: 1 | AC175: 1 | AZ175: 1 | BA175: =IF(AZ175=1,G175,0) -> 0 | BB175: =IF(AZ175=2,G175,0) -> 0 | BC175: =IF(AZ175=3,G175,0) -> 0 | BD175: =IF(AZ175=4,G175,0) -> 0 | BE175: =IF(AZ175=5,G175,0) -> 0 | CA175: 1 | CB175: 1
C176: Položka je určena pro montáž litinových tvarovek na potrubí litinovém tlakovém přírubovém odbočných v otevřeném výkopu, v otevřeném kanálu nebo v šachtě. | L176: Položka je určena pro montáž litinových tvarovek na potrubí litinovém tlakovém přírubovém odbočných v otevřeném výkopu, v otevřeném kanálu nebo v šachtě. | O176: 3
C177: Součástí položky je i dodávka nerezových spojovacích prvků (šrouby, podložky, matky) a kompletního obandážování spojů. | L177: Součástí položky je i dodávka nerezových spojovacích prvků (šrouby, podložky, matky) a kompletního obandážování spojů. | O177: 3
C178: Řad "A8-2" PE D 110x10,0 mm: | E178: 0 | M178: Řad "A8-2" PE D 110x10,0 mm:
C179: T DN150/150:1 | E179: 1 | M179: T DN150/150:1
A180: 32 | B180: 871241121R00 | C180: Montáž potrubí polyetylenového ve výkopu d 90 mm | D180: m | E180: 3 | G180: =E180*F180 -> 0 | H180: 0 | I180: =E180*H180 -> 0 | J180: 0 | K180: =E180*J180 -> 0 | O180: 2 | AA180: 1 | AB180: 1 | AC180: 1 | AZ180: 1 | BA180: =IF(AZ180=1,G180,0) -> 0 | BB180: =IF(AZ180=2,G180,0) -> 0 | BC180: =IF(AZ180=3,G180,0) -> 0 | BD180: =IF(AZ180=4,G180,0) -> 0 | BE180: =IF(AZ180=5,G180,0) -> 0 | CA180: 1 | CB180: 1
C181: V položce je uvažováno s jedním spojem na 6 m potrubí. | L181: V položce je uvažováno s jedním spojem na 6 m potrubí. | O181: 3
C182: Řad "A8-2" PE D 110x10,0¨mmm: | E182: 0 | M182: Řad "A8-2" PE D 110x10,0¨mmm:
C183: Odbočení k HN DN80 - PE D 90x8,2 mm:3,00 | E183: 3 | M183: Odbočení k HN DN80 - PE D 90x8,2 mm:3,00
A184: 33 | B184: 871251121R00 | C184: Montáž trubek polyetylenových ve výkopu d 110 mm | D184: m | E184: 274 | G184: =E184*F184 -> 0 | H184: 0 | I184: =E184*H184 -> 0 | J184: 0 | K184: =E184*J184 -> 0 | O184: 2 | AA184: 1 | AB184: 1 | AC184: 1 | AZ184: 1 | BA184: =IF(AZ184=1,G184,0) -> 0 | BB184: =IF(AZ184=2,G184,0) -> 0 | BC184: =IF(AZ184=3,G184,0) -> 0 | BD184: =IF(AZ184=4,G184,0) -> 0 | BE184: =IF(AZ184=5,G184,0) -> 0 | CA184: 1 | CB184: 1
C185: V položce je uvažováno s jedním spojem na 6 m potrubí. | L185: V položce je uvažováno s jedním spojem na 6 m potrubí. | O185: 3
C186: Řad "A8-2" PE D 110x10,0 mmm:274,00 | E186: 274 | M186: Řad "A8-2" PE D 110x10,0 mmm:274,00
A187: 34 | B187: 877242121R00 | C187: Přirážka za 1 spoj elektrotvarovky d 90 mm | D187: kus | E187: 2 | G187: =E187*F187 -> 0 | H187: 0 | I187: =E187*H187 -> 0 | J187: 0 | K187: =E187*J187 -> 0 | O187: 2 | AA187: 1 | AB187: 1 | AC187: 1 | AZ187: 1 | BA187: =IF(AZ187=1,G187,0) -> 0 | BB187: =IF(AZ187=2,G187,0) -> 0 | BC187: =IF(AZ187=3,G187,0) -> 0 | BD187: =IF(AZ187=4,G187,0) -> 0 | BE187: =IF(AZ187=5,G187,0) -> 0 | CA187: 1 | CB187: 1
C188: Řad "A8-2" PE D 110x10,0¨mmm: | E188: 0 | M188: Řad "A8-2" PE D 110x10,0¨mmm:
C189: Odbočení k HN DN80 - PE D 90x8,2 mm: | E189: 0 | M189: Odbočení k HN DN80 - PE D 90x8,2 mm:
C190: Elektrospojka PE D90:2 | E190: 2 | M190: Elektrospojka PE D90:2
A191: 35 | B191: 877252121R00 | C191: Přirážka za 1 spoj elektrotvarovky d 110 mm | D191: kus | E191: 48 | G191: =E191*F191 -> 0 | H191: 0 | I191: =E191*H191 -> 0 | J191: 0 | K191: =E191*J191 -> 0 | O191: 2 | AA191: 1 | AB191: 1 | AC191: 1 | AZ191: 1 | BA191: =IF(AZ191=1,G191,0) -> 0 | BB191: =IF(AZ191=2,G191,0) -> 0 | BC191: =IF(AZ191=3,G191,0) -> 0 | BD191: =IF(AZ191=4,G191,0) -> 0 | BE191: =IF(AZ191=5,G191,0) -> 0 | CA191: 1 | CB191: 1
C192: Řad "A8-2" PE D 110x10,0 mmm: | E192: 0 | M192: Řad "A8-2" PE D 110x10,0 mmm:
C193: Elektrospojka PE D110:46 | E193: 46 | M193: Elektrospojka PE D110:46
C194: Oblouk PE D110/22°:1 | E194: 1 | M194: Oblouk PE D110/22°:1
C195: Oblouk PE D110/11°:1 | E195: 1 | M195: Oblouk PE D110/11°:1
A196: 36 | B196: 891241111R00 | C196: Montáž vodovodních šoupátek ve výkopu DN 80 včetně nerezových spoj. prvků a obandážování spoje | D196: kus | E196: 2 | G196: =E196*F196 -> 0 | H196: 0.00022 | I196: =E196*H196 -> 0.00044 | J196: 0 | K196: =E196*J196 -> 0 | O196: 2 | AA196: 1 | AB196: 1 | AC196: 1 | AZ196: 1 | BA196: =IF(AZ196=1,G196,0) -> 0 | BB196: =IF(AZ196=2,G196,0) -> 0 | BC196: =IF(AZ196=3,G196,0) -> 0 | BD196: =IF(AZ196=4,G196,0) -> 0 | BE196: =IF(AZ196=5,G196,0) -> 0 | CA196: 1 | CB196: 1
C197: Položka je určena pro montáž vodovodních šoupátek v otevřeném výkopu nebo v šachtách s osazením zemní soupravy (bez poklopů). V položce jsou zakalkulovány i náklady na vytvoření otvorů ve stropech šachet pro prostup zemních souprav šoupátek. | L197: Položka je určena pro montáž vodovodních šoupátek v otevřeném výkopu nebo v šachtách s osazením zemní soupravy (bez poklopů). V položce jsou zakalkulovány i náklady na vytvoření otvorů ve stropech šachet pro prostup zemních souprav šoupátek. | O197: 3
C198: Součástí položky je i dodávka nerezových spojovacích prvků (šrouby, podložky, matky) a kompletního obandážování spojů. | L198: Součástí položky je i dodávka nerezových spojovacích prvků (šrouby, podložky, matky) a kompletního obandážování spojů. | O198: 3
C199: Řad "A8-2" PE D 110x10,0 mmm: | E199: 0 | M199: Řad "A8-2" PE D 110x10,0 mmm:
C200: Šoupě DN80:2 | E200: 2 | M200: Šoupě DN80:2
A201: 37 | B201: 891243321R00 | C201: Montáž ventilů odvzdušňovacích přírub. DN 80 včetně nerezových spoj. prvků a obandážování spoje | D201: kus | E201: 1 | G201: =E201*F201 -> 0 | H201: 0.00079 | I201: =E201*H201 -> 0.00079 | J201: 0 | K201: =E201*J201 -> 0 | O201: 2 | AA201: 1 | AB201: 1 | AC201: 1 | AZ201: 1 | BA201: =IF(AZ201=1,G201,0) -> 0 | BB201: =IF(AZ201=2,G201,0) -> 0 | BC201: =IF(AZ201=3,G201,0) -> 0 | BD201: =IF(AZ201=4,G201,0) -> 0 | BE201: =IF(AZ201=5,G201,0) -> 0 | CA201: 1 | CB201: 1
C202: Položka je určena pro montáž ventilů odvzdušňovacích nebo zavzdušňovacích mechanických a plovákových přírubových na venkovních řadech. | L202: Položka je určena pro montáž ventilů odvzdušňovacích nebo zavzdušňovacích mechanických a plovákových přírubových na venkovních řadech. | O202: 3
... 256 more rows

Sheet 1.E 01 1.E 01.3 KL
A1: POLOŽKOVÝ ROZPOČET
A2: Rozpočet | C2: 1.E 01.3 | D2: Odstavení stávajícího vodovodního řadu | F2: JKSO | G2: 827.11
A4: Objekt | F4: SKP
A5: 1.E 01 | C5: Vodovody | F5: Měrná jednotka | G5: m
A6: Stavba | F6: Počet jednotek | G6: 0
A7: 3403 | C7: Jilemnice - Optimalizace VS a komunikace I.Etapa | F7: Náklady na m.j. | G7: =IF(G6=0,,ROUND((F30+F32)/G6,1)) -> 0
A8: Projektant | C8: Vodohospodářsko - inženýrské služby spol. s r.o. | F8: Typ rozpočtu
A9: Zpracovatel projektu
A10: Objednatel | C10: Vodohospodářské sdružení Turnov
A11: Dodavatel | C11: . | F11: Zakázkové číslo
A12: Rozpočtoval | F12: Počet listů
A13: ROZPOČTOVÉ NÁKLADY
A14: Základní rozpočtové náklady
B15: HSV celkem | C15: ='1.E 01 1.E 01.3 Rek'!E8 -> 0
A16: Z | B16: PSV celkem | C16: ='1.E 01 1.E 01.3 Rek'!F8 -> 0
A17: R | B17: M práce celkem | C17: ='1.E 01 1.E 01.3 Rek'!H8 -> 0
A18: N | B18: M dodávky celkem | C18: ='1.E 01 1.E 01.3 Rek'!G8 -> 0
A19: ZRN celkem | C19: =SUM(C15:C18) -> 0
A21: HZS | C21: ='1.E 01 1.E 01.3 Rek'!I8 -> 0
A22: ZRN+HZS | C22: =C19+C21 -> 0
A23: ZRN+ost.náklady+HZS | C23: =C22+G23 -> 0
A24: Vypracoval | D24: Za zhotovitele | F24: Za objednatele
A25: Jméno : | D25: Jméno : | F25: Jméno :
A26: Datum : | D26: Datum : | F26: Datum :
A28: Podpis : | D28: Podpis: | F28: Podpis:
A30: Základ pro DPH | C30: 21 | D30: % | F30: =C23-F32 -> 0
A31: DPH | C31: =C30 -> 21 | D31: % | F31: =ROUND(PRODUCT(F30,C31/100),0) -> 0
A32: Základ pro DPH | C32: 0 | D32: % | F32: 0
A33: DPH | C33: =C32 -> 0 | D33: % | F33: =ROUND(PRODUCT(F32,C33/100),0) -> 0
A34: CENA ZA OBJEKT CELKEM | F34: =ROUND(SUM(F30:F33),0) -> 0
A36: Poznámka :

Sheet 1.E 01 1.E 01.3 Rek
A1: Stavba : | C1: 3403 Jilemnice - Optimalizace VS a komunikace | G1: Rozpočet : | H1: 1.E 01.3
A2: Objekt : | C2: 1.E 01 Vodovody | G2: Odstavení stávajícího vodovodního řadu
A4: REKAPITULACE STAVEBNÍCH DÍLŮ
B6: Stavební díl | E6: HSV | F6: PSV | G6: Dodávka | H6: Montáž | I6: HZS
A7: ='1.E 01 1.E 01.3 Pol'!B7 -> 8 | B7: ='1.E 01 1.E 01.3 Pol'!C7 -> Trubní vedení | E7: ='1.E 01 1.E 01.3 Pol'!BA13 -> 0 | F7: ='1.E 01 1.E 01.3 Pol'!BB13 -> 0 | G7: ='1.E 01 1.E 01.3 Pol'!BC13 -> 0 | H7: ='1.E 01 1.E 01.3 Pol'!BD13 -> 0 | I7: ='1.E 01 1.E 01.3 Pol'!BE13 -> 0
B8: CELKEM OBJEKT | E8: =SUM(E7:E7) -> 0 | F8: =SUM(F7:F7) -> 0 | G8: =SUM(G7:G7) -> 0 | H8: =SUM(H7:H7) -> 0 | I8: =SUM(I7:I7) -> 0

Sheet 1.E 01 1.E 01.3 Pol
A1: Položkový rozpočet
A3: Stavba : | C3: 3403 Jilemnice - Optimalizace VS a komunikace | E3: Rozpočet: | F3: ='1.E 01 1.E 01.3 Rek'!H1 -> 1.E 01.3
A4: Objekt : | C4: 1.E 01 Vodovody | E4: ='1.E 01 1.E 01.3 Rek'!G2 -> Odstavení stávajícího vodovodního řadu
A6: P.č. | B6: Číslo položky | C6: Název položky | D6: MJ | E6: množství | F6: cena / MJ | G6: celkem (Kč) | H6: Jednotková hmotnost | I6: Celková hmotnost | J6: Jednotková dem.hmot. | K6: Celková dem.hmot.
A7: Díl: | B7: 8 | C7: Trubní vedení | O7: 1
A8: 1 | B8: 899 10-5001.RRX | C8: Přerušení stávajícího vodovodního řadu TLT DN100 | D8: kpl | E8: 2 | G8: =E8*F8 -> 0 | H8: 0 | I8: =E8*H8 -> 0 | K8: =E8*J8 -> 0 | O8: 2 | AA8: 12 | AB8: 0 | AC8: 1 | AZ8: 1 | BA8: =IF(AZ8=1,G8,0) -> 0 | BB8: =IF(AZ8=2,G8,0) -> 0 | BC8: =IF(AZ8=3,G8,0) -> 0 | BD8: =IF(AZ8=4,G8,0) -> 0 | BE8: =IF(AZ8=5,G8,0) -> 0 | CA8: 12 | CB8: 0
C9: Součástí položky je: | L9: Součástí položky je: | O9: 3
C10: - potředné kompletní zemní práce (vákopy, zásypy a pod.) | L10: - potředné kompletní zemní práce (vákopy, zásypy a pod.) | O10: 3
C11: - demontáž stávajících armatur | L11: - demontáž stávajících armatur | O11: 3
C12: - zaslepení stávajícího potrubí DN100 | L12: - zaslepení stávajícího potrubí DN100 | O12: 3
B13: Celkem za | C13: 8 Trubní vedení | G13: =SUM(G7:G12) -> 0 | I13: =SUM(I7:I12) -> 0 | K13: =SUM(K7:K12) -> 0 | O13: 4 | BA13: =SUM(BA7:BA12) -> 0 | BB13: =SUM(BB7:BB12) -> 0 | BC13: =SUM(BC7:BC12) -> 0 | BD13: =SUM(BD7:BD12) -> 0 | BE13: =SUM(BE7:BE12) -> 0

Sheet 1.E 01 1.E 01.4 KL
A1: POLOŽKOVÝ ROZPOČET
A2: Rozpočet | C2: 1.E 01.4 | D2: Nové vodovodní body Hrabačov | F2: JKSO | G2: 827.11
A4: Objekt | F4: SKP
A5: 1.E 01 | C5: Vodovody | F5: Měrná jednotka | G5: m
A6: Stavba | F6: Počet jednotek | G6: 0
A7: 3403 | C7: Jilemnice - Optimalizace VS a komunikace I.Etapa | F7: Náklady na m.j. | G7: =IF(G6=0,,ROUND((F30+F32)/G6,1)) -> 0
A8: Projektant | C8: Vodohospodářsko - inženýrské služby spol. s r.o. | F8: Typ rozpočtu
A9: Zpracovatel projektu
A10: Objednatel | C10: Vodohospodářské sdružení Turnov
A11: Dodavatel | C11: . | F11: Zakázkové číslo
A12: Rozpočtoval | F12: Počet listů
A13: ROZPOČTOVÉ NÁKLADY
A14: Základní rozpočtové náklady
B15: HSV celkem | C15: ='1.E 01 1.E 01.4 Rek'!E12 -> 0
A16: Z | B16: PSV celkem | C16: ='1.E 01 1.E 01.4 Rek'!F12 -> 0
A17: R | B17: M práce celkem | C17: ='1.E 01 1.E 01.4 Rek'!H12 -> 0
A18: N | B18: M dodávky celkem | C18: ='1.E 01 1.E 01.4 Rek'!G12 -> 0
A19: ZRN celkem | C19: =SUM(C15:C18) -> 0
A21: HZS | C21: ='1.E 01 1.E 01.4 Rek'!I12 -> 0
A22: ZRN+HZS | C22: =C19+C21 -> 0
A23: ZRN+ost.náklady+HZS | C23: =C22+G23 -> 0
A24: Vypracoval | D24: Za zhotovitele | F24: Za objednatele
A25: Jméno : | D25: Jméno : | F25: Jméno :
A26: Datum : | D26: Datum : | F26: Datum :
A28: Podpis : | D28: Podpis: | F28: Podpis:
A30: Základ pro DPH | C30: 21 | D30: % | F30: =C23-F32 -> 0
A31: DPH | C31: =C30 -> 21 | D31: % | F31: =ROUND(PRODUCT(F30,C31/100),0) -> 0
A32: Základ pro DPH | C32: 0 | D32: % | F32: 0
A33: DPH | C33: =C32 -> 0 | D33: % | F33: =ROUND(PRODUCT(F32,C33/100),0) -> 0
A34: CENA ZA OBJEKT CELKEM | F34: =ROUND(SUM(F30:F33),0) -> 0
A36: Poznámka :

Sheet 1.E 01 1.E 01.4 Rek
A1: Stavba : | C1: 3403 Jilemnice - Optimalizace VS a komunikace | G1: Rozpočet : | H1: 1.E 01.4
A2: Objekt : | C2: 1.E 01 Vodovody | G2: Nové vodovodní body Hrabačov
A4: REKAPITULACE STAVEBNÍCH DÍLŮ
B6: Stavební díl | E6: HSV | F6: PSV | G6: Dodávka | H6: Montáž | I6: HZS
A7: ='1.E 01 1.E 01.4 Pol'!B7 -> 1 | B7: ='1.E 01 1.E 01.4 Pol'!C7 -> Zemní práce | E7: ='1.E 01 1.E 01.4 Pol'!BA107 -> 0 | F7: ='1.E 01 1.E 01.4 Pol'!BB107 -> 0 | G7: ='1.E 01 1.E 01.4 Pol'!BC107 -> 0 | H7: ='1.E 01 1.E 01.4 Pol'!BD107 -> 0 | I7: ='1.E 01 1.E 01.4 Pol'!BE107 -> 0
A8: ='1.E 01 1.E 01.4 Pol'!B108 -> 45 | B8: ='1.E 01 1.E 01.4 Pol'!C108 -> Podkladní a vedlejší konstrukce | E8: ='1.E 01 1.E 01.4 Pol'!BA116 -> 0 | F8: ='1.E 01 1.E 01.4 Pol'!BB116 -> 0 | G8: ='1.E 01 1.E 01.4 Pol'!BC116 -> 0 | H8: ='1.E 01 1.E 01.4 Pol'!BD116 -> 0 | I8: ='1.E 01 1.E 01.4 Pol'!BE116 -> 0
A9: ='1.E 01 1.E 01.4 Pol'!B117 -> 5 | B9: ='1.E 01 1.E 01.4 Pol'!C117 -> Komunikace | E9: ='1.E 01 1.E 01.4 Pol'!BA125 -> 0 | F9: ='1.E 01 1.E 01.4 Pol'!BB125 -> 0 | G9: ='1.E 01 1.E 01.4 Pol'!BC125 -> 0 | H9: ='1.E 01 1.E 01.4 Pol'!BD125 -> 0 | I9: ='1.E 01 1.E 01.4 Pol'!BE125 -> 0
A10: ='1.E 01 1.E 01.4 Pol'!B126 -> 8 | B10: ='1.E 01 1.E 01.4 Pol'!C126 -> Trubní vedení | E10: ='1.E 01 1.E 01.4 Pol'!BA213 -> 0 | F10: ='1.E 01 1.E 01.4 Pol'!BB213 -> 0 | G10: ='1.E 01 1.E 01.4 Pol'!BC213 -> 0 | H10: ='1.E 01 1.E 01.4 Pol'!BD213 -> 0 | I10: ='1.E 01 1.E 01.4 Pol'!BE213 -> 0
A11: ='1.E 01 1.E 01.4 Pol'!B214 -> 99 | B11: ='1.E 01 1.E 01.4 Pol'!C214 -> Staveništní přesun hmot | E11: ='1.E 01 1.E 01.4 Pol'!BA217 -> 0 | F11: ='1.E 01 1.E 01.4 Pol'!BB217 -> 0 | G11: ='1.E 01 1.E 01.4 Pol'!BC217 -> 0 | H11: ='1.E 01 1.E 01.4 Pol'!BD217 -> 0 | I11: ='1.E 01 1.E 01.4 Pol'!BE217 -> 0
B12: CELKEM OBJEKT | E12: =SUM(E7:E11) -> 0 | F12: =SUM(F7:F11) -> 0 | G12: =SUM(G7:G11) -> 0 | H12: =SUM(H7:H11) -> 0 | I12: =SUM(I7:I11) -> 0

Sheet 1.E 01 1.E 01.4 Pol
A1: Položkový rozpočet
A3: Stavba : | C3: 3403 Jilemnice - Optimalizace VS a komunikace | E3: Rozpočet: | F3: ='1.E 01 1.E 01.4 Rek'!H1 -> 1.E 01.4
A4: Objekt : | C4: 1.E 01 Vodovody | E4: ='1.E 01 1.E 01.4 Rek'!G2 -> Nové vodovodní body Hrabačov
A6: P.č. | B6: Číslo položky | C6: Název položky | D6: MJ | E6: množství | F6: cena / MJ | G6: celkem (Kč) | H6: Jednotková hmotnost | I6: Celková hmotnost | J6: Jednotková dem.hmot. | K6: Celková dem.hmot.
A7: Díl: | B7: 1 | C7: Zemní práce | O7: 1
A8: 1 | B8: 130001101RRX | C8: Příplatek za ztížené hloubení v blízkosti vedení | D8: m3 | E8: 41.405 | G8: =E8*F8 -> 0 | H8: 0 | I8: =E8*H8 -> 0 | J8: 0 | K8: =E8*J8 -> 0 | O8: 2 | AA8: 1 | AB8: 1 | AC8: 1 | AZ8: 1 | BA8: =IF(AZ8=1,G8,0) -> 0 | BB8: =IF(AZ8=2,G8,0) -> 0 | BC8: =IF(AZ8=3,G8,0) -> 0 | BD8: =IF(AZ8=4,G8,0) -> 0 | BE8: =IF(AZ8=5,G8,0) -> 0 | CA8: 1 | CB8: 1
C9: Včetně případných nutných dokopávem a ručního výkopu podél sousedících inženýrských sítí. | L9: Včetně případných nutných dokopávem a ručního výkopu podél sousedících inženýrských sítí. | O9: 3
C10: Součástí položky je i dočasné zajištění inženýrských sítí v prostoru výkopů (potrubí, kabely a pod.) | L10: Součástí položky je i dočasné zajištění inženýrských sítí v prostoru výkopů (potrubí, kabely a pod.) | O10: 3
C11: Výkopy: | E11: 0 | M11: Výkopy:
C12: V hornině tř. 3 - 5 - 35%:118,3000*0,35 | E12: 41.405 | M12: V hornině tř. 3 - 5 - 35%:118,3000*0,35
A13: 2 | B13: 132201212R00 | C13: Hloubení rýh š.do 200 cm hor.3 do 1000m3,STROJNĚ | D13: m3 | E13: 47.32 | G13: =E13*F13 -> 0 | H13: 0 | I13: =E13*H13 -> 0 | J13: 0 | K13: =E13*J13 -> 0 | O13: 2 | AA13: 1 | AB13: 1 | AC13: 1 | AZ13: 1 | BA13: =IF(AZ13=1,G13,0) -> 0 | BB13: =IF(AZ13=2,G13,0) -> 0 | BC13: =IF(AZ13=3,G13,0) -> 0 | BD13: =IF(AZ13=4,G13,0) -> 0 | BE13: =IF(AZ13=5,G13,0) -> 0 | CA13: 1 | CB13: 1
C14: Položka obsahuje hloubení rýh traktorbagrem, naložení výkopku na dopravní prostředek pro svislé, nebo vodorovné přemístění, popř. přemístění výkopku do 3 m (po povrchu území), případné zajištění rypadel polštáři, udržování pracoviště a ochranu výkopiště proti stékání srážkové vody z okolního terénu i s jejím odvodněním, nebo odvedením, přesekání a odstranění kořenů ve výkopišti, odstranění napadávek, urovnání dna výkopu. | L14: Položka obsahuje hloubení rýh traktorbagrem, naložení výkopku na dopravní prostředek pro svislé, nebo vodorovné přemístění, popř. přemístění výkopku do 3 m (po povrchu území), případné zajištění rypadel polštáři, udržování pracoviště a ochranu výkopiště proti stékání srážkové vody z okolního terénu i s jejím odvodněním, nebo odvedením, přesekání a odstranění kořenů ve výkopišti, odstranění napadávek, urovnání dna výkopu. | O14: 3
C15: Výkopy: | E15: 0 | M15: Výkopy:
C16: Začátek provozního součtu | E16: 0 | M16: Začátek provozního součtu
C17: Průměrná hloubka výkopů 1,70 m: | E17: 0 | M17: Průměrná hloubka výkopů 1,70 m:
C18: Řad "A8-1" PE D 110x10,0 mm: | E18: 0 | M18: Řad "A8-1" PE D 110x10,0 mm:
C19: VP PE D 32x3,0 mm (17 kusů):85,00*0,70*1,70 | E19: 101.15 | M19: VP PE D 32x3,0 mm (17 kusů):85,00*0,70*1,70
C20: Rezerva - 30%:85,00*0,3*0,70*1,70 | E20: 30.345 | M20: Rezerva - 30%:85,00*0,3*0,70*1,70
C21: Odpočet předpokládané konstrukce MK:-(85,00+85,00*0,3)*0,70*0,40 | E21: -30.94 | M21: Odpočet předpokládané konstrukce MK:-(85,00+85,00*0,3)*0,70*0,40
C22: Řad "A8-2-1" PE D 90x8,2 mm: | E22: 0 | M22: Řad "A8-2-1" PE D 90x8,2 mm:
C23: VP PE D 32x3,0 mm (3 kusy):15,00*0,70*1,70 | E23: 17.85 | M23: VP PE D 32x3,0 mm (3 kusy):15,00*0,70*1,70
C24: Rezerva - 30%:15,00*0,3*0,70*1,70 | E24: 5.355 | M24: Rezerva - 30%:15,00*0,3*0,70*1,70
C25: Odpočet předpokládané konstrukce MK:-(15,00+15,00*0,3)*0,70*0,40 | E25: -5.46 | M25: Odpočet předpokládané konstrukce MK:-(15,00+15,00*0,3)*0,70*0,40
C26: Konec provozního součtu | E26: 118.3 | M26: Konec provozního součtu
C27: V hornině tř. 3 - 40%:118,3000*0,4 | E27: 47.32 | M27: V hornině tř. 3 - 40%:118,3000*0,4
A28: 3 | B28: 132201219R00 | C28: Přípl.za lepivost,hloubení rýh 200cm,hor.3,STROJNĚ | D28: m3 | E28: 23.66 | G28: =E28*F28 -> 0 | H28: 0 | I28: =E28*H28 -> 0 | J28: 0 | K28: =E28*J28 -> 0 | O28: 2 | AA28: 1 | AB28: 1 | AC28: 1 | AZ28: 1 | BA28: =IF(AZ28=1,G28,0) -> 0 | BB28: =IF(AZ28=2,G28,0) -> 0 | BC28: =IF(AZ28=3,G28,0) -> 0 | BD28: =IF(AZ28=4,G28,0) -> 0 | BE28: =IF(AZ28=5,G28,0) -> 0 | CA28: 1 | CB28: 1
C29: Výkopy: | E29: 0 | M29: Výkopy:
C30: V hornině tř. 3 - 40%:118,3000*0,4*0,5 | E30: 23.66 | M30: V hornině tř. 3 - 40%:118,3000*0,4*0,5
A31: 4 | B31: 132301212R00 | C31: Hloubení rýh š.do 200 cm hor.4 do 1000 m3, STROJNĚ | D31: m3 | E31: 59.15 | G31: =E31*F31 -> 0 | H31: 0 | I31: =E31*H31 -> 0 | J31: 0 | K31: =E31*J31 -> 0 | O31: 2 | AA31: 1 | AB31: 1 | AC31: 1 | AZ31: 1 | BA31: =IF(AZ31=1,G31,0) -> 0 | BB31: =IF(AZ31=2,G31,0) -> 0 | BC31: =IF(AZ31=3,G31,0) -> 0 | BD31: =IF(AZ31=4,G31,0) -> 0 | BE31: =IF(AZ31=5,G31,0) -> 0 | CA31: 1 | CB31: 1
C32: Položka obsahuje hloubení rýh traktorbagrem, naložení výkopku na dopravní prostředek pro svislé, nebo vodorovné přemístění, popř. přemístění výkopku do 3 m (po povrchu území), případné zajištění rypadel polštáři, udržování pracoviště a ochranu výkopiště proti stékání srážkové vody z okolního terénu i s jejím odvodněním, nebo odvedením, přesekání a odstranění kořenů ve výkopišti, odstranění napadávek, urovnání dna výkopu. | L32: Položka obsahuje hloubení rýh traktorbagrem, naložení výkopku na dopravní prostředek pro svislé, nebo vodorovné přemístění, popř. přemístění výkopku do 3 m (po povrchu území), případné zajištění rypadel polštáři, udržování pracoviště a ochranu výkopiště proti stékání srážkové vody z okolního terénu i s jejím odvodněním, nebo odvedením, přesekání a odstranění kořenů ve výkopišti, odstranění napadávek, urovnání dna výkopu. | O32: 3
C33: Výkopy: | E33: 0 | M33: Výkopy:
C34: V hornině tř. 4 - 50%:118,3000*0,5 | E34: 59.15 | M34: V hornině tř. 4 - 50%:118,3000*0,5
A35: 5 | B35: 132301219R00 | C35: Přípl.za lepivost,hloubení rýh 200cm,hor.4,STROJNĚ | D35: m3 | E35: 29.575 | G35: =E35*F35 -> 0 | H35: 0 | I35: =E35*H35 -> 0 | J35: 0 | K35: =E35*J35 -> 0 | O35: 2 | AA35: 1 | AB35: 1 | AC35: 1 | AZ35: 1 | BA35: =IF(AZ35=1,G35,0) -> 0 | BB35: =IF(AZ35=2,G35,0) -> 0 | BC35: =IF(AZ35=3,G35,0) -> 0 | BD35: =IF(AZ35=4,G35,0) -> 0 | BE35: =IF(AZ35=5,G35,0) -> 0 | CA35: 1 | CB35: 1
C36: Výkopy: | E36: 0 | M36: Výkopy:
C37: V hornině tř. 4 - 50%:118,3000*0,5*0,5 | E37: 29.575 | M37: V hornině tř. 4 - 50%:118,3000*0,5*0,5
A38: 6 | B38: 132401211RXX | C38: Hloubení rýh šířky do 200 cm v hor.5, STROJNĚ Včetně případného dolamování nebo frézování | D38: m3 | E38: 11.83 | G38: =E38*F38 -> 0 | H38: 0 | I38: =E38*H38 -> 0 | J38: 0 | K38: =E38*J38 -> 0 | O38: 2 | AA38: 1 | AB38: 1 | AC38: 1 | AZ38: 1 | BA38: =IF(AZ38=1,G38,0) -> 0 | BB38: =IF(AZ38=2,G38,0) -> 0 | BC38: =IF(AZ38=3,G38,0) -> 0 | BD38: =IF(AZ38=4,G38,0) -> 0 | BE38: =IF(AZ38=5,G38,0) -> 0 | CA38: 1 | CB38: 1
C39: Výkopy: | E39: 0 | M39: Výkopy:
C40: V hornině tř. 5 - 10%:118,3000*0,1 | E40: 11.83 | M40: V hornině tř. 5 - 10%:118,3000*0,1
A41: 7 | B41: 151101101R00 | C41: Pažení a rozepření stěn rýh - příložné - hl.do 2 m | D41: m2 | E41: 442 | G41: =E41*F41 -> 0 | H41: 0.00099 | I41: =E41*H41 -> 0.43758 | J41: 0 | K41: =E41*J41 -> 0 | O41: 2 | AA41: 1 | AB41: 1 | AC41: 1 | AZ41: 1 | BA41: =IF(AZ41=1,G41,0) -> 0 | BB41: =IF(AZ41=2,G41,0) -> 0 | BC41: =IF(AZ41=3,G41,0) -> 0 | BD41: =IF(AZ41=4,G41,0) -> 0 | BE41: =IF(AZ41=5,G41,0) -> 0 | CA41: 1 | CB41: 1
C42: Výkopy: | E42: 0 | M42: Výkopy:
C43: Průměrná hloubka výkopů 1,70 m: | E43: 0 | M43: Průměrná hloubka výkopů 1,70 m:
C44: Řad "A8-1" PE D 110x10,0 mm: | E44: 0 | M44: Řad "A8-1" PE D 110x10,0 mm:
C45: VP PE D 32x3,0 mm (17 kusů):85,00*1,70*2 | E45: 289 | M45: VP PE D 32x3,0 mm (17 kusů):85,00*1,70*2
C46: Rezerva - 30%:85,00*0,3*1,70*2 | E46: 86.7 | M46: Rezerva - 30%:85,00*0,3*1,70*2
C47: Řad "A8-2-1" PE D 90x8,2 mm: | E47: 0 | M47: Řad "A8-2-1" PE D 90x8,2 mm:
C48: VP PE D 32x3,0 mm (3 kusy):15,00*1,70*2 | E48: 51 | M48: VP PE D 32x3,0 mm (3 kusy):15,00*1,70*2
C49: Rezerva - 30%:15,00*0,3*1,70*2 | E49: 15.3 | M49: Rezerva - 30%:15,00*0,3*1,70*2
A50: 8 | B50: 151101111R00 | C50: Odstranění pažení stěn rýh - příložné - hl. do 2 m | D50: m2 | E50: 442 | G50: =E50*F50 -> 0 | H50: 0 | I50: =E50*H50 -> 0 | J50: 0 | K50: =E50*J50 -> 0 | O50: 2 | AA50: 1 | AB50: 1 | AC50: 1 | AZ50: 1 | BA50: =IF(AZ50=1,G50,0) -> 0 | BB50: =IF(AZ50=2,G50,0) -> 0 | BC50: =IF(AZ50=3,G50,0) -> 0 | BD50: =IF(AZ50=4,G50,0) -> 0 | BE50: =IF(AZ50=5,G50,0) -> 0 | CA50: 1 | CB50: 1
C51: Výkopy: | E51: 0 | M51: Výkopy:
C52: Průměrná hloubka výkopů 1,70 m: | E52: 0 | M52: Průměrná hloubka výkopů 1,70 m:
C53: Řad "A8-1" PE D 110x10,0 mm: | E53: 0 | M53: Řad "A8-1" PE D 110x10,0 mm:
C54: VP PE D 32x3,0 mm (17 kusů):85,00*1,70*2 | E54: 289 | M54: VP PE D 32x3,0 mm (17 kusů):85,00*1,70*2
C55: Rezerva - 30%:85,00*0,3*1,70*2 | E55: 86.7 | M55: Rezerva - 30%:85,00*0,3*1,70*2
C56: Řad "A8-2-1" PE D 90x8,2 mm: | E56: 0 | M56: Řad "A8-2-1" PE D 90x8,2 mm:
C57: VP PE D 32x3,0 mm (3 kusy):15,00*1,70*2 | E57: 51 | M57: VP PE D 32x3,0 mm (3 kusy):15,00*1,70*2
C58: Rezerva - 30%:15,00*0,3*1,70*2 | E58: 15.3 | M58: Rezerva - 30%:15,00*0,3*1,70*2
A59: 9 | B59: 162701105RSZ | C59: Vodorovné přemístění výkopku z hor.1-7 na skládku zhotovitele | D59: m3 | E59: 118.3 | G59: =E59*F59 -> 0 | H59: 0 | I59: =E59*H59 -> 0 | J59: 0 | K59: =E59*J59 -> 0 | O59: 2 | AA59: 1 | AB59: 1 | AC59: 1 | AZ59: 1 | BA59: =IF(AZ59=1,G59,0) -> 0 | BB59: =IF(AZ59=2,G59,0) -> 0 | BC59: =IF(AZ59=3,G59,0) -> 0 | BD59: =IF(AZ59=4,G59,0) -> 0 | BE59: =IF(AZ59=5,G59,0) -> 0 | CA59: 1 | CB59: 1
C60: Výkopy: | E60: 0 | M60: Výkopy:
C61: V hornině tř. 3 - 5:118,3000 | E61: 118.3 | M61: V hornině tř. 3 - 5:118,3000
A62: 10 | B62: 174101101R00 | C62: Zásyp jam, rýh, šachet se zhutněním | D62: m3 | E62: 74.438 | G62: =E62*F62 -> 0 | H62: 0 | I62: =E62*H62 -> 0 | J62: 0 | K62: =E62*J62 -> 0 | O62: 2 | AA62: 1 | AB62: 1 | AC62: 1 | AZ62: 1 | BA62: =IF(AZ62=1,G62,0) -> 0 | BB62: =IF(AZ62=2,G62,0) -> 0 | BC62: =IF(AZ62=3,G62,0) -> 0 | BD62: =IF(AZ62=4,G62,0) -> 0 | BE62: =IF(AZ62=5,G62,0) -> 0 | CA62: 1 | CB62: 1
C63: Položka obsahuje strojní přemístění materiálu pro zásyp ze vzdálenosti do 10 m od okraje zásypu. | L63: Položka obsahuje strojní přemístění materiálu pro zásyp ze vzdálenosti do 10 m od okraje zásypu. | O63: 3
O64: 3
C65: Zásypy ŠD fr. 0-63 mm:74,4380 | E65: 74.438 | M65: Zásypy ŠD fr. 0-63 mm:74,4380
C66: Začátek provozního součtu | E66: 0 | M66: Začátek provozního součtu
C67: Výkopy: | E67: 0 | M67: Výkopy:
C68: V hornině tř. 3 - 5:118,3000 | E68: 118.3 | M68: V hornině tř. 3 - 5:118,3000
C69: Odpočet objemu lože, potrubí a obsypů: | E69: 0 | M69: Odpočet objemu lože, potrubí a obsypů:
C70: Řad "A8-1" PE D 110x10,0 mm: | E70: 0 | M70: Řad "A8-1" PE D 110x10,0 mm:
C71: VP PE D 32x3,0 mm (17 kusů):-85,00*0,70*(0,15+0,032+0,30) | E71: -28.679 | M71: VP PE D 32x3,0 mm (17 kusů):-85,00*0,70*(0,15+0,032+0,30)
C72: Rezerva - 30%:-85,00*0,3*0,70*(0,15+0,032+0,30) | E72: -8.6037 | M72: Rezerva - 30%:-85,00*0,3*0,70*(0,15+0,032+0,30)
C73: Řad "A8-2-1" PE D 90x8,2 mm: | E73: 0 | M73: Řad "A8-2-1" PE D 90x8,2 mm:
C74: VP PE D 32x3,0 mm (3 kusy):-15,00*0,70*(0,15+0,032+0,30) | E74: -5.061 | M74: VP PE D 32x3,0 mm (3 kusy):-15,00*0,70*(0,15+0,032+0,30)
C75: Rezerva - 30%:-15,00*0,3*0,70*(0,15+0,032+0,30) | E75: -1.5183 | M75: Rezerva - 30%:-15,00*0,3*0,70*(0,15+0,032+0,30)
C76: Konec provozního součtu | E76: 74.438 | M76: Konec provozního součtu
A77: 11 | B77: 175101101R00 | C77: Obsyp potrubí bez prohození sypaniny | D77: m3 | E77: 30.1074 | G77: =E77*F77 -> 0 | H77: 0 | I77: =E77*H77 -> 0 | J77: 0 | K77: =E77*J77 -> 0 | O77: 2 | AA77: 1 | AB77: 1 | AC77: 1 | AZ77: 1 | BA77: =IF(AZ77=1,G77,0) -> 0 | BB77: =IF(AZ77=2,G77,0) -> 0 | BC77: =IF(AZ77=3,G77,0) -> 0 | BD77: =IF(AZ77=4,G77,0) -> 0 | BE77: =IF(AZ77=5,G77,0) -> 0 | CA77: 1 | CB77: 1
C78: Řad "A8-1" PE D 110x10,0 mm: | E78: 0 | M78: Řad "A8-1" PE D 110x10,0 mm:
C79: VP PE D 32x3,0 mm (17 kusů):85,00*(0,70*(0,032+0,30)-0,016^2*Pi) | E79: 19.6856 | M79: VP PE D 32x3,0 mm (17 kusů):85,00*(0,70*(0,032+0,30)-0,016^2*Pi)
C80: Rezerva - 30%:85,00*0,3*(0,70*(0,032+0,30)-0,016^2*Pi) | E80: 5.9057 | M80: Rezerva - 30%:85,00*0,3*(0,70*(0,032+0,30)-0,016^2*Pi)
C81: Řad "A8-2-1" PE D 90x8,2 mm: | E81: 0 | M81: Řad "A8-2-1" PE D 90x8,2 mm:
C82: VP PE D 32x3,0 mm (3 kusy):15,00*(0,70*(0,032+0,30)-0,016^2*Pi) | E82: 3.4739 | M82: VP PE D 32x3,0 mm (3 kusy):15,00*(0,70*(0,032+0,30)-0,016^2*Pi)
C83: Rezerva - 30%:15,00*0,3*(0,70*(0,032+0,30)-0,016^2*Pi) | E83: 1.0422 | M83: Rezerva - 30%:15,00*0,3*(0,70*(0,032+0,30)-0,016^2*Pi)
A84: 12 | B84: 199000002R00 | C84: Poplatek za skládku horniny 1- 7 č. dle katal. odpadů 17 05 04 | D84: m3 | E84: 118.3 | G84: =E84*F84 -> 0 | H84: 0 | I84: =E84*H84 -> 0 | J84: 0 | K84: =E84*J84 -> 0 | O84: 2 | AA84: 1 | AB84: 1 | AC84: 1 | AZ84: 1 | BA84: =IF(AZ84=1,G84,0) -> 0 | BB84: =IF(AZ84=2,G84,0) -> 0 | BC84: =IF(AZ84=3,G84,0) -> 0 | BD84: =IF(AZ84=4,G84,0) -> 0 | BE84: =IF(AZ84=5,G84,0) -> 0 | CA84: 1 | CB84: 1
C85: Výkopy: | E85: 0 | M85: Výkopy:
C86: V hornině tř. 3 - 5:118,3000 | E86: 118.3 | M86: V hornině tř. 3 - 5:118,3000
A87: 13 | B87: 58337308.R | C87: Štěrkopísek frakce 0-2 tř.B | D87: t | E87: 59.996 | G87: =E87*F87 -> 0 | H87: 1 | I87: =E87*H87 -> 59.996 | K87: =E87*J87 -> 0 | O87: 2 | AA87: 3 | AB87: 1 | AC87: 58337308.R | AZ87: 1 | BA87: =IF(AZ87=1,G87,0) -> 0 | BB87: =IF(AZ87=2,G87,0) -> 0 | BC87: =IF(AZ87=3,G87,0) -> 0 | BD87: =IF(AZ87=4,G87,0) -> 0 | BE87: =IF(AZ87=5,G87,0) -> 0 | CA87: 3 | CB87: 1
C88: Řad "A8-1" PE D 110x10,0 mm: | E88: 0 | M88: Řad "A8-1" PE D 110x10,0 mm:
C89: VP PE D 32x3,0 mm (17 kusů):85,00*(0,70*(0,032+0,30)-0,016^2*Pi)*1,973*1,01 | E89: 39.2282 | M89: VP PE D 32x3,0 mm (17 kusů):85,00*(0,70*(0,032+0,30)-0,016^2*Pi)*1,973*1,01
C90: Rezerva - 30%:85,00*0,3*(0,70*(0,032+0,30)-0,016^2*Pi)*1,973*1,01 | E90: 11.7684 | M90: Rezerva - 30%:85,00*0,3*(0,70*(0,032+0,30)-0,016^2*Pi)*1,973*1,01
C91: Řad "A8-2-1" PE D 90x8,2 mm: | E91: 0 | M91: Řad "A8-2-1" PE D 90x8,2 mm:
C92: VP PE D 32x3,0 mm (3 kusy):15,00*(0,70*(0,032+0,30)-0,016^2*Pi)*1,973*1,01 | E92: 6.9226 | M92: VP PE D 32x3,0 mm (3 kusy):15,00*(0,70*(0,032+0,30)-0,016^2*Pi)*1,973*1,01
C93: Rezerva - 30%:15,00*0,3*(0,70*(0,032+0,30)-0,016^2*Pi)*1,973*1,01 | E93: 2.0768 | M93: Rezerva - 30%:15,00*0,3*(0,70*(0,032+0,30)-0,016^2*Pi)*1,973*1,01
A94: 14 | B94: 58344197R | C94: Štěrkodrtě frakce 0-63 A | D94: t | E94: 140.8166 | G94: =E94*F94 -> 0 | H94: 1 | I94: =E94*H94 -> 140.8166 | K94: =E94*J94 -> 0 | O94: 2 | AA94: 3 | AB94: 1 | AC94: 58344197R | AZ94: 1 | BA94: =IF(AZ94=1,G94,0) -> 0 | BB94: =IF(AZ94=2,G94,0) -> 0 | BC94: =IF(AZ94=3,G94,0) -> 0 | BD94: =IF(AZ94=4,G94,0) -> 0 | BE94: =IF(AZ94=5,G94,0) -> 0 | CA94: 3 | CB94: 1
C95: Zásypy ŠD fr. 0-63 mm:74,4380*1,873*1,01 | E95: 140.8166 | M95: Zásypy ŠD fr. 0-63 mm:74,4380*1,873*1,01
C96: Začátek provozního součtu | E96: 0 | M96: Začátek provozního součtu
C97: Výkopy: | E97: 0 | M97: Výkopy:
C98: V hornině tř. 3 - 5:118,3000 | E98: 118.3 | M98: V hornině tř. 3 - 5:118,3000
C99: Odpočet objemu lože, potrubí a obsypů: | E99: 0 | M99: Odpočet objemu lože, potrubí a obsypů:
C100: Řad "A8-1" PE D 110x10,0 mm: | E100: 0 | M100: Řad "A8-1" PE D 110x10,0 mm:
C101: VP PE D 32x3,0 mm (17 kusů):-85,00*0,70*(0,15+0,032+0,30) | E101: -28.679 | M101: VP PE D 32x3,0 mm (17 kusů):-85,00*0,70*(0,15+0,032+0,30)
C102: Rezerva - 30%:-85,00*0,3*0,70*(0,15+0,032+0,30) | E102: -8.6037 | M102: Rezerva - 30%:-85,00*0,3*0,70*(0,15+0,032+0,30)
C103: Řad "A8-2-1" PE D 90x8,2 mm: | E103: 0 | M103: Řad "A8-2-1" PE D 90x8,2 mm:
C104: VP PE D 32x3,0 mm (3 kusy):-15,00*0,70*(0,15+0,032+0,30) | E104: -5.061 | M104: VP PE D 32x3,0 mm (3 kusy):-15,00*0,70*(0,15+0,032+0,30)
C105: Rezerva - 30%:-15,00*0,3*0,70*(0,15+0,032+0,30) | E105: -1.5183 | M105: Rezerva - 30%:-15,00*0,3*0,70*(0,15+0,032+0,30)
C106: Konec provozního součtu | E106: 74.438 | M106: Konec provozního součtu
B107: Celkem za | C107: 1 Zemní práce | G107: =SUM(G7:G106) -> 0 | I107: =SUM(I7:I106) -> 201.25018 | K107: =SUM(K7:K106) -> 0 | O107: 4 | BA107: =SUM(BA7:BA106) -> 0 | BB107: =SUM(BB7:BB106) -> 0 | BC107: =SUM(BC7:BC106) -> 0 | BD107: =SUM(BD7:BD106) -> 0 | BE107: =SUM(BE7:BE106) -> 0
A108: Díl: | B108: 45 | C108: Podkladní a vedlejší konstrukce | O108: 1
A109: 15 | B109: 451572111R00 | C109: Lože pod potrubí z kameniva těženého 0 - 4 mm | D109: m3 | E109: 13.65 | G109: =E109*F109 -> 0 | H109: 0.43051 | I109: =E109*H109 -> 5.8764615 | J109: 0 | K109: =E109*J109 -> 0 | O109: 2 | AA109: 1 | AB109: 1 | AC109: 1 | AZ109: 1 | BA109: =IF(AZ109=1,G109,0) -> 0 | BB109: =IF(AZ109=2,G109,0) -> 0 | BC109: =IF(AZ109=3,G109,0) -> 0 | BD109: =IF(AZ109=4,G109,0) -> 0 | BE109: =IF(AZ109=5,G109,0) -> 0 | CA109: 1 | CB109: 1
C110: Řad "A8-1" PE D 110x10,0 mm: | E110: 0 | M110: Řad "A8-1" PE D 110x10,0 mm:
C111: VP PE D 32x3,0 mm (17 kusů):85,00*0,70*0,15 | E111: 8.925 | M111: VP PE D 32x3,0 mm (17 kusů):85,00*0,70*0,15
C112: Rezerva - 30%:85,00*0,3*0,70*0,15 | E112: 2.6775 | M112: Rezerva - 30%:85,00*0,3*0,70*0,15
C113: Řad "A8-2-1" PE D 90x8,2 mm: | E113: 0 | M113: Řad "A8-2-1" PE D 90x8,2 mm:
C114: VP PE D 32x3,0 mm (3 kusy):15,00*0,70*0,15 | E114: 1.575 | M114: VP PE D 32x3,0 mm (3 kusy):15,00*0,70*0,15
C115: Rezerva - 30%:15,00*0,3*0,70*0,15 | E115: 0.4725 | M115: Rezerva - 30%:15,00*0,3*0,70*0,15
B116: Celkem za | C116: 45 Podkladní a vedlejší konstrukce | G116: =SUM(G108:G115) -> 0 | I116: =SUM(I108:I115) -> 5.8764615 | K116: =SUM(K108:K115) -> 0 | O116: 4 | BA116: =SUM(BA108:BA115) -> 0 | BB116: =SUM(BB108:BB115) -> 0 | BC116: =SUM(BC108:BC115) -> 0 | BD116: =SUM(BD108:BD115) -> 0 | BE116: =SUM(BE108:BE115) -> 0
A117: Díl: | B117: 5 | C117: Komunikace | O117: 1
A118: 16 | B118: 572701119RRX | C118: Provizorní zásyp rýh kam. hrubě drceným nebo recyk s následným odstraněním a odvozem | D118: m3 | E118: 36.4 | G118: =E118*F118 -> 0 | H118: 1.4805 | I118: =E118*H118 -> 53.8902 | J118: 0 | K118: =E118*J118 -> 0 | O118: 2 | AA118: 1 | AB118: 1 | AC118: 1 | AZ118: 1 | BA118: =IF(AZ118=1,G118,0) -> 0 | BB118: =IF(AZ118=2,G118,0) -> 0 | BC118: =IF(AZ118=3,G118,0) -> 0 | BD118: =IF(AZ118=4,G118,0) -> 0 | BE118: =IF(AZ118=5,G118,0) -> 0 | CA118: 1 | CB118: 1
C119: Řad "A8-1" PE D 110x10,0 mm: | E119: 0 | M119: Řad "A8-1" PE D 110x10,0 mm:
C120: VP PE D 32x3,0 mm (17 kusů):85,00*0,70*0,40 | E120: 23.8 | M120: VP PE D 32x3,0 mm (17 kusů):85,00*0,70*0,40
C121: Rezerva - 30%:85,00*0,3*0,70*0,40 | E121: 7.14 | M121: Rezerva - 30%:85,00*0,3*0,70*0,40
C122: Řad "A8-2-1" PE D 90x8,2 mm: | E122: 0 | M122: Řad "A8-2-1" PE D 90x8,2 mm:
C123: VP PE D 32x3,0 mm (3 kusy):15,00*0,70*0,40 | E123: 4.2 | M123: VP PE D 32x3,0 mm (3 kusy):15,00*0,70*0,40
C124: Rezerva - 30%:15,00*0,3*0,70*0,40 | E124: 1.26 | M124: Rezerva - 30%:15,00*0,3*0,70*0,40
B125: Celkem za | C125: 5 Komunikace | G125: =SUM(G117:G124) -> 0 | I125: =SUM(I117:I124) -> 53.8902 | K125: =SUM(K117:K124) -> 0 | O125: 4 | BA125: =SUM(BA117:BA124) -> 0 | BB125: =SUM(BB117:BB124) -> 0 | BC125: =SUM(BC117:BC124) -> 0 | BD125: =SUM(BD117:BD124) -> 0 | BE125: =SUM(BE117:BE124) -> 0
A126: Díl: | B126: 8 | C126: Trubní vedení | O126: 1
A127: 17 | B127: 871161121R00 | C127: Montáž trubek polyetylenových ve výkopu d 32 mm | D127: m | E127: 130 | G127: =E127*F127 -> 0 | H127: 0 | I127: =E127*H127 -> 0 | J127: 0 | K127: =E127*J127 -> 0 | O127: 2 | AA127: 1 | AB127: 1 | AC127: 1 | AZ127: 1 | BA127: =IF(AZ127=1,G127,0) -> 0 | BB127: =IF(AZ127=2,G127,0) -> 0 | BC127: =IF(AZ127=3,G127,0) -> 0 | BD127: =IF(AZ127=4,G127,0) -> 0 | BE127: =IF(AZ127=5,G127,0) -> 0 | CA127: 1 | CB127: 1
C128: V položce je uvažováno použití svitku. | L128: V položce je uvažováno použití svitku. | O128: 3
C129: Řad "A8-1" PE D 110x10,0 mm: | E129: 0 | M129: Řad "A8-1" PE D 110x10,0 mm:
C130: VP PE D 32x3,0 mm (17 kusů):85,00 | E130: 85 | M130: VP PE D 32x3,0 mm (17 kusů):85,00
C131: Začátek provozního součtu | E131: 0 | M131: Začátek provozního součtu
C132: Pro čp. 858: | E132: 0 | M132: Pro čp. 858:
C133: Pro čp. 859: | E133: 0 | M133: Pro čp. 859:
C134: Pro čp. 874: | E134: 0 | M134: Pro čp. 874:
C135: Pro čp. 860: | E135: 0 | M135: Pro čp. 860:
C136: Pro čp. 873: | E136: 0 | M136: Pro čp. 873:
C137: Pro čp. 861: | E137: 0 | M137: Pro čp. 861:
C138: Pro čp. 862: | E138: 0 | M138: Pro čp. 862:
C139: Pro čp. 863: | E139: 0 | M139: Pro čp. 863:
C140: Pro čp. 872: | E140: 0 | M140: Pro čp. 872:
C141: Pro čp. 871: | E141: 0 | M141: Pro čp. 871:
C142: Pro čp. 864: | E142: 0 | M142: Pro čp. 864:
C143: Pro čp. 870: | E143: 0 | M143: Pro čp. 870:
C144: Pro čp. 865: | E144: 0 | M144: Pro čp. 865:
C145: Pro čp. 869: | E145: 0 | M145: Pro čp. 869:
C146: Pro čp. 866: | E146: 0 | M146: Pro čp. 866:
C147: Pro čp. 867: | E147: 0 | M147: Pro čp. 867:
C148: Pro čp. 868: | E148: 0 | M148: Pro čp. 868:
C149: Konec provozního součtu | E149: 0 | M149: Konec provozního součtu
C150: Rezerva - 30%:85,00*0,3 | E150: 25.5 | M150: Rezerva - 30%:85,00*0,3
C151: Řad "A8-2-1" PE D 90x8,2 mm: | E151: 0 | M151: Řad "A8-2-1" PE D 90x8,2 mm:
C152: VP PE D 32x3,0 mm (3 kusy):15,00 | E152: 15 | M152: VP PE D 32x3,0 mm (3 kusy):15,00
C153: Začátek provozního součtu | E153: 0 | M153: Začátek provozního součtu
C154: Pro čp. 896: | E154: 0 | M154: Pro čp. 896:
C155: Pro čp. 895: | E155: 0 | M155: Pro čp. 895:
C156: Pro čp. 894: | E156: 0 | M156: Pro čp. 894:
C157: Konec provozního součtu | E157: 0 | M157: Konec provozního součtu
C158: Rezerva - 30%:15,00*0,3 | E158: 4.5 | M158: Rezerva - 30%:15,00*0,3
A159: 18 | B159: 877162121R00 | C159: Přirážka za 1 spoj elektrotvarovky d 32 mm | D159: kus | E159: 20 | G159: =E159*F159 -> 0 | H159: 0 | I159: =E159*H159 -> 0 | J159: 0 | K159: =E159*J159 -> 0 | O159: 2 | AA159: 1 | AB159: 1 | AC159: 1 | AZ159: 1 | BA159: =IF(AZ159=1,G159,0) -> 0 | BB159: =IF(AZ159=2,G159,0) -> 0 | BC159: =IF(AZ159=3,G159,0) -> 0 | BD159: =IF(AZ159=4,G159,0) -> 0 | BE159: =IF(AZ159=5,G159,0) -> 0 | CA159: 1 | CB159: 1
C160: Řad "A8-1" PE D 110x10,0 mm: | E160: 0 | M160: Řad "A8-1" PE D 110x10,0 mm:
C161: VP PE D 32x3,0 mm (17 kusů) - Elektrospojka PE D32:17 | E161: 17 | M161: VP PE D 32x3,0 mm (17 kusů) - Elektrospojka PE D32:17
C162: Řad "A8-2-1" PE D 90x8,2 mm: | E162: 0 | M162: Řad "A8-2-1" PE D 90x8,2 mm:
C163: VP PE D 32x3,0 mm (3 kusy) - Elektrospojka PE D32:3 | E163: 3 | M163: VP PE D 32x3,0 mm (3 kusy) - Elektrospojka PE D32:3
A164: 19 | B164: 891183439RX0 | C164: Přepojení potrubí PE na přípojkách D 32 včetně dodávky přepojovací tvarovky | D164: kus | E164: 20 | G164: =E164*F164 -> 0 | H164: 0.00046 | I164: =E164*H164 -> 0.0092 | J164: 0 | K164: =E164*J164 -> 0 | O164: 2 | AA164: 1 | AB164: 1 | AC164: 1 | AZ164: 1 | BA164: =IF(AZ164=1,G164,0) -> 0 | BB164: =IF(AZ164=2,G164,0) -> 0 | BC164: =IF(AZ164=3,G164,0) -> 0 | BD164: =IF(AZ164=4,G164,0) -> 0 | BE164: =IF(AZ164=5,G164,0) -> 0 | CA164: 1 | CB164: 1
C165: Položka obsahuje přerušení stávajícího potrubí, montáž a dodávku příslušné tvarovky pro propojení stávajícího potrubí (PE, ocel a pod.) s novým potrubím (PE D 32x3,0 mm) přípojky D 32 | L165: Položka obsahuje přerušení stávajícího potrubí, montáž a dodávku příslušné tvarovky pro propojení stávajícího potrubí (PE, ocel a pod.) s novým potrubím (PE D 32x3,0 mm) přípojky D 32 | O165: 3
C166: Řad "A8-1" PE D 110x10,0 mm: | E166: 0 | M166: Řad "A8-1" PE D 110x10,0 mm:
C167: VP PE D 32x3,0 mm (17 kusů):17 | E167: 17 | M167: VP PE D 32x3,0 mm (17 kusů):17
C168: Řad "A8-2-1" PE D 90x8,2 mm: | E168: 0 | M168: Řad "A8-2-1" PE D 90x8,2 mm:
C169: VP PE D 32x3,0 mm (3 kusy):3 | E169: 3 | M169: VP PE D 32x3,0 mm (3 kusy):3
A170: 20 | B170: 892233111R00 | C170: Desinfekce vodovodního potrubí DN 70 | D170: m | E170: 130 | G170: =E170*F170 -> 0 | H170: 0 | I170: =E170*H170 -> 0 | J170: 0 | K170: =E170*J170 -> 0 | O170: 2 | AA170: 1 | AB170: 1 | AC170: 1 | AZ170: 1 | BA170: =IF(AZ170=1,G170,0) -> 0 | BB170: =IF(AZ170=2,G170,0) -> 0 | BC170: =IF(AZ170=3,G170,0) -> 0 | BD170: =IF(AZ170=4,G170,0) -> 0 | BE170: =IF(AZ170=5,G170,0) -> 0 | CA170: 1 | CB170: 1
C171: V položce jsou zakalkulovány náklady na napuštění a vypuštění vody, dodání vody a desinfekčního prostředku a na bakteriologický rozbor vody. | L171: V položce jsou zakalkulovány náklady na napuštění a vypuštění vody, dodání vody a desinfekčního prostředku a na bakteriologický rozbor vody. | O171: 3
C172: Řad "A8-1" PE D 110x10,0 mm: | E172: 0 | M172: Řad "A8-1" PE D 110x10,0 mm:
C173: VP PE D 32x3,0 mm (17 kusů):85,00 | E173: 85 | M173: VP PE D 32x3,0 mm (17 kusů):85,00
C174: Rezerva - 30%:85,00*0,3 | E174: 25.5 | M174: Rezerva - 30%:85,00*0,3
C175: Řad "A8-2-1" PE D 90x8,2 mm: | E175: 0 | M175: Řad "A8-2-1" PE D 90x8,2 mm:
C176: VP PE D 32x3,0 mm (3 kusy):15,00 | E176: 15 | M176: VP PE D 32x3,0 mm (3 kusy):15,00
C177: Rezerva - 30%:15,00*0,3 | E177: 4.5 | M177: Rezerva - 30%:15,00*0,3
A178: 21 | B178: 892241111R00 | C178: Tlaková zkouška vodovodního potrubí DN 80 včetně zajištění konců potrubí | D178: m | E178: 130 | G178: =E178*F178 -> 0 | H178: 0 | I178: =E178*H178 -> 0 | J178: 0 | K178: =E178*J178 -> 0 | O178: 2 | AA178: 1 | AB178: 1 | AC178: 1 | AZ178: 1 | BA178: =IF(AZ178=1,G178,0) -> 0 | BB178: =IF(AZ178=2,G178,0) -> 0 | BC178: =IF(AZ178=3,G178,0) -> 0 | BD178: =IF(AZ178=4,G178,0) -> 0 | BE178: =IF(AZ178=5,G178,0) -> 0 | CA178: 1 | CB178: 1
C179: V položce jsou započteny náklady na přísun, montáž, demontáž a odsun zkoušecího čerpadla, napuštění tlakovou vodou a dodání vody pro tlakovou zkoušku. | L179: V položce jsou započteny náklady na přísun, montáž, demontáž a odsun zkoušecího čerpadla, napuštění tlakovou vodou a dodání vody pro tlakovou zkoušku. | O179: 3
C180: Řad "A8-1" PE D 110x10,0 mm: | E180: 0 | M180: Řad "A8-1" PE D 110x10,0 mm:
C181: VP PE D 32x3,0 mm (17 kusů):85,00 | E181: 85 | M181: VP PE D 32x3,0 mm (17 kusů):85,00
C182: Rezerva - 30%:85,00*0,3 | E182: 25.5 | M182: Rezerva - 30%:85,00*0,3
C183: Řad "A8-2-1" PE D 90x8,2 mm: | E183: 0 | M183: Řad "A8-2-1" PE D 90x8,2 mm:
C184: VP PE D 32x3,0 mm (3 kusy):15,00 | E184: 15 | M184: VP PE D 32x3,0 mm (3 kusy):15,00
C185: Rezerva - 30%:15,00*0,3 | E185: 4.5 | M185: Rezerva - 30%:15,00*0,3
A186: 22 | B186: 899721112R00 | C186: Fólie výstražná z PVC bílá, šířka 30 cm | D186: m | E186: 130 | G186: =E186*F186 -> 0 | H186: 0 | I186: =E186*H186 -> 0 | J186: 0 | K186: =E186*J186 -> 0 | O186: 2 | AA186: 1 | AB186: 1 | AC186: 1 | AZ186: 1 | BA186: =IF(AZ186=1,G186,0) -> 0 | BB186: =IF(AZ186=2,G186,0) -> 0 | BC186: =IF(AZ186=3,G186,0) -> 0 | BD186: =IF(AZ186=4,G186,0) -> 0 | BE186: =IF(AZ186=5,G186,0) -> 0 | CA186: 1 | CB186: 1
C187: Řad "A8-1" PE D 110x10,0 mm: | E187: 0 | M187: Řad "A8-1" PE D 110x10,0 mm:
C188: VP PE D 32x3,0 mm (17 kusů):85,00 | E188: 85 | M188: VP PE D 32x3,0 mm (17 kusů):85,00
C189: Rezerva - 30%:85,00*0,3 | E189: 25.5 | M189: Rezerva - 30%:85,00*0,3
C190: Řad "A8-2-1" PE D 90x8,2 mm: | E190: 0 | M190: Řad "A8-2-1" PE D 90x8,2 mm:
C191: VP PE D 32x3,0 mm (3 kusy):15,00 | E191: 15 | M191: VP PE D 32x3,0 mm (3 kusy):15,00
C192: Rezerva - 30%:15,00*0,3 | E192: 4.5 | M192: Rezerva - 30%:15,00*0,3
A193: 23 | B193: 899731113R00 | C193: Vodič signalizační CYY 4 mm2 | D193: m | E193: 130 | G193: =E193*F193 -> 0 | H193: 5e-05 | I193: =E193*H193 -> 0.0065 | J193: 0 | K193: =E193*J193 -> 0 | O193: 2 | AA193: 1 | AB193: 1 | AC193: 1 | AZ193: 1 | BA193: =IF(AZ193=1,G193,0) -> 0 | BB193: =IF(AZ193=2,G193,0) -> 0 | BC193: =IF(AZ193=3,G193,0) -> 0 | BD193: =IF(AZ193=4,G193,0) -> 0 | BE193: =IF(AZ193=5,G193,0) -> 0 | CA193: 1 | CB193: 1
C194: Součástí položky je zajištění proměření vodiče a výchozí revize. | L194: Součástí položky je zajištění proměření vodiče a výchozí revize. | O194: 3
C195: Řad "A8-1" PE D 110x10,0 mm: | E195: 0 | M195: Řad "A8-1" PE D 110x10,0 mm:
C196: VP PE D 32x3,0 mm (17 kusů):85,00 | E196: 85 | M196: VP PE D 32x3,0 mm (17 kusů):85,00
C197: Rezerva - 30%:85,00*0,3 | E197: 25.5 | M197: Rezerva - 30%:85,00*0,3
C198: Řad "A8-2-1" PE D 90x8,2 mm: | E198: 0 | M198: Řad "A8-2-1" PE D 90x8,2 mm:
C199: VP PE D 32x3,0 mm (3 kusy):15,00 | E199: 15 | M199: VP PE D 32x3,0 mm (3 kusy):15,00
C200: Rezerva - 30%:15,00*0,3 | E200: 4.5 | M200: Rezerva - 30%:15,00*0,3
A201: 24 | B201: 28613576.01.R | C201: Trubka PE100RC2 SDR11 D 32x3,0 mm L 100m | D201: m | E201: 131.95 | G201: =E201*F201 -> 0 | H201: 0.00379 | I201: =E201*H201 -> 0.5000905 | K201: =E201*J201 -> 0 | O201: 2 | AA201: 3 | AB201: 1 | AC201: 28613576.01.R | AZ201: 1 | BA201: =IF(AZ201=1,G201,0) -> 0 | BB201: =IF(AZ201=2,G201,0) -> 0 | BC201: =IF(AZ201=3,G201,0) -> 0 | BD201: =IF(AZ201=4,G201,0) -> 0 | BE201: =IF(AZ201=5,G201,0) -> 0 | CA201: 3 | CB201: 1
C202: Řad "A8-1" PE D 110x10,0 mm: | E202: 0 | M202: Řad "A8-1" PE D 110x10,0 mm:
... 15 more rows

Sheet 1.E 01 1.E 01.5 KL
A1: POLOŽKOVÝ ROZPOČET
A2: Rozpočet | C2: 1.E 01.5 | D2: Úpravy stáv.vodovodních napojovacích bodů Hrabačov | F2: JKSO | G2: 827.11
A4: Objekt | F4: SKP
A5: 1.E 01 | C5: Vodovody | F5: Měrná jednotka | G5: m
A6: Stavba | F6: Počet jednotek | G6: 0
A7: 3403 | C7: Jilemnice - Optimalizace VS a komunikace I.Etapa | F7: Náklady na m.j. | G7: =IF(G6=0,,ROUND((F30+F32)/G6,1)) -> 0
A8: Projektant | C8: Vodohospodářsko - inženýrské služby spol. s r.o. | F8: Typ rozpočtu
A9: Zpracovatel projektu
A10: Objednatel | C10: Vodohospodářské sdružení Turnov
A11: Dodavatel | C11: . | F11: Zakázkové číslo
A12: Rozpočtoval | F12: Počet listů
A13: ROZPOČTOVÉ NÁKLADY
A14: Základní rozpočtové náklady
B15: HSV celkem | C15: ='1.E 01 1.E 01.5 Rek'!E12 -> 0
A16: Z | B16: PSV celkem | C16: ='1.E 01 1.E 01.5 Rek'!F12 -> 0
A17: R | B17: M práce celkem | C17: ='1.E 01 1.E 01.5 Rek'!H12 -> 0
A18: N | B18: M dodávky celkem | C18: ='1.E 01 1.E 01.5 Rek'!G12 -> 0
A19: ZRN celkem | C19: =SUM(C15:C18) -> 0
A21: HZS | C21: ='1.E 01 1.E 01.5 Rek'!I12 -> 0
A22: ZRN+HZS | C22: =C19+C21 -> 0
A23: ZRN+ost.náklady+HZS | C23: =C22+G23 -> 0
A24: Vypracoval | D24: Za zhotovitele | F24: Za objednatele
A25: Jméno : | D25: Jméno : | F25: Jméno :
A26: Datum : | D26: Datum : | F26: Datum :
A28: Podpis : | D28: Podpis: | F28: Podpis:
A30: Základ pro DPH | C30: 21 | D30: % | F30: =C23-F32 -> 0
A31: DPH | C31: =C30 -> 21 | D31: % | F31: =ROUND(PRODUCT(F30,C31/100),0) -> 0
A32: Základ pro DPH | C32: 0 | D32: % | F32: 0
A33: DPH | C33: =C32 -> 0 | D33: % | F33: =ROUND(PRODUCT(F32,C33/100),0) -> 0
A34: CENA ZA OBJEKT CELKEM | F34: =ROUND(SUM(F30:F33),0) -> 0
A36: Poznámka :

Sheet 1.E 01 1.E 01.5 Rek
A1: Stavba : | C1: 3403 Jilemnice - Optimalizace VS a komunikace | G1: Rozpočet : | H1: 1.E 01.5
A2: Objekt : | C2: 1.E 01 Vodovody | G2: Úpravy stáv.vodovodních napojovacích bodů Hrabačov
A4: REKAPITULACE STAVEBNÍCH DÍLŮ
B6: Stavební díl | E6: HSV | F6: PSV | G6: Dodávka | H6: Montáž | I6: HZS
A7: ='1.E 01 1.E 01.5 Pol'!B7 -> 1 | B7: ='1.E 01 1.E 01.5 Pol'!C7 -> Zemní práce | E7: ='1.E 01 1.E 01.5 Pol'!BA79 -> 0 | F7: ='1.E 01 1.E 01.5 Pol'!BB79 -> 0 | G7: ='1.E 01 1.E 01.5 Pol'!BC79 -> 0 | H7: ='1.E 01 1.E 01.5 Pol'!BD79 -> 0 | I7: ='1.E 01 1.E 01.5 Pol'!BE79 -> 0
A8: ='1.E 01 1.E 01.5 Pol'!B80 -> 45 | B8: ='1.E 01 1.E 01.5 Pol'!C80 -> Podkladní a vedlejší konstrukce | E8: ='1.E 01 1.E 01.5 Pol'!BA85 -> 0 | F8: ='1.E 01 1.E 01.5 Pol'!BB85 -> 0 | G8: ='1.E 01 1.E 01.5 Pol'!BC85 -> 0 | H8: ='1.E 01 1.E 01.5 Pol'!BD85 -> 0 | I8: ='1.E 01 1.E 01.5 Pol'!BE85 -> 0
A9: ='1.E 01 1.E 01.5 Pol'!B86 -> 5 | B9: ='1.E 01 1.E 01.5 Pol'!C86 -> Komunikace | E9: ='1.E 01 1.E 01.5 Pol'!BA91 -> 0 | F9: ='1.E 01 1.E 01.5 Pol'!BB91 -> 0 | G9: ='1.E 01 1.E 01.5 Pol'!BC91 -> 0 | H9: ='1.E 01 1.E 01.5 Pol'!BD91 -> 0 | I9: ='1.E 01 1.E 01.5 Pol'!BE91 -> 0
A10: ='1.E 01 1.E 01.5 Pol'!B92 -> 8 | B10: ='1.E 01 1.E 01.5 Pol'!C92 -> Trubní vedení | E10: ='1.E 01 1.E 01.5 Pol'!BA142 -> 0 | F10: ='1.E 01 1.E 01.5 Pol'!BB142 -> 0 | G10: ='1.E 01 1.E 01.5 Pol'!BC142 -> 0 | H10: ='1.E 01 1.E 01.5 Pol'!BD142 -> 0 | I10: ='1.E 01 1.E 01.5 Pol'!BE142 -> 0
A11: ='1.E 01 1.E 01.5 Pol'!B143 -> 99 | B11: ='1.E 01 1.E 01.5 Pol'!C143 -> Staveništní přesun hmot | E11: ='1.E 01 1.E 01.5 Pol'!BA146 -> 0 | F11: ='1.E 01 1.E 01.5 Pol'!BB146 -> 0 | G11: ='1.E 01 1.E 01.5 Pol'!BC146 -> 0 | H11: ='1.E 01 1.E 01.5 Pol'!BD146 -> 0 | I11: ='1.E 01 1.E 01.5 Pol'!BE146 -> 0
B12: CELKEM OBJEKT | E12: =SUM(E7:E11) -> 0 | F12: =SUM(F7:F11) -> 0 | G12: =SUM(G7:G11) -> 0 | H12: =SUM(H7:H11) -> 0 | I12: =SUM(I7:I11) -> 0

Sheet 1.E 01 1.E 01.5 Pol
A1: Položkový rozpočet
A3: Stavba : | C3: 3403 Jilemnice - Optimalizace VS a komunikace | E3: Rozpočet: | F3: ='1.E 01 1.E 01.5 Rek'!H1 -> 1.E 01.5
A4: Objekt : | C4: 1.E 01 Vodovody | E4: ='1.E 01 1.E 01.5 Rek'!G2 -> Úpravy stáv.vodovodních napojovacích bodů Hrabačov
A6: P.č. | B6: Číslo položky | C6: Název položky | D6: MJ | E6: množství | F6: cena / MJ | G6: celkem (Kč) | H6: Jednotková hmotnost | I6: Celková hmotnost | J6: Jednotková dem.hmot. | K6: Celková dem.hmot.
A7: Díl: | B7: 1 | C7: Zemní práce | O7: 1
A8: 1 | B8: 130001101RRX | C8: Příplatek za ztížené hloubení v blízkosti vedení | D8: m3 | E8: 10.5742 | G8: =E8*F8 -> 0 | H8: 0 | I8: =E8*H8 -> 0 | J8: 0 | K8: =E8*J8 -> 0 | O8: 2 | AA8: 1 | AB8: 1 | AC8: 1 | AZ8: 1 | BA8: =IF(AZ8=1,G8,0) -> 0 | BB8: =IF(AZ8=2,G8,0) -> 0 | BC8: =IF(AZ8=3,G8,0) -> 0 | BD8: =IF(AZ8=4,G8,0) -> 0 | BE8: =IF(AZ8=5,G8,0) -> 0 | CA8: 1 | CB8: 1
C9: Včetně případných nutných dokopávem a ručního výkopu podél sousedících inženýrských sítí. | L9: Včetně případných nutných dokopávem a ručního výkopu podél sousedících inženýrských sítí. | O9: 3
C10: Součástí položky je i dočasné zajištění inženýrských sítí v prostoru výkopů (potrubí, kabely a pod.) | L10: Součástí položky je i dočasné zajištění inženýrských sítí v prostoru výkopů (potrubí, kabely a pod.) | O10: 3
C11: Výkopy: | E11: 0 | M11: Výkopy:
C12: V hornině tř. 3 - 5 - 35%:30,2120*0,35 | E12: 10.5742 | M12: V hornině tř. 3 - 5 - 35%:30,2120*0,35
A13: 2 | B13: 132201212R00 | C13: Hloubení rýh š.do 200 cm hor.3 do 1000m3,STROJNĚ | D13: m3 | E13: 12.0848 | G13: =E13*F13 -> 0 | H13: 0 | I13: =E13*H13 -> 0 | J13: 0 | K13: =E13*J13 -> 0 | O13: 2 | AA13: 1 | AB13: 1 | AC13: 1 | AZ13: 1 | BA13: =IF(AZ13=1,G13,0) -> 0 | BB13: =IF(AZ13=2,G13,0) -> 0 | BC13: =IF(AZ13=3,G13,0) -> 0 | BD13: =IF(AZ13=4,G13,0) -> 0 | BE13: =IF(AZ13=5,G13,0) -> 0 | CA13: 1 | CB13: 1
C14: Položka obsahuje hloubení rýh traktorbagrem, naložení výkopku na dopravní prostředek pro svislé, nebo vodorovné přemístění, popř. přemístění výkopku do 3 m (po povrchu území), případné zajištění rypadel polštáři, udržování pracoviště a ochranu výkopiště proti stékání srážkové vody z okolního terénu i s jejím odvodněním, nebo odvedením, přesekání a odstranění kořenů ve výkopišti, odstranění napadávek, urovnání dna výkopu. | L14: Položka obsahuje hloubení rýh traktorbagrem, naložení výkopku na dopravní prostředek pro svislé, nebo vodorovné přemístění, popř. přemístění výkopku do 3 m (po povrchu území), případné zajištění rypadel polštáři, udržování pracoviště a ochranu výkopiště proti stékání srážkové vody z okolního terénu i s jejím odvodněním, nebo odvedením, přesekání a odstranění kořenů ve výkopišti, odstranění napadávek, urovnání dna výkopu. | O14: 3
C15: Výkopy: | E15: 0 | M15: Výkopy:
C16: Začátek provozního součtu | E16: 0 | M16: Začátek provozního součtu
C17: Průměrná hloubka výkopů 1,70 m: | E17: 0 | M17: Průměrná hloubka výkopů 1,70 m:
C18: Řad "A8-2" PE D 110x10,0 mm: | E18: 0 | M18: Řad "A8-2" PE D 110x10,0 mm:
C19: VP PE D 32x3,0 mm (9 kusů):20,00*0,70*1,70 | E19: 23.8 | M19: VP PE D 32x3,0 mm (9 kusů):20,00*0,70*1,70
C20: Rezerva - 30%:20,00*0,3*0,70*1,70 | E20: 7.14 | M20: Rezerva - 30%:20,00*0,3*0,70*1,70
C21: Odpočet předpokládaného objemu MK:-(2,00+2,00*0,3)*0,70*0,40 | E21: -0.728 | M21: Odpočet předpokládaného objemu MK:-(2,00+2,00*0,3)*0,70*0,40
C22: Konec provozního součtu | E22: 30.212 | M22: Konec provozního součtu
C23: V hornině tř. 3 - 40%:30,2120*0,4 | E23: 12.0848 | M23: V hornině tř. 3 - 40%:30,2120*0,4
A24: 3 | B24: 132201219R00 | C24: Přípl.za lepivost,hloubení rýh 200cm,hor.3,STROJNĚ | D24: m3 | E24: 6.0424 | G24: =E24*F24 -> 0 | H24: 0 | I24: =E24*H24 -> 0 | J24: 0 | K24: =E24*J24 -> 0 | O24: 2 | AA24: 1 | AB24: 1 | AC24: 1 | AZ24: 1 | BA24: =IF(AZ24=1,G24,0) -> 0 | BB24: =IF(AZ24=2,G24,0) -> 0 | BC24: =IF(AZ24=3,G24,0) -> 0 | BD24: =IF(AZ24=4,G24,0) -> 0 | BE24: =IF(AZ24=5,G24,0) -> 0 | CA24: 1 | CB24: 1
C25: Výkopy: | E25: 0 | M25: Výkopy:
C26: V hornině tř. 3 - 40%:30,2120*0,4*0,5 | E26: 6.0424 | M26: V hornině tř. 3 - 40%:30,2120*0,4*0,5
A27: 4 | B27: 132301212R00 | C27: Hloubení rýh š.do 200 cm hor.4 do 1000 m3, STROJNĚ | D27: m3 | E27: 15.106 | G27: =E27*F27 -> 0 | H27: 0 | I27: =E27*H27 -> 0 | J27: 0 | K27: =E27*J27 -> 0 | O27: 2 | AA27: 1 | AB27: 1 | AC27: 1 | AZ27: 1 | BA27: =IF(AZ27=1,G27,0) -> 0 | BB27: =IF(AZ27=2,G27,0) -> 0 | BC27: =IF(AZ27=3,G27,0) -> 0 | BD27: =IF(AZ27=4,G27,0) -> 0 | BE27: =IF(AZ27=5,G27,0) -> 0 | CA27: 1 | CB27: 1
C28: Položka obsahuje hloubení rýh traktorbagrem, naložení výkopku na dopravní prostředek pro svislé, nebo vodorovné přemístění, popř. přemístění výkopku do 3 m (po povrchu území), případné zajištění rypadel polštáři, udržování pracoviště a ochranu výkopiště proti stékání srážkové vody z okolního terénu i s jejím odvodněním, nebo odvedením, přesekání a odstranění kořenů ve výkopišti, odstranění napadávek, urovnání dna výkopu. | L28: Položka obsahuje hloubení rýh traktorbagrem, naložení výkopku na dopravní prostředek pro svislé, nebo vodorovné přemístění, popř. přemístění výkopku do 3 m (po povrchu území), případné zajištění rypadel polštáři, udržování pracoviště a ochranu výkopiště proti stékání srážkové vody z okolního terénu i s jejím odvodněním, nebo odvedením, přesekání a odstranění kořenů ve výkopišti, odstranění napadávek, urovnání dna výkopu. | O28: 3
C29: Výkopy: | E29: 0 | M29: Výkopy:
C30: V hornině tř. 4 - 50%:30,2120*0,5 | E30: 15.106 | M30: V hornině tř. 4 - 50%:30,2120*0,5
A31: 5 | B31: 132301219R00 | C31: Přípl.za lepivost,hloubení rýh 200cm,hor.4,STROJNĚ | D31: m3 | E31: 7.553 | G31: =E31*F31 -> 0 | H31: 0 | I31: =E31*H31 -> 0 | J31: 0 | K31: =E31*J31 -> 0 | O31: 2 | AA31: 1 | AB31: 1 | AC31: 1 | AZ31: 1 | BA31: =IF(AZ31=1,G31,0) -> 0 | BB31: =IF(AZ31=2,G31,0) -> 0 | BC31: =IF(AZ31=3,G31,0) -> 0 | BD31: =IF(AZ31=4,G31,0) -> 0 | BE31: =IF(AZ31=5,G31,0) -> 0 | CA31: 1 | CB31: 1
C32: Výkopy: | E32: 0 | M32: Výkopy:
C33: V hornině tř. 4 - 50%:30,2120*0,5*0,5 | E33: 7.553 | M33: V hornině tř. 4 - 50%:30,2120*0,5*0,5
A34: 6 | B34: 132401211RXX | C34: Hloubení rýh šířky do 200 cm v hor.5, STROJNĚ Včetně případného dolamování nebo frézování | D34: m3 | E34: 3.0212 | G34: =E34*F34 -> 0 | H34: 0 | I34: =E34*H34 -> 0 | J34: 0 | K34: =E34*J34 -> 0 | O34: 2 | AA34: 1 | AB34: 1 | AC34: 1 | AZ34: 1 | BA34: =IF(AZ34=1,G34,0) -> 0 | BB34: =IF(AZ34=2,G34,0) -> 0 | BC34: =IF(AZ34=3,G34,0) -> 0 | BD34: =IF(AZ34=4,G34,0) -> 0 | BE34: =IF(AZ34=5,G34,0) -> 0 | CA34: 1 | CB34: 1
C35: Výkopy: | E35: 0 | M35: Výkopy:
C36: V hornině tř. 5 - 10%:30,2120*0,1 | E36: 3.0212 | M36: V hornině tř. 5 - 10%:30,2120*0,1
A37: 7 | B37: 151101101R00 | C37: Pažení a rozepření stěn rýh - příložné - hl.do 2 m | D37: m2 | E37: 88.4 | G37: =E37*F37 -> 0 | H37: 0.00099 | I37: =E37*H37 -> 0.087516 | J37: 0 | K37: =E37*J37 -> 0 | O37: 2 | AA37: 1 | AB37: 1 | AC37: 1 | AZ37: 1 | BA37: =IF(AZ37=1,G37,0) -> 0 | BB37: =IF(AZ37=2,G37,0) -> 0 | BC37: =IF(AZ37=3,G37,0) -> 0 | BD37: =IF(AZ37=4,G37,0) -> 0 | BE37: =IF(AZ37=5,G37,0) -> 0 | CA37: 1 | CB37: 1
C38: Výkopy: | E38: 0 | M38: Výkopy:
C39: Průměrná hloubka výkopů 1,70 m: | E39: 0 | M39: Průměrná hloubka výkopů 1,70 m:
C40: Řad "A8-2" PE D 110x10,0 mm: | E40: 0 | M40: Řad "A8-2" PE D 110x10,0 mm:
C41: VP PE D 32x3,0 mm (9 kusů):20,00*1,70*2 | E41: 68 | M41: VP PE D 32x3,0 mm (9 kusů):20,00*1,70*2
C42: Rezerva - 30%:20,00*0,3*1,70*2 | E42: 20.4 | M42: Rezerva - 30%:20,00*0,3*1,70*2
A43: 8 | B43: 151101111R00 | C43: Odstranění pažení stěn rýh - příložné - hl. do 2 m | D43: m2 | E43: 88.4 | G43: =E43*F43 -> 0 | H43: 0 | I43: =E43*H43 -> 0 | J43: 0 | K43: =E43*J43 -> 0 | O43: 2 | AA43: 1 | AB43: 1 | AC43: 1 | AZ43: 1 | BA43: =IF(AZ43=1,G43,0) -> 0 | BB43: =IF(AZ43=2,G43,0) -> 0 | BC43: =IF(AZ43=3,G43,0) -> 0 | BD43: =IF(AZ43=4,G43,0) -> 0 | BE43: =IF(AZ43=5,G43,0) -> 0 | CA43: 1 | CB43: 1
C44: Výkopy: | E44: 0 | M44: Výkopy:
C45: Průměrná hloubka výkopů 1,70 m: | E45: 0 | M45: Průměrná hloubka výkopů 1,70 m:
C46: Řad "A8-2" PE D 110x10,0 mm: | E46: 0 | M46: Řad "A8-2" PE D 110x10,0 mm:
C47: VP PE D 32x3,0 mm (9 kusů):20,00*1,70*2 | E47: 68 | M47: VP PE D 32x3,0 mm (9 kusů):20,00*1,70*2
C48: Rezerva - 30%:20,00*0,3*1,70*2 | E48: 20.4 | M48: Rezerva - 30%:20,00*0,3*1,70*2
A49: 9 | B49: 162701105RSZ | C49: Vodorovné přemístění výkopku z hor.1-7 na skládku zhotovitele | D49: m3 | E49: 30.212 | G49: =E49*F49 -> 0 | H49: 0 | I49: =E49*H49 -> 0 | J49: 0 | K49: =E49*J49 -> 0 | O49: 2 | AA49: 1 | AB49: 1 | AC49: 1 | AZ49: 1 | BA49: =IF(AZ49=1,G49,0) -> 0 | BB49: =IF(AZ49=2,G49,0) -> 0 | BC49: =IF(AZ49=3,G49,0) -> 0 | BD49: =IF(AZ49=4,G49,0) -> 0 | BE49: =IF(AZ49=5,G49,0) -> 0 | CA49: 1 | CB49: 1
C50: Výkopy: | E50: 0 | M50: Výkopy:
C51: V hornině tř. 3 - 5 :30,2120 | E51: 30.212 | M51: V hornině tř. 3 - 5 :30,2120
A52: 10 | B52: 174101101R00 | C52: Zásyp jam, rýh, šachet se zhutněním | D52: m3 | E52: 21.4396 | G52: =E52*F52 -> 0 | H52: 0 | I52: =E52*H52 -> 0 | J52: 0 | K52: =E52*J52 -> 0 | O52: 2 | AA52: 1 | AB52: 1 | AC52: 1 | AZ52: 1 | BA52: =IF(AZ52=1,G52,0) -> 0 | BB52: =IF(AZ52=2,G52,0) -> 0 | BC52: =IF(AZ52=3,G52,0) -> 0 | BD52: =IF(AZ52=4,G52,0) -> 0 | BE52: =IF(AZ52=5,G52,0) -> 0 | CA52: 1 | CB52: 1
C53: Položka obsahuje strojní přemístění materiálu pro zásyp ze vzdálenosti do 10 m od okraje zásypu. | L53: Položka obsahuje strojní přemístění materiálu pro zásyp ze vzdálenosti do 10 m od okraje zásypu. | O53: 3
O54: 3
C55: Zásypy ŠD fr. 0-63 mm:21,4396 | E55: 21.4396 | M55: Zásypy ŠD fr. 0-63 mm:21,4396
C56: Začátek provozního součtu | E56: 0 | M56: Začátek provozního součtu
C57: Výkopy: | E57: 0 | M57: Výkopy:
C58: V hornině tř. 3 - 5:30,2120 | E58: 30.212 | M58: V hornině tř. 3 - 5:30,2120
C59: Odpočet objemu lože, potrubí a obsypů:-(20,00+20,00*0,30)*0,70*(0,15+0,032+0,30) | E59: -8.7724 | M59: Odpočet objemu lože, potrubí a obsypů:-(20,00+20,00*0,30)*0,70*(0,15+0,032+0,30)
C60: Konec provozního součtu | E60: 21.4396 | M60: Konec provozního součtu
A61: 11 | B61: 175101101R00 | C61: Obsyp potrubí bez prohození sypaniny | D61: m3 | E61: 6.0215 | G61: =E61*F61 -> 0 | H61: 0 | I61: =E61*H61 -> 0 | J61: 0 | K61: =E61*J61 -> 0 | O61: 2 | AA61: 1 | AB61: 1 | AC61: 1 | AZ61: 1 | BA61: =IF(AZ61=1,G61,0) -> 0 | BB61: =IF(AZ61=2,G61,0) -> 0 | BC61: =IF(AZ61=3,G61,0) -> 0 | BD61: =IF(AZ61=4,G61,0) -> 0 | BE61: =IF(AZ61=5,G61,0) -> 0 | CA61: 1 | CB61: 1
C62: Řad "A8-2" PE D 110x10,0 mm: | E62: 0 | M62: Řad "A8-2" PE D 110x10,0 mm:
C63: VP PE D 32x3,0 mm (9 kusů):20,00*(0,70*(0,032+0,30)-0,016^2*Pi) | E63: 4.6319 | M63: VP PE D 32x3,0 mm (9 kusů):20,00*(0,70*(0,032+0,30)-0,016^2*Pi)
C64: Rezerva - 30%:20,00*0,3*(0,70*(0,032+0,30)-0,016^2*Pi) | E64: 1.3896 | M64: Rezerva - 30%:20,00*0,3*(0,70*(0,032+0,30)-0,016^2*Pi)
A65: 12 | B65: 199000002R00 | C65: Poplatek za skládku horniny 1- 7 č. dle katal. odpadů 17 05 04 | D65: m3 | E65: 30.212 | G65: =E65*F65 -> 0 | H65: 0 | I65: =E65*H65 -> 0 | J65: 0 | K65: =E65*J65 -> 0 | O65: 2 | AA65: 1 | AB65: 1 | AC65: 1 | AZ65: 1 | BA65: =IF(AZ65=1,G65,0) -> 0 | BB65: =IF(AZ65=2,G65,0) -> 0 | BC65: =IF(AZ65=3,G65,0) -> 0 | BD65: =IF(AZ65=4,G65,0) -> 0 | BE65: =IF(AZ65=5,G65,0) -> 0 | CA65: 1 | CB65: 1
C66: Výkopy: | E66: 0 | M66: Výkopy:
C67: V hornině tř. 3 - 5 :30,2120 | E67: 30.212 | M67: V hornině tř. 3 - 5 :30,2120
A68: 13 | B68: 58337308.R | C68: Štěrkopísek frakce 0-2 tř.B | D68: t | E68: 11.9992 | G68: =E68*F68 -> 0 | H68: 1 | I68: =E68*H68 -> 11.9992 | K68: =E68*J68 -> 0 | O68: 2 | AA68: 3 | AB68: 1 | AC68: 58337308.R | AZ68: 1 | BA68: =IF(AZ68=1,G68,0) -> 0 | BB68: =IF(AZ68=2,G68,0) -> 0 | BC68: =IF(AZ68=3,G68,0) -> 0 | BD68: =IF(AZ68=4,G68,0) -> 0 | BE68: =IF(AZ68=5,G68,0) -> 0 | CA68: 3 | CB68: 1
C69: Řad "A8-2" PE D 110x10,0 mm: | E69: 0 | M69: Řad "A8-2" PE D 110x10,0 mm:
C70: VP PE D 32x3,0 mm (9 kusů):20,00*(0,70*(0,032+0,30)-0,016^2*Pi)*1,973*1,01 | E70: 9.2302 | M70: VP PE D 32x3,0 mm (9 kusů):20,00*(0,70*(0,032+0,30)-0,016^2*Pi)*1,973*1,01
C71: Rezerva - 30%:20,00*0,3*(0,70*(0,032+0,30)-0,016^2*Pi)*1,973*1,01 | E71: 2.769 | M71: Rezerva - 30%:20,00*0,3*(0,70*(0,032+0,30)-0,016^2*Pi)*1,973*1,01
A72: 14 | B72: 58344197R | C72: Štěrkodrtě frakce 0-63 A | D72: t | E72: 40.5579 | G72: =E72*F72 -> 0 | H72: 1 | I72: =E72*H72 -> 40.5579 | K72: =E72*J72 -> 0 | O72: 2 | AA72: 3 | AB72: 1 | AC72: 58344197R | AZ72: 1 | BA72: =IF(AZ72=1,G72,0) -> 0 | BB72: =IF(AZ72=2,G72,0) -> 0 | BC72: =IF(AZ72=3,G72,0) -> 0 | BD72: =IF(AZ72=4,G72,0) -> 0 | BE72: =IF(AZ72=5,G72,0) -> 0 | CA72: 3 | CB72: 1
C73: Zásypy ŠD fr. 0-63 mm:21,4396*1,873*1,01 | E73: 40.5579 | M73: Zásypy ŠD fr. 0-63 mm:21,4396*1,873*1,01
C74: Začátek provozního součtu | E74: 0 | M74: Začátek provozního součtu
C75: Výkopy: | E75: 0 | M75: Výkopy:
C76: V hornině tř. 3 - 5:30,2120 | E76: 30.212 | M76: V hornině tř. 3 - 5:30,2120
C77: Odpočet objemu lože, potrubí a obsypů:-(20,00+20,00*0,30)*0,70*(0,15+0,032+0,30) | E77: -8.7724 | M77: Odpočet objemu lože, potrubí a obsypů:-(20,00+20,00*0,30)*0,70*(0,15+0,032+0,30)
C78: Konec provozního součtu | E78: 21.4396 | M78: Konec provozního součtu
B79: Celkem za | C79: 1 Zemní práce | G79: =SUM(G7:G78) -> 0 | I79: =SUM(I7:I78) -> 52.644616 | K79: =SUM(K7:K78) -> 0 | O79: 4 | BA79: =SUM(BA7:BA78) -> 0 | BB79: =SUM(BB7:BB78) -> 0 | BC79: =SUM(BC7:BC78) -> 0 | BD79: =SUM(BD7:BD78) -> 0 | BE79: =SUM(BE7:BE78) -> 0
A80: Díl: | B80: 45 | C80: Podkladní a vedlejší konstrukce | O80: 1
A81: 15 | B81: 451572111R00 | C81: Lože pod potrubí z kameniva těženého 0 - 4 mm | D81: m3 | E81: 2.73 | G81: =E81*F81 -> 0 | H81: 0.43051 | I81: =E81*H81 -> 1.1752923 | J81: 0 | K81: =E81*J81 -> 0 | O81: 2 | AA81: 1 | AB81: 1 | AC81: 1 | AZ81: 1 | BA81: =IF(AZ81=1,G81,0) -> 0 | BB81: =IF(AZ81=2,G81,0) -> 0 | BC81: =IF(AZ81=3,G81,0) -> 0 | BD81: =IF(AZ81=4,G81,0) -> 0 | BE81: =IF(AZ81=5,G81,0) -> 0 | CA81: 1 | CB81: 1
C82: Řad "A8-2" PE D 110x10,0 mm: | E82: 0 | M82: Řad "A8-2" PE D 110x10,0 mm:
C83: VP PE D 32x3,0 mm (9 kusů):20,00*0,70*0,15 | E83: 2.1 | M83: VP PE D 32x3,0 mm (9 kusů):20,00*0,70*0,15
C84: Rezerva - 30%:20,00*0,3*0,70*0,15 | E84: 0.63 | M84: Rezerva - 30%:20,00*0,3*0,70*0,15
B85: Celkem za | C85: 45 Podkladní a vedlejší konstrukce | G85: =SUM(G80:G84) -> 0 | I85: =SUM(I80:I84) -> 1.1752923 | K85: =SUM(K80:K84) -> 0 | O85: 4 | BA85: =SUM(BA80:BA84) -> 0 | BB85: =SUM(BB80:BB84) -> 0 | BC85: =SUM(BC80:BC84) -> 0 | BD85: =SUM(BD80:BD84) -> 0 | BE85: =SUM(BE80:BE84) -> 0
A86: Díl: | B86: 5 | C86: Komunikace | O86: 1
A87: 16 | B87: 572701119RRX | C87: Provizorní zásyp rýh kam. hrubě drceným nebo recyk s následným odstraněním a odvozem | D87: m3 | E87: 7.28 | G87: =E87*F87 -> 0 | H87: 1.4805 | I87: =E87*H87 -> 10.77804 | J87: 0 | K87: =E87*J87 -> 0 | O87: 2 | AA87: 1 | AB87: 1 | AC87: 1 | AZ87: 1 | BA87: =IF(AZ87=1,G87,0) -> 0 | BB87: =IF(AZ87=2,G87,0) -> 0 | BC87: =IF(AZ87=3,G87,0) -> 0 | BD87: =IF(AZ87=4,G87,0) -> 0 | BE87: =IF(AZ87=5,G87,0) -> 0 | CA87: 1 | CB87: 1
C88: Řad "A8-2" PE D 110x10,0 mm: | E88: 0 | M88: Řad "A8-2" PE D 110x10,0 mm:
C89: VP PE D 32x3,0 mm (9 kusů):20,00*0,70*0,40 | E89: 5.6 | M89: VP PE D 32x3,0 mm (9 kusů):20,00*0,70*0,40
C90: Rezerva - 30%:20,00*0,3*0,70*0,40 | E90: 1.68 | M90: Rezerva - 30%:20,00*0,3*0,70*0,40
B91: Celkem za | C91: 5 Komunikace | G91: =SUM(G86:G90) -> 0 | I91: =SUM(I86:I90) -> 10.77804 | K91: =SUM(K86:K90) -> 0 | O91: 4 | BA91: =SUM(BA86:BA90) -> 0 | BB91: =SUM(BB86:BB90) -> 0 | BC91: =SUM(BC86:BC90) -> 0 | BD91: =SUM(BD86:BD90) -> 0 | BE91: =SUM(BE86:BE90) -> 0
A92: Díl: | B92: 8 | C92: Trubní vedení | O92: 1
A93: 17 | B93: 871161121R00 | C93: Montáž trubek polyetylenových ve výkopu d 32 mm | D93: m | E93: 26 | G93: =E93*F93 -> 0 | H93: 0 | I93: =E93*H93 -> 0 | J93: 0 | K93: =E93*J93 -> 0 | O93: 2 | AA93: 1 | AB93: 1 | AC93: 1 | AZ93: 1 | BA93: =IF(AZ93=1,G93,0) -> 0 | BB93: =IF(AZ93=2,G93,0) -> 0 | BC93: =IF(AZ93=3,G93,0) -> 0 | BD93: =IF(AZ93=4,G93,0) -> 0 | BE93: =IF(AZ93=5,G93,0) -> 0 | CA93: 1 | CB93: 1
C94: V položce je uvažováno použití svitku. | L94: V položce je uvažováno použití svitku. | O94: 3
C95: Řad "A8-2" PE D 110x10,0 mm: | E95: 0 | M95: Řad "A8-2" PE D 110x10,0 mm:
C96: VP PE D 32x3,0 mm (9 kusů):20,00 | E96: 20 | M96: VP PE D 32x3,0 mm (9 kusů):20,00
C97: Začátek provozního součtu | E97: 0 | M97: Začátek provozního součtu
C98: Pro čp. 898: | E98: 0 | M98: Pro čp. 898:
C99: Pro čp. 897: | E99: 0 | M99: Pro čp. 897:
C100: Pro čp. 877: | E100: 0 | M100: Pro čp. 877:
C101: Pro čp. 893: | E101: 0 | M101: Pro čp. 893:
C102: Pro čp. 876: | E102: 0 | M102: Pro čp. 876:
C103: Pro čp. 892: | E103: 0 | M103: Pro čp. 892:
C104: Pro čp. 891: | E104: 0 | M104: Pro čp. 891:
C105: Pro čp. 818: | E105: 0 | M105: Pro čp. 818:
C106: Pro čp. 816: | E106: 0 | M106: Pro čp. 816:
C107: Konec provozního součtu | E107: 0 | M107: Konec provozního součtu
C108: Rezerva - 30%:20,00*0,3 | E108: 6 | M108: Rezerva - 30%:20,00*0,3
A109: 18 | B109: 877162121R00 | C109: Přirážka za 1 spoj elektrotvarovky d 32 mm | D109: kus | E109: 9 | G109: =E109*F109 -> 0 | H109: 0 | I109: =E109*H109 -> 0 | J109: 0 | K109: =E109*J109 -> 0 | O109: 2 | AA109: 1 | AB109: 1 | AC109: 1 | AZ109: 1 | BA109: =IF(AZ109=1,G109,0) -> 0 | BB109: =IF(AZ109=2,G109,0) -> 0 | BC109: =IF(AZ109=3,G109,0) -> 0 | BD109: =IF(AZ109=4,G109,0) -> 0 | BE109: =IF(AZ109=5,G109,0) -> 0 | CA109: 1 | CB109: 1
C110: Řad "A8-2" PE D 110x10,0 mm: | E110: 0 | M110: Řad "A8-2" PE D 110x10,0 mm:
C111: VP PE D 32x3,0 mm (9 kusů) - Elektrospojka PE D32:9 | E111: 9 | M111: VP PE D 32x3,0 mm (9 kusů) - Elektrospojka PE D32:9
A112: 19 | B112: 891183439RX0 | C112: Přepojení potrubí PE na přípojkách D 32 včetně dodávky přepojovací tvarovky | D112: kus | E112: 9 | G112: =E112*F112 -> 0 | H112: 0.00046 | I112: =E112*H112 -> 0.00414 | J112: 0 | K112: =E112*J112 -> 0 | O112: 2 | AA112: 1 | AB112: 1 | AC112: 1 | AZ112: 1 | BA112: =IF(AZ112=1,G112,0) -> 0 | BB112: =IF(AZ112=2,G112,0) -> 0 | BC112: =IF(AZ112=3,G112,0) -> 0 | BD112: =IF(AZ112=4,G112,0) -> 0 | BE112: =IF(AZ112=5,G112,0) -> 0 | CA112: 1 | CB112: 1
C113: Položka obsahuje přerušení stávajícího potrubí, montáž a dodávku příslušné tvarovky pro propojení stávajícího potrubí (PE, ocel a pod.) s novým potrubím (PE D 32x3,0 mm) přípojky D 32 | L113: Položka obsahuje přerušení stávajícího potrubí, montáž a dodávku příslušné tvarovky pro propojení stávajícího potrubí (PE, ocel a pod.) s novým potrubím (PE D 32x3,0 mm) přípojky D 32 | O113: 3
C114: Řad "A8-2" PE D 110x10,0 mm: | E114: 0 | M114: Řad "A8-2" PE D 110x10,0 mm:
C115: VP PE D 32x3,0 mm (9 kusů):9 | E115: 9 | M115: VP PE D 32x3,0 mm (9 kusů):9
A116: 20 | B116: 892233111R00 | C116: Desinfekce vodovodního potrubí DN 70 | D116: m | E116: 26 | G116: =E116*F116 -> 0 | H116: 0 | I116: =E116*H116 -> 0 | J116: 0 | K116: =E116*J116 -> 0 | O116: 2 | AA116: 1 | AB116: 1 | AC116: 1 | AZ116: 1 | BA116: =IF(AZ116=1,G116,0) -> 0 | BB116: =IF(AZ116=2,G116,0) -> 0 | BC116: =IF(AZ116=3,G116,0) -> 0 | BD116: =IF(AZ116=4,G116,0) -> 0 | BE116: =IF(AZ116=5,G116,0) -> 0 | CA116: 1 | CB116: 1
C117: V položce jsou zakalkulovány náklady na napuštění a vypuštění vody, dodání vody a desinfekčního prostředku a na bakteriologický rozbor vody. | L117: V položce jsou zakalkulovány náklady na napuštění a vypuštění vody, dodání vody a desinfekčního prostředku a na bakteriologický rozbor vody. | O117: 3
C118: Řad "A8-2" PE D 110x10,0 mm: | E118: 0 | M118: Řad "A8-2" PE D 110x10,0 mm:
C119: VP PE D 32x3,0 mm (9 kusů):20,00 | E119: 20 | M119: VP PE D 32x3,0 mm (9 kusů):20,00
C120: Rezerva - 30%:20,00*0,3 | E120: 6 | M120: Rezerva - 30%:20,00*0,3
A121: 21 | B121: 892241111R00 | C121: Tlaková zkouška vodovodního potrubí DN 80 včetně zajištění konců potrubí | D121: m | E121: 26 | G121: =E121*F121 -> 0 | H121: 0 | I121: =E121*H121 -> 0 | J121: 0 | K121: =E121*J121 -> 0 | O121: 2 | AA121: 1 | AB121: 1 | AC121: 1 | AZ121: 1 | BA121: =IF(AZ121=1,G121,0) -> 0 | BB121: =IF(AZ121=2,G121,0) -> 0 | BC121: =IF(AZ121=3,G121,0) -> 0 | BD121: =IF(AZ121=4,G121,0) -> 0 | BE121: =IF(AZ121=5,G121,0) -> 0 | CA121: 1 | CB121: 1
C122: V položce jsou započteny náklady na přísun, montáž, demontáž a odsun zkoušecího čerpadla, napuštění tlakovou vodou a dodání vody pro tlakovou zkoušku. | L122: V položce jsou započteny náklady na přísun, montáž, demontáž a odsun zkoušecího čerpadla, napuštění tlakovou vodou a dodání vody pro tlakovou zkoušku. | O122: 3
C123: Řad "A8-2" PE D 110x10,0 mm: | E123: 0 | M123: Řad "A8-2" PE D 110x10,0 mm:
C124: VP PE D 32x3,0 mm (9 kusů):20,00 | E124: 20 | M124: VP PE D 32x3,0 mm (9 kusů):20,00
C125: Rezerva - 30%:20,00*0,3 | E125: 6 | M125: Rezerva - 30%:20,00*0,3
A126: 22 | B126: 899721112R00 | C126: Fólie výstražná z PVC bílá, šířka 30 cm | D126: m | E126: 26 | G126: =E126*F126 -> 0 | H126: 0 | I126: =E126*H126 -> 0 | J126: 0 | K126: =E126*J126 -> 0 | O126: 2 | AA126: 1 | AB126: 1 | AC126: 1 | AZ126: 1 | BA126: =IF(AZ126=1,G126,0) -> 0 | BB126: =IF(AZ126=2,G126,0) -> 0 | BC126: =IF(AZ126=3,G126,0) -> 0 | BD126: =IF(AZ126=4,G126,0) -> 0 | BE126: =IF(AZ126=5,G126,0) -> 0 | CA126: 1 | CB126: 1
C127: Řad "A8-2" PE D 110x10,0 mm: | E127: 0 | M127: Řad "A8-2" PE D 110x10,0 mm:
C128: VP PE D 32x3,0 mm (9 kusů):20,00 | E128: 20 | M128: VP PE D 32x3,0 mm (9 kusů):20,00
C129: Rezerva - 30%:20,00*0,3 | E129: 6 | M129: Rezerva - 30%:20,00*0,3
A130: 23 | B130: 899731113R00 | C130: Vodič signalizační CYY 4 mm2 | D130: m | E130: 26 | G130: =E130*F130 -> 0 | H130: 5e-05 | I130: =E130*H130 -> 0.0013 | J130: 0 | K130: =E130*J130 -> 0 | O130: 2 | AA130: 1 | AB130: 1 | AC130: 1 | AZ130: 1 | BA130: =IF(AZ130=1,G130,0) -> 0 | BB130: =IF(AZ130=2,G130,0) -> 0 | BC130: =IF(AZ130=3,G130,0) -> 0 | BD130: =IF(AZ130=4,G130,0) -> 0 | BE130: =IF(AZ130=5,G130,0) -> 0 | CA130: 1 | CB130: 1
C131: Součástí položky je zajištění proměření vodiče a výchozí revize. | L131: Součástí položky je zajištění proměření vodiče a výchozí revize. | O131: 3
C132: Řad "A8-2" PE D 110x10,0 mm: | E132: 0 | M132: Řad "A8-2" PE D 110x10,0 mm:
C133: VP PE D 32x3,0 mm (9 kusů):20,00 | E133: 20 | M133: VP PE D 32x3,0 mm (9 kusů):20,00
C134: Rezerva - 30%:20,00*0,3 | E134: 6 | M134: Rezerva - 30%:20,00*0,3
A135: 24 | B135: 28613576.01.R | C135: Trubka PE100RC2 SDR11 D 32x3,0 mm L 100m | D135: m | E135: 26.39 | G135: =E135*F135 -> 0 | H135: 0.00379 | I135: =E135*H135 -> 0.1000181 | K135: =E135*J135 -> 0 | O135: 2 | AA135: 3 | AB135: 1 | AC135: 28613576.01.R | AZ135: 1 | BA135: =IF(AZ135=1,G135,0) -> 0 | BB135: =IF(AZ135=2,G135,0) -> 0 | BC135: =IF(AZ135=3,G135,0) -> 0 | BD135: =IF(AZ135=4,G135,0) -> 0 | BE135: =IF(AZ135=5,G135,0) -> 0 | CA135: 3 | CB135: 1
C136: Řad "A8-2" PE D 110x10,0 mm: | E136: 0 | M136: Řad "A8-2" PE D 110x10,0 mm:
C137: VP PE D 32x3,0 mm (9 kusů):20,00*1,015 | E137: 20.3 | M137: VP PE D 32x3,0 mm (9 kusů):20,00*1,015
C138: Rezerva - 30%:20,00*0,3*1,015 | E138: 6.09 | M138: Rezerva - 30%:20,00*0,3*1,015
A139: 25 | B139: 28653075.05.R | C139: Elektrospojka d 32 mm PE 100 SDR11 | D139: kus | E139: 9.135 | G139: =E139*F139 -> 0 | H139: 0.0013 | I139: =E139*H139 -> 0.0118755 | K139: =E139*J139 -> 0 | O139: 2 | AA139: 3 | AB139: 1 | AC139: 28653075.05.R | AZ139: 1 | BA139: =IF(AZ139=1,G139,0) -> 0 | BB139: =IF(AZ139=2,G139,0) -> 0 | BC139: =IF(AZ139=3,G139,0) -> 0 | BD139: =IF(AZ139=4,G139,0) -> 0 | BE139: =IF(AZ139=5,G139,0) -> 0 | CA139: 3 | CB139: 1
C140: Řad "A8-2" PE D 110x10,0 mm: | E140: 0 | M140: Řad "A8-2" PE D 110x10,0 mm:
C141: VP PE D 32x3,0 mm (9 kusů) - Elektrospojka PE D32:9*1,015 | E141: 9.135 | M141: VP PE D 32x3,0 mm (9 kusů) - Elektrospojka PE D32:9*1,015
B142: Celkem za | C142: 8 Trubní vedení | G142: =SUM(G92:G141) -> 0 | I142: =SUM(I92:I141) -> 0.1173336 | K142: =SUM(K92:K141) -> 0 | O142: 4 | BA142: =SUM(BA92:BA141) -> 0 | BB142: =SUM(BB92:BB141) -> 0 | BC142: =SUM(BC92:BC141) -> 0 | BD142: =SUM(BD92:BD141) -> 0 | BE142: =SUM(BE92:BE141) -> 0
A143: Díl: | B143: 99 | C143: Staveništní přesun hmot | O143: 1
A144: 26 | B144: 998276101RXX | C144: Přesun hmot, trubní vedení plastová, otevř. výkop pro celý rozsah objektu | D144: t | E144: 64.7152819 | G144: =E144*F144 -> 0 | H144: 0 | I144: =E144*H144 -> 0 | K144: =E144*J144 -> 0 | O144: 2 | AA144: 7 | AB144: 1 | AC144: 2 | AZ144: 1 | BA144: =IF(AZ144=1,G144,0) -> 0 | BB144: =IF(AZ144=2,G144,0) -> 0 | BC144: =IF(AZ144=3,G144,0) -> 0 | BD144: =IF(AZ144=4,G144,0) -> 0 | BE144: =IF(AZ144=5,G144,0) -> 0 | CA144: 7 | CB144: 1
C145: Staveništní doprava pro celý rozsah objektu - doprava zmeziskládek vybudovaného zařízení staveniště zhotovitele na jednotlivé části staveniště. | L145: Staveništní doprava pro celý rozsah objektu - doprava zmeziskládek vybudovaného zařízení staveniště zhotovitele na jednotlivé části staveniště. | O145: 3
B146: Celkem za | C146: 99 Staveništní přesun hmot | G146: =SUM(G143:G145) -> 0 | I146: =SUM(I143:I145) -> 0 | K146: =SUM(K143:K145) -> 0 | O146: 4 | BA146: =SUM(BA143:BA145) -> 0 | BB146: =SUM(BB143:BB145) -> 0 | BC146: =SUM(BC143:BC145) -> 0 | BD146: =SUM(BD143:BD145) -> 0 | BE146: =SUM(BE143:BE145) -> 0

Sheet 1.E 08 1.E 08.1 KL
A1: POLOŽKOVÝ ROZPOČET
A2: Rozpočet | C2: 1.E 08.1 | D2: Dešťová stoka "DS-3 po Š7a DS-3-a" | F2: JKSO | G2: 827.21.A6
A4: Objekt | F4: SKP
A5: 1.E 08 | C5: Kanalizace | F5: Měrná jednotka | G5: m
A6: Stavba | F6: Počet jednotek | G6: 0
A7: 3403 | C7: Jilemnice - Optimalizace VS a komunikace I.Etapa | F7: Náklady na m.j. | G7: =IF(G6=0,,ROUND((F30+F32)/G6,1)) -> 0
A8: Projektant | C8: Vodohospodářsko - inženýrské služby spol. s r.o. | F8: Typ rozpočtu
A9: Zpracovatel projektu
A10: Objednatel | C10: Vodohospodářské sdružení Turnov
A11: Dodavatel | C11: . | F11: Zakázkové číslo
A12: Rozpočtoval | F12: Počet listů
A13: ROZPOČTOVÉ NÁKLADY
A14: Základní rozpočtové náklady
B15: HSV celkem | C15: ='1.E 08 1.E 08.1 Rek'!E14 -> 0
A16: Z | B16: PSV celkem | C16: ='1.E 08 1.E 08.1 Rek'!F14 -> 0
A17: R | B17: M práce celkem | C17: ='1.E 08 1.E 08.1 Rek'!H14 -> 0
A18: N | B18: M dodávky celkem | C18: ='1.E 08 1.E 08.1 Rek'!G14 -> 0
A19: ZRN celkem | C19: =SUM(C15:C18) -> 0
A21: HZS | C21: ='1.E 08 1.E 08.1 Rek'!I14 -> 0
A22: ZRN+HZS | C22: =C19+C21 -> 0
A23: ZRN+ost.náklady+HZS | C23: =C22+G23 -> 0
A24: Vypracoval | D24: Za zhotovitele | F24: Za objednatele
A25: Jméno : | D25: Jméno : | F25: Jméno :
A26: Datum : | D26: Datum : | F26: Datum :
A28: Podpis : | D28: Podpis: | F28: Podpis:
A30: Základ pro DPH | C30: 21 | D30: % | F30: =C23-F32 -> 0
A31: DPH | C31: =C30 -> 21 | D31: % | F31: =ROUND(PRODUCT(F30,C31/100),0) -> 0
A32: Základ pro DPH | C32: 0 | D32: % | F32: 0
A33: DPH | C33: =C32 -> 0 | D33: % | F33: =ROUND(PRODUCT(F32,C33/100),0) -> 0
A34: CENA ZA OBJEKT CELKEM | F34: =ROUND(SUM(F30:F33),0) -> 0
A36: Poznámka :

Sheet 1.E 08 1.E 08.1 Rek
A1: Stavba : | C1: 3403 Jilemnice - Optimalizace VS a komunikace | G1: Rozpočet : | H1: 1.E 08.1
A2: Objekt : | C2: 1.E 08 Kanalizace | G2: Dešťová stoka "DS-3 po Š7a DS-3-a"
A4: REKAPITULACE STAVEBNÍCH DÍLŮ
B6: Stavební díl | E6: HSV | F6: PSV | G6: Dodávka | H6: Montáž | I6: HZS
A7: ='1.E 08 1.E 08.1 Pol'!B7 -> 1 | B7: ='1.E 08 1.E 08.1 Pol'!C7 -> Zemní práce | E7: ='1.E 08 1.E 08.1 Pol'!BA141 -> 0 | F7: ='1.E 08 1.E 08.1 Pol'!BB141 -> 0 | G7: ='1.E 08 1.E 08.1 Pol'!BC141 -> 0 | H7: ='1.E 08 1.E 08.1 Pol'!BD141 -> 0 | I7: ='1.E 08 1.E 08.1 Pol'!BE141 -> 0
A8: ='1.E 08 1.E 08.1 Pol'!B142 -> 21 | B8: ='1.E 08 1.E 08.1 Pol'!C142 -> Úprava podloží a základ.spáry | E8: ='1.E 08 1.E 08.1 Pol'!BA146 -> 0 | F8: ='1.E 08 1.E 08.1 Pol'!BB146 -> 0 | G8: ='1.E 08 1.E 08.1 Pol'!BC146 -> 0 | H8: ='1.E 08 1.E 08.1 Pol'!BD146 -> 0 | I8: ='1.E 08 1.E 08.1 Pol'!BE146 -> 0
A9: ='1.E 08 1.E 08.1 Pol'!B147 -> 45 | B9: ='1.E 08 1.E 08.1 Pol'!C147 -> Podkladní a vedlejší konstrukce | E9: ='1.E 08 1.E 08.1 Pol'!BA173 -> 0 | F9: ='1.E 08 1.E 08.1 Pol'!BB173 -> 0 | G9: ='1.E 08 1.E 08.1 Pol'!BC173 -> 0 | H9: ='1.E 08 1.E 08.1 Pol'!BD173 -> 0 | I9: ='1.E 08 1.E 08.1 Pol'!BE173 -> 0
A10: ='1.E 08 1.E 08.1 Pol'!B174 -> 5 | B10: ='1.E 08 1.E 08.1 Pol'!C174 -> Komunikace | E10: ='1.E 08 1.E 08.1 Pol'!BA178 -> 0 | F10: ='1.E 08 1.E 08.1 Pol'!BB178 -> 0 | G10: ='1.E 08 1.E 08.1 Pol'!BC178 -> 0 | H10: ='1.E 08 1.E 08.1 Pol'!BD178 -> 0 | I10: ='1.E 08 1.E 08.1 Pol'!BE178 -> 0
A11: ='1.E 08 1.E 08.1 Pol'!B179 -> 8 | B11: ='1.E 08 1.E 08.1 Pol'!C179 -> Trubní vedení | E11: ='1.E 08 1.E 08.1 Pol'!BA270 -> 0 | F11: ='1.E 08 1.E 08.1 Pol'!BB270 -> 0 | G11: ='1.E 08 1.E 08.1 Pol'!BC270 -> 0 | H11: ='1.E 08 1.E 08.1 Pol'!BD270 -> 0 | I11: ='1.E 08 1.E 08.1 Pol'!BE270 -> 0
A12: ='1.E 08 1.E 08.1 Pol'!B271 -> 93 | B12: ='1.E 08 1.E 08.1 Pol'!C271 -> Dokončovací práce inženýrských staveb | E12: ='1.E 08 1.E 08.1 Pol'!BA293 -> 0 | F12: ='1.E 08 1.E 08.1 Pol'!BB293 -> 0 | G12: ='1.E 08 1.E 08.1 Pol'!BC293 -> 0 | H12: ='1.E 08 1.E 08.1 Pol'!BD293 -> 0 | I12: ='1.E 08 1.E 08.1 Pol'!BE293 -> 0
A13: ='1.E 08 1.E 08.1 Pol'!B294 -> 99 | B13: ='1.E 08 1.E 08.1 Pol'!C294 -> Staveništní přesun hmot | E13: ='1.E 08 1.E 08.1 Pol'!BA297 -> 0 | F13: ='1.E 08 1.E 08.1 Pol'!BB297 -> 0 | G13: ='1.E 08 1.E 08.1 Pol'!BC297 -> 0 | H13: ='1.E 08 1.E 08.1 Pol'!BD297 -> 0 | I13: ='1.E 08 1.E 08.1 Pol'!BE297 -> 0
B14: CELKEM OBJEKT | E14: =SUM(E7:E13) -> 0 | F14: =SUM(F7:F13) -> 0 | G14: =SUM(G7:G13) -> 0 | H14: =SUM(H7:H13) -> 0 | I14: =SUM(I7:I13) -> 0

Sheet 1.E 08 1.E 08.1 Pol
A1: Položkový rozpočet
A3: Stavba : | C3: 3403 Jilemnice - Optimalizace VS a komunikace | E3: Rozpočet: | F3: ='1.E 08 1.E 08.1 Rek'!H1 -> 1.E 08.1
A4: Objekt : | C4: 1.E 08 Kanalizace | E4: ='1.E 08 1.E 08.1 Rek'!G2 -> Dešťová stoka "DS-3 po Š7a DS-3-a"
A6: P.č. | B6: Číslo položky | C6: Název položky | D6: MJ | E6: množství | F6: cena / MJ | G6: celkem (Kč) | H6: Jednotková hmotnost | I6: Celková hmotnost | J6: Jednotková dem.hmot. | K6: Celková dem.hmot.
A7: Díl: | B7: 1 | C7: Zemní práce | O7: 1
A8: 1 | B8: 115101201RRX | C8: Přečerpávání nebo převedení splašků a dešť. vod | D8: h | E8: 425 | G8: =E8*F8 -> 0 | H8: 0 | I8: =E8*H8 -> 0 | J8: 0 | K8: =E8*J8 -> 0 | O8: 2 | AA8: 1 | AB8: 1 | AC8: 1 | AZ8: 1 | BA8: =IF(AZ8=1,G8,0) -> 0 | BB8: =IF(AZ8=2,G8,0) -> 0 | BC8: =IF(AZ8=3,G8,0) -> 0 | BD8: =IF(AZ8=4,G8,0) -> 0 | BE8: =IF(AZ8=5,G8,0) -> 0 | CA8: 1 | CB8: 1
C9: Převedení a čerpání splašků nebo dešťových vod dle zvolené technologie zhotovitele stavby. | L9: Převedení a čerpání splašků nebo dešťových vod dle zvolené technologie zhotovitele stavby. | O9: 3
C10: (Množství bude určeno na stavbě dle skutečnosti) | L10: (Množství bude určeno na stavbě dle skutečnosti) | O10: 3
C11: Stoka "DS-3-a" PVC DN 315 SN12:150,00 | E11: 150 | M11: Stoka "DS-3-a" PVC DN 315 SN12:150,00
C12: Stoka "DS-3 do Š7" PVC DN600 SN16:275,00 | E12: 275 | M12: Stoka "DS-3 do Š7" PVC DN600 SN16:275,00
A13: 2 | B13: 121100002RAA | C13: Sejmutí ornice a uložení na deponii zpětný přesun, rozprostření v tl. 20 cm | D13: m3 | E13: 11.986 | G13: =E13*F13 -> 0 | H13: 0 | I13: =E13*H13 -> 0 | J13: 0 | K13: =E13*J13 -> 0 | O13: 2 | AA13: 1 | AB13: 1 | AC13: 1 | AZ13: 1 | BA13: =IF(AZ13=1,G13,0) -> 0 | BB13: =IF(AZ13=2,G13,0) -> 0 | BC13: =IF(AZ13=3,G13,0) -> 0 | BD13: =IF(AZ13=4,G13,0) -> 0 | BE13: =IF(AZ13=5,G13,0) -> 0 | CA13: 1 | CB13: 1
C14: Stoka "DS-3 do Š7" PVC DN600 SN16: | E14: 0 | M14: Stoka "DS-3 do Š7" PVC DN600 SN16:
C15: Souběh se splaš. kanalizací a částečně s vodovodem: | E15: 0 | M15: Souběh se splaš. kanalizací a částečně s vodovodem:
C16: Odpočet objemu Ornice:(49,10-3,00)*1,30*0,20 | E16: 11.986 | M16: Odpočet objemu Ornice:(49,10-3,00)*1,30*0,20
A17: 3 | B17: 130001101RRX | C17: Příplatek za ztížené hloubení v blízkosti vedení | D17: m3 | E17: 145.9135 | G17: =E17*F17 -> 0 | H17: 0 | I17: =E17*H17 -> 0 | J17: 0 | K17: =E17*J17 -> 0 | O17: 2 | AA17: 1 | AB17: 1 | AC17: 1 | AZ17: 1 | BA17: =IF(AZ17=1,G17,0) -> 0 | BB17: =IF(AZ17=2,G17,0) -> 0 | BC17: =IF(AZ17=3,G17,0) -> 0 | BD17: =IF(AZ17=4,G17,0) -> 0 | BE17: =IF(AZ17=5,G17,0) -> 0 | CA17: 1 | CB17: 1
C18: Včetně případných nutných dokopávem a ručního výkopu podél sousedících inženýrských sítí. | L18: Včetně případných nutných dokopávem a ručního výkopu podél sousedících inženýrských sítí. | O18: 3
C19: Součástí položky je i dočasné zajištění inženýrských sítí v prostoru výkopů (potrubí, kabely a pod.) | L19: Součástí položky je i dočasné zajištění inženýrských sítí v prostoru výkopů (potrubí, kabely a pod.) | O19: 3
C20: Výkopy: | E20: 0 | M20: Výkopy:
C21: V hornině tř. 3 - 5 - 17%:858,3145*0,17 | E21: 145.9135 | M21: V hornině tř. 3 - 5 - 17%:858,3145*0,17
A22: 4 | B22: 132201212R00 | C22: Hloubení rýh š.do 200 cm hor.3 do 1000m3,STROJNĚ | D22: m3 | E22: 343.3258 | G22: =E22*F22 -> 0 | H22: 0 | I22: =E22*H22 -> 0 | J22: 0 | K22: =E22*J22 -> 0 | O22: 2 | AA22: 1 | AB22: 1 | AC22: 1 | AZ22: 1 | BA22: =IF(AZ22=1,G22,0) -> 0 | BB22: =IF(AZ22=2,G22,0) -> 0 | BC22: =IF(AZ22=3,G22,0) -> 0 | BD22: =IF(AZ22=4,G22,0) -> 0 | BE22: =IF(AZ22=5,G22,0) -> 0 | CA22: 1 | CB22: 1
C23: Položka obsahuje hloubení rýh traktorbagrem, naložení výkopku na dopravní prostředek pro svislé, nebo vodorovné přemístění, popř. přemístění výkopku do 3 m (po povrchu území), případné zajištění rypadel polštáři, udržování pracoviště a ochranu výkopiště proti stékání srážkové vody z okolního terénu i s jejím odvodněním, nebo odvedením, přesekání a odstranění kořenů ve výkopišti, odstranění napadávek, urovnání dna výkopu. | L23: Položka obsahuje hloubení rýh traktorbagrem, naložení výkopku na dopravní prostředek pro svislé, nebo vodorovné přemístění, popř. přemístění výkopku do 3 m (po povrchu území), případné zajištění rypadel polštáři, udržování pracoviště a ochranu výkopiště proti stékání srážkové vody z okolního terénu i s jejím odvodněním, nebo odvedením, přesekání a odstranění kořenů ve výkopišti, odstranění napadávek, urovnání dna výkopu. | O23: 3
C24: Výkopy: | E24: 0 | M24: Výkopy:
C25: Začátek provozního součtu | E25: 0 | M25: Začátek provozního součtu
C26: Stoka "DS-3 do Š7" PVC DN600 SN16: | E26: 0 | M26: Stoka "DS-3 do Š7" PVC DN600 SN16:
C27: Souběh se splaš. kanalizací a částečně s vodovodem: | E27: 0 | M27: Souběh se splaš. kanalizací a částečně s vodovodem:
C28: 7,70*1,30*(1,95+1,68)/2 | E28: 18.1682 | M28: 7,70*1,30*(1,95+1,68)/2
C29: (14,60-7,70)*1,30*(1,68+1,65)/2 | E29: 14.9351 | M29: (14,60-7,70)*1,30*(1,68+1,65)/2
C30: (49,10-14,60)*1,30*(1,65+2,45)/2 | E30: 91.9425 | M30: (49,10-14,60)*1,30*(1,65+2,45)/2
C31: (73,10-49,10)*1,30*(2,45+2,45)/2 | E31: 76.44 | M31: (73,10-49,10)*1,30*(2,45+2,45)/2
C32: (143,00-73,10)*1,30*(2,45+2,38)/2 | E32: 219.4511 | M32: (143,00-73,10)*1,30*(2,45+2,38)/2
C33: Prohloubení pro RŠ:1,60*1,60*0,20*8 | E33: 4.096 | M33: Prohloubení pro RŠ:1,60*1,60*0,20*8
C34: Rozšíření pro RŠ:1,60*(1,60-1,30)*(1,95+1,86+1,65+2,45+2,45+2,45+2,35+2,36) | E34: 8.4096 | M34: Rozšíření pro RŠ:1,60*(1,60-1,30)*(1,95+1,86+1,65+2,45+2,45+2,45+2,35+2,36)
C35: Drenáž:143,00*1,30*0,15 | E35: 27.885 | M35: Drenáž:143,00*1,30*0,15
C36: Odpočet předpokládaného objemu MK:-(143,00-49,10)*1,30*0,40 | E36: -48.828 | M36: Odpočet předpokládaného objemu MK:-(143,00-49,10)*1,30*0,40
C37: Odpočet panelové cesty:-3,00*1,30*0,40 | E37: -1.56 | M37: Odpočet panelové cesty:-3,00*1,30*0,40
C38: Odpočet objemu Ornice:-(49,10-3,00)*1,30*0,20 | E38: -11.986 | M38: Odpočet objemu Ornice:-(49,10-3,00)*1,30*0,20
C39: Stoka "DS-3-a" PVC DN 315 SN12: | E39: 0 | M39: Stoka "DS-3-a" PVC DN 315 SN12:
C40: Souběh se splaš. kanalizací a s vodovodem: | E40: 0 | M40: Souběh se splaš. kanalizací a s vodovodem:
C41: 108,60*1,00*(2,45+2,15)/2 | E41: 249.78 | M41: 108,60*1,00*(2,45+2,15)/2
C42: (225,00-108,60)*1,00*(2,15+2,15)/2 | E42: 250.26 | M42: (225,00-108,60)*1,00*(2,15+2,15)/2
C43: Prohloubení pro RŠ:1,60*1,60*0,20*6 | E43: 3.072 | M43: Prohloubení pro RŠ:1,60*1,60*0,20*6
C44: Rozšíření pro RŠ:1,60*(1,60-1,00)*(2,37+2,15+2,15+2,05+2,15+2,15) | E44: 12.4992 | M44: Rozšíření pro RŠ:1,60*(1,60-1,00)*(2,37+2,15+2,15+2,05+2,15+2,15)
C45: Drenáž:225,00*1,00*0,15 | E45: 33.75 | M45: Drenáž:225,00*1,00*0,15
C46: Odpočet předpokládaného objemu MK:-225,00*1,00*0,40 | E46: -90 | M46: Odpočet předpokládaného objemu MK:-225,00*1,00*0,40
C47: Konec provozního součtu | E47: 858.3147 | M47: Konec provozního součtu
C48: V hornině tř. 3 - 40%:858,3145*0,4 | E48: 343.3258 | M48: V hornině tř. 3 - 40%:858,3145*0,4
A49: 5 | B49: 132201219R00 | C49: Přípl.za lepivost,hloubení rýh 200cm,hor.3,STROJNĚ | D49: m3 | E49: 171.6629 | G49: =E49*F49 -> 0 | H49: 0 | I49: =E49*H49 -> 0 | J49: 0 | K49: =E49*J49 -> 0 | O49: 2 | AA49: 1 | AB49: 1 | AC49: 1 | AZ49: 1 | BA49: =IF(AZ49=1,G49,0) -> 0 | BB49: =IF(AZ49=2,G49,0) -> 0 | BC49: =IF(AZ49=3,G49,0) -> 0 | BD49: =IF(AZ49=4,G49,0) -> 0 | BE49: =IF(AZ49=5,G49,0) -> 0 | CA49: 1 | CB49: 1
C50: Výkopy: | E50: 0 | M50: Výkopy:
C51: V hornině tř. 3 - 40%:858,3145*0,4*0,5 | E51: 171.6629 | M51: V hornině tř. 3 - 40%:858,3145*0,4*0,5
A52: 6 | B52: 132301212R00 | C52: Hloubení rýh š.do 200 cm hor.4 do 1000 m3, STROJNĚ | D52: m3 | E52: 429.1572 | G52: =E52*F52 -> 0 | H52: 0 | I52: =E52*H52 -> 0 | J52: 0 | K52: =E52*J52 -> 0 | O52: 2 | AA52: 1 | AB52: 1 | AC52: 1 | AZ52: 1 | BA52: =IF(AZ52=1,G52,0) -> 0 | BB52: =IF(AZ52=2,G52,0) -> 0 | BC52: =IF(AZ52=3,G52,0) -> 0 | BD52: =IF(AZ52=4,G52,0) -> 0 | BE52: =IF(AZ52=5,G52,0) -> 0 | CA52: 1 | CB52: 1
C53: Položka obsahuje hloubení rýh traktorbagrem, naložení výkopku na dopravní prostředek pro svislé, nebo vodorovné přemístění, popř. přemístění výkopku do 3 m (po povrchu území), případné zajištění rypadel polštáři, udržování pracoviště a ochranu výkopiště proti stékání srážkové vody z okolního terénu i s jejím odvodněním, nebo odvedením, přesekání a odstranění kořenů ve výkopišti, odstranění napadávek, urovnání dna výkopu. | L53: Položka obsahuje hloubení rýh traktorbagrem, naložení výkopku na dopravní prostředek pro svislé, nebo vodorovné přemístění, popř. přemístění výkopku do 3 m (po povrchu území), případné zajištění rypadel polštáři, udržování pracoviště a ochranu výkopiště proti stékání srážkové vody z okolního terénu i s jejím odvodněním, nebo odvedením, přesekání a odstranění kořenů ve výkopišti, odstranění napadávek, urovnání dna výkopu. | O53: 3
C54: Výkopy: | E54: 0 | M54: Výkopy:
C55: V hornině tř. 4 - 50%:858,3145*0,5 | E55: 429.1572 | M55: V hornině tř. 4 - 50%:858,3145*0,5
A56: 7 | B56: 132301219R00 | C56: Přípl.za lepivost,hloubení rýh 200cm,hor.4,STROJNĚ | D56: m3 | E56: 214.5786 | G56: =E56*F56 -> 0 | H56: 0 | I56: =E56*H56 -> 0 | J56: 0 | K56: =E56*J56 -> 0 | O56: 2 | AA56: 1 | AB56: 1 | AC56: 1 | AZ56: 1 | BA56: =IF(AZ56=1,G56,0) -> 0 | BB56: =IF(AZ56=2,G56,0) -> 0 | BC56: =IF(AZ56=3,G56,0) -> 0 | BD56: =IF(AZ56=4,G56,0) -> 0 | BE56: =IF(AZ56=5,G56,0) -> 0 | CA56: 1 | CB56: 1
C57: Výkopy: | E57: 0 | M57: Výkopy:
C58: V hornině tř. 4 - 50%:858,3145*0,5*0,5 | E58: 214.5786 | M58: V hornině tř. 4 - 50%:858,3145*0,5*0,5
A59: 8 | B59: 132401211RRX | C59: Hloubení rýh šířky do 200 cm v hor.5 STROJNĚ včetně případného dolamování ve vrstvě do 0,5 m | D59: m3 | E59: 85.8315 | G59: =E59*F59 -> 0 | H59: 0.01041 | I59: =E59*H59 -> 0.893505915 | J59: 0 | K59: =E59*J59 -> 0 | O59: 2 | AA59: 1 | AB59: 1 | AC59: 1 | AZ59: 1 | BA59: =IF(AZ59=1,G59,0) -> 0 | BB59: =IF(AZ59=2,G59,0) -> 0 | BC59: =IF(AZ59=3,G59,0) -> 0 | BD59: =IF(AZ59=4,G59,0) -> 0 | BE59: =IF(AZ59=5,G59,0) -> 0 | CA59: 1 | CB59: 1
C60: Položka obsahuje hloubení rýh traktorbagrem, naložení výkopku na dopravní prostředek pro svislé, nebo vodorovné přemístění, popř. přemístění výkopku do 3 m (po povrchu území), případné zajištění rypadel polštáři, udržování pracoviště a ochranu výkopiště proti stékání srážkové vody z okolního terénu i s jejím odvodněním, nebo odvedením, přesekání a odstranění kořenů ve výkopišti, odstranění napadávek, urovnání dna výkopu.včetně případného dolamování ve vrstvě do 0,5 m | L60: Položka obsahuje hloubení rýh traktorbagrem, naložení výkopku na dopravní prostředek pro svislé, nebo vodorovné přemístění, popř. přemístění výkopku do 3 m (po povrchu území), případné zajištění rypadel polštáři, udržování pracoviště a ochranu výkopiště proti stékání srážkové vody z okolního terénu i s jejím odvodněním, nebo odvedením, přesekání a odstranění kořenů ve výkopišti, odstranění napadávek, urovnání dna výkopu.včetně případného dolamování ve vrstvě do 0,5 m | O60: 3
C61: Výkopy: | E61: 0 | M61: Výkopy:
C62: V hornině tř. 5 - 10%:858,3145*0,1 | E62: 85.8315 | M62: V hornině tř. 5 - 10%:858,3145*0,1
A63: 9 | B63: 151101101R00 | C63: Pažení a rozepření stěn rýh - příložné - hl.do 2 m | D63: m2 | E63: 96.189 | G63: =E63*F63 -> 0 | H63: 0.00099 | I63: =E63*H63 -> 0.09522711 | J63: 0 | K63: =E63*J63 -> 0 | O63: 2 | AA63: 1 | AB63: 1 | AC63: 1 | AZ63: 1 | BA63: =IF(AZ63=1,G63,0) -> 0 | BB63: =IF(AZ63=2,G63,0) -> 0 | BC63: =IF(AZ63=3,G63,0) -> 0 | BD63: =IF(AZ63=4,G63,0) -> 0 | BE63: =IF(AZ63=5,G63,0) -> 0 | CA63: 1 | CB63: 1
C64: Výkopy: | E64: 0 | M64: Výkopy:
C65: Stoka "DS-3 do Š7" PVC DN600 SN16: | E65: 0 | M65: Stoka "DS-3 do Š7" PVC DN600 SN16:
C66: Souběh se splaš. kanalizací a částečně s vodovodem: | E66: 0 | M66: Souběh se splaš. kanalizací a částečně s vodovodem:
C67: 7,70*(1,95+1,68)/2*2*0,5 | E67: 13.9755 | M67: 7,70*(1,95+1,68)/2*2*0,5
C68: (14,60-7,70)*(1,68+1,65)/2*2*0,5 | E68: 11.4885 | M68: (14,60-7,70)*(1,68+1,65)/2*2*0,5
C69: (49,10-14,60)*(1,65+2,45)/2*2*0,5 | E69: 70.725 | M69: (49,10-14,60)*(1,65+2,45)/2*2*0,5
A70: 10 | B70: 151101102R00 | C70: Pažení a rozepření stěn rýh - příložné - hl.do 4 m | D70: m2 | E70: 727.6485 | G70: =E70*F70 -> 0 | H70: 0.00086 | I70: =E70*H70 -> 0.62577771 | J70: 0 | K70: =E70*J70 -> 0 | O70: 2 | AA70: 1 | AB70: 1 | AC70: 1 | AZ70: 1 | BA70: =IF(AZ70=1,G70,0) -> 0 | BB70: =IF(AZ70=2,G70,0) -> 0 | BC70: =IF(AZ70=3,G70,0) -> 0 | BD70: =IF(AZ70=4,G70,0) -> 0 | BE70: =IF(AZ70=5,G70,0) -> 0 | CA70: 1 | CB70: 1
C71: Výkopy: | E71: 0 | M71: Výkopy:
C72: Stoka "DS-3 do Š7" PVC DN600 SN16: | E72: 0 | M72: Stoka "DS-3 do Š7" PVC DN600 SN16:
C73: Souběh se splaš. kanalizací a částečně s vodovodem: | E73: 0 | M73: Souběh se splaš. kanalizací a částečně s vodovodem:
C74: (73,10-49,10)*(2,45+2,45)/2*2*0,5 | E74: 58.8 | M74: (73,10-49,10)*(2,45+2,45)/2*2*0,5
C75: (143,00-73,10)*(2,45+2,38)/2*2*0,5 | E75: 168.8085 | M75: (143,00-73,10)*(2,45+2,38)/2*2*0,5
C76: Stoka "DS-3-a" PVC DN 315 SN12: | E76: 0 | M76: Stoka "DS-3-a" PVC DN 315 SN12:
C77: Souběh se splaš. kanalizací a s vodovodem: | E77: 0 | M77: Souběh se splaš. kanalizací a s vodovodem:
C78: 108,60*(2,45+2,15)/2*2*0,5 | E78: 249.78 | M78: 108,60*(2,45+2,15)/2*2*0,5
C79: (225,00-108,60)*(2,15+2,15)/2*2*0,5 | E79: 250.26 | M79: (225,00-108,60)*(2,15+2,15)/2*2*0,5
A80: 11 | B80: 151101111R00 | C80: Odstranění pažení stěn rýh - příložné - hl. do 2 m | D80: m2 | E80: 96.189 | G80: =E80*F80 -> 0 | H80: 0 | I80: =E80*H80 -> 0 | J80: 0 | K80: =E80*J80 -> 0 | O80: 2 | AA80: 1 | AB80: 1 | AC80: 1 | AZ80: 1 | BA80: =IF(AZ80=1,G80,0) -> 0 | BB80: =IF(AZ80=2,G80,0) -> 0 | BC80: =IF(AZ80=3,G80,0) -> 0 | BD80: =IF(AZ80=4,G80,0) -> 0 | BE80: =IF(AZ80=5,G80,0) -> 0 | CA80: 1 | CB80: 1
C81: Výkopy: | E81: 0 | M81: Výkopy:
C82: Stoka "DS-3 do Š7" PVC DN600 SN16: | E82: 0 | M82: Stoka "DS-3 do Š7" PVC DN600 SN16:
C83: Souběh se splaš. kanalizací a částečně s vodovodem: | E83: 0 | M83: Souběh se splaš. kanalizací a částečně s vodovodem:
C84: 7,70*(1,95+1,68)/2*2*0,5 | E84: 13.9755 | M84: 7,70*(1,95+1,68)/2*2*0,5
C85: (14,60-7,70)*(1,68+1,65)/2*2*0,5 | E85: 11.4885 | M85: (14,60-7,70)*(1,68+1,65)/2*2*0,5
C86: (49,10-14,60)*(1,65+2,45)/2*2*0,5 | E86: 70.725 | M86: (49,10-14,60)*(1,65+2,45)/2*2*0,5
A87: 12 | B87: 151101112R00 | C87: Odstranění pažení stěn rýh - příložné - hl. do 4 m | D87: m2 | E87: 727.6485 | G87: =E87*F87 -> 0 | H87: 0 | I87: =E87*H87 -> 0 | J87: 0 | K87: =E87*J87 -> 0 | O87: 2 | AA87: 1 | AB87: 1 | AC87: 1 | AZ87: 1 | BA87: =IF(AZ87=1,G87,0) -> 0 | BB87: =IF(AZ87=2,G87,0) -> 0 | BC87: =IF(AZ87=3,G87,0) -> 0 | BD87: =IF(AZ87=4,G87,0) -> 0 | BE87: =IF(AZ87=5,G87,0) -> 0 | CA87: 1 | CB87: 1
C88: Výkopy: | E88: 0 | M88: Výkopy:
C89: Stoka "DS-3 do Š7" PVC DN600 SN16: | E89: 0 | M89: Stoka "DS-3 do Š7" PVC DN600 SN16:
C90: Souběh se splaš. kanalizací a částečně s vodovodem: | E90: 0 | M90: Souběh se splaš. kanalizací a částečně s vodovodem:
C91: (73,10-49,10)*(2,45+2,45)/2*2*0,5 | E91: 58.8 | M91: (73,10-49,10)*(2,45+2,45)/2*2*0,5
C92: (143,00-73,10)*(2,45+2,38)/2*2*0,5 | E92: 168.8085 | M92: (143,00-73,10)*(2,45+2,38)/2*2*0,5
C93: Stoka "DS-3-a" PVC DN 315 SN12: | E93: 0 | M93: Stoka "DS-3-a" PVC DN 315 SN12:
C94: Souběh se splaš. kanalizací a s vodovodem: | E94: 0 | M94: Souběh se splaš. kanalizací a s vodovodem:
C95: 108,60*(2,45+2,15)/2*2*0,5 | E95: 249.78 | M95: 108,60*(2,45+2,15)/2*2*0,5
C96: (225,00-108,60)*(2,15+2,15)/2*2*0,5 | E96: 250.26 | M96: (225,00-108,60)*(2,15+2,15)/2*2*0,5
A97: 13 | B97: 162701105RSZ | C97: Vodorovné přemístění výkopku z hor.1-7 na skládku zhotovitele | D97: m3 | E97: 858.3145 | G97: =E97*F97 -> 0 | H97: 0 | I97: =E97*H97 -> 0 | J97: 0 | K97: =E97*J97 -> 0 | O97: 2 | AA97: 1 | AB97: 1 | AC97: 1 | AZ97: 1 | BA97: =IF(AZ97=1,G97,0) -> 0 | BB97: =IF(AZ97=2,G97,0) -> 0 | BC97: =IF(AZ97=3,G97,0) -> 0 | BD97: =IF(AZ97=4,G97,0) -> 0 | BE97: =IF(AZ97=5,G97,0) -> 0 | CA97: 1 | CB97: 1
C98: Výkopy: | E98: 0 | M98: Výkopy:
C99: V hornině tř. 3 - 5:858,3145 | E99: 858.3145 | M99: V hornině tř. 3 - 5:858,3145
A100: 14 | B100: 174101101R00 | C100: Zásyp jam, rýh, šachet se zhutněním | D100: m3 | E100: 405.5962 | G100: =E100*F100 -> 0 | H100: 0 | I100: =E100*H100 -> 0 | J100: 0 | K100: =E100*J100 -> 0 | O100: 2 | AA100: 1 | AB100: 1 | AC100: 1 | AZ100: 1 | BA100: =IF(AZ100=1,G100,0) -> 0 | BB100: =IF(AZ100=2,G100,0) -> 0 | BC100: =IF(AZ100=3,G100,0) -> 0 | BD100: =IF(AZ100=4,G100,0) -> 0 | BE100: =IF(AZ100=5,G100,0) -> 0 | CA100: 1 | CB100: 1
C101: Položka obsahuje strojní přemístění materiálu pro zásyp ze vzdálenosti do 10 m od okraje zásypu. | L101: Položka obsahuje strojní přemístění materiálu pro zásyp ze vzdálenosti do 10 m od okraje zásypu. | O101: 3
O102: 3
C103: Zásypy ŠD fr. 0-63 mm:405,5962 | E103: 405.5962 | M103: Zásypy ŠD fr. 0-63 mm:405,5962
C104: Začátek provozního součtu | E104: 0 | M104: Začátek provozního součtu
C105: Výkopy: | E105: 0 | M105: Výkopy:
C106: Stoka "DS-3 do Š7" PVC DN600 SN16: | E106: 0 | M106: Stoka "DS-3 do Š7" PVC DN600 SN16:
C107: Souběh se splaš. kanalizací a částečně s vodovodem: | E107: 0 | M107: Souběh se splaš. kanalizací a částečně s vodovodem:
C108: 7,70*1,30*(1,95+1,68)/2 | E108: 18.1682 | M108: 7,70*1,30*(1,95+1,68)/2
C109: (14,60-7,70)*1,30*(1,68+1,65)/2 | E109: 14.9351 | M109: (14,60-7,70)*1,30*(1,68+1,65)/2
C110: (49,10-14,60)*1,30*(1,65+2,45)/2 | E110: 91.9425 | M110: (49,10-14,60)*1,30*(1,65+2,45)/2
C111: (73,10-49,10)*1,30*(2,45+2,45)/2 | E111: 76.44 | M111: (73,10-49,10)*1,30*(2,45+2,45)/2
C112: (143,00-73,10)*1,30*(2,45+2,38)/2 | E112: 219.4511 | M112: (143,00-73,10)*1,30*(2,45+2,38)/2
C113: Prohloubení pro RŠ:1,60*1,60*0,20*8 | E113: 4.096 | M113: Prohloubení pro RŠ:1,60*1,60*0,20*8
C114: Rozšíření pro RŠ:1,60*(1,60-1,30)*(1,95+1,86+1,65+2,45+2,45+2,45+2,35+2,36) | E114: 8.4096 | M114: Rozšíření pro RŠ:1,60*(1,60-1,30)*(1,95+1,86+1,65+2,45+2,45+2,45+2,35+2,36)
C115: Odpočet předpokládaného objemu MK:-(143,00-49,10)*1,30*0,40 | E115: -48.828 | M115: Odpočet předpokládaného objemu MK:-(143,00-49,10)*1,30*0,40
C116: Odpočet panelové cesty:-3,00*1,30*0,40 | E116: -1.56 | M116: Odpočet panelové cesty:-3,00*1,30*0,40
C117: Odpočet objemu Ornice:-(49,10-3,00)*1,30*0,20 | E117: -11.986 | M117: Odpočet objemu Ornice:-(49,10-3,00)*1,30*0,20
C118: Stoka "DS-3-a" PVC DN 315 SN12: | E118: 0 | M118: Stoka "DS-3-a" PVC DN 315 SN12:
C119: Souběh se splaš. kanalizací a s vodovodem: | E119: 0 | M119: Souběh se splaš. kanalizací a s vodovodem:
C120: 108,60*1,00*(2,45+2,15)/2 | E120: 249.78 | M120: 108,60*1,00*(2,45+2,15)/2
C121: (225,00-108,60)*1,00*(2,15+2,15)/2 | E121: 250.26 | M121: (225,00-108,60)*1,00*(2,15+2,15)/2
C122: Prohloubení pro RŠ:1,60*1,60*0,20*6 | E122: 3.072 | M122: Prohloubení pro RŠ:1,60*1,60*0,20*6
C123: Rozšíření pro RŠ:1,60*(1,60-1,00)*(2,37+2,15+2,15+2,05+2,15+2,15) | E123: 12.4992 | M123: Rozšíření pro RŠ:1,60*(1,60-1,00)*(2,37+2,15+2,15+2,05+2,15+2,15)
C124: Odpočet předpokládaného objemu MK:-225,00*1,00*0,40 | E124: -90 | M124: Odpočet předpokládaného objemu MK:-225,00*1,00*0,40
C125: Odpočet objemu lože, potrubí a obsypů: | E125: 0 | M125: Odpočet objemu lože, potrubí a obsypů:
C126: Stoka "DS-3 do Š7" PVC DN600 SN16:-143,00*1,00*(0,15+0,315+0,20) | E126: -95.095 | M126: Stoka "DS-3 do Š7" PVC DN600 SN16:-143,00*1,00*(0,15+0,315+0,20)
C127: Stoka "DS-3-a" PVC DN 315 SN12:-225,00*1,30*(0,15+0,60+0,20) | E127: -277.875 | M127: Stoka "DS-3-a" PVC DN 315 SN12:-225,00*1,30*(0,15+0,60+0,20)
C128: Odpočet objemu RŠ:-18,1133 | E128: -18.1133 | M128: Odpočet objemu RŠ:-18,1133
C129: Konec provozního součtu | E129: 405.5964 | M129: Konec provozního součtu
A130: 15 | B130: 175101101R00 | C130: Obsyp potrubí bez prohození sypaniny | D130: m3 | E130: 273.8059 | G130: =E130*F130 -> 0 | H130: 0 | I130: =E130*H130 -> 0 | J130: 0 | K130: =E130*J130 -> 0 | O130: 2 | AA130: 1 | AB130: 1 | AC130: 1 | AZ130: 1 | BA130: =IF(AZ130=1,G130,0) -> 0 | BB130: =IF(AZ130=2,G130,0) -> 0 | BC130: =IF(AZ130=3,G130,0) -> 0 | BD130: =IF(AZ130=4,G130,0) -> 0 | BE130: =IF(AZ130=5,G130,0) -> 0 | CA130: 1 | CB130: 1
C131: Stoka "DS-3-a" PVC DN 315 SN12:150,00*(1,00*(0,315+0,20)-0,1575^2*Pi) | E131: 65.5603 | M131: Stoka "DS-3-a" PVC DN 315 SN12:150,00*(1,00*(0,315+0,20)-0,1575^2*Pi)
C132: Stoka "DS-3 do Š7" PVC DN600 SN16:275,00*(1,30*(0,60+0,20)-0,30^2*Pi) | E132: 208.2456 | M132: Stoka "DS-3 do Š7" PVC DN600 SN16:275,00*(1,30*(0,60+0,20)-0,30^2*Pi)
A133: 16 | B133: 199000002R00 | C133: Poplatek za skládku horniny 1- 7 č. dle katal. odpadů 17 05 04 | D133: m3 | E133: 858.3145 | G133: =E133*F133 -> 0 | H133: 0 | I133: =E133*H133 -> 0 | J133: 0 | K133: =E133*J133 -> 0 | O133: 2 | AA133: 1 | AB133: 1 | AC133: 1 | AZ133: 1 | BA133: =IF(AZ133=1,G133,0) -> 0 | BB133: =IF(AZ133=2,G133,0) -> 0 | BC133: =IF(AZ133=3,G133,0) -> 0 | BD133: =IF(AZ133=4,G133,0) -> 0 | BE133: =IF(AZ133=5,G133,0) -> 0 | CA133: 1 | CB133: 1
C134: Výkopy: | E134: 0 | M134: Výkopy:
C135: V hornině tř. 3 - 5:858,3145 | E135: 858.3145 | M135: V hornině tř. 3 - 5:858,3145
A136: 17 | B136: 58337308.R | C136: Štěrkopísek frakce 0-2 tř.B | D136: t | E136: 545.6213 | G136: =E136*F136 -> 0 | H136: 1 | I136: =E136*H136 -> 545.6213 | K136: =E136*J136 -> 0 | O136: 2 | AA136: 3 | AB136: 1 | AC136: 58337308.R | AZ136: 1 | BA136: =IF(AZ136=1,G136,0) -> 0 | BB136: =IF(AZ136=2,G136,0) -> 0 | BC136: =IF(AZ136=3,G136,0) -> 0 | BD136: =IF(AZ136=4,G136,0) -> 0 | BE136: =IF(AZ136=5,G136,0) -> 0 | CA136: 3 | CB136: 1
C137: Stoka "DS-3-a" PVC DN 315 SN12:150,00*(1,00*(0,315+0,20)-0,1575^2*Pi)*1,973*1,01 | E137: 130.644 | M137: Stoka "DS-3-a" PVC DN 315 SN12:150,00*(1,00*(0,315+0,20)-0,1575^2*Pi)*1,973*1,01
C138: Stoka "DS-3 do Š7" PVC DN600 SN16:275,00*(1,30*(0,60+0,20)-0,30^2*Pi)*1,973*1,01 | E138: 414.9772 | M138: Stoka "DS-3 do Š7" PVC DN600 SN16:275,00*(1,30*(0,60+0,20)-0,30^2*Pi)*1,973*1,01
A139: 18 | B139: 58344197R | C139: Štěrkodrtě frakce 0-63 A | D139: t | E139: 767.2785 | G139: =E139*F139 -> 0 | H139: 1 | I139: =E139*H139 -> 767.2785 | K139: =E139*J139 -> 0 | O139: 2 | AA139: 3 | AB139: 1 | AC139: 58344197R | AZ139: 1 | BA139: =IF(AZ139=1,G139,0) -> 0 | BB139: =IF(AZ139=2,G139,0) -> 0 | BC139: =IF(AZ139=3,G139,0) -> 0 | BD139: =IF(AZ139=4,G139,0) -> 0 | BE139: =IF(AZ139=5,G139,0) -> 0 | CA139: 3 | CB139: 1
C140: Zásypy ŠD fr. 0-63 mm:405,5962*1,873*1,01 | E140: 767.2785 | M140: Zásypy ŠD fr. 0-63 mm:405,5962*1,873*1,01
B141: Celkem za | C141: 1 Zemní práce | G141: =SUM(G7:G140) -> 0 | I141: =SUM(I7:I140) -> 1314.514311 | K141: =SUM(K7:K140) -> 0 | O141: 4 | BA141: =SUM(BA7:BA140) -> 0 | BB141: =SUM(BB7:BB140) -> 0 | BC141: =SUM(BC7:BC140) -> 0 | BD141: =SUM(BD7:BD140) -> 0 | BE141: =SUM(BE7:BE140) -> 0
A142: Díl: | B142: 21 | C142: Úprava podloží a základ.spáry | O142: 1
A143: 19 | B143: 212810010RAC | C143: Trativody z PVC drenážních flexibilních trubek lože štěrkopísek a obsyp kamenivo, trubky d 100 mm | D143: m | E143: 368 | G143: =E143*F143 -> 0 | H143: 0.43651 | I143: =E143*H143 -> 160.63568 | J143: 0 | K143: =E143*J143 -> 0 | O143: 2 | AA143: 1 | AB143: 1 | AC143: 1 | AZ143: 1 | BA143: =IF(AZ143=1,G143,0) -> 0 | BB143: =IF(AZ143=2,G143,0) -> 0 | BC143: =IF(AZ143=3,G143,0) -> 0 | BD143: =IF(AZ143=4,G143,0) -> 0 | BE143: =IF(AZ143=5,G143,0) -> 0 | CA143: 1 | CB143: 1
C144: Stoka "DS-3 do Š7" PVC DN600 SN16:143,00 | E144: 143 | M144: Stoka "DS-3 do Š7" PVC DN600 SN16:143,00
C145: Stoka "DS-3-a" PVC DN 315 SN12:225,00 | E145: 225 | M145: Stoka "DS-3-a" PVC DN 315 SN12:225,00
B146: Celkem za | C146: 21 Úprava podloží a základ.spáry | G146: =SUM(G142:G145) -> 0 | I146: =SUM(I142:I145) -> 160.63568 | K146: =SUM(K142:K145) -> 0 | O146: 4 | BA146: =SUM(BA142:BA145) -> 0 | BB146: =SUM(BB142:BB145) -> 0 | BC146: =SUM(BC142:BC145) -> 0 | BD146: =SUM(BD142:BD145) -> 0 | BE146: =SUM(BE142:BE145) -> 0
A147: Díl: | B147: 45 | C147: Podkladní a vedlejší konstrukce | O147: 1
A148: 20 | B148: 451572111R00 | C148: Lože pod potrubí z kameniva těženého 0 - 4 mm | D148: m3 | E148: 65.325 | G148: =E148*F148 -> 0 | H148: 0.43051 | I148: =E148*H148 -> 28.12306575 | J148: 0 | K148: =E148*J148 -> 0 | O148: 2 | AA148: 1 | AB148: 1 | AC148: 1 | AZ148: 1 | BA148: =IF(AZ148=1,G148,0) -> 0 | BB148: =IF(AZ148=2,G148,0) -> 0 | BC148: =IF(AZ148=3,G148,0) -> 0 | BD148: =IF(AZ148=4,G148,0) -> 0 | BE148: =IF(AZ148=5,G148,0) -> 0 | CA148: 1 | CB148: 1
C149: Stoka "DS-3 do Š7" PVC DN600 SN16:143,00*1,00*0,15 | E149: 21.45 | M149: Stoka "DS-3 do Š7" PVC DN600 SN16:143,00*1,00*0,15
C150: Stoka "DS-3-a" PVC DN 315 SN12:225,00*1,30*0,15 | E150: 43.875 | M150: Stoka "DS-3-a" PVC DN 315 SN12:225,00*1,30*0,15
A151: 21 | B151: 452112111R00 | C151: Osazení beton. prstenců pod poklopy,výšky do100 mm | D151: kus | E151: 21 | G151: =E151*F151 -> 0 | H151: 0.0066 | I151: =E151*H151 -> 0.1386 | J151: 0 | K151: =E151*J151 -> 0 | O151: 2 | AA151: 1 | AB151: 1 | AC151: 1 | AZ151: 1 | BA151: =IF(AZ151=1,G151,0) -> 0 | BB151: =IF(AZ151=2,G151,0) -> 0 | BC151: =IF(AZ151=3,G151,0) -> 0 | BD151: =IF(AZ151=4,G151,0) -> 0 | BE151: =IF(AZ151=5,G151,0) -> 0 | CA151: 1 | CB151: 1
C152: Volba položky se řídí výškou prstence nebo rámu. V položkách nejsou zakalkulovány náklady na dodávku betonových výrobků; | L152: Volba položky se řídí výškou prstence nebo rámu. V položkách nejsou zakalkulovány náklady na dodávku betonových výrobků; | O152: 3
C153: Stoka "DS-3-a" PVC DN 315 SN12: | E153: 0 | M153: Stoka "DS-3-a" PVC DN 315 SN12:
C154: Stoka "DS-3 do Š7" PVC DN600 SN16: | E154: 0 | M154: Stoka "DS-3 do Š7" PVC DN600 SN16:
C155: VP H8:9 | E155: 9 | M155: VP H8:9
C156: VP H10:12 | E156: 12 | M156: VP H10:12
A157: 22 | B157: 452112121R00 | C157: Osazení beton. prstenců pod poklopy,výšky do200 mm | D157: kus | E157: 4 | G157: =E157*F157 -> 0 | H157: 0.0066 | I157: =E157*H157 -> 0.0264 | J157: 0 | K157: =E157*J157 -> 0 | O157: 2 | AA157: 1 | AB157: 1 | AC157: 1 | AZ157: 1 | BA157: =IF(AZ157=1,G157,0) -> 0 | BB157: =IF(AZ157=2,G157,0) -> 0 | BC157: =IF(AZ157=3,G157,0) -> 0 | BD157: =IF(AZ157=4,G157,0) -> 0 | BE157: =IF(AZ157=5,G157,0) -> 0 | CA157: 1 | CB157: 1
C158: Stoka "DS-3-a" PVC DN 315 SN12: | E158: 0 | M158: Stoka "DS-3-a" PVC DN 315 SN12:
C159: Stoka "DS-3 do Š7" PVC DN600 SN16: | E159: 0 | M159: Stoka "DS-3 do Š7" PVC DN600 SN16:
C160: VP H12:4 | E160: 4 | M160: VP H12:4
A161: 23 | B161: 59224348.A.R | C161: Prstenec vyrovn šachetní TBW-Q.1 63/8 | D161: kus | E161: 9.09 | G161: =E161*F161 -> 0 | H161: 0.054 | I161: =E161*H161 -> 0.49086 | K161: =E161*J161 -> 0 | O161: 2 | AA161: 3 | AB161: 1 | AC161: 59224348.A.R | AZ161: 1 | BA161: =IF(AZ161=1,G161,0) -> 0 | BB161: =IF(AZ161=2,G161,0) -> 0 | BC161: =IF(AZ161=3,G161,0) -> 0 | BD161: =IF(AZ161=4,G161,0) -> 0 | BE161: =IF(AZ161=5,G161,0) -> 0 | CA161: 3 | CB161: 1
C162: Stoka "DS-3-a" PVC DN 315 SN12: | E162: 0 | M162: Stoka "DS-3-a" PVC DN 315 SN12:
C163: Stoka "DS-3 do Š7" PVC DN600 SN16: | E163: 0 | M163: Stoka "DS-3 do Š7" PVC DN600 SN16:
C164: VP H8:9*1,01 | E164: 9.09 | M164: VP H8:9*1,01
A165: 24 | B165: 59224349.A.R | C165: Prstenec vyrovn šachetní TBW-Q.1 63/10 | D165: kus | E165: 12.12 | G165: =E165*F165 -> 0 | H165: 0.068 | I165: =E165*H165 -> 0.82416 | K165: =E165*J165 -> 0 | O165: 2 | AA165: 3 | AB165: 1 | AC165: 59224349.A.R | AZ165: 1 | BA165: =IF(AZ165=1,G165,0) -> 0 | BB165: =IF(AZ165=2,G165,0) -> 0 | BC165: =IF(AZ165=3,G165,0) -> 0 | BD165: =IF(AZ165=4,G165,0) -> 0 | BE165: =IF(AZ165=5,G165,0) -> 0 | CA165: 3 | CB165: 1
C166: Stoka "DS-3-a" PVC DN 315 SN12: | E166: 0 | M166: Stoka "DS-3-a" PVC DN 315 SN12:
C167: Stoka "DS-3 do Š7" PVC DN600 SN16: | E167: 0 | M167: Stoka "DS-3 do Š7" PVC DN600 SN16:
C168: VP H10:12*1,01 | E168: 12.12 | M168: VP H10:12*1,01
A169: 25 | B169: 59224350.A.R | C169: Prstenec vyrovn šachetní TBW-Q.1 63/12 | D169: kus | E169: 4.04 | G169: =E169*F169 -> 0 | H169: 0.081 | I169: =E169*H169 -> 0.32724 | K169: =E169*J169 -> 0 | O169: 2 | AA169: 3 | AB169: 1 | AC169: 59224350.A.R | AZ169: 1 | BA169: =IF(AZ169=1,G169,0) -> 0 | BB169: =IF(AZ169=2,G169,0) -> 0 | BC169: =IF(AZ169=3,G169,0) -> 0 | BD169: =IF(AZ169=4,G169,0) -> 0 | BE169: =IF(AZ169=5,G169,0) -> 0 | CA169: 3 | CB169: 1
C170: Stoka "DS-3-a" PVC DN 315 SN12: | E170: 0 | M170: Stoka "DS-3-a" PVC DN 315 SN12:
C171: Stoka "DS-3 do Š7" PVC DN600 SN16: | E171: 0 | M171: Stoka "DS-3 do Š7" PVC DN600 SN16:
C172: VP H12:4*1,01 | E172: 4.04 | M172: VP H12:4*1,01
B173: Celkem za | C173: 45 Podkladní a vedlejší konstrukce | G173: =SUM(G147:G172) -> 0 | I173: =SUM(I147:I172) -> 29.93032575 | K173: =SUM(K147:K172) -> 0 | O173: 4 | BA173: =SUM(BA147:BA172) -> 0 | BB173: =SUM(BB147:BB172) -> 0 | BC173: =SUM(BC147:BC172) -> 0 | BD173: =SUM(BD147:BD172) -> 0 | BE173: =SUM(BE147:BE172) -> 0
A174: Díl: | B174: 5 | C174: Komunikace | O174: 1
A175: 26 | B175: 572701119RRX | C175: Provizorní zásyp rýh kam. hrubě drceným nebo recyk s následným odstraněním a odvozem | D175: m3 | E175: 148.668 | G175: =E175*F175 -> 0 | H175: 1.4805 | I175: =E175*H175 -> 220.102974 | J175: 0 | K175: =E175*J175 -> 0 | O175: 2 | AA175: 1 | AB175: 1 | AC175: 1 | AZ175: 1 | BA175: =IF(AZ175=1,G175,0) -> 0 | BB175: =IF(AZ175=2,G175,0) -> 0 | BC175: =IF(AZ175=3,G175,0) -> 0 | BD175: =IF(AZ175=4,G175,0) -> 0 | BE175: =IF(AZ175=5,G175,0) -> 0 | CA175: 1 | CB175: 1
C176: Stoka "DS-3 do Š7" PVC DN600 SN16:143,00*1,00*0,40 | E176: 57.2 | M176: Stoka "DS-3 do Š7" PVC DN600 SN16:143,00*1,00*0,40
C177: Stoka "DS-3-a" PVC DN 315 SN12:(225,00-49,10)*1,30*0,40 | E177: 91.468 | M177: Stoka "DS-3-a" PVC DN 315 SN12:(225,00-49,10)*1,30*0,40
B178: Celkem za | C178: 5 Komunikace | G178: =SUM(G174:G177) -> 0 | I178: =SUM(I174:I177) -> 220.102974 | K178: =SUM(K174:K177) -> 0 | O178: 4 | BA178: =SUM(BA174:BA177) -> 0 | BB178: =SUM(BB174:BB177) -> 0 | BC178: =SUM(BC174:BC177) -> 0 | BD178: =SUM(BD174:BD177) -> 0 | BE178: =SUM(BE174:BE177) -> 0
A179: Díl: | B179: 8 | C179: Trubní vedení | O179: 1
A180: 27 | B180: 871373121R00 | C180: Montáž trub z plastu, gumový kroužek, DN 300 | D180: m | E180: 225 | G180: =E180*F180 -> 0 | H180: 1e-05 | I180: =E180*H180 -> 0.00225 | J180: 0 | K180: =E180*J180 -> 0 | O180: 2 | AA180: 1 | AB180: 1 | AC180: 1 | AZ180: 1 | BA180: =IF(AZ180=1,G180,0) -> 0 | BB180: =IF(AZ180=2,G180,0) -> 0 | BC180: =IF(AZ180=3,G180,0) -> 0 | BD180: =IF(AZ180=4,G180,0) -> 0 | BE180: =IF(AZ180=5,G180,0) -> 0 | CA180: 1 | CB180: 1
C181: Stoka "DS-3-a" PVC DN 315 SN12:225,00 | E181: 225 | M181: Stoka "DS-3-a" PVC DN 315 SN12:225,00
A182: 28 | B182: 871423121R00 | C182: Montáž trub z plastu, gumový kroužek, DN 600 | D182: m | E182: 143 | G182: =E182*F182 -> 0 | H182: 2e-05 | I182: =E182*H182 -> 0.00286 | J182: 0 | K182: =E182*J182 -> 0 | O182: 2 | AA182: 1 | AB182: 1 | AC182: 1 | AZ182: 1 | BA182: =IF(AZ182=1,G182,0) -> 0 | BB182: =IF(AZ182=2,G182,0) -> 0 | BC182: =IF(AZ182=3,G182,0) -> 0 | BD182: =IF(AZ182=4,G182,0) -> 0 | BE182: =IF(AZ182=5,G182,0) -> 0 | CA182: 1 | CB182: 1
C183: Stoka "DS-3 do Š7" PVC DN600 SN16:143,00 | E183: 143 | M183: Stoka "DS-3 do Š7" PVC DN600 SN16:143,00
A184: 29 | B184: 892601154R00 | C184: Čištění kanalizační stoky do DN 500, nad 100 m | D184: m | E184: 225 | G184: =E184*F184 -> 0 | H184: 0 | I184: =E184*H184 -> 0 | J184: 0 | K184: =E184*J184 -> 0 | O184: 2 | AA184: 1 | AB184: 0 | AC184: 0 | AZ184: 1 | BA184: =IF(AZ184=1,G184,0) -> 0 | BB184: =IF(AZ184=2,G184,0) -> 0 | BC184: =IF(AZ184=3,G184,0) -> 0 | BD184: =IF(AZ184=4,G184,0) -> 0 | BE184: =IF(AZ184=5,G184,0) -> 0 | CA184: 1 | CB184: 0
C185: V položce je zakalkulováno: | L185: V položce je zakalkulováno: | O185: 3
C186: a) otevření a uzavření revizních šachet a čisticích kusů | L186: a) otevření a uzavření revizních šachet a čisticích kusů | O186: 3
C187: b) natažení vysokotlakých hadic k místu odkud se bude kanalizace čistit | L187: b) natažení vysokotlakých hadic k místu odkud se bude kanalizace čistit | O187: 3
C188: c) vyčištění potrubí tlakovou vodou nebo motorovým pérem. | L188: c) vyčištění potrubí tlakovou vodou nebo motorovým pérem. | O188: 3
